Workbook

Sheet Planilha Orçamentária
A1: Ministério da Integração e do Desenvolvimento Regional
A2: Companhia de desenvolvimento dos Vales do São Francisco e do Parnaíba
A4: PLANILHA ORÇAMENTÁRIA - ORÇAMENTO NÃO DESONERADO
A5: OBRA: | B5: =UPPER("SERVIÇOS DE MANUTENÇÃO E OBRAS CIVIS NA BARRAGEM CAMARÁ") -> SERVIÇOS DE MANUTENÇÃO E OBRAS CIVIS NA BARRAGEM CAMARÁ | F5: BDI (serv.): | H5: ='BDI serv'!D22 -> 0.2378 | I5: Bancos
A6: LOCAL: | B6: BARRAGEM CAMARÁ, BODOCÓ/PE | F6: BDI (forn.): | H6: ='BDI forn'!E6 -> 0.136 | I6: 03/2024 - SINAPI/PE
A7: DATA BASE: | B7: 2024-05-01 | E7: Encargos sociais Horistas: | H7: ='Encargos Sociais'!E47 -> 1.1398 | I7: 01/2024 - SICRO/PE
A8: PRAZO: | B8: 120 DIAS | E8: Encargos sociais - Mensalista: | H8: ='Encargos Sociais'!F47 -> 0.7
A9: ITEM | B9: REFERÊNCIA | D9: DESCRIÇÃO | E9: UNID. | F9: QUANT. | G9: CUSTO UNITÁRIO | H9: PREÇO UNITÁRIO | I9: PREÇO TOTAL | J9: TIPO de BDI | K9: CLASSIF
B10: FONTE | C10: CÓDIGO
A11: 1 | D11: ADMINISTRAÇÃO DA OBRA | I11: =SUM(I12:I12) -> 143091.3634 | K11: ss | L11: COMENTÁRIOS
A12: 1.1 | B12: PRÓPRIA | C12: CPU.01 | D12: Administração Local | E12: MÊS | F12: 4 | G12: =SUMIFS(CPU!$H:$H,CPU!$B:$B,'Planilha Orçamentária'!$A12,CPU!$I:$I,"ss")+SUMIFS(CPU!$H:$H,CPU!$B:$B,'Planilha Orçamentária'!$A12,CPU!$I:$I,"mdo")+SUMIF('Comp SINAPI PE 03-2024 Onerado'!G:G,'Planilha Orçamentária'!C12,'Comp SINAPI PE 03-2024 Onerado'!K:K)+SUMIF('Ins SINAPI PE 03-2024 Onerado'!A:A,'Planilha Orçamentária'!C12,'Ins SINAPI PE 03-2024 Onerado'!E:E) -> 28900.34 | H12: =IF(J12="SERV",G12*(1+$H$5),G12*(1+$H$6)) -> 35772.84085 | I12: =IF(J12="SERV",G12*F12*(1+$H$5),G12*F12*(1+$H$6)) -> 143091.3634 | J12: serv | K12: s
A14: 2 | D14: SERVIÇOS PRELIMINARES | I14: =SUM(I15,I17,I19) -> 38314.5723 | K14: ss
A15: 2.1 | D15: Mobilização e desmobilização | I15: =SUM(I16) -> 7352.40822
A16: 2.1.1 | B16: PRÓPRIA | C16: CPU.02 | D16: Mobilização e desmobilização de instalação do canteiro | E16: UN | F16: 1 | G16: =SUMIFS(CPU!$H:$H,CPU!$B:$B,'Planilha Orçamentária'!$A16,CPU!$I:$I,"ss")+SUMIFS(CPU!$H:$H,CPU!$B:$B,'Planilha Orçamentária'!$A16,CPU!$I:$I,"mdo")+SUMIF('Comp SINAPI PE 03-2024 Onerado'!G:G,'Planilha Orçamentária'!C16,'Comp SINAPI PE 03-2024 Onerado'!K:K)+SUMIF('Ins SINAPI PE 03-2024 Onerado'!A:A,'Planilha Orçamentária'!C16,'Ins SINAPI PE 03-2024 Onerado'!E:E) -> 5939.9 | H16: =IF(J16="SERV",G16*(1+$H$5),G16*(1+$H$6)) -> 7352.40822 | I16: =IF(J16="SERV",G16*F16*(1+$H$5),G16*F16*(1+$H$6)) -> 7352.40822 | J16: serv | K16: s
A17: 2.2 | D17: Canteiro de obras | I17: =SUM(I18:I18) -> 29254.0538
A18: 2.2.1 | B18: PRÓPRIA | C18: CPU.03 | D18: Execução de canteiro de obras, inclusive, limpeza, refeitório, sanitários e central de formas | E18: M2 | F18: ='Memorial de cálculo'!H37 -> 28.5 | G18: =SUMIFS(CPU!$H:$H,CPU!$B:$B,'Planilha Orçamentária'!$A18,CPU!$I:$I,"ss")+SUMIFS(CPU!$H:$H,CPU!$B:$B,'Planilha Orçamentária'!$A18,CPU!$I:$I,"mdo")+SUMIF('Comp SINAPI PE 03-2024 Onerado'!G:G,'Planilha Orçamentária'!C18,'Comp SINAPI PE 03-2024 Onerado'!K:K)+SUMIF('Ins SINAPI PE 03-2024 Onerado'!A:A,'Planilha Orçamentária'!C18,'Ins SINAPI PE 03-2024 Onerado'!E:E) -> 829.26 | H18: =IF(J18="SERV",G18*(1+$H$5),G18*(1+$H$6)) -> 1026.458028 | I18: =IF(J18="SERV",G18*F18*(1+$H$5),G18*F18*(1+$H$6)) -> 29254.0538 | J18: serv | K18: s
A19: 2.3 | D19: Fornecimento s instalação de placa de obra | I19: =SUM(I20:I20) -> 1708.110278
A20: 2.3.1 | B20: PRÓPRIA | C20: CPU.04 | D20: PLACA DE OBRA EM CHAPA DE ACO GALVANIZADO | E20: M2 | F20: ='Memorial de cálculo'!H69 -> 2 | G20: =SUMIFS(CPU!$H:$H,CPU!$B:$B,'Planilha Orçamentária'!$A20,CPU!$I:$I,"ss")+SUMIFS(CPU!$H:$H,CPU!$B:$B,'Planilha Orçamentária'!$A20,CPU!$I:$I,"mdo")+SUMIF('Comp SINAPI PE 03-2024 Onerado'!G:G,'Planilha Orçamentária'!C20,'Comp SINAPI PE 03-2024 Onerado'!K:K)+SUMIF('Ins SINAPI PE 03-2024 Onerado'!A:A,'Planilha Orçamentária'!C20,'Ins SINAPI PE 03-2024 Onerado'!E:E) -> 689.9782995 | H20: =IF(J20="SERV",G20*(1+$H$5),G20*(1+$H$6)) -> 854.0551391 | I20: =IF(J20="SERV",G20*F20*(1+$H$5),G20*F20*(1+$H$6)) -> 1708.110278 | J20: serv | K20: s
A22: 3 | D22: CORTE DA VEGETAÇÃO E REMOÇÃO DAS RAIZES | I22: =SUM(I23) -> 310060.1735 | K22: ss
A23: 3.1 | D23: Remoção da vegetação | I23: =SUM(I24:I25) -> 310060.1735 | K23: s
A24: 3.1.1 | B24: PRÓPRIA | C24: CPU.05 | D24: Limpeza de vegetação | E24: M2 | F24: ='Memorial de cálculo'!H49 -> 33000 | G24: =SUMIFS(CPU!$H:$H,CPU!$B:$B,'Planilha Orçamentária'!$A24,CPU!$I:$I,"ss")+SUMIFS(CPU!$H:$H,CPU!$B:$B,'Planilha Orçamentária'!$A24,CPU!$I:$I,"mdo")+SUMIF('Comp SINAPI PE 03-2024 Onerado'!G:G,'Planilha Orçamentária'!C24,'Comp SINAPI PE 03-2024 Onerado'!K:K)+SUMIF('Ins SINAPI PE 03-2024 Onerado'!A:A,'Planilha Orçamentária'!C24,'Ins SINAPI PE 03-2024 Onerado'!E:E) -> 7.4 | H24: =IF(J24="SERV",G24*(1+$H$5),G24*(1+$H$6)) -> 9.15972 | I24: =IF(J24="SERV",G24*F24*(1+$H$5),G24*F24*(1+$H$6)) -> 302270.76 | J24: serv | K24: s
A25: 3.1.2 | B25: PRÓPRIA | C25: CPU.06 | D25: Corte de arvore e remoção de raiz | E25: UN | F25: ='Memorial de cálculo'!H55 -> 15 | G25: =SUMIFS(CPU!$H:$H,CPU!$B:$B,'Planilha Orçamentária'!$A25,CPU!$I:$I,"ss")+SUMIFS(CPU!$H:$H,CPU!$B:$B,'Planilha Orçamentária'!$A25,CPU!$I:$I,"mdo")+SUMIF('Comp SINAPI PE 03-2024 Onerado'!G:G,'Planilha Orçamentária'!C25,'Comp SINAPI PE 03-2024 Onerado'!K:K)+SUMIF('Ins SINAPI PE 03-2024 Onerado'!A:A,'Planilha Orçamentária'!C25,'Ins SINAPI PE 03-2024 Onerado'!E:E) -> 419.53 | H25: =IF(J25="SERV",G25*(1+$H$5),G25*(1+$H$6)) -> 519.294234 | I25: =IF(J25="SERV",G25*F25*(1+$H$5),G25*F25*(1+$H$6)) -> 7789.41351 | J25: serv | K25: s
A27: 4 | D27: APLICAÇÃO DE CONCRETO | I27: =SUM(I28) -> 1943.742096 | K27: ss
A28: 4.1 | D28: Aplicação de concreto | I28: =SUM(I29:I29) -> 1943.742096
A29: 4.1.1 | B29: PRÓPRIA | C29: CPU.07 | D29: Aplicação de concreto c/ fornecimento, lançamento, adensamento e acabamento. | E29: M3 | F29: ='Memorial de cálculo'!H62 -> 2 | G29: =SUMIFS(CPU!$H:$H,CPU!$B:$B,'Planilha Orçamentária'!$A29,CPU!$I:$I,"ss")+SUMIFS(CPU!$H:$H,CPU!$B:$B,'Planilha Orçamentária'!$A29,CPU!$I:$I,"mdo")+SUMIF('Comp SINAPI PE 03-2024 Onerado'!G:G,'Planilha Orçamentária'!C29,'Comp SINAPI PE 03-2024 Onerado'!K:K)+SUMIF('Ins SINAPI PE 03-2024 Onerado'!A:A,'Planilha Orçamentária'!C29,'Ins SINAPI PE 03-2024 Onerado'!E:E) -> 785.16 | H29: =IF(J29="SERV",G29*(1+$H$5),G29*(1+$H$6)) -> 971.871048 | I29: =IF(J29="SERV",G29*F29*(1+$H$5),G29*F29*(1+$H$6)) -> 1943.742096 | J29: serv | K29: s
A31: 5 | D31: REGULARIZAÇÃO E PAVIMENTAÇÃO DA CRISTA | I31: =SUM(I32,I35,I37) -> 155068.3038 | K31: ss
A32: 5.1 | D32: Limpeza e regularização da crista | I32: =SUM(I33:I34) -> 24361.26558
A33: 5.1.1 | B33: PRÓPRIA | C33: CPU.08 | D33: Demolição de guias e sarjetas | E33: M | F33: 430 | G33: =SUMIFS(CPU!$H:$H,CPU!$B:$B,'Planilha Orçamentária'!$A33,CPU!$I:$I,"ss")+SUMIFS(CPU!$H:$H,CPU!$B:$B,'Planilha Orçamentária'!$A33,CPU!$I:$I,"mdo")+SUMIF('Comp SINAPI PE 03-2024 Onerado'!G:G,'Planilha Orçamentária'!C33,'Comp SINAPI PE 03-2024 Onerado'!K:K)+SUMIF('Ins SINAPI PE 03-2024 Onerado'!A:A,'Planilha Orçamentária'!C33,'Ins SINAPI PE 03-2024 Onerado'!E:E) -> 26.92 | H33: =IF(J33="SERV",G33*(1+$H$5),G33*(1+$H$6)) -> 33.321576 | I33: =IF(J33="SERV",G33*F33*(1+$H$5),G33*F33*(1+$H$6)) -> 14328.27768 | J33: serv | K33: s
A34: 5.1.2 | B34: PRÓPRIA | C34: CPU.09 | D34: Regularização e compactação da crista | E34: M2 | F34: 1450 | G34: =SUMIFS(CPU!$H:$H,CPU!$B:$B,'Planilha Orçamentária'!$A34,CPU!$I:$I,"ss")+SUMIFS(CPU!$H:$H,CPU!$B:$B,'Planilha Orçamentária'!$A34,CPU!$I:$I,"mdo")+SUMIF('Comp SINAPI PE 03-2024 Onerado'!G:G,'Planilha Orçamentária'!C34,'Comp SINAPI PE 03-2024 Onerado'!K:K)+SUMIF('Ins SINAPI PE 03-2024 Onerado'!A:A,'Planilha Orçamentária'!C34,'Ins SINAPI PE 03-2024 Onerado'!E:E) -> 5.59 | H34: =IF(J34="SERV",G34*(1+$H$5),G34*(1+$H$6)) -> 6.919302 | I34: =IF(J34="SERV",G34*F34*(1+$H$5),G34*F34*(1+$H$6)) -> 10032.9879 | J34: serv | K34: s
A35: 5.2 | D35: Instalação de drenagem e meio-fio da crista | I35: =I36 -> 75884.5668 | N35: m³ | O35: m³ | P35: t
A36: 5.2.1 | B36: SINAPI | C36: CPU.10 | D36: Guia e meio fio conjudados de concreto, moldada In Loco, 45cm base (15 cm Base da Guia +30 cm Base da Sarjeta) x 22 cm Altura | E36: M | F36: 700 | G36: =SUMIFS(CPU!$H:$H,CPU!$B:$B,'Planilha Orçamentária'!$A36,CPU!$I:$I,"ss")+SUMIFS(CPU!$H:$H,CPU!$B:$B,'Planilha Orçamentária'!$A36,CPU!$I:$I,"mdo")+SUMIF('Comp SINAPI PE 03-2024 Onerado'!G:G,'Planilha Orçamentária'!C36,'Comp SINAPI PE 03-2024 Onerado'!K:K)+SUMIF('Ins SINAPI PE 03-2024 Onerado'!A:A,'Planilha Orçamentária'!C36,'Ins SINAPI PE 03-2024 Onerado'!E:E) -> 87.58 | H36: =IF(J36="SERV",G36*(1+$H$5),G36*(1+$H$6)) -> 108.406524 | I36: =IF(J36="SERV",G36*F36*(1+$H$5),G36*F36*(1+$H$6)) -> 75884.5668 | J36: serv | K36: s | L36: Consumo de materiais SINAPI: | N36: =0.063+0.015+0.003 -> 0.081 | O36: =N36*F36 -> 56.7 | P36: =O36*1.5 -> 85.05
A37: 5.3 | D37: Revestimento com BGTC | I37: =SUM(I38:I38) -> 54822.47145
A38: 5.3.1 | B38: SINAPI | C38: CPU.11 | D38: Execução e compactação para pavimentação de Brita Graduada Simples Trada com cimento | E38: M3 | F38: =1450*0.1 -> 145 | G38: =SUMIFS(CPU!$H:$H,CPU!$B:$B,'Planilha Orçamentária'!$A38,CPU!$I:$I,"ss")+SUMIFS(CPU!$H:$H,CPU!$B:$B,'Planilha Orçamentária'!$A38,CPU!$I:$I,"mdo")+SUMIF('Comp SINAPI PE 03-2024 Onerado'!G:G,'Planilha Orçamentária'!C38,'Comp SINAPI PE 03-2024 Onerado'!K:K)+SUMIF('Ins SINAPI PE 03-2024 Onerado'!A:A,'Planilha Orçamentária'!C38,'Ins SINAPI PE 03-2024 Onerado'!E:E) -> 305.45 | H38: =IF(J38="SERV",G38*(1+$H$5),G38*(1+$H$6)) -> 378.08601 | I38: =IF(J38="SERV",G38*F38*(1+$H$5),G38*F38*(1+$H$6)) -> 54822.47145 | J38: serv | K38: s
A40: 6 | D40: =UPPER("Manutenção no talude de montante") -> MANUTENÇÃO NO TALUDE DE MONTANTE | I40: =SUM(I41) -> 228671.172 | K40: ss
A41: 6.1 | D41: Enrocamento c/ pedra de mão para proteção do talude | I41: =SUM(I42:I42) -> 228671.172
A42: 6.1.1 | B42: PROPRIA | C42: CPU.12 | D42: Enrocamento c/ pedra de mão c/ fornecimento e assentamento | E42: M3 | F42: ='Memorial de cálculo'!H94 -> 400 | G42: =SUMIFS(CPU!$H:$H,CPU!$B:$B,'Planilha Orçamentária'!$A42,CPU!$I:$I,"ss")+SUMIFS(CPU!$H:$H,CPU!$B:$B,'Planilha Orçamentária'!$A42,CPU!$I:$I,"mdo")+SUMIF('Comp SINAPI PE 03-2024 Onerado'!G:G,'Planilha Orçamentária'!C42,'Comp SINAPI PE 03-2024 Onerado'!K:K)+SUMIF('Ins SINAPI PE 03-2024 Onerado'!A:A,'Planilha Orçamentária'!C42,'Ins SINAPI PE 03-2024 Onerado'!E:E) -> 461.85 | H42: =IF(J42="SERV",G42*(1+$H$5),G42*(1+$H$6)) -> 571.67793 | I42: =IF(J42="SERV",G42*F42*(1+$H$5),G42*F42*(1+$H$6)) -> 228671.172 | J42: serv | K42: s
A44: 7 | D44: =UPPER("Recomposição dos locais em processo de erosão") -> RECOMPOSIÇÃO DOS LOCAIS EM PROCESSO DE EROSÃO | I44: =SUM(I45) -> 5958.076032 | K44: ss
A45: 7.1 | D45: Solo melhorado com 3% de cimento | I45: =SUM(I46:I46) -> 5958.076032
A46: 7.1.1 | B46: PROPRIA | C46: CPU.13 | D46: =CPU!D166 -> Solo Melhorado com cimento | E46: M3 | F46: 12 | G46: =SUMIFS(CPU!$H:$H,CPU!$B:$B,'Planilha Orçamentária'!$A46,CPU!$I:$I,"ss")+SUMIFS(CPU!$H:$H,CPU!$B:$B,'Planilha Orçamentária'!$A46,CPU!$I:$I,"mdo")+SUMIF('Comp SINAPI PE 03-2024 Onerado'!G:G,'Planilha Orçamentária'!C46,'Comp SINAPI PE 03-2024 Onerado'!K:K)+SUMIF('Ins SINAPI PE 03-2024 Onerado'!A:A,'Planilha Orçamentária'!C46,'Ins SINAPI PE 03-2024 Onerado'!E:E) -> 401.12 | H46: =IF(J46="SERV",G46*(1+$H$5),G46*(1+$H$6)) -> 496.506336 | I46: =IF(J46="SERV",G46*F46*(1+$H$5),G46*F46*(1+$H$6)) -> 5958.076032 | J46: serv | K46: s
A48: 8 | D48: =UPPER("Drenagem superficial do talude jusante") -> DRENAGEM SUPERFICIAL DO TALUDE JUSANTE | I48: =SUM(I49,I51) -> 29148.76653 | K48: ss
A49: 8.1 | D49: Canaleta para descida d'água | I49: =SUM(I50:I50) -> 28136.4318
A50: 8.1.1 | B50: SINAPI | C50: CPU.14 | D50: Canaleta meia cana de concreto (D=30cm) - Fornecimento e instalação | E50: M | F50: =300 -> 300 | G50: =SUMIFS(CPU!$H:$H,CPU!$B:$B,'Planilha Orçamentária'!$A50,CPU!$I:$I,"ss")+SUMIFS(CPU!$H:$H,CPU!$B:$B,'Planilha Orçamentária'!$A50,CPU!$I:$I,"mdo")+SUMIF('Comp SINAPI PE 03-2024 Onerado'!G:G,'Planilha Orçamentária'!C50,'Comp SINAPI PE 03-2024 Onerado'!K:K)+SUMIF('Ins SINAPI PE 03-2024 Onerado'!A:A,'Planilha Orçamentária'!C50,'Ins SINAPI PE 03-2024 Onerado'!E:E) -> 75.77 | H50: =IF(J50="SERV",G50*(1+$H$5),G50*(1+$H$6)) -> 93.788106 | I50: =IF(J50="SERV",G50*F50*(1+$H$5),G50*F50*(1+$H$6)) -> 28136.4318 | J50: serv | K50: s
A51: 8.2 | D51: Entrada para descida d'água | I51: =SUM(I52:I52) -> 1012.33473
A52: 8.2.1 | B52: PROPRIA | C52: CPU.15 | D52: Entrada para descida d'água | E52: UN | F52: ='Memorial de cálculo'!H115 -> 11 | G52: =SUMIFS(CPU!$H:$H,CPU!$B:$B,'Planilha Orçamentária'!$A52,CPU!$I:$I,"ss")+SUMIFS(CPU!$H:$H,CPU!$B:$B,'Planilha Orçamentária'!$A52,CPU!$I:$I,"mdo")+SUMIF('Comp SINAPI PE 03-2024 Onerado'!G:G,'Planilha Orçamentária'!C52,'Comp SINAPI PE 03-2024 Onerado'!K:K)+SUMIF('Ins SINAPI PE 03-2024 Onerado'!A:A,'Planilha Orçamentária'!C52,'Ins SINAPI PE 03-2024 Onerado'!E:E) -> 74.35 | H52: =IF(J52="SERV",G52*(1+$H$5),G52*(1+$H$6)) -> 92.03043 | I52: =IF(J52="SERV",G52*F52*(1+$H$5),G52*F52*(1+$H$6)) -> 1012.33473 | J52: serv | K52: s
A54: 9 | D54: =UPPER("Proteção superficial do talude de jusante") -> PROTEÇÃO SUPERFICIAL DO TALUDE DE JUSANTE | I54: =SUM(I55) -> 162869.724
A55: 9.1 | D55: Proteção vegetal | I55: =SUM(I56:I56) -> 162869.724
A56: 9.1.1 | B56: SINAPI | C56: CPU.16 | D56: Plantio de grama para proteção, inclusive adubação | E56: M2 | F56: 4500 | G56: =SUMIFS(CPU!$H:$H,CPU!$B:$B,'Planilha Orçamentária'!$A56,CPU!$I:$I,"ss")+SUMIFS(CPU!$H:$H,CPU!$B:$B,'Planilha Orçamentária'!$A56,CPU!$I:$I,"mdo")+SUMIF('Comp SINAPI PE 03-2024 Onerado'!G:G,'Planilha Orçamentária'!C56,'Comp SINAPI PE 03-2024 Onerado'!K:K)+SUMIF('Ins SINAPI PE 03-2024 Onerado'!A:A,'Planilha Orçamentária'!C56,'Ins SINAPI PE 03-2024 Onerado'!E:E) -> 29.24 | H56: =IF(J56="SERV",G56*(1+$H$5),G56*(1+$H$6)) -> 36.193272 | I56: =IF(J56="SERV",G56*F56*(1+$H$5),G56*F56*(1+$H$6)) -> 162869.724 | J56: serv | K56: s
A58: 10 | D58: MURO DE PEDRA ARGAMASSADA | I58: =SUM(I59) -> 58830.1584 | K58: ss
A59: 10.1 | D59: Execução de Muro com Pedra c/ L=0,3 e H=1,5. | I59: =SUM(I60:I60) -> 58830.1584
A60: 10.1.1 | B60: SINAPI | C60: CPU.17 | D60: Execução de Muro com Pedra argamassada com cimento e areia 1:3, Largura=0,4m e Altura=1,5m | E60: M | F60: =80 -> 80 | G60: =SUMIFS(CPU!$H:$H,CPU!$B:$B,'Planilha Orçamentária'!$A60,CPU!$I:$I,"ss")+SUMIFS(CPU!$H:$H,CPU!$B:$B,'Planilha Orçamentária'!$A60,CPU!$I:$I,"mdo")+SUMIF('Comp SINAPI PE 03-2024 Onerado'!G:G,'Planilha Orçamentária'!C60,'Comp SINAPI PE 03-2024 Onerado'!K:K)+SUMIF('Ins SINAPI PE 03-2024 Onerado'!A:A,'Planilha Orçamentária'!C60,'Ins SINAPI PE 03-2024 Onerado'!E:E) -> 594.1 | H60: =IF(J60="SERV",G60*(1+$H$5),G60*(1+$H$6)) -> 735.37698 | I60: =IF(J60="SERV",G60*F60*(1+$H$5),G60*F60*(1+$H$6)) -> 58830.1584 | J60: serv | K60: s | L60: considerando construção de 50 m de muro de 0,5x2
A62: 11 | D62: SERVIÇOS COMPLEMENTARES | I62: =SUM(I63,I65,I67,I69) -> 97235.14778 | K62: ss
A63: 11.1 | D63: Instalação de placas de aviso | I63: =SUM(I64:I64) -> 3416.220556
A64: 11.1.1 | B64: PRÓPRIA | C64: =CPU!C45 -> CPU.04 | D64: PLACA DE OBRA EM CHAPA DE ACO GALVANIZADO | E64: M2 | F64: 4 | G64: =CPU!H45 -> 689.9782995 | H64: =IF(J64="SERV",G64*(1+$H$5),G64*(1+$H$6)) -> 854.0551391 | I64: =IF(J64="SERV",G64*F64*(1+$H$5),G64*F64*(1+$H$6)) -> 3416.220556 | J64: serv | K64: s | L64: 4 placas de 1 m²
A65: 11.2 | D65: Instalação de mourões para medida de cota d’água | I65: =SUM(I66) -> 6539.17362
A66: 11.2.1 | B66: PRÓPRIA | C66: CPU.18 | D66: Instalação de mourões para medida de cota d’água | E66: UN | F66: 10 | G66: =SUMIFS(CPU!$H:$H,CPU!$B:$B,'Planilha Orçamentária'!$A66,CPU!$I:$I,"ss")+SUMIFS(CPU!$H:$H,CPU!$B:$B,'Planilha Orçamentária'!$A66,CPU!$I:$I,"mdo")+SUMIF('Comp SINAPI PE 03-2024 Onerado'!G:G,'Planilha Orçamentária'!C66,'Comp SINAPI PE 03-2024 Onerado'!K:K)+SUMIF('Ins SINAPI PE 03-2024 Onerado'!A:A,'Planilha Orçamentária'!C66,'Ins SINAPI PE 03-2024 Onerado'!E:E) -> 528.29 | H66: =IF(J66="SERV",G66*(1+$H$5),G66*(1+$H$6)) -> 653.917362 | I66: =IF(J66="SERV",G66*F66*(1+$H$5),G66*F66*(1+$H$6)) -> 6539.17362 | J66: serv | K66: s
A67: 11.3 | D67: Cercas de proteção | I67: =SUM(I68:I68) -> 76585.1616
A68: 11.3.1 | B68: PRÓPRIA | C68: CPU.19 | D68: Instalação de cercas com mourões de concreto H=3, espaçamento 2,5m e cravado 0,5m, com 4 fios de arame farpado Nº14 classe 250 | E68: M | F68: 600 | G68: =SUMIFS(CPU!$H:$H,CPU!$B:$B,'Planilha Orçamentária'!$A68,CPU!$I:$I,"ss")+SUMIFS(CPU!$H:$H,CPU!$B:$B,'Planilha Orçamentária'!$A68,CPU!$I:$I,"mdo")+SUMIF('Comp SINAPI PE 03-2024 Onerado'!G:G,'Planilha Orçamentária'!C68,'Comp SINAPI PE 03-2024 Onerado'!K:K)+SUMIF('Ins SINAPI PE 03-2024 Onerado'!A:A,'Planilha Orçamentária'!C68,'Ins SINAPI PE 03-2024 Onerado'!E:E) -> 103.12 | H68: =IF(J66="SERV",G68*(1+$H$5),G68*(1+$H$6)) -> 127.641936 | I68: =IF(J66="SERV",G68*F68*(1+$H$5),G68*F68*(1+$H$6)) -> 76585.1616 | J68: serv | K68: s | L68: Peso do mourao https://crepan.com.br/mourao-de-concreto/
A69: 11.4 | D69: Limpeza das margens do reservatório | I69: =SUM(I70) -> 10694.592
A70: 11.4.1 | B70: SINAPI | C70: 98524 | D70: =PROPER(IF(K70="i",VLOOKUP(C70,'Ins SINAPI PE 03-2024 Onerado'!$A$8:$E$5189,2,0),VLOOKUP(C70,'Comp SINAPI PE 03-2024 Onerado'!$G$7:$K$7500,2,0))) -> Limpeza Manual De Vegetação Em Terreno Com Enxada. Af_03/2024 | E70: M2 | F70: 2000 | G70: =SUMIFS(CPU!$H:$H,CPU!$B:$B,'Planilha Orçamentária'!$A70,CPU!$I:$I,"ss")+SUMIFS(CPU!$H:$H,CPU!$B:$B,'Planilha Orçamentária'!$A70,CPU!$I:$I,"mdo")+SUMIF('Comp SINAPI PE 03-2024 Onerado'!G:G,'Planilha Orçamentária'!C70,'Comp SINAPI PE 03-2024 Onerado'!K:K)+SUMIF('Ins SINAPI PE 03-2024 Onerado'!A:A,'Planilha Orçamentária'!C70,'Ins SINAPI PE 03-2024 Onerado'!E:E) -> 4.32 | H70: =IF(J68="SERV",G70*(1+$H$5),G70*(1+$H$6)) -> 5.347296 | I70: =IF(J68="SERV",G70*F70*(1+$H$5),G70*F70*(1+$H$6)) -> 10694.592 | J70: serv | K70: s
D72: TOTAL Sem BDI: | I72: =SUMPRODUCT(F11:F71,G11:G71) -> 994660.8498
D73: BDI: | I73: =I72*H5 -> 236530.3501
D74: TOTAL COM BDI: | I74: =SUM(I72:I73) -> 1231191.2

Sheet Planilha Orçamentária Desoner (hidden)
A1: Ministério da Integração e do Desenvolvimento Regional
A2: Companhia de desenvolvimento dos Vales do São Francisco e do Parnaíba
A4: PLANILHA ORÇAMENTÁRIA - ORÇAMENTO DESONERADO
A5: OBRA: | B5: =UPPER("SERVIÇOS DE MANUTENÇÃO E OBRAS CIVIS NA ESTRUTURA DA BARRAGEM E EQUIPAMENTO HIDROMECÂNICO") -> SERVIÇOS DE MANUTENÇÃO E OBRAS CIVIS NA ESTRUTURA DA BARRAGEM E EQUIPAMENTO HIDROMECÂNICO | G5: BDI (serv.): | H5: ='BDI serv Desonerado'!D22 -> 0.3351 | I5: Bancos
A6: LOCAL: | B6: BARRAGEM POÇO DO MAGRO, GUANAMBI/BA | G6: BDI (forn.): | H6: ='BDI forn Desonerado'!D22 -> 0.212 | I6: 05/2023 - SINAPI/BA
A7: DATA BASE: | B7: 2023-05-01 | E7: Encargos sociais Horistas: | H7: ='Encargos Sociais'!C47 -> 0.8435 | I7: 01/2023 - SICRO/BA
A8: PRAZO: | B8: 120 DIAS | E8: Encargos sociais - Mensalista: | H8: ='Encargos Sociais'!D47 -> 0.4641 | I8: 04/2023 - ORSE
A9: ITEM | B9: REFERÊNCIA | D9: DESCRIÇÃO | E9: UNID. | F9: QUANT. | G9: CUSTO UNITÁRIO | H9: PREÇO UNITÁRIO | I9: PREÇO TOTAL | J9: TIPO de BDI | K9: CLASSIF
B10: FONTE | C10: CÓDIGO
A11: 1 | D11: ADMINISTRAÇÃO LOCAL | I11: =SUM(I12:I12) -> 41837.86849 | K11: ss
A12: 1.1 | B12: PRÓPRIA | C12: CPU.01 | D12: ADMINISTRAÇÃO LOCAL | E12: MÊS | F12: ='Planilha Orçamentária'!F12 -> 4 | G12: =SUMIFS('CPU DES'!$H:$H,'CPU DES'!$B:$B,'Planilha Orçamentária Desoner'!$A12,'CPU DES'!$I:$I,"ss")+SUMIFS('CPU DES'!$H:$H,'CPU DES'!$B:$B,'Planilha Orçamentária Desoner'!$A12,'CPU DES'!$I:$I,"mdo")+SUMIF('Comp SINAPI BA 05-2023 Desoner'!G:G,'Planilha Orçamentária Desoner'!C12,'Comp SINAPI BA 05-2023 Desoner'!K:K)+SUMIF('Ins SINAPI BA 05-2023 Desoner'!A:A,'Planilha Orçamentária Desoner'!C12,'Ins SINAPI BA 05-2023 Desoner'!E:E) -> 7834.22 | H12: =IF(J12="SERV",G12*(1+$H$5),G12*(1+$H$6)) -> 10459.46712 | I12: =IF(J12="SERV",G12*F12*(1+$H$5),G12*F12*(1+$H$6)) -> 41837.86849 | J12: serv | K12: s
A14: 2 | D14: SERVIÇOS PRELIMINARES | I14: =SUM(I15,I21) ->  | K14: ss
A15: 2.1 | D15: Canteiro de obras | I15: =SUM(I16:I20) ->  | K15: s
A16: 2.1.1 | B16: SINAPI | C16: 98525 | D16: =PROPER(IF(K16="i",VLOOKUP(C16,'Ins SINAPI BA 05-2023 Desoner'!$A$8:$E$5189,2,0),VLOOKUP(C16,'Comp SINAPI BA 05-2023 Desoner'!$G$7:$K$7500,2,0))) -> Limpeza Mecanizada De Camada Vegetal, Vegetação E Pequenas Árvores (Diâmetro De Tronco Menor Que 0,20 M), Com Trator De Esteiras.Af_05/2018 | E16: =LOWER(IF(K16="i",VLOOKUP(C16,'Ins SINAPI BA 05-2023 Desoner'!$A$8:$E$5189,3,0),VLOOKUP(C16,'Comp SINAPI BA 05-2023 Desoner'!$G$7:$K$7500,3,0))) -> m2 | F16: ='Planilha Orçamentária'!F18 -> 28.5 | G16: =SUMIFS('CPU DES'!$H:$H,'CPU DES'!$B:$B,'Planilha Orçamentária Desoner'!$A16,'CPU DES'!$I:$I,"ss")+SUMIFS('CPU DES'!$H:$H,'CPU DES'!$B:$B,'Planilha Orçamentária Desoner'!$A16,'CPU DES'!$I:$I,"mdo")+SUMIF('Comp SINAPI BA 05-2023 Desoner'!G:G,'Planilha Orçamentária Desoner'!C16,'Comp SINAPI BA 05-2023 Desoner'!K:K)+SUMIF('Ins SINAPI BA 05-2023 Desoner'!A:A,'Planilha Orçamentária Desoner'!C16,'Ins SINAPI BA 05-2023 Desoner'!E:E) -> 0.37 | H16: =IF(J16="SERV",G16*(1+$H$5),G16*(1+$H$6)) -> 0.493987 | I16: =IF(J16="SERV",G16*F16*(1+$H$5),G16*F16*(1+$H$6)) -> 14.0786295 | J16: serv | K16: s
A17: 2.1.2 | B17: SINAPI | C17: 94975 | D17: =PROPER(IF(K17="i",VLOOKUP(C17,'Ins SINAPI BA 05-2023 Desoner'!$A$8:$E$5189,2,0),VLOOKUP(C17,'Comp SINAPI BA 05-2023 Desoner'!$G$7:$K$7500,2,0))) -> Concreto Fck = 15Mpa, Traço 1:3,4:3,5 (Em Massa Seca De Cimento/ Areia Média/ Brita 1) - Preparo Manual. Af_05/2021 | E17: =LOWER(IF(K17="i",VLOOKUP(C17,'Ins SINAPI BA 05-2023 Desoner'!$A$8:$E$5189,3,0),VLOOKUP(C17,'Comp SINAPI BA 05-2023 Desoner'!$G$7:$K$7500,3,0))) -> m3 | F17: ='Planilha Orçamentária'!#REF! ->  | G17: =SUMIFS('CPU DES'!$H:$H,'CPU DES'!$B:$B,'Planilha Orçamentária Desoner'!$A17,'CPU DES'!$I:$I,"ss")+SUMIFS('CPU DES'!$H:$H,'CPU DES'!$B:$B,'Planilha Orçamentária Desoner'!$A17,'CPU DES'!$I:$I,"mdo")+SUMIF('Comp SINAPI BA 05-2023 Desoner'!G:G,'Planilha Orçamentária Desoner'!C17,'Comp SINAPI BA 05-2023 Desoner'!K:K)+SUMIF('Ins SINAPI BA 05-2023 Desoner'!A:A,'Planilha Orçamentária Desoner'!C17,'Ins SINAPI BA 05-2023 Desoner'!E:E) -> 510.11 | H17: =IF(J17="SERV",G17*(1+$H$5),G17*(1+$H$6)) -> 681.047861 | I17: =IF(J17="SERV",G17*F17*(1+$H$5),G17*F17*(1+$H$6)) ->  | J17: serv | K17: s
A18: 2.1.3 | B18: SINAPI | C18: 93210 | D18: =PROPER(IF(K18="i",VLOOKUP(C18,'Ins SINAPI BA 05-2023 Desoner'!$A$8:$E$5189,2,0),VLOOKUP(C18,'Comp SINAPI BA 05-2023 Desoner'!$G$7:$K$7500,2,0))) -> Execução De Refeitório Em Canteiro De Obra Em Chapa De Madeira Compensada, Não Incluso Mobiliário E Equipamentos. Af_02/2016 | E18: =LOWER(IF(K18="i",VLOOKUP(C18,'Ins SINAPI BA 05-2023 Desoner'!$A$8:$E$5189,3,0),VLOOKUP(C18,'Comp SINAPI BA 05-2023 Desoner'!$G$7:$K$7500,3,0))) -> m2 | F18: ='Planilha Orçamentária'!#REF! ->  | G18: =SUMIFS('CPU DES'!$H:$H,'CPU DES'!$B:$B,'Planilha Orçamentária Desoner'!$A18,'CPU DES'!$I:$I,"ss")+SUMIFS('CPU DES'!$H:$H,'CPU DES'!$B:$B,'Planilha Orçamentária Desoner'!$A18,'CPU DES'!$I:$I,"mdo")+SUMIF('Comp SINAPI BA 05-2023 Desoner'!G:G,'Planilha Orçamentária Desoner'!C18,'Comp SINAPI BA 05-2023 Desoner'!K:K)+SUMIF('Ins SINAPI BA 05-2023 Desoner'!A:A,'Planilha Orçamentária Desoner'!C18,'Ins SINAPI BA 05-2023 Desoner'!E:E) -> 602.5 | H18: 804.39775 | J18: serv | K18: s
A19: 2.1.4 | B19: SINAPI | C19: 93212 | D19: =PROPER(IF(K19="i",VLOOKUP(C19,'Ins SINAPI BA 05-2023 Desoner'!$A$8:$E$5189,2,0),VLOOKUP(C19,'Comp SINAPI BA 05-2023 Desoner'!$G$7:$K$7500,2,0))) -> Execução De Sanitário E Vestiário Em Canteiro De Obra Em Chapa De Madeira Compensada, Não Incluso Mobiliário. Af_02/2016 | E19: =LOWER(IF(K19="i",VLOOKUP(C19,'Ins SINAPI BA 05-2023 Desoner'!$A$8:$E$5189,3,0),VLOOKUP(C19,'Comp SINAPI BA 05-2023 Desoner'!$G$7:$K$7500,3,0))) -> m2 | F19: ='Planilha Orçamentária'!#REF! ->  | G19: =SUMIFS('CPU DES'!$H:$H,'CPU DES'!$B:$B,'Planilha Orçamentária Desoner'!$A19,'CPU DES'!$I:$I,"ss")+SUMIFS('CPU DES'!$H:$H,'CPU DES'!$B:$B,'Planilha Orçamentária Desoner'!$A19,'CPU DES'!$I:$I,"mdo")+SUMIF('Comp SINAPI BA 05-2023 Desoner'!G:G,'Planilha Orçamentária Desoner'!C19,'Comp SINAPI BA 05-2023 Desoner'!K:K)+SUMIF('Ins SINAPI BA 05-2023 Desoner'!A:A,'Planilha Orçamentária Desoner'!C19,'Ins SINAPI BA 05-2023 Desoner'!E:E) -> 1003.35 | H19: 1339.572585 | J19: serv | K19: s
A20: 2.1.5 | B20: SINAPI | C20: 93583 | D20: =PROPER(IF(K20="i",VLOOKUP(C20,'Ins SINAPI BA 05-2023 Desoner'!$A$8:$E$5189,2,0),VLOOKUP(C20,'Comp SINAPI BA 05-2023 Desoner'!$G$7:$K$7500,2,0))) -> Execução De Central De Fôrmas, Produção De Argamassa Ou Concreto Em Canteiro De Obra, Não Incluso Mobiliário E Equipamentos. Af_04/2016 | E20: =LOWER(IF(K20="i",VLOOKUP(C20,'Ins SINAPI BA 05-2023 Desoner'!$A$8:$E$5189,3,0),VLOOKUP(C20,'Comp SINAPI BA 05-2023 Desoner'!$G$7:$K$7500,3,0))) -> m2 | F20: ='Planilha Orçamentária'!#REF! ->  | G20: =SUMIFS('CPU DES'!$H:$H,'CPU DES'!$B:$B,'Planilha Orçamentária Desoner'!$A20,'CPU DES'!$I:$I,"ss")+SUMIFS('CPU DES'!$H:$H,'CPU DES'!$B:$B,'Planilha Orçamentária Desoner'!$A20,'CPU DES'!$I:$I,"mdo")+SUMIF('Comp SINAPI BA 05-2023 Desoner'!G:G,'Planilha Orçamentária Desoner'!C20,'Comp SINAPI BA 05-2023 Desoner'!K:K)+SUMIF('Ins SINAPI BA 05-2023 Desoner'!A:A,'Planilha Orçamentária Desoner'!C20,'Ins SINAPI BA 05-2023 Desoner'!E:E) -> 463.26 | H20: 618.498426 | J20: serv | K20: s
A21: 2.2 | D21: Sinalização | I21: =SUM(I22:I22) -> 1175.15502 | K21: s
A22: 2.2.1 | B22: PRÓPRIA | C22: CPU.02 | D22: PLACA DE OBRA EM CHAPA DE ACO GALVANIZADO | E22: m² | F22: ='Planilha Orçamentária'!F20 -> 2 | G22: =SUMIFS('CPU DES'!$H:$H,'CPU DES'!$B:$B,'Planilha Orçamentária Desoner'!$A22,'CPU DES'!$I:$I,"ss")+SUMIFS('CPU DES'!$H:$H,'CPU DES'!$B:$B,'Planilha Orçamentária Desoner'!$A22,'CPU DES'!$I:$I,"mdo")+SUMIF('Comp SINAPI BA 05-2023 Desoner'!G:G,'Planilha Orçamentária Desoner'!C22,'Comp SINAPI BA 05-2023 Desoner'!K:K)+SUMIF('Ins SINAPI BA 05-2023 Desoner'!A:A,'Planilha Orçamentária Desoner'!C22,'Ins SINAPI BA 05-2023 Desoner'!E:E) -> 440.1 | H22: =IF(J22="SERV",G22*(1+$H$5),G22*(1+$H$6)) -> 587.57751 | I22: =IF(J22="SERV",G22*F22*(1+$H$5),G22*F22*(1+$H$6)) -> 1175.15502 | J22: serv | K22: i
A24: 3 | D24: LIMPEZA DA REGIÃO A JUSANTE | I24: =SUM(I25) ->  | K24: ss
A25: 3.1 | D25: Remoção da vegetação a jusante | I25: =SUM(I26:I29) ->  | K25: s
A26: 3.1.1 | B26: SINAPI | C26: 98525 | D26: =PROPER(IF(K26="i",VLOOKUP(C26,'Ins SINAPI BA 05-2023 Desoner'!$A$8:$E$5189,2,0),VLOOKUP(C26,'Comp SINAPI BA 05-2023 Desoner'!$G$7:$K$7500,2,0))) -> Limpeza Mecanizada De Camada Vegetal, Vegetação E Pequenas Árvores (Diâmetro De Tronco Menor Que 0,20 M), Com Trator De Esteiras.Af_05/2018 | E26: =LOWER(IF(K26="i",VLOOKUP(C26,'Ins SINAPI BA 05-2023 Desoner'!$A$8:$E$5189,3,0),VLOOKUP(C26,'Comp SINAPI BA 05-2023 Desoner'!$G$7:$K$7500,3,0))) -> m2 | F26: ='Planilha Orçamentária'!F24 -> 33000 | G26: =SUMIFS('CPU DES'!$H:$H,'CPU DES'!$B:$B,'Planilha Orçamentária Desoner'!$A26,'CPU DES'!$I:$I,"ss")+SUMIFS('CPU DES'!$H:$H,'CPU DES'!$B:$B,'Planilha Orçamentária Desoner'!$A26,'CPU DES'!$I:$I,"mdo")+SUMIF('Comp SINAPI BA 05-2023 Desoner'!G:G,'Planilha Orçamentária Desoner'!C26,'Comp SINAPI BA 05-2023 Desoner'!K:K)+SUMIF('Ins SINAPI BA 05-2023 Desoner'!A:A,'Planilha Orçamentária Desoner'!C26,'Ins SINAPI BA 05-2023 Desoner'!E:E) -> 0.37 | H26: =IF(J26="SERV",G26*(1+$H$5),G26*(1+$H$6)) -> 0.493987 | I26: =IF(J26="SERV",G26*F26*(1+$H$5),G26*F26*(1+$H$6)) -> 16301.571 | J26: serv | K26: s
A27: 3.1.2 | B27: EMBASA | C27: 02.04.04 | D27: CORTE DE ARVORE COM DESTOCAMENTO MANUAL,C/DIAMETRO ENTRE 15 E 30cm | E27: UN | F27: ='Planilha Orçamentária'!F25 -> 15 | G27: 60.7 | H27: =IF(J27="SERV",G27*(1+$H$5),G27*(1+$H$6)) -> 81.04057 | I27: =IF(J27="SERV",G27*F27*(1+$H$5),G27*F27*(1+$H$6)) -> 1215.60855 | J27: serv | K27: s
A28: 3.1.3 | B28: EMBASA | C28: 15.92.02 | D28: LIMPEZA E DESOBSTRUCAO DE REDES DE ESGOTO / DRENAGEM | E28: H | F28: ='Planilha Orçamentária'!#REF! ->  | G28: 160.18 | H28: =IF(J28="SERV",G28*(1+$H$5),G28*(1+$H$6)) -> 213.856318 | I28: =IF(J28="SERV",G28*F28*(1+$H$5),G28*F28*(1+$H$6)) ->  | J28: serv | K28: s
A29: 3.1.4 | B29: SINAPI | C29: 97912 | D29: =PROPER(IF(K29="i",VLOOKUP(C29,'Ins SINAPI BA 05-2023 Desoner'!$A$8:$E$5189,2,0),VLOOKUP(C29,'Comp SINAPI BA 05-2023 Desoner'!$G$7:$K$7500,2,0))) -> Transporte Com Caminhão Basculante De 6 M³, Em Via Urbana Em Leito Natural (Unidade: M3Xkm). Af_07/2020 | E29: =LOWER(IF(K29="i",VLOOKUP(C29,'Ins SINAPI BA 05-2023 Desoner'!$A$8:$E$5189,3,0),VLOOKUP(C29,'Comp SINAPI BA 05-2023 Desoner'!$G$7:$K$7500,3,0))) -> m3xkm | F29: ='Planilha Orçamentária'!#REF! ->  | G29: =SUMIFS('CPU DES'!$H:$H,'CPU DES'!$B:$B,'Planilha Orçamentária Desoner'!$A29,'CPU DES'!$I:$I,"ss")+SUMIFS('CPU DES'!$H:$H,'CPU DES'!$B:$B,'Planilha Orçamentária Desoner'!$A29,'CPU DES'!$I:$I,"mdo")+SUMIF('Comp SINAPI BA 05-2023 Desoner'!G:G,'Planilha Orçamentária Desoner'!C29,'Comp SINAPI BA 05-2023 Desoner'!K:K)+SUMIF('Ins SINAPI BA 05-2023 Desoner'!A:A,'Planilha Orçamentária Desoner'!C29,'Ins SINAPI BA 05-2023 Desoner'!E:E) -> 3.41 | H29: =IF(J29="SERV",G29*(1+$H$5),G29*(1+$H$6)) -> 4.552691 | I29: =IF(J29="SERV",G29*F29*(1+$H$5),G29*F29*(1+$H$6)) ->  | J29: serv | K29: s
A31: 4 | D31: OPERAÇÃO SUBAQUÁTICA | I31: =SUM(I32,I35) ->  | K31: ss
A32: 4.1 | D32: Inspeção e Laudo da região subaquática | I32: =SUM(I33:I34) -> 
A33: 4.1.1 | B33: PRÓPRIA | C33: CPU.03 | D33: Mobilização da Equipe, Camara Hiperbarica e todos os equipamentos de mergulho envolvidos na operação | E33: un | F33: ='Planilha Orçamentária'!#REF! ->  | G33: =SUMIFS(CPU!$H:$H,CPU!$B:$B,'Planilha Orçamentária'!#REF!,CPU!$I:$I,"ss")+SUMIFS(CPU!$H:$H,CPU!$B:$B,'Planilha Orçamentária'!#REF!,CPU!$I:$I,"mdo")+SUMIF('Comp SINAPI PE 03-2024 Onerado'!G:G,'Planilha Orçamentária'!#REF!,'Comp SINAPI PE 03-2024 Onerado'!K:K)+SUMIF('Ins SINAPI PE 03-2024 Onerado'!A:A,'Planilha Orçamentária'!#REF!,'Ins SINAPI PE 03-2024 Onerado'!E:E) -> 0 | H33: =IF(J33="SERV",G33*(1+$H$5),G33*(1+$H$6)) -> 0 | I33: =IF(J33="SERV",G33*F33*(1+$H$5),G33*F33*(1+$H$6)) ->  | J33: serv | K33: s
A34: 4.1.2 | B34: SICRO | C34: 4816024 | D34: Operação de mergulho dependente em profundidade de até 30 m - inclusive descompressão | E34: h | F34: ='Planilha Orçamentária'!#REF! ->  | G34: 255.2 | H34: =IF(K34="SERV",G34*(1+$H$5),G34*(1+$H$6)) -> 309.3024 | I34: =IF(J34="SERV",G34*F34*(1+$H$5),G34*F34*(1+$H$6)) ->  | J34: serv | K34: s
A35: 4.2 | D35: Vedação/Abertura da tomada d'água | I35: =SUM(I36:I37) -> 
A36: 4.2.1 | B36: PRÓPRIA | C36: CPU.04 | D36: Vedação da entrada da tomada d’água com chapas metálicas | E36: un | F36: ='Planilha Orçamentária'!#REF! ->  | G36: =SUMIFS(CPU!$H:$H,CPU!$B:$B,'Planilha Orçamentária'!#REF!,CPU!$I:$I,"ss")+SUMIFS(CPU!$H:$H,CPU!$B:$B,'Planilha Orçamentária'!#REF!,CPU!$I:$I,"mdo")+SUMIF('Comp SINAPI PE 03-2024 Onerado'!G:G,'Planilha Orçamentária'!#REF!,'Comp SINAPI PE 03-2024 Onerado'!K:K)+SUMIF('Ins SINAPI PE 03-2024 Onerado'!A:A,'Planilha Orçamentária'!#REF!,'Ins SINAPI PE 03-2024 Onerado'!E:E) -> 0 | H36: =IF(J36="SERV",G36*(1+$H$5),G36*(1+$H$6)) -> 0 | J36: serv | K36: s
A37: 4.2.2 | B37: PRÓPRIA | C37: CPU.05 | D37: Remoção da vedação da entrada da tomada d’água com chapas metálicas | E37: un | F37: ='Planilha Orçamentária'!#REF! ->  | G37: =SUMIFS(CPU!$H:$H,CPU!$B:$B,'Planilha Orçamentária'!#REF!,CPU!$I:$I,"ss")+SUMIFS(CPU!$H:$H,CPU!$B:$B,'Planilha Orçamentária'!#REF!,CPU!$I:$I,"mdo")+SUMIF('Comp SINAPI PE 03-2024 Onerado'!G:G,'Planilha Orçamentária'!#REF!,'Comp SINAPI PE 03-2024 Onerado'!K:K)+SUMIF('Ins SINAPI PE 03-2024 Onerado'!A:A,'Planilha Orçamentária'!#REF!,'Ins SINAPI PE 03-2024 Onerado'!E:E) -> 0 | H37: 0 | J37: serv | K37: s
A39: 5 | D39: MANUTENÇÃO NOS DISPOSITIVOS DE CONTROLE | I39: =SUM(I40,I47) -> 
A40: 5.1 | D40: Manutenção das válvulas | I40: =SUM(I41:I46) -> 
A41: 5.1.1 | B41: SINAPI | C41: 98524 | D41: =PROPER(IF(K41="i",VLOOKUP(C41,'Ins SINAPI BA 05-2023 Desoner'!$A$8:$E$5189,2,0),VLOOKUP(C41,'Comp SINAPI BA 05-2023 Desoner'!$G$7:$K$7500,2,0))) -> Limpeza Manual De Vegetação Em Terreno Com Enxada.Af_05/2018 | E41: =LOWER(IF(K41="i",VLOOKUP(C41,'Ins SINAPI BA 05-2023 Desoner'!$A$8:$E$5189,3,0),VLOOKUP(C41,'Comp SINAPI BA 05-2023 Desoner'!$G$7:$K$7500,3,0))) -> m2 | F41: ='Planilha Orçamentária'!#REF! ->  | G41: =SUMIFS('CPU DES'!$H:$H,'CPU DES'!$B:$B,'Planilha Orçamentária Desoner'!$A41,'CPU DES'!$I:$I,"ss")+SUMIFS('CPU DES'!$H:$H,'CPU DES'!$B:$B,'Planilha Orçamentária Desoner'!$A41,'CPU DES'!$I:$I,"mdo")+SUMIF('Comp SINAPI BA 05-2023 Desoner'!G:G,'Planilha Orçamentária Desoner'!C41,'Comp SINAPI BA 05-2023 Desoner'!K:K)+SUMIF('Ins SINAPI BA 05-2023 Desoner'!A:A,'Planilha Orçamentária Desoner'!C41,'Ins SINAPI BA 05-2023 Desoner'!E:E) -> 2.9 | H41: =IF(J41="SERV",G41*(1+$H$5),G41*(1+$H$6)) -> 3.87179 | I41: =IF(J41="SERV",G41*F41*(1+$H$5),G41*F41*(1+$H$6)) ->  | J41: serv | K41: s
A42: 5.1.2 | B42: EMBASA | C42: 12.99.10 | D42: DESMONT. DE PECAS, CONEXOES, VALVULAS, APARELHOS E ACESSORIOS DE FERRO FUNDIDO DUCTIL OU ACO CARBONO, JUNTA TRAVADA, EXTERNA MECANICA OU FLANGEADA C/ DIAMETROS DE 700 A 1200 MM | E42: kg | F42: ='Planilha Orçamentária'!#REF! ->  | G42: 1.21 | H42: =IF(J42="SERV",G42*(1+$H$5),G42*(1+$H$6)) -> 1.615471 | I42: =IF(J42="SERV",G42*F42*(1+$H$5),G42*F42*(1+$H$6)) ->  | J42: serv | K42: s
A43: 5.1.3 | B43: EMBASA | C43: 62.01.53 | D43: MANUTENCAO EM VALVULAS (VRP, NIVEL E ANTI-GOLPE), VENTOSAS E REGISTROS ACIMA DE 16" ATÉ 24" POLEGADAS | E43: un | F43: ='Planilha Orçamentária'!#REF! ->  | G43: 581.86 | H43: =IF(J43="SERV",G43*(1+$H$5),G43*(1+$H$6)) -> 776.841286 | J43: serv | K43: s
A44: 5.1.4 | B44: EMBASA | C44: M012309000/M012309045 | D44: PARAFUSOS C/ PORCA P/ VALVULA BORBOLETA C/ FLANGE PN 10 - AWWA / PBFW10 DN 700 48,900 kg | E44: PC | F44: ='Planilha Orçamentária'!#REF! ->  | G44: 5.36 | H44: 7.156136 | J44: serv | K44: s
A45: 5.1.5 | B45: EMBASA | C45: 15.07.46 | D45: (REVISADA) - PINTURA EPOXI EM SURPEFICIE METALICA, INCL. LIXAMENTO E FUNDO EPOXI ANTICORROSIVO, DUAS DEMAOS | E45: m² | F45: ='Planilha Orçamentária'!#REF! ->  | G45: 75.54 | H45: 100.853454 | J45: serv | K45: s
A46: 5.1.6 | B46: EMBASA | C46: 12.02.07 | D46: MONT. DE PECAS, CONEXOES, VALVULAS, APARELHOS E ACESSORIOS DE FERRO FUNDIDO DUCTIL OU ACO CARBONO, JUNTA TRAVADA, EXTERNA MECANICA OU FLANGEADA C/ DIAMETROSDE 700 A 1200 mm. | E46: kg | F46: ='Planilha Orçamentária'!#REF! ->  | G46: 1.21 | H46: 1.615471 | J46: serv | K46: s
A47: 5.2 | D47: Instalação de dispositivo de drenagem na caixa de válvulas | I47: =SUM(I48:I50) -> 
A48: 5.2.1 | B48: SINAPI | C48: 97627 | D48: =PROPER(IF(K48="i",VLOOKUP(C48,'Ins SINAPI BA 05-2023 Desoner'!$A$8:$E$5189,2,0),VLOOKUP(C48,'Comp SINAPI BA 05-2023 Desoner'!$G$7:$K$7500,2,0))) -> Demolição De Pilares E Vigas Em Concreto Armado, De Forma Mecanizada Com Martelete, Sem Reaproveitamento. Af_12/2017 | E48: =LOWER(IF(K48="i",VLOOKUP(C48,'Ins SINAPI BA 05-2023 Desoner'!$A$8:$E$5189,3,0),VLOOKUP(C48,'Comp SINAPI BA 05-2023 Desoner'!$G$7:$K$7500,3,0))) -> m3 | F48: ='Planilha Orçamentária'!#REF! ->  | G48: =SUMIFS('CPU DES'!$H:$H,'CPU DES'!$B:$B,'Planilha Orçamentária Desoner'!$A48,'CPU DES'!$I:$I,"ss")+SUMIFS('CPU DES'!$H:$H,'CPU DES'!$B:$B,'Planilha Orçamentária Desoner'!$A48,'CPU DES'!$I:$I,"mdo")+SUMIF('Comp SINAPI BA 05-2023 Desoner'!G:G,'Planilha Orçamentária Desoner'!C48,'Comp SINAPI BA 05-2023 Desoner'!K:K)+SUMIF('Ins SINAPI BA 05-2023 Desoner'!A:A,'Planilha Orçamentária Desoner'!C48,'Ins SINAPI BA 05-2023 Desoner'!E:E) -> 311.2 | H48: =IF(J48="SERV",G48*(1+$H$5),G48*(1+$H$6)) -> 415.48312 | I48: =IF(J48="SERV",G48*F48*(1+$H$5),G48*F48*(1+$H$6)) ->  | J48: serv | K48: s
A49: 5.2.2 | B49: SINAPI | C49: 89714 | D49: =PROPER(IF(K49="i",VLOOKUP(C49,'Ins SINAPI BA 05-2023 Desoner'!$A$8:$E$5189,2,0),VLOOKUP(C49,'Comp SINAPI BA 05-2023 Desoner'!$G$7:$K$7500,2,0))) -> Tubo Pvc, Serie Normal, Esgoto Predial, Dn 100 Mm, Fornecido E Instalado Em Ramal De Descarga Ou Ramal De Esgoto Sanitário. Af_08/2022 | E49: =LOWER(IF(K49="i",VLOOKUP(C49,'Ins SINAPI BA 05-2023 Desoner'!$A$8:$E$5189,3,0),VLOOKUP(C49,'Comp SINAPI BA 05-2023 Desoner'!$G$7:$K$7500,3,0))) -> m | F49: ='Planilha Orçamentária'!#REF! ->  | G49: =SUMIFS('CPU DES'!$H:$H,'CPU DES'!$B:$B,'Planilha Orçamentária Desoner'!$A49,'CPU DES'!$I:$I,"ss")+SUMIFS('CPU DES'!$H:$H,'CPU DES'!$B:$B,'Planilha Orçamentária Desoner'!$A49,'CPU DES'!$I:$I,"mdo")+SUMIF('Comp SINAPI BA 05-2023 Desoner'!G:G,'Planilha Orçamentária Desoner'!C49,'Comp SINAPI BA 05-2023 Desoner'!K:K)+SUMIF('Ins SINAPI BA 05-2023 Desoner'!A:A,'Planilha Orçamentária Desoner'!C49,'Ins SINAPI BA 05-2023 Desoner'!E:E) -> 36.26 | H49: =IF(J49="SERV",G49*(1+$H$5),G49*(1+$H$6)) -> 48.410726 | I49: =IF(J49="SERV",G49*F49*(1+$H$5),G49*F49*(1+$H$6)) ->  | J49: serv | K49: s
A50: 5.2.3 | B50: SINAPI | C50: 103682 | D50: =PROPER(IF(K50="i",VLOOKUP(C50,'Ins SINAPI BA 05-2023 Desoner'!$A$8:$E$5189,2,0),VLOOKUP(C50,'Comp SINAPI BA 05-2023 Desoner'!$G$7:$K$7500,2,0))) -> Concretagem De Vigas E Lajes, Fck=25 Mpa, Para Qualquer Tipo De Laje Com Baldes Em Edificação Térrea - Lançamento, Adensamento E Acabamento. Af_02/2022 | E50: =LOWER(IF(K50="i",VLOOKUP(C50,'Ins SINAPI BA 05-2023 Desoner'!$A$8:$E$5189,3,0),VLOOKUP(C50,'Comp SINAPI BA 05-2023 Desoner'!$G$7:$K$7500,3,0))) -> m3 | F50: ='Planilha Orçamentária'!#REF! ->  | G50: =SUMIFS('CPU DES'!$H:$H,'CPU DES'!$B:$B,'Planilha Orçamentária Desoner'!$A50,'CPU DES'!$I:$I,"ss")+SUMIFS('CPU DES'!$H:$H,'CPU DES'!$B:$B,'Planilha Orçamentária Desoner'!$A50,'CPU DES'!$I:$I,"mdo")+SUMIF('Comp SINAPI BA 05-2023 Desoner'!G:G,'Planilha Orçamentária Desoner'!C50,'Comp SINAPI BA 05-2023 Desoner'!K:K)+SUMIF('Ins SINAPI BA 05-2023 Desoner'!A:A,'Planilha Orçamentária Desoner'!C50,'Ins SINAPI BA 05-2023 Desoner'!E:E) -> 962.12 | H50: 1284.526412 | J50: serv | K50: s
A52: 6 | D52: RECUPERAÇÃO | I52: =SUM(I53,I63,I69) ->  | K52: ss
A53: 6.1 | D53: Paramento a jusante | I53: =SUM(I54:I62) -> 
A54: 6.1.1 | B54: SINAPI | C54: 41805 | D54: =PROPER(IF(K54="i",VLOOKUP(C54,'Ins SINAPI BA 05-2023 Desoner'!$A$8:$E$5189,2,0),VLOOKUP(C54,'Comp SINAPI BA 05-2023 Desoner'!$G$7:$K$7500,2,0))) -> Locacao De Andaime Suspenso Ou Balancim Manual, Capacidade De Carga Total De Aproximadamente 250 Kg/M2, Plataforma De 1,50 M X 0,80 M (C X L), Cabo De 45 M | E54: =LOWER(IF(K54="i",VLOOKUP(C54,'Ins SINAPI BA 05-2023 Desoner'!$A$8:$E$5189,3,0),VLOOKUP(C54,'Comp SINAPI BA 05-2023 Desoner'!$G$7:$K$7500,3,0))) -> mes | F54: ='Planilha Orçamentária'!#REF! ->  | G54: =SUMIFS('CPU DES'!$H:$H,'CPU DES'!$B:$B,'Planilha Orçamentária Desoner'!$A54,'CPU DES'!$I:$I,"ss")+SUMIFS('CPU DES'!$H:$H,'CPU DES'!$B:$B,'Planilha Orçamentária Desoner'!$A54,'CPU DES'!$I:$I,"mdo")+SUMIF('Comp SINAPI BA 05-2023 Desoner'!G:G,'Planilha Orçamentária Desoner'!C54,'Comp SINAPI BA 05-2023 Desoner'!K:K)+SUMIF('Ins SINAPI BA 05-2023 Desoner'!A:A,'Planilha Orçamentária Desoner'!C54,'Ins SINAPI BA 05-2023 Desoner'!E:E) -> 425 | H54: =IF(J54="SERV",G54*(1+$H$5),G54*(1+$H$6)) -> 567.4175 | I54: =IF(J54="SERV",G54*F54*(1+$H$5),G54*F54*(1+$H$6)) ->  | J54: serv | K54: i
A55: 6.1.2 | B55: SICRO | C55: 3806402 | D55: Limpeza em superfície de concreto com jateamento d'água sob pressão | E55: m2 | F55: ='Planilha Orçamentária'!#REF! ->  | G55: 2.3 | H55: =IF(J55="SERV",G55*(1+$H$5),G55*(1+$H$6)) -> 3.07073 | I55: =IF(J55="SERV",G55*F55*(1+$H$5),G55*F55*(1+$H$6)) ->  | J55: serv | K55: s
A56: 6.1.3 | B56: SICRO | C56: 3806413 | D56: Apicoamento mecanizado de concreto | E56: m2 | F56: =F55 ->  | G56: 20.4 | H56: =IF(J56="SERV",G56*(1+$H$5),G56*(1+$H$6)) -> 27.23604 | J56: serv | K56: s
A57: 6.1.4 | B57: SICRO | C57: 4915645 | D57: Injeção de adesivo estrutural à base de resina epóxi de baixa viscosidade para tratamento de fissuras em estruturas de concreto - fornecimento e aplicação mecanizada | E57: kg | F57: ='Planilha Orçamentária'!#REF! ->  | G57: 272.61 | H57: 363.961611 | J57: serv | K57: s
A58: 6.1.5 | B58: SINAPI | C58: 92264 | D58: =PROPER(IF(K58="i",VLOOKUP(C58,'Ins SINAPI BA 05-2023 Desoner'!$A$8:$E$5189,2,0),VLOOKUP(C58,'Comp SINAPI BA 05-2023 Desoner'!$G$7:$K$7500,2,0))) -> Fabricação De Fôrma Para Pilares E Estruturas Similares, Em Chapa De Madeira Compensada Plastificada, E = 18 Mm. Af_09/2020 | E58: =LOWER(IF(K58="i",VLOOKUP(C58,'Ins SINAPI BA 05-2023 Desoner'!$A$8:$E$5189,3,0),VLOOKUP(C58,'Comp SINAPI BA 05-2023 Desoner'!$G$7:$K$7500,3,0))) -> m2 | F58: ='Planilha Orçamentária'!#REF! ->  | G58: =SUMIFS('CPU DES'!$H:$H,'CPU DES'!$B:$B,'Planilha Orçamentária Desoner'!$A58,'CPU DES'!$I:$I,"ss")+SUMIFS('CPU DES'!$H:$H,'CPU DES'!$B:$B,'Planilha Orçamentária Desoner'!$A58,'CPU DES'!$I:$I,"mdo")+SUMIF('Comp SINAPI BA 05-2023 Desoner'!G:G,'Planilha Orçamentária Desoner'!C58,'Comp SINAPI BA 05-2023 Desoner'!K:K)+SUMIF('Ins SINAPI BA 05-2023 Desoner'!A:A,'Planilha Orçamentária Desoner'!C58,'Ins SINAPI BA 05-2023 Desoner'!E:E) -> 204.44 | H58: 272.947844 | J58: serv | K58: s
A59: 6.1.6 | B59: PRÓPRIA | C59: CPU.06 | D59: ARGAMASSA TRACO 1:3 (CIMENTO E AREIA), PREPARO MANUAL, INCLUSO ADITIVO IMPERMEABILIZANTE | E59: m3 | F59: ='Planilha Orçamentária'!#REF! ->  | G59: =SUMIFS(CPU!$H:$H,CPU!$B:$B,'Planilha Orçamentária'!#REF!,CPU!$I:$I,"ss")+SUMIFS(CPU!$H:$H,CPU!$B:$B,'Planilha Orçamentária'!#REF!,CPU!$I:$I,"mdo")+SUMIF('Comp SINAPI PE 03-2024 Onerado'!G:G,'Planilha Orçamentária'!#REF!,'Comp SINAPI PE 03-2024 Onerado'!K:K)+SUMIF('Ins SINAPI PE 03-2024 Onerado'!A:A,'Planilha Orçamentária'!#REF!,'Ins SINAPI PE 03-2024 Onerado'!E:E) -> 0 | H59: 0 | J59: serv | K59: s
A60: 6.1.7 | B60: SINAPI | C60: 97912 | D60: =PROPER(IF(K60="i",VLOOKUP(C60,'Ins SINAPI BA 05-2023 Desoner'!$A$8:$E$5189,2,0),VLOOKUP(C60,'Comp SINAPI BA 05-2023 Desoner'!$G$7:$K$7500,2,0))) -> Transporte Com Caminhão Basculante De 6 M³, Em Via Urbana Em Leito Natural (Unidade: M3Xkm). Af_07/2020 | E60: =LOWER(IF(K60="i",VLOOKUP(C60,'Ins SINAPI BA 05-2023 Desoner'!$A$8:$E$5189,3,0),VLOOKUP(C60,'Comp SINAPI BA 05-2023 Desoner'!$G$7:$K$7500,3,0))) -> m3xkm | F60: ='Planilha Orçamentária'!#REF! ->  | G60: =SUMIFS('CPU DES'!$H:$H,'CPU DES'!$B:$B,'Planilha Orçamentária Desoner'!$A60,'CPU DES'!$I:$I,"ss")+SUMIFS('CPU DES'!$H:$H,'CPU DES'!$B:$B,'Planilha Orçamentária Desoner'!$A60,'CPU DES'!$I:$I,"mdo")+SUMIF('Comp SINAPI BA 05-2023 Desoner'!G:G,'Planilha Orçamentária Desoner'!C60,'Comp SINAPI BA 05-2023 Desoner'!K:K)+SUMIF('Ins SINAPI BA 05-2023 Desoner'!A:A,'Planilha Orçamentária Desoner'!C60,'Ins SINAPI BA 05-2023 Desoner'!E:E) -> 3.41 | H60: =IF(J60="SERV",G60*(1+$H$5),G60*(1+$H$6)) -> 4.552691 | I60: =IF(J60="SERV",G60*F60*(1+$H$5),G60*F60*(1+$H$6)) ->  | J60: serv | K60: s
A61: 6.1.8 | B61: PRÓPRIA | C61: CPU.07 | D61: CURA QUÍMICA | E61: m2 | F61: ='Planilha Orçamentária'!#REF! ->  | G61: =SUMIFS(CPU!$H:$H,CPU!$B:$B,'Planilha Orçamentária'!#REF!,CPU!$I:$I,"ss")+SUMIFS(CPU!$H:$H,CPU!$B:$B,'Planilha Orçamentária'!#REF!,CPU!$I:$I,"mdo")+SUMIF('Comp SINAPI PE 03-2024 Onerado'!G:G,'Planilha Orçamentária'!#REF!,'Comp SINAPI PE 03-2024 Onerado'!K:K)+SUMIF('Ins SINAPI PE 03-2024 Onerado'!A:A,'Planilha Orçamentária'!#REF!,'Ins SINAPI PE 03-2024 Onerado'!E:E) -> 0 | H61: 0 | J61: serv | K61: s
A62: 6.1.9 | B62: SICRO | C62: 3808043 | D62: Pintura manual com nata de cimento - 3 demãos | E62: m2 | F62: ='Planilha Orçamentária'!#REF! ->  | G62: 3.79 | H62: 5.060029 | J62: serv | K62: s
A63: 6.2 | D63: Crista | I63: =SUM(I64:I68) -> 
A64: 6.2.1 | B64: SICRO | C64: 3806402 | D64: Limpeza em superfície de concreto com jateamento d'água sob pressão | E64: m2 | F64: ='Planilha Orçamentária'!#REF! ->  | G64: 2.3 | H64: =IF(J64="SERV",G64*(1+$H$5),G64*(1+$H$6)) -> 3.07073 | I64: =IF(J64="SERV",G64*F64*(1+$H$5),G64*F64*(1+$H$6)) ->  | J64: serv | K64: s
A65: 6.2.2 | B65: SICRO | C65: 4915645 | D65: Injeção de adesivo estrutural à base de resina epóxi de baixa viscosidade para tratamento de fissuras em estruturas de concreto - fornecimento e aplicação mecanizada | E65: kg | F65: ='Planilha Orçamentária'!#REF! ->  | G65: 272.61 | H65: =IF(J65="SERV",G65*(1+$H$5),G65*(1+$H$6)) -> 363.961611 | I65: =IF(J65="SERV",G65*F65*(1+$H$5),G65*F65*(1+$H$6)) ->  | J65: serv | K65: s
A66: 6.2.3 | B66: PRÓPRIA | C66: CPU.06 | D66: ARGAMASSA TRACO 1:3 (CIMENTO E AREIA), PREPARO MANUAL, INCLUSO ADITIVO IMPERMEABILIZANTE | E66: m3 | F66: ='Planilha Orçamentária'!#REF! ->  | G66: =G59 -> 0 | H66: =IF(J66="SERV",G66*(1+$H$5),G66*(1+$H$6)) -> 0 | J66: serv | K66: s
A67: 6.2.4 | B67: SINAPI | C67: 97912 | D67: =PROPER(IF(K67="i",VLOOKUP(C67,'Ins SINAPI BA 05-2023 Desoner'!$A$8:$E$5189,2,0),VLOOKUP(C67,'Comp SINAPI BA 05-2023 Desoner'!$G$7:$K$7500,2,0))) -> Transporte Com Caminhão Basculante De 6 M³, Em Via Urbana Em Leito Natural (Unidade: M3Xkm). Af_07/2020 | E67: =LOWER(IF(K67="i",VLOOKUP(C67,'Ins SINAPI PE 03-2024 Onerado'!$A$8:$E$5189,3,0),VLOOKUP(C67,'Comp SINAPI PE 03-2024 Onerado'!$G$7:$K$7500,3,0))) -> m3xkm | F67: ='Planilha Orçamentária'!#REF! ->  | G67: =SUMIFS('CPU DES'!$H:$H,'CPU DES'!$B:$B,'Planilha Orçamentária Desoner'!$A67,'CPU DES'!$I:$I,"ss")+SUMIFS('CPU DES'!$H:$H,'CPU DES'!$B:$B,'Planilha Orçamentária Desoner'!$A67,'CPU DES'!$I:$I,"mdo")+SUMIF('Comp SINAPI BA 05-2023 Desoner'!G:G,'Planilha Orçamentária Desoner'!C67,'Comp SINAPI BA 05-2023 Desoner'!K:K)+SUMIF('Ins SINAPI BA 05-2023 Desoner'!A:A,'Planilha Orçamentária Desoner'!C67,'Ins SINAPI BA 05-2023 Desoner'!E:E) -> 3.41 | H67: =IF(J67="SERV",G67*(1+$H$5),G67*(1+$H$6)) -> 4.552691 | I67: =IF(J67="SERV",G67*F67*(1+$H$5),G67*F67*(1+$H$6)) ->  | J67: serv | K67: s
A68: 6.2.5 | B68: PRÓPRIA | C68: CPU.07 | D68: CURA QUÍMICA | E68: m2 | F68: ='Planilha Orçamentária'!#REF! ->  | G68: =G61 -> 0 | H68: =IF(J68="SERV",G68*(1+$H$5),G68*(1+$H$6)) -> 0 | J68: serv | K68: s
A69: 6.3 | D69: Vertedouro | I69: =SUM(I70:I72) -> 
A70: 6.3.1 | B70: SICRO | C70: 3806402 | D70: Limpeza em superfície de concreto com jateamento d'água sob pressão | E70: m2 | F70: ='Planilha Orçamentária'!#REF! ->  | G70: 2.3 | H70: =IF(J70="SERV",G70*(1+$H$5),G70*(1+$H$6)) -> 3.07073 | I70: =IF(J70="SERV",G70*F70*(1+$H$5),G70*F70*(1+$H$6)) ->  | J70: serv | K70: s
A71: 6.3.2 | B71: SICRO | C71: 4915645 | D71: Injeção de adesivo estrutural à base de resina epóxi de baixa viscosidade para tratamento de fissuras em estruturas de concreto - fornecimento e aplicação mecanizada | E71: kg | F71: ='Planilha Orçamentária'!#REF! ->  | G71: 272.61 | H71: =IF(J71="SERV",G71*(1+$H$5),G71*(1+$H$6)) -> 363.961611 | I71: =IF(J71="SERV",G71*F71*(1+$H$5),G71*F71*(1+$H$6)) ->  | J71: serv | K71: s
A72: 6.3.3 | B72: SICRO | C72: 4915694 | D72: Limpeza, serragem e enchimento de fissuras niveladas com abertura entre 0,4 mm e 1,0 mm e profundidade de 25 mm em estruturas de concreto com selante elástico a frio (BASEADO SICRO 4915694) | E72: m | F72: ='Planilha Orçamentária'!#REF! ->  | G72: 27 | H72: 36.0477 | J72: serv | K72: s
A74: 7 | D74: DIQUE | I74: =SUM(I75,I82) -> 
A75: 7.1 | D75: Investigação do maciço | I75: =SUM(I76:I81) -> 
A76: 7.1.1 | B76: EMBASA | C76: 32.02.01 | D76: SONDAGEM A PERCUSSÃO | E76: m | F76: ='Planilha Orçamentária'!#REF! ->  | G76: 101.49 | H76: =IF(J76="SERV",G76*(1+$H$5),G76*(1+$H$6)) -> 135.499299 | I76: =IF(J76="SERV",G76*F76*(1+$H$5),G76*F76*(1+$H$6)) ->  | J76: serv | K76: s
A77: 7.1.2 | B77: EMBASA | C77: 34.01.43 | D77: ENSAIO DE PERMEABILIDADE COM CARGA CONSTANTE | E77: un | F77: ='Planilha Orçamentária'!#REF! ->  | G77: 501.25 | H77: =IF(J77="SERV",G77*(1+$H$5),G77*(1+$H$6)) -> 669.218875 | I77: =IF(J77="SERV",G77*F77*(1+$H$5),G77*F77*(1+$H$6)) ->  | J77: serv | K77: s
A78: 7.1.3 | B78: EMBASA | C78: 34.02.04 | D78: "ANALISE GRANULOMETRICA POR PENEIRAMENTO E SEDIMENTACAO EM "TOP SOIL" | E78: un | F78: ='Planilha Orçamentária'!#REF! ->  | G78: 223.64 | H78: 298.581764 | J78: serv | K78: s
A79: 7.1.4 | B79: EMBASA | C79: 34.01.16 | D79: MASSA ESPECIFICA REAL DOS GRAOS | E79: un | F79: ='Planilha Orçamentária'!#REF! ->  | G79: 65.78 | H79: 87.822878 | J79: serv | K79: s
A80: 7.1.5 | B80: EMBASA | C80: 34.01.07 | D80: DETERMINACAO DE LIMITE DE LIQUIDEZ (NBR - 06459) | E80: un | F80: ='Planilha Orçamentária'!#REF! ->  | G80: 86.09 | H80: 114.938759 | J80: serv | K80: s
A81: 7.1.6 | B81: EMBASA | C81: 34.01.10 | D81: DETERMINACAO DE LIMITE DE PLASTICIDADE (NBR - 07180) | E81: un | F81: ='Planilha Orçamentária'!#REF! ->  | G81: 77.48 | H81: 103.443548 | J81: serv | K81: s
A82: 7.2 | D82: Recuperação do maciço | I82: =SUM(I83:I85) -> 
A83: 7.2.1 | B83: SINAPI | C83: 93358 | D83: =PROPER(IF(K83="i",VLOOKUP(C83,'Ins SINAPI BA 05-2023 Desoner'!$A$8:$E$5189,2,0),VLOOKUP(C83,'Comp SINAPI BA 05-2023 Desoner'!$G$7:$K$7500,2,0))) -> Escavação Manual De Vala Com Profundidade Menor Ou Igual A 1,30 M. Af_02/2021 | E83: =LOWER(IF(K83="i",VLOOKUP(C83,'Ins SINAPI BA 05-2023 Desoner'!$A$8:$E$5189,3,0),VLOOKUP(C83,'Comp SINAPI BA 05-2023 Desoner'!$G$7:$K$7500,3,0))) -> m3 | F83: ='Planilha Orçamentária'!#REF! ->  | G83: =SUMIFS('CPU DES'!$H:$H,'CPU DES'!$B:$B,'Planilha Orçamentária Desoner'!$A83,'CPU DES'!$I:$I,"ss")+SUMIFS('CPU DES'!$H:$H,'CPU DES'!$B:$B,'Planilha Orçamentária Desoner'!$A83,'CPU DES'!$I:$I,"mdo")+SUMIF('Comp SINAPI BA 05-2023 Desoner'!G:G,'Planilha Orçamentária Desoner'!C83,'Comp SINAPI BA 05-2023 Desoner'!K:K)+SUMIF('Ins SINAPI BA 05-2023 Desoner'!A:A,'Planilha Orçamentária Desoner'!C83,'Ins SINAPI BA 05-2023 Desoner'!E:E) -> 77.73 | H83: =IF(J83="SERV",G83*(1+$H$5),G83*(1+$H$6)) -> 103.777323 | I83: =IF(J83="SERV",G83*F83*(1+$H$5),G83*F83*(1+$H$6)) ->  | J83: serv | K83: s
A84: 7.2.2 | B84: SINAPI | C84: 99814 | D84: =PROPER(IF(K84="i",VLOOKUP(C84,'Ins SINAPI BA 05-2023 Desoner'!$A$8:$E$5189,2,0),VLOOKUP(C84,'Comp SINAPI BA 05-2023 Desoner'!$G$7:$K$7500,2,0))) -> Limpeza De Superfície Com Jato De Alta Pressão. Af_04/2019 | E84: =LOWER(IF(K84="i",VLOOKUP(C84,'Ins SINAPI BA 05-2023 Desoner'!$A$8:$E$5189,3,0),VLOOKUP(C84,'Comp SINAPI BA 05-2023 Desoner'!$G$7:$K$7500,3,0))) -> m2 | F84: ='Planilha Orçamentária'!#REF! ->  | G84: =SUMIFS('CPU DES'!$H:$H,'CPU DES'!$B:$B,'Planilha Orçamentária Desoner'!$A84,'CPU DES'!$I:$I,"ss")+SUMIFS('CPU DES'!$H:$H,'CPU DES'!$B:$B,'Planilha Orçamentária Desoner'!$A84,'CPU DES'!$I:$I,"mdo")+SUMIF('Comp SINAPI BA 05-2023 Desoner'!G:G,'Planilha Orçamentária Desoner'!C84,'Comp SINAPI BA 05-2023 Desoner'!K:K)+SUMIF('Ins SINAPI BA 05-2023 Desoner'!A:A,'Planilha Orçamentária Desoner'!C84,'Ins SINAPI BA 05-2023 Desoner'!E:E) -> 1.77 | H84: 2.363127 | J84: serv | K84: s
A85: 7.2.3 | B85: SICRO | C85: 3816196 | D85: Injeção de nata de cimento | E85: m3 | F85: ='Planilha Orçamentária'!#REF! ->  | G85: 1205.45 | H85: 1609.396295 | J85: serv | K85: s
A87: 8 | D87: SERVIÇOS AUXILIARES | I87: =SUM(I88) -> 
A88: 8.1 | D88: Análise da qualidade da água | I88: =SUM(I89:I91) -> 
A89: 8.1.1 | B89: SEDOP | C89: PT0009 | D89: Analise fisico-quimica da agua | E89: un | F89: ='Planilha Orçamentária'!#REF! ->  | G89: 236.71 | H89: =IF(J89="SERV",G89*(1+$H$5),G89*(1+$H$6)) -> 316.031521 | I89: =IF(J89="SERV",G89*F89*(1+$H$5),G89*F89*(1+$H$6)) ->  | J89: serv | K89: s
A90: 8.1.2 | B90: SEDOP | C90: PT0010 | D90: Analise bacteriologica | E90: un | F90: ='Planilha Orçamentária'!#REF! ->  | G90: 210.75 | H90: 281.372325 | J90: serv | K90: s
A91: 8.1.3 | B91: SEDOP | C91: PT0019 | D91: Relatório de analises e testes | E91: un | F91: ='Planilha Orçamentária'!#REF! ->  | G91: 1511.88 | H91: 2018.510988 | J91: serv | K91: s
D93: TOTAL Sem BDI: | I93: =SUMPRODUCT(F11:F92,G11:G92) -> 
D94: BDI: | I94: =I93*H5 -> 
D95: TOTAL COM BDI: | I95: =SUM(I93:I94) -> 

Sheet CPU
B1: Ministério da Integração e do Desenvolvimento Regional
B2: Companhia de Desenvolvimento dos Vales do São Francisco e do Parnaíba
B4: COMPOSIÇÕES DE PREÇOS UNITÁRIOS - ORÇAMENTO NÃO DESONERADO
B5: OBRA: | C5: =UPPER("SERVIÇOS DE MANUTENÇÃO E OBRAS CIVIS NA BARRAGEM CAMARÁ") -> SERVIÇOS DE MANUTENÇÃO E OBRAS CIVIS NA BARRAGEM CAMARÁ | F5: BDI (serv.): | G5: ='BDI serv'!D22 -> 0.2378
B6: LOCAL: | C6: ='Planilha Orçamentária'!B6 -> BARRAGEM CAMARÁ, BODOCÓ/PE | F6: BDI (forn.): | G6: ='BDI forn'!E6 -> 0.136
B7: DATA BASE: | C7: 2024-05-01
B8: PRAZO: | C8: 120 DIAS
B10: REFERÊNCIA | C10: CÓDIGO | D10: DESCRIÇÃO | E10: UNIDADE | F10: ÍNDICE | G10: CUSTO UNITÁRIO | H10: PREÇO TOTAL
B11: ='Planilha Orçamentária'!A12 -> 1.1 | C11: =VLOOKUP($B11,'Planilha Orçamentária'!$A$11:$I$494,3,) -> CPU.01 | D11: =VLOOKUP($B11,'Planilha Orçamentária'!$A$11:$I$494,4,) -> Administração Local | E11: =VLOOKUP($B11,'Planilha Orçamentária'!$A$11:$I$494,5,) -> MÊS | H11: =SUM(H15,H14,H13,H12) -> 28900.34 | I11: S | J11: COMENTÁRIOS
B12: =B11 -> 1.1 | D12: MATERIAL | H12: 0 | I12: ss
B13: =B11 -> 1.1 | D13: EQUIPAMENTOS | H13: 0 | I13: ss
B14: =B11 -> 1.1 | D14: SERVIÇOS | H14: 0 | I14: ss
B15: =B11 -> 1.1 | D15: MÃO DE OBRA | H15: =SUM(H16:H18) -> 28900.34 | I15: mdo
B16: SINAPI | C16: 90778 | D16: =IFERROR(VLOOKUP($C16,'Comp SINAPI PE 03-2024 Onerado'!$G:$K,2,FALSE),VLOOKUP(CPU!$C16,'Ins SINAPI PE 03-2024 Onerado'!$A:$E,2,FALSE)) -> ENGENHEIRO CIVIL DE OBRA PLENO COM ENCARGOS COMPLEMENTARES | E16: =LOWER(IF(K16="i",VLOOKUP(C16,'Ins SINAPI PE 03-2024 Onerado'!$A$8:$E$5189,3,0),VLOOKUP(C16,'Comp SINAPI PE 03-2024 Onerado'!$G$7:$K$7500,3,0))) -> h | F16: =1.5*5*4 -> 30 | G16: =IFERROR(VLOOKUP($C16,'Comp SINAPI PE 03-2024 Onerado'!$G:$K,5,FALSE),VLOOKUP(CPU!$C16,'Ins SINAPI PE 03-2024 Onerado'!$A:$E,5,FALSE)) -> 126.7 | H16: =ROUND(F16*G16,2) -> 3801 | I16: ca
B17: SINAPI | C17: 93572 | D17: =IFERROR(VLOOKUP($C17,'Comp SINAPI PE 03-2024 Onerado'!$G:$K,2,FALSE),VLOOKUP(CPU!$C17,'Ins SINAPI PE 03-2024 Onerado'!$A:$E,2,FALSE)) -> ENCARREGADO GERAL DE OBRAS COM ENCARGOS COMPLEMENTARES | E17: =LOWER(IF(K17="i",VLOOKUP(C17,'Ins SINAPI PE 03-2024 Onerado'!$A$8:$E$5189,3,0),VLOOKUP(C17,'Comp SINAPI PE 03-2024 Onerado'!$G$7:$K$7500,3,0))) -> mes | F17: 0.8 | G17: =IFERROR(VLOOKUP($C17,'Comp SINAPI PE 03-2024 Onerado'!$G:$K,5,FALSE),VLOOKUP(CPU!$C17,'Ins SINAPI PE 03-2024 Onerado'!$A:$E,5,FALSE)) -> 6840.17 | H17: =ROUND(F17*G17,2) -> 5472.14 | I17: ca
B18: SINAPI-11/2023 | C18: 88326 | D18: VIGIA NOTURNO COM ENCARGOS COMPLEMENTARES | E18: h | F18: ='Memorial de cálculo'!H14 -> 720 | G18: 27.26 | H18: =ROUND(F18*G18,2) -> 19627.2 | I18: ca | J18: considerando 4 vigias intercalando em dupla na jornada de 12/36
B20: ='Planilha Orçamentária'!A16 -> 2.1.1 | C20: =VLOOKUP($B20,'Planilha Orçamentária'!$A$11:$I$494,3,) -> CPU.02 | D20: =VLOOKUP($B20,'Planilha Orçamentária'!$A$11:$I$494,4,) -> Mobilização e desmobilização de instalação do canteiro | E20: =VLOOKUP($B20,'Planilha Orçamentária'!$A$11:$I$494,5,) -> UN | F20: 1 | H20: =SUM(H21,H22,H29,H30) -> 5939.9 | I20: S | J20: mobilização e desmobilização de Petrolina a barragem
B21: =B20 -> 2.1.1 | D21: MATERIAL | H21: 0 | I21: ss
B22: =B20 -> 2.1.1 | D22: EQUIPAMENTOS | H22: =SUM(H23:H28) -> 5609.82 | I22: ss
B23: SICRO | C23: E9134 | D23: Miniônibus com capacidade para 30 passageiros - 111 Kw | E23: chp | F23: ='Memorial de cálculo'!H21 -> 6.266666667 | G23: 221.2038 | H23: =ROUND(F23*G23,2) -> 1386.21 | I23: ca
B24: SICRO | C24: E9134 | D24: Miniônibus com capacidade para 30 passageiros - 111 Kw | E24: chi | F24: ='Memorial de cálculo'!H22 -> 9.733333333 | G24: 74.2404 | H24: =ROUND(F24*G24,2) -> 722.61 | I24: ca
B25: SINAPI | C25: 100946 | D25: =IFERROR(VLOOKUP($C25,'Comp SINAPI PE 03-2024 Onerado'!$G:$K,2,FALSE),VLOOKUP(CPU!$C25,'Ins SINAPI PE 03-2024 Onerado'!$A:$E,2,FALSE)) -> TRANSPORTE COM CAMINHÃO CARROCERIA 9T, EM VIA URBANA EM REVESTIMENTO PRIMÁRIO (UNIDADE: TXKM). AF_07/2020 | E25: =IF(I25="i",VLOOKUP(C25,'Ins SINAPI PE 03-2024 Onerado'!$A$8:$E$5189,3,0),VLOOKUP(C25,'Comp SINAPI PE 03-2024 Onerado'!$G$7:$K$7500,3,0)) -> TXKM | F25: ='Memorial de cálculo'!H25 -> 200 | G25: =IFERROR(VLOOKUP($C25,'Comp SINAPI PE 03-2024 Onerado'!$G:$K,5,FALSE),VLOOKUP(CPU!$C25,'Ins SINAPI PE 03-2024 Onerado'!$A:$E,5,FALSE)) -> 2.42 | H25: =ROUND(F25*G25,2) -> 484 | I25: ca | J25: considerando 5 toneladas de carga e metade da distância para Petrolina
B26: SINAPI | C26: 100947 | D26: =IFERROR(VLOOKUP($C26,'Comp SINAPI PE 03-2024 Onerado'!$G:$K,2,FALSE),VLOOKUP(CPU!$C26,'Ins SINAPI PE 03-2024 Onerado'!$A:$E,2,FALSE)) -> TRANSPORTE COM CAMINHÃO CARROCERIA 9T, EM VIA URBANA PAVIMENTADA, DMT ATÉ 30KM (UNIDADE: TXKM). AF_07/2020 | E26: =IF(I26="i",VLOOKUP(C26,'Ins SINAPI PE 03-2024 Onerado'!$A$8:$E$5189,3,0),VLOOKUP(C26,'Comp SINAPI PE 03-2024 Onerado'!$G$7:$K$7500,3,0)) -> TXKM | F26: ='Memorial de cálculo'!H28 -> 300 | G26: =IFERROR(VLOOKUP($C26,'Comp SINAPI PE 03-2024 Onerado'!$G:$K,5,FALSE),VLOOKUP(CPU!$C26,'Ins SINAPI PE 03-2024 Onerado'!$A:$E,5,FALSE)) -> 2.23 | H26: =ROUND(F26*G26,2) -> 669 | I26: ca
B27: SINAPI | C27: 100948 | D27: =IFERROR(VLOOKUP($C27,'Comp SINAPI PE 03-2024 Onerado'!$G:$K,2,FALSE),VLOOKUP(CPU!$C27,'Ins SINAPI PE 03-2024 Onerado'!$A:$E,2,FALSE)) -> TRANSPORTE COM CAMINHÃO CARROCERIA 9T, EM VIA URBANA PAVIMENTADA, ADICIONAL PARA DMT EXCEDENTE A 30 KM (UNIDADE: TXKM). AF_07/2020 | E27: =IF(I27="i",VLOOKUP(C27,'Ins SINAPI PE 03-2024 Onerado'!$A$8:$E$5189,3,0),VLOOKUP(C27,'Comp SINAPI PE 03-2024 Onerado'!$G$7:$K$7500,3,0)) -> TXKM | F27: ='Memorial de cálculo'!H31 -> 1850 | G27: =IFERROR(VLOOKUP($C27,'Comp SINAPI PE 03-2024 Onerado'!$G:$K,5,FALSE),VLOOKUP(CPU!$C27,'Ins SINAPI PE 03-2024 Onerado'!$A:$E,5,FALSE)) -> 0.88 | H27: 1628 | I27: ca
B28: COTAÇÃO | C28: CT.01 | D28: Aplicação de concreto | E28: un | F28: ='Memorial de cálculo'!H34 -> 8 | G28: =Cotações!O$11 -> 90 | H28: 720 | I28: ca
B29: =B20 -> 2.1.1 | D29: Aplicação de concreto c/ fornecimento, lançamento, adensamento e acabamento. | I29: ss
B30: =B20 -> 2.1.1 | D30: MÃO DE OBRA | H30: =H31 -> 330.08 | I30: ss
B31: SINAPI | C31: 88284 | D31: =IFERROR(VLOOKUP($C31,'Comp SINAPI PE 03-2024 Onerado'!$G:$K,2,FALSE),VLOOKUP(CPU!$C31,'Ins SINAPI PE 03-2024 Onerado'!$A:$E,2,FALSE)) -> MOTORISTA DE VEÍCULO LEVE COM ENCARGOS COMPLEMENTARES | E31: =LOWER(IF(K31="i",VLOOKUP(C31,'Ins SINAPI PE 03-2024 Onerado'!$A$8:$E$5189,3,0),VLOOKUP(C31,'Comp SINAPI PE 03-2024 Onerado'!$G$7:$K$7500,3,0))) -> h | F31: 16 | G31: =IFERROR(VLOOKUP($C31,'Comp SINAPI PE 03-2024 Onerado'!$G:$K,5,FALSE),VLOOKUP(CPU!$C31,'Ins SINAPI PE 03-2024 Onerado'!$A:$E,5,FALSE)) -> 20.63 | H31: =ROUND(F31*G31,2) -> 330.08 | I31: ca
B33: 2.2.1 | C33: =VLOOKUP($B33,'Planilha Orçamentária'!$A$11:$I$494,3,) -> CPU.03 | D33: =VLOOKUP($B33,'Planilha Orçamentária'!$A$11:$I$494,4,) -> Execução de canteiro de obras, inclusive, limpeza, refeitório, sanitários e central de formas | E33: =VLOOKUP($B33,'Planilha Orçamentária'!$A$11:$I$494,5,) -> M2 | F33: 1 | H33: =SUM(H34,H35,H36,H43) -> 829.26 | I33: S
D34: MATERIAL | I34: ss
B35: =B33 -> 2.2.1 | D35: EQUIPAMENTOS | I35: ss
B36: =B33 -> 2.2.1 | D36: SERVIÇOS | H36: =SUM(H37:H42) -> 829.26 | I36: ss
B37: SINAPI | C37: 98524 | D37: =IFERROR(VLOOKUP($C37,'Comp SINAPI PE 03-2024 Onerado'!$G:$K,2,FALSE),VLOOKUP(CPU!$C37,'Ins SINAPI PE 03-2024 Onerado'!$A:$E,2,FALSE)) -> LIMPEZA MANUAL DE VEGETAÇÃO EM TERRENO COM ENXADA. AF_03/2024 | E37: =IF(I37="i",VLOOKUP(C37,'Ins SINAPI PE 03-2024 Onerado'!$A$8:$E$5189,3,0),VLOOKUP(C37,'Comp SINAPI PE 03-2024 Onerado'!$G$7:$K$7500,3,0)) -> M2 | F37: 1 | G37: =IFERROR(VLOOKUP($C37,'Comp SINAPI PE 03-2024 Onerado'!$G:$K,5,FALSE),VLOOKUP(CPU!$C37,'Ins SINAPI PE 03-2024 Onerado'!$A:$E,5,FALSE)) -> 4.32 | H37: =ROUND(F37*G37,2) -> 4.32 | I37: ca
B38: SINAPI | C38: 94975 | D38: =IFERROR(VLOOKUP($C38,'Comp SINAPI PE 03-2024 Onerado'!$G:$K,2,FALSE),VLOOKUP(CPU!$C38,'Ins SINAPI PE 03-2024 Onerado'!$A:$E,2,FALSE)) -> CONCRETO FCK = 15MPA, TRAÇO 1:3,4:3,5 (EM MASSA SECA DE CIMENTO/ AREIA MÉDIA/ BRITA 1) - PREPARO MANUAL. AF_05/2021 | E38: =IF(I38="i",VLOOKUP(C38,'Ins SINAPI PE 03-2024 Onerado'!$A$8:$E$5189,3,0),VLOOKUP(C38,'Comp SINAPI PE 03-2024 Onerado'!$G$7:$K$7500,3,0)) -> M3 | F38: =1.43/28.5 -> 0.0501754386 | G38: =IFERROR(VLOOKUP($C38,'Comp SINAPI PE 03-2024 Onerado'!$G:$K,5,FALSE),VLOOKUP(CPU!$C38,'Ins SINAPI PE 03-2024 Onerado'!$A:$E,5,FALSE)) -> 479.76 | H38: 24.07 | I38: ca
B39: SINAPI -12/2023 | C39: 93210 | D39: EXECUÇÃO DE REFEITÓRIO EM CANTEIRO DE OBRA EM CHAPA DE MADEIRA COMPENSADA, NÃO INCLUSO MOBILIÁRIO E EQUIPAMENTOS. AF_02/2016 | E39: M2 | F39: =7.5/28.5 -> 0.2631578947 | G39: 632.64 | H39: =ROUND(F39*G39,2) -> 166.48
B40: SINAPI -12/2023 | C40: 93212 | D40: EXECUÇÃO DE SANITÁRIO E VESTIÁRIO EM CANTEIRO DE OBRA EM CHAPA DE MADEIRA COMPENSADA, NÃO INCLUSO MOBILIÁRIO. AF_02/2016 | E40: M2 | F40: =9/28.5 -> 0.3157894737 | G40: 1038.41 | H40: 327.92
B41: SINAPI -12/2023 | C41: 93583 | D41: EXECUÇÃO DE CENTRAL DE FÔRMAS, PRODUÇÃO DE ARGAMASSA OU CONCRETO EM CANTEIRO DE OBRA, NÃO INCLUSO MOBILIÁRIO E EQUIPAMENTOS. AF_04/2016 | E41: M2 | F41: =12/28.5 -> 0.4210526316 | G41: 514.11 | H41: 216.47
B42: COTAÇÃO | C42: CT.01 | D42: Hospedagem | E42: un | F42: 1 | G42: =Cotações!O$11 -> 90 | H42: =ROUND(F42*G42,2) -> 90
B43: =B33 -> 2.2.1 | D43: MÃO DE OBRA | I43: ss
B45: ='Planilha Orçamentária'!A20 -> 2.3.1 | C45: =VLOOKUP($B45,'Planilha Orçamentária'!$A$11:$I$494,3,) -> CPU.04 | D45: =VLOOKUP($B45,'Planilha Orçamentária'!$A$11:$I$494,4,) -> PLACA DE OBRA EM CHAPA DE ACO GALVANIZADO | E45: =VLOOKUP($B45,'Planilha Orçamentária'!$A$11:$I$494,5,) -> M2 | H45: =SUM(H46,H59,H52,H53) -> 689.9782995 | I45: S
B46: =B45 -> 2.3.1 | D46: MATERIAL | H46: =SUM(H47:H51) -> 330.86 | I46: SS
B47: SINAPI | C47: 4417 | D47: =IFERROR(VLOOKUP($C47,'Comp SINAPI PE 03-2024 Onerado'!$G:$K,2,FALSE),VLOOKUP(CPU!$C47,'Ins SINAPI PE 03-2024 Onerado'!$A:$E,2,FALSE)) -> SARRAFO NAO APARELHADO *2,5 X 7* CM, EM MACARANDUBA/MASSARANDUBA, ANGELIM, PEROBA-ROSA OU EQUIVALENTE DA REGIAO - BRUTA | E47: =IF(I47="i",VLOOKUP(C47,'Ins SINAPI PE 03-2024 Onerado'!$A$8:$E$5189,3,0),VLOOKUP(C47,'Comp SINAPI PE 03-2024 Onerado'!$G$7:$K$7500,3,0)) -> M | F47: 2 | G47: =IFERROR(VLOOKUP($C47,'Comp SINAPI PE 03-2024 Onerado'!$G:$K,5,FALSE),VLOOKUP(CPU!$C47,'Ins SINAPI PE 03-2024 Onerado'!$A:$E,5,FALSE)) -> 8.02 | H47: =ROUND(F47*G47,2) -> 16.04 | I47: I
B48: SINAPI | C48: 4430 | D48: =IFERROR(VLOOKUP($C48,'Comp SINAPI PE 03-2024 Onerado'!$G:$K,2,FALSE),VLOOKUP(CPU!$C48,'Ins SINAPI PE 03-2024 Onerado'!$A:$E,2,FALSE)) -> CAIBRO NAO APARELHADO *5 X 6* CM, EM MACARANDUBA/MASSARANDUBA, ANGELIM OU EQUIVALENTE DA REGIAO - BRUTA | E48: =IF(I48="i",VLOOKUP(C48,'Ins SINAPI PE 03-2024 Onerado'!$A$8:$E$5189,3,0),VLOOKUP(C48,'Comp SINAPI PE 03-2024 Onerado'!$G$7:$K$7500,3,0)) -> M | F48: 4 | G48: =IFERROR(VLOOKUP($C48,'Comp SINAPI PE 03-2024 Onerado'!$G:$K,5,FALSE),VLOOKUP(CPU!$C48,'Ins SINAPI PE 03-2024 Onerado'!$A:$E,5,FALSE)) -> 14.75 | H48: =ROUND(F48*G48,2) -> 59 | I48: I
B49: SINAPI | C49: 4813 | D49: =IFERROR(VLOOKUP($C49,'Comp SINAPI PE 03-2024 Onerado'!$G:$K,2,FALSE),VLOOKUP(CPU!$C49,'Ins SINAPI PE 03-2024 Onerado'!$A:$E,2,FALSE)) -> PLACA DE OBRA (PARA CONSTRUCAO CIVIL) EM CHAPA GALVANIZADA *N. 22*, ADESIVADA, DE *2,4 X 1,2* M (SEM POSTES PARA FIXACAO) | E49: =IF(I49="i",VLOOKUP(C49,'Ins SINAPI PE 03-2024 Onerado'!$A$8:$E$5189,3,0),VLOOKUP(C49,'Comp SINAPI PE 03-2024 Onerado'!$G$7:$K$7500,3,0)) -> M2 | F49: 1 | G49: =IFERROR(VLOOKUP($C49,'Comp SINAPI PE 03-2024 Onerado'!$G:$K,5,FALSE),VLOOKUP(CPU!$C49,'Ins SINAPI PE 03-2024 Onerado'!$A:$E,5,FALSE)) -> 250 | H49: 250 | I49: I
B50: SINAPI | C50: 5075 | D50: =IFERROR(VLOOKUP($C50,'Comp SINAPI PE 03-2024 Onerado'!$G:$K,2,FALSE),VLOOKUP(CPU!$C50,'Ins SINAPI PE 03-2024 Onerado'!$A:$E,2,FALSE)) -> PREGO DE ACO POLIDO COM CABECA 18 X 30 (2 3/4 X 10) | E50: =IF(I50="i",VLOOKUP(C50,'Ins SINAPI PE 03-2024 Onerado'!$A$8:$E$5189,3,0),VLOOKUP(C50,'Comp SINAPI PE 03-2024 Onerado'!$G$7:$K$7500,3,0)) -> KG | F50: 0.11 | G50: =IFERROR(VLOOKUP($C50,'Comp SINAPI PE 03-2024 Onerado'!$G:$K,5,FALSE),VLOOKUP(CPU!$C50,'Ins SINAPI PE 03-2024 Onerado'!$A:$E,5,FALSE)) -> 16.73 | H50: 1.84 | I50: I
B51: SINAPI | C51: 94962 | D51: =IFERROR(VLOOKUP($C51,'Comp SINAPI PE 03-2024 Onerado'!$G:$K,2,FALSE),VLOOKUP(CPU!$C51,'Ins SINAPI PE 03-2024 Onerado'!$A:$E,2,FALSE)) -> CONCRETO MAGRO PARA LASTRO, TRAÇO 1:4,5:4,5 (EM MASSA SECA DE CIMENTO/ AREIA MÉDIA/ BRITA 1) - PREPARO MECÂNICO COM BETONEIRA 400 L. AF_05/2021 | E51: =IF(I51="i",VLOOKUP(C51,'Ins SINAPI PE 03-2024 Onerado'!$A$8:$E$5189,3,0),VLOOKUP(C51,'Comp SINAPI PE 03-2024 Onerado'!$G$7:$K$7500,3,0)) -> M3 | F51: 0.01 | G51: =IFERROR(VLOOKUP($C51,'Comp SINAPI PE 03-2024 Onerado'!$G:$K,5,FALSE),VLOOKUP(CPU!$C51,'Ins SINAPI PE 03-2024 Onerado'!$A:$E,5,FALSE)) -> 398.48 | H51: 3.98 | I51: ca
B52: =B45 -> 2.3.1 | D52: EQUIPAMENTOS | H52: 0 | I52: SS
B53: =B45 -> 2.3.1 | D53: SERVIÇOS | H53: =SUM(H54:H58) -> 293.4582995 | I53: SS
B54: SINAPI | C54: 100946 | D54: =IFERROR(VLOOKUP($C54,'Comp SINAPI PE 03-2024 Onerado'!$G:$K,2,FALSE),VLOOKUP(CPU!$C54,'Ins SINAPI PE 03-2024 Onerado'!$A:$E,2,FALSE)) -> TRANSPORTE COM CAMINHÃO CARROCERIA 9T, EM VIA URBANA EM REVESTIMENTO PRIMÁRIO (UNIDADE: TXKM). AF_07/2020 | E54: =IF(I54="i",VLOOKUP(C54,'Ins SINAPI PE 03-2024 Onerado'!$A$8:$E$5189,3,0),VLOOKUP(C54,'Comp SINAPI PE 03-2024 Onerado'!$G$7:$K$7500,3,0)) -> TXKM | F54: =12*0.001 -> 0.012 | G54: =IFERROR(VLOOKUP($C54,'Comp SINAPI PE 03-2024 Onerado'!$G:$K,5,FALSE),VLOOKUP(CPU!$C54,'Ins SINAPI PE 03-2024 Onerado'!$A:$E,5,FALSE)) -> 2.42 | H54: =ROUND(F54*G54,2) -> 0.03 | I54: ca
B55: SINAPI | C55: 100947 | D55: =IFERROR(VLOOKUP($C55,'Comp SINAPI PE 03-2024 Onerado'!$G:$K,2,FALSE),VLOOKUP(CPU!$C55,'Ins SINAPI PE 03-2024 Onerado'!$A:$E,2,FALSE)) -> TRANSPORTE COM CAMINHÃO CARROCERIA 9T, EM VIA URBANA PAVIMENTADA, DMT ATÉ 30KM (UNIDADE: TXKM). AF_07/2020 | E55: =IF(I55="i",VLOOKUP(C55,'Ins SINAPI PE 03-2024 Onerado'!$A$8:$E$5189,3,0),VLOOKUP(C55,'Comp SINAPI PE 03-2024 Onerado'!$G$7:$K$7500,3,0)) -> TXKM | F55: =12*0.001 -> 0.012 | G55: =IFERROR(VLOOKUP($C55,'Comp SINAPI PE 03-2024 Onerado'!$G:$K,5,FALSE),VLOOKUP(CPU!$C55,'Ins SINAPI PE 03-2024 Onerado'!$A:$E,5,FALSE)) -> 2.23 | H55: =ROUND(F55*G55,2) -> 0.03 | I55: ca
B56: COTAÇÃO | C56: CT.01 | D56: Hospedagem | E56: un | F56: ='Memorial de cálculo'!D44*'Memorial de cálculo'!H44+'Memorial de cálculo'!D45*'Memorial de cálculo'!H45 -> 0.375 | G56: =Cotações!O11 -> 90 | H56: =ROUND(F56*G56,2) -> 33.75 | I56: ca
B57: SICRO | C57: E9134 | D57: Miniônibus com capacidade para 30 passageiros - 111 Kw | E57: chp | F57: =F56*0.67 -> 0.25125 | G57: 221.2038 | H57: =ROUND(F57*G57,2) -> 55.58 | I57: ca
B58: SICRO | C58: E9134 | D58: Miniônibus com capacidade para 30 passageiros - 111 Kw | E58: chi | F58: =F56*7.33 -> 2.74875 | G58: 74.2404 | H58: =(F58*G58) -> 204.0682995 | I58: ca
B59: =B45 -> 2.3.1 | D59: MÃO DE OBRA | H59: =SUM(H60:H61) -> 65.66 | I59: ss
B60: SINAPI | C60: 88262 | D60: =IFERROR(VLOOKUP($C60,'Comp SINAPI PE 03-2024 Onerado'!$G:$K,2,FALSE),VLOOKUP(CPU!$C60,'Ins SINAPI PE 03-2024 Onerado'!$A:$E,2,FALSE)) -> CARPINTEIRO DE FORMAS COM ENCARGOS COMPLEMENTARES | E60: =IF(I60="i",VLOOKUP(C60,'Ins SINAPI PE 03-2024 Onerado'!$A$8:$E$5189,3,0),VLOOKUP(C60,'Comp SINAPI PE 03-2024 Onerado'!$G$7:$K$7500,3,0)) -> H | F60: 1 | G60: =IFERROR(VLOOKUP($C60,'Comp SINAPI PE 03-2024 Onerado'!$G:$K,5,FALSE),VLOOKUP(CPU!$C60,'Ins SINAPI PE 03-2024 Onerado'!$A:$E,5,FALSE)) -> 25.1 | H60: =ROUND(F60*G60,2) -> 25.1 | I60: ca
B61: SINAPI | C61: 88316 | D61: =IFERROR(VLOOKUP($C61,'Comp SINAPI PE 03-2024 Onerado'!$G:$K,2,FALSE),VLOOKUP(CPU!$C61,'Ins SINAPI PE 03-2024 Onerado'!$A:$E,2,FALSE)) -> SERVENTE COM ENCARGOS COMPLEMENTARES | E61: =IF(I61="i",VLOOKUP(C61,'Ins SINAPI PE 03-2024 Onerado'!$A$8:$E$5189,3,0),VLOOKUP(C61,'Comp SINAPI PE 03-2024 Onerado'!$G$7:$K$7500,3,0)) -> H | F61: 2 | G61: =IFERROR(VLOOKUP($C61,'Comp SINAPI PE 03-2024 Onerado'!$G:$K,5,FALSE),VLOOKUP(CPU!$C61,'Ins SINAPI PE 03-2024 Onerado'!$A:$E,5,FALSE)) -> 20.28 | H61: =ROUND(F61*G61,2) -> 40.56 | I61: ca
I62: x
B63: 3.1.1 | C63: CPU.05 | D63: =VLOOKUP($B63,'Planilha Orçamentária'!$A$11:$I$494,4,) -> Limpeza de vegetação | E63: =VLOOKUP($B63,'Planilha Orçamentária'!$A$11:$I$494,5,) -> M2 | H63: =SUM(H64,H73,H65,H66) -> 7.4 | I63: S
B64: =B63 -> 3.1.1 | D64: MATERIAL | I64: ss
B65: =B63 -> 3.1.1 | D65: EQUIPAMENTOS | H65: 0 | I65: ss
B66: =B63 -> 3.1.1 | D66: SERVIÇOS | H66: =SUM(H67:H72) -> 7.4 | I66: ss
B67: SINAPI | C67: 98524 | D67: =IFERROR(VLOOKUP($C67,'Comp SINAPI PE 03-2024 Onerado'!$G:$K,2,FALSE),VLOOKUP(CPU!$C67,'Ins SINAPI PE 03-2024 Onerado'!$A:$E,2,FALSE)) -> LIMPEZA MANUAL DE VEGETAÇÃO EM TERRENO COM ENXADA. AF_03/2024 | E67: =IF(I67="i",VLOOKUP(C67,'Ins SINAPI PE 03-2024 Onerado'!$A$8:$E$5189,3,0),VLOOKUP(C67,'Comp SINAPI PE 03-2024 Onerado'!$G$7:$K$7500,3,0)) -> M2 | F67: 1 | G67: =IF(I67="i",VLOOKUP(C67,'Ins SINAPI PE 03-2024 Onerado'!$A$8:$E$5189,5,0),VLOOKUP(C67,'Comp SINAPI PE 03-2024 Onerado'!$G$7:$K$7500,5,0)) -> 4.32 | H67: =ROUND(F67*G67,2) -> 4.32 | I67: ca
B68: COTAÇÃO | C68: CT.01 | D68: Hospedagem | E68: un | F68: =('Memorial de cálculo'!D52*'Memorial de cálculo'!H52+'Memorial de cálculo'!D53*'Memorial de cálculo'!H53) -> 0.01795 | G68: =Cotações!O11 -> 90 | H68: =ROUND(F68*G68,2) -> 1.62 | I68: ca
B69: SICRO | C69: E9134 | D69: Miniônibus com capacidade para 30 passageiros - 111 Kw | E69: chp | F69: ='Memorial de cálculo'!H52*0.67 -> 0.0006681388889 | G69: 217.79 | H69: 0.15 | I69: ca
B70: SICRO | C70: E9134 | D70: Miniônibus com capacidade para 30 passageiros - 111 Kw | E70: chi | F70: ='Memorial de cálculo'!H52*7.33 -> 0.007309638889 | G70: 74.24 | H70: 0.54 | I70: ca
B71: SINAPI | C71: 97913 | D71: =IFERROR(VLOOKUP($C71,'Comp SINAPI PE 03-2024 Onerado'!$G:$K,2,FALSE),VLOOKUP(CPU!$C71,'Ins SINAPI PE 03-2024 Onerado'!$A:$E,2,FALSE)) -> TRANSPORTE COM CAMINHÃO BASCULANTE DE 6 M³, EM VIA URBANA EM REVESTIMENTO PRIMÁRIO (UNIDADE: M3XKM). AF_07/2020 | E71: =IF(I71="i",VLOOKUP(C71,'Ins SINAPI PE 03-2024 Onerado'!$A$8:$E$5189,3,0),VLOOKUP(C71,'Comp SINAPI PE 03-2024 Onerado'!$G$7:$K$7500,3,0)) -> M3XKM | F71: =0.01*12.5 -> 0.125 | G71: =IFERROR(VLOOKUP($C71,'Comp SINAPI PE 03-2024 Onerado'!$G:$K,5,FALSE),VLOOKUP(CPU!$C71,'Ins SINAPI PE 03-2024 Onerado'!$A:$E,5,FALSE)) -> 3.23 | H71: =ROUND(F71*G71,2) -> 0.4 | I71: ca
B72: SINAPI | C72: 97914 | D72: =IFERROR(VLOOKUP($C72,'Comp SINAPI PE 03-2024 Onerado'!$G:$K,2,FALSE),VLOOKUP(CPU!$C72,'Ins SINAPI PE 03-2024 Onerado'!$A:$E,2,FALSE)) -> TRANSPORTE COM CAMINHÃO BASCULANTE DE 6 M³, EM VIA URBANA PAVIMENTADA, DMT ATÉ 30 KM (UNIDADE: M3XKM). AF_07/2020 | E72: =IF(I72="i",VLOOKUP(C72,'Ins SINAPI PE 03-2024 Onerado'!$A$8:$E$5189,3,0),VLOOKUP(C72,'Comp SINAPI PE 03-2024 Onerado'!$G$7:$K$7500,3,0)) -> M3XKM | F72: =0.01*12.5 -> 0.125 | G72: =IFERROR(VLOOKUP($C72,'Comp SINAPI PE 03-2024 Onerado'!$G:$K,5,FALSE),VLOOKUP(CPU!$C72,'Ins SINAPI PE 03-2024 Onerado'!$A:$E,5,FALSE)) -> 2.95 | H72: =ROUND(F72*G72,2) -> 0.37 | I72: ca
B73: =B63 -> 3.1.1 | D73: MÃO DE OBRA | I73: ss
B75: ='Planilha Orçamentária'!A25 -> 3.1.2 | C75: CPU.06 | D75: =VLOOKUP($B75,'Planilha Orçamentária'!$A$11:$I$494,4,) -> Corte de arvore e remoção de raiz | E75: =VLOOKUP($B75,'Planilha Orçamentária'!$A$11:$I$494,5,) -> UN | H75: =SUM(H76,H86,H77,H78) -> 419.53 | I75: S
B76: =B75 -> 3.1.2 | D76: MATERIAL | I76: ss
B77: =B75 -> 3.1.2 | D77: EQUIPAMENTOS | H77: 0 | I77: ss
B78: =B75 -> 3.1.2 | D78: SERVIÇOS | H78: =SUM(H79:H85) -> 419.53 | I78: ss
B79: SINAPI | C79: 98529 | D79: =IFERROR(VLOOKUP($C79,'Comp SINAPI PE 03-2024 Onerado'!$G:$K,2,FALSE),VLOOKUP(CPU!$C79,'Ins SINAPI PE 03-2024 Onerado'!$A:$E,2,FALSE)) -> CORTE RASO E RECORTE DE ÁRVORE COM DIÂMETRO DE TRONCO MAIOR OU IGUAL A 0,20 M E MENOR QUE 0,40 M. AF_03/2024 | E79: =IF(I79="i",VLOOKUP(C79,'Ins SINAPI PE 03-2024 Onerado'!$A$8:$E$5189,3,0),VLOOKUP(C79,'Comp SINAPI PE 03-2024 Onerado'!$G$7:$K$7500,3,0)) -> UN | F79: 1 | G79: =IFERROR(VLOOKUP($C79,'Comp SINAPI PE 03-2024 Onerado'!$G:$K,5,FALSE),VLOOKUP(CPU!$C79,'Ins SINAPI PE 03-2024 Onerado'!$A:$E,5,FALSE)) -> 68.42 | H79: =ROUND(F79*G79,2) -> 68.42 | I79: ca
B80: SINAPI | C80: 98526 | D80: =IFERROR(VLOOKUP($C80,'Comp SINAPI PE 03-2024 Onerado'!$G:$K,2,FALSE),VLOOKUP(CPU!$C80,'Ins SINAPI PE 03-2024 Onerado'!$A:$E,2,FALSE)) -> REMOÇÃO DE RAÍZES REMANESCENTES DE TRONCO DE ÁRVORE COM DIÂMETRO MAIOR OU IGUAL A 0,20 M E MENOR QUE 0,40 M. AF_03/2024 | E80: =IF(I80="i",VLOOKUP(C80,'Ins SINAPI PE 03-2024 Onerado'!$A$8:$E$5189,3,0),VLOOKUP(C80,'Comp SINAPI PE 03-2024 Onerado'!$G$7:$K$7500,3,0)) -> UN | F80: 1 | G80: =IFERROR(VLOOKUP($C80,'Comp SINAPI PE 03-2024 Onerado'!$G:$K,5,FALSE),VLOOKUP(CPU!$C80,'Ins SINAPI PE 03-2024 Onerado'!$A:$E,5,FALSE)) -> 134.84 | H80: =ROUND(F80*G80,2) -> 134.84 | I80: ca
B81: COTAÇÃO | C81: CT.01 | D81: Hospedagem | E81: un | F81: ='Memorial de cálculo'!D57*'Memorial de cálculo'!H57+'Memorial de cálculo'!D58*'Memorial de cálculo'!H58 -> 0.38610375 | G81: =Cotações!O11 -> 90 | H81: =ROUND(F81*G81,2) -> 34.75 | I81: ca
B82: SICRO | C82: E9134 | D82: Miniônibus com capacidade para 30 passageiros - 111 Kw | E82: chp | F82: ='Memorial de cálculo'!H57*0.67 -> 0.1293435 | G82: 221.2038 | H82: 28.61 | I82: ca
B83: SICRO | C83: E9134 | D83: Miniônibus com capacidade para 30 passageiros - 111 Kw | E83: chi | F83: ='Memorial de cálculo'!H57*7.33 -> 1.4150565 | G83: 74.2404 | H83: 105.05 | I83: ca
B84: SINAPI | C84: 97913 | D84: =IFERROR(VLOOKUP($C84,'Comp SINAPI PE 03-2024 Onerado'!$G:$K,2,FALSE),VLOOKUP(CPU!$C84,'Ins SINAPI PE 03-2024 Onerado'!$A:$E,2,FALSE)) -> TRANSPORTE COM CAMINHÃO BASCULANTE DE 6 M³, EM VIA URBANA EM REVESTIMENTO PRIMÁRIO (UNIDADE: M3XKM). AF_07/2020 | E84: =IF(I84="i",VLOOKUP(C84,'Ins SINAPI PE 03-2024 Onerado'!$A$8:$E$5189,3,0),VLOOKUP(C84,'Comp SINAPI PE 03-2024 Onerado'!$G$7:$K$7500,3,0)) -> M3XKM | F84: =4*0.4*0.4*'Memorial de cálculo'!H8 -> 6.4 | G84: =IFERROR(VLOOKUP($C84,'Comp SINAPI PE 03-2024 Onerado'!$G:$K,5,FALSE),VLOOKUP(CPU!$C84,'Ins SINAPI PE 03-2024 Onerado'!$A:$E,5,FALSE)) -> 3.23 | H84: =ROUND(F84*G84,2) -> 20.67 | I84: ca
B85: SINAPI | C85: 97914 | D85: =IFERROR(VLOOKUP($C85,'Comp SINAPI PE 03-2024 Onerado'!$G:$K,2,FALSE),VLOOKUP(CPU!$C85,'Ins SINAPI PE 03-2024 Onerado'!$A:$E,2,FALSE)) -> TRANSPORTE COM CAMINHÃO BASCULANTE DE 6 M³, EM VIA URBANA PAVIMENTADA, DMT ATÉ 30 KM (UNIDADE: M3XKM). AF_07/2020 | E85: =IF(I85="i",VLOOKUP(C85,'Ins SINAPI PE 03-2024 Onerado'!$A$8:$E$5189,3,0),VLOOKUP(C85,'Comp SINAPI PE 03-2024 Onerado'!$G$7:$K$7500,3,0)) -> M3XKM | F85: =4*0.4*0.4*'Memorial de cálculo'!H7 -> 9.216 | G85: =IFERROR(VLOOKUP($C85,'Comp SINAPI PE 03-2024 Onerado'!$G:$K,5,FALSE),VLOOKUP(CPU!$C85,'Ins SINAPI PE 03-2024 Onerado'!$A:$E,5,FALSE)) -> 2.95 | H85: =ROUND(F85*G85,2) -> 27.19 | I85: ca
B86: =B72 -> SINAPI | D86: MÃO DE OBRA | I86: ss
B88: ='Planilha Orçamentária'!A29 -> 4.1.1 | C88: CPU.07 | D88: =VLOOKUP($B88,'Planilha Orçamentária'!$A$11:$I$494,4,) -> Aplicação de concreto c/ fornecimento, lançamento, adensamento e acabamento. | E88: =VLOOKUP($B88,'Planilha Orçamentária'!$A$11:$I$494,5,) -> M3 | H88: =SUM(H89,H90,H91,H98) -> 785.16 | I88: S
B89: =B88 -> 4.1.1 | D89: MATERIAL | I89: ss
B90: =B88 -> 4.1.1 | D90: EQUIPAMENTOS | H90: 0 | I90: ss
B91: =B88 -> 4.1.1 | D91: SERVIÇOS | H91: =SUM(H92:H97) -> 785.16 | I91: SS
B92: SINAPI | C92: 103684 | D92: =IFERROR(VLOOKUP($C92,'Comp SINAPI PE 03-2024 Onerado'!$G:$K,2,FALSE),VLOOKUP(CPU!$C92,'Ins SINAPI PE 03-2024 Onerado'!$A:$E,2,FALSE)) -> CONCRETAGEM DE RESERVATÓRIOS, FCK=25 MPA, COM USO DE BOMBA - LANÇAMENTO, ADENSAMENTO E ACABAMENTO. AF_02/2022_PS | E92: =IF(I92="i",VLOOKUP(C92,'Ins SINAPI PE 03-2024 Onerado'!$A$8:$E$5189,3,0),VLOOKUP(C92,'Comp SINAPI PE 03-2024 Onerado'!$G$7:$K$7500,3,0)) -> M3 | F92: 1 | G92: =IFERROR(VLOOKUP($C92,'Comp SINAPI PE 03-2024 Onerado'!$G:$K,5,FALSE),VLOOKUP(CPU!$C92,'Ins SINAPI PE 03-2024 Onerado'!$A:$E,5,FALSE)) -> 608.03 | H92: =ROUND(F92*G92,2) -> 608.03 | I92: ca
B93: SINAPI | C93: 93589 | D93: =IFERROR(VLOOKUP($C93,'Comp SINAPI PE 03-2024 Onerado'!$G:$K,2,FALSE),VLOOKUP(CPU!$C93,'Ins SINAPI PE 03-2024 Onerado'!$A:$E,2,FALSE)) -> TRANSPORTE COM CAMINHÃO BASCULANTE DE 10 M³, EM VIA URBANA EM REVESTIMENTO PRIMÁRIO (UNIDADE: M3XKM). AF_07/2020 | E93: =IF(I93="i",VLOOKUP(C93,'Ins SINAPI PE 03-2024 Onerado'!$A$8:$E$5189,3,0),VLOOKUP(C93,'Comp SINAPI PE 03-2024 Onerado'!$G$7:$K$7500,3,0)) -> M3XKM | F93: =1*12.5 -> 12.5 | G93: =IFERROR(VLOOKUP($C93,'Comp SINAPI PE 03-2024 Onerado'!$G:$K,5,FALSE),VLOOKUP(CPU!$C93,'Ins SINAPI PE 03-2024 Onerado'!$A:$E,5,FALSE)) -> 2.69 | H93: =ROUND(F93*G93,2) -> 33.63 | I93: ca
B94: SINAPI | C94: 93590 | D94: =IFERROR(VLOOKUP($C94,'Comp SINAPI PE 03-2024 Onerado'!$G:$K,2,FALSE),VLOOKUP(CPU!$C94,'Ins SINAPI PE 03-2024 Onerado'!$A:$E,2,FALSE)) -> TRANSPORTE COM CAMINHÃO BASCULANTE DE 10 M³, EM VIA URBANA PAVIMENTADA, ADICIONAL PARA DMT EXCEDENTE A 30 KM (UNIDADE: M3XKM). AF_07/2020 | E94: =IF(I94="i",VLOOKUP(C94,'Ins SINAPI PE 03-2024 Onerado'!$A$8:$E$5189,3,0),VLOOKUP(C94,'Comp SINAPI PE 03-2024 Onerado'!$G$7:$K$7500,3,0)) -> M3XKM | F94: =1*12.5 -> 12.5 | G94: =IFERROR(VLOOKUP($C94,'Comp SINAPI PE 03-2024 Onerado'!$G:$K,5,FALSE),VLOOKUP(CPU!$C94,'Ins SINAPI PE 03-2024 Onerado'!$A:$E,5,FALSE)) -> 0.98 | H94: =ROUND(F94*G94,2) -> 12.25 | I94: ca
B95: COTAÇÃO | C95: CT.01 | D95: Hospedagem | E95: un | F95: ='Memorial de cálculo'!D65*'Memorial de cálculo'!H65+'Memorial de cálculo'!D66*'Memorial de cálculo'!H66+'Memorial de cálculo'!D67*'Memorial de cálculo'!H67 -> 0.300875 | G95: =Cotações!O11 -> 90 | H95: =ROUND(F95*G95,2) -> 27.08
B96: SICRO | C96: E9134 | D96: Miniônibus com capacidade para 30 passageiros - 111 Kw | E96: chp | F96: =F95*0.67*0.5 -> 0.100793125 | G96: 221.2038 | H96: 22.3
B97: SICRO | C97: E9134 | D97: Miniônibus com capacidade para 30 passageiros - 111 Kw | E97: chi | F97: =F95*7.33*0.5 -> 1.102706875 | G97: 74.2404 | H97: 81.87
B98: =B81 -> COTAÇÃO | D98: MÃO DE OBRA | I98: ss
B100: ='Planilha Orçamentária'!A33 -> 5.1.1 | C100: =VLOOKUP($B100,'Planilha Orçamentária'!$A$11:$I$494,3,) -> CPU.08 | D100: =VLOOKUP($B100,'Planilha Orçamentária'!$A$11:$I$494,4,) -> Demolição de guias e sarjetas | E100: =VLOOKUP($B100,'Planilha Orçamentária'!$A$11:$I$494,5,) -> M | H100: =SUM(H101,H102,H103,H110) -> 26.92 | I100: S
B101: =B100 -> 5.1.1 | D101: MATERIAL | I101: ss
B102: =B100 -> 5.1.1 | D102: EQUIPAMENTOS | I102: ss
B103: =B100 -> 5.1.1 | D103: SERVIÇOS | H103: =SUM(H104:H109) -> 26.92 | I103: ss
B104: SINAPI | C104: 104796 | D104: =IFERROR(VLOOKUP($C104,'Comp SINAPI PE 03-2024 Onerado'!$G:$K,2,FALSE),VLOOKUP(CPU!$C104,'Ins SINAPI PE 03-2024 Onerado'!$A:$E,2,FALSE)) -> DEMOLIÇÃO DE GUIAS, SARJETAS OU SARJETÕES, DE FORMA MECANIZADA, SEM REAPROVEITAMENTO. AF_09/2023 | E104: =IF(I104="i",VLOOKUP(C104,'Ins SINAPI PE 03-2024 Onerado'!$A$8:$E$5189,3,0),VLOOKUP(C104,'Comp SINAPI PE 03-2024 Onerado'!$G$7:$K$7500,3,0)) -> M | F104: 1 | G104: =IFERROR(VLOOKUP($C104,'Comp SINAPI PE 03-2024 Onerado'!$G:$K,5,FALSE),VLOOKUP(CPU!$C104,'Ins SINAPI PE 03-2024 Onerado'!$A:$E,5,FALSE)) -> 14.16 | H104: =ROUND(F104*G104,2) -> 14.16 | I104: ca
B105: SINAPI | C105: 100946 | D105: =IFERROR(VLOOKUP($C105,'Comp SINAPI PE 03-2024 Onerado'!$G:$K,2,FALSE),VLOOKUP(CPU!$C105,'Ins SINAPI PE 03-2024 Onerado'!$A:$E,2,FALSE)) -> TRANSPORTE COM CAMINHÃO CARROCERIA 9T, EM VIA URBANA EM REVESTIMENTO PRIMÁRIO (UNIDADE: TXKM). AF_07/2020 | E105: =IF(I105="i",VLOOKUP(C105,'Ins SINAPI PE 03-2024 Onerado'!$A$8:$E$5189,3,0),VLOOKUP(C105,'Comp SINAPI PE 03-2024 Onerado'!$G$7:$K$7500,3,0)) -> TXKM | F105: =57.5/1000*12.5 -> 0.71875 | G105: =IFERROR(VLOOKUP($C105,'Comp SINAPI PE 03-2024 Onerado'!$G:$K,5,FALSE),VLOOKUP(CPU!$C105,'Ins SINAPI PE 03-2024 Onerado'!$A:$E,5,FALSE)) -> 2.42 | H105: =ROUND(F105*G105,2) -> 1.74 | I105: ca | J105: : GUIA DE CALÇADA 1,00 X 0,30 X 0,10 : 57,5 kg (https://crepan.com.br/guias-de-concreto/)
B106: SINAPI | C106: 100947 | D106: =IFERROR(VLOOKUP($C106,'Comp SINAPI PE 03-2024 Onerado'!$G:$K,2,FALSE),VLOOKUP(CPU!$C106,'Ins SINAPI PE 03-2024 Onerado'!$A:$E,2,FALSE)) -> TRANSPORTE COM CAMINHÃO CARROCERIA 9T, EM VIA URBANA PAVIMENTADA, DMT ATÉ 30KM (UNIDADE: TXKM). AF_07/2020 | E106: =IF(I106="i",VLOOKUP(C106,'Ins SINAPI PE 03-2024 Onerado'!$A$8:$E$5189,3,0),VLOOKUP(C106,'Comp SINAPI PE 03-2024 Onerado'!$G$7:$K$7500,3,0)) -> TXKM | F106: =57.5/1000*12.5 -> 0.71875 | G106: =IFERROR(VLOOKUP($C106,'Comp SINAPI PE 03-2024 Onerado'!$G:$K,5,FALSE),VLOOKUP(CPU!$C106,'Ins SINAPI PE 03-2024 Onerado'!$A:$E,5,FALSE)) -> 2.23 | H106: =ROUND(F106*G106,2) -> 1.6 | I106: ca
B107: COTAÇÃO | C107: CT.01 | D107: Hospedagem | E107: un | F107: ='Memorial de cálculo'!D74*'Memorial de cálculo'!H74+'Memorial de cálculo'!D75*'Memorial de cálculo'!H75 -> 0.0316375 | G107: =Cotações!O11 -> 90 | H107: =ROUND(F107*G107,2) -> 2.85
B108: SICRO | C108: E9134 | D108: Miniônibus com capacidade para 30 passageiros - 111 Kw | E108: chp | F108: =F107*0.67*0.3 -> 0.0063591375 | G108: 221.2038 | H108: 1.41
B109: SICRO | C109: E9134 | D109: Miniônibus com capacidade para 30 passageiros - 111 Kw | E109: chi | F109: =F107*7.33*0.3 -> 0.0695708625 | G109: 74.2404 | H109: 5.16
B110: =B100 -> 5.1.1 | D110: MÃO DE OBRA | I110: mdo
B112: 5.1.2 | C112: =VLOOKUP($B112,'Planilha Orçamentária'!$A$11:$I$494,3,) -> CPU.09 | D112: =VLOOKUP($B112,'Planilha Orçamentária'!$A$11:$I$494,4,) -> Regularização e compactação da crista | E112: =VLOOKUP($B112,'Planilha Orçamentária'!$A$11:$I$494,5,) -> M2 | H112: =SUM(H113,H114,H115,H121) -> 5.59 | I112: S
B113: =B112 -> 5.1.2 | D113: MATERIAL | I113: ss
B114: =B112 -> 5.1.2 | D114: EQUIPAMENTOS | I114: ss
B115: =B112 -> 5.1.2 | D115: SERVIÇOS | H115: =SUM(H116:H120) -> 5.59 | I115: ss
B116: SINAPI | C116: 100576 | D116: =IFERROR(VLOOKUP($C116,'Comp SINAPI PE 03-2024 Onerado'!$G:$K,2,FALSE),VLOOKUP(CPU!$C116,'Ins SINAPI PE 03-2024 Onerado'!$A:$E,2,FALSE)) -> REGULARIZAÇÃO E COMPACTAÇÃO DE SUBLEITO DE SOLO PREDOMINANTEMENTE ARGILOSO. AF_11/2019 | E116: =IF(I116="i",VLOOKUP(C116,'Ins SINAPI PE 03-2024 Onerado'!$A$8:$E$5189,3,0),VLOOKUP(C116,'Comp SINAPI PE 03-2024 Onerado'!$G$7:$K$7500,3,0)) -> M2 | F116: 1 | G116: =IFERROR(VLOOKUP($C116,'Comp SINAPI PE 03-2024 Onerado'!$G:$K,5,FALSE),VLOOKUP(CPU!$C116,'Ins SINAPI PE 03-2024 Onerado'!$A:$E,5,FALSE)) -> 2.65 | H116: =ROUND(F116*G116,2) -> 2.65 | I116: ca
B117: SINAPI | C117: 100952 | D117: =IFERROR(VLOOKUP($C117,'Comp SINAPI PE 03-2024 Onerado'!$G:$K,2,FALSE),VLOOKUP(CPU!$C117,'Ins SINAPI PE 03-2024 Onerado'!$A:$E,2,FALSE)) -> TRANSPORTE COM CAMINHÃO CARROCERIA COM GUINDAUTO (MUNCK), MOMENTO MÁXIMO DE CARGA 11,7 TM, EM VIA URBANA PAVIMENTADA, DMT ATÉ 30KM (UNIDADE: TXKM). AF_07/2020 | E117: =IF(I117="i",VLOOKUP(C117,'Ins SINAPI PE 03-2024 Onerado'!$A$8:$E$5189,3,0),VLOOKUP(C117,'Comp SINAPI PE 03-2024 Onerado'!$G$7:$K$7500,3,0)) -> TXKM | F117: =20*25*2/'Memorial de cálculo'!H77 -> 0.6896551724 | G117: =IFERROR(VLOOKUP($C117,'Comp SINAPI PE 03-2024 Onerado'!$G:$K,5,FALSE),VLOOKUP(CPU!$C117,'Ins SINAPI PE 03-2024 Onerado'!$A:$E,5,FALSE)) -> 2.83 | H117: =ROUND(F117*G117,2) -> 1.95 | I117: ca
B118: COTAÇÃO | C118: CT.01 | D118: Hospedagem | E118: un | F118: ='Memorial de cálculo'!D79*'Memorial de cálculo'!H79+'Memorial de cálculo'!D80*'Memorial de cálculo'!H80 -> 0.0012625 | G118: =Cotações!O$11 -> 90 | H118: =ROUND(F118*G118,2) -> 0.11
B119: SICRO | C119: E9134 | D119: Miniônibus com capacidade para 30 passageiros - 111 Kw | E119: chp | F119: =F118*0.67 -> 0.000845875 | G119: 221.2038 | H119: 0.19
B120: SICRO | C120: E9134 | D120: Miniônibus com capacidade para 30 passageiros - 111 Kw | E120: chi | F120: =F118*7.33 -> 0.009254125 | G120: 74.2404 | H120: 0.69
B121: =B112 -> 5.1.2 | D121: MÃO DE OBRA | I121: mdo
B124: ='Planilha Orçamentária'!A36 -> 5.2.1 | C124: =VLOOKUP($B124,'Planilha Orçamentária'!$A$11:$I$494,3,) -> CPU.10 | D124: =VLOOKUP($B124,'Planilha Orçamentária'!$A$11:$I$494,4,) -> Guia e meio fio conjudados de concreto, moldada In Loco, 45cm base (15 cm Base da Guia +30 cm Base da Sarjeta) x 22 cm Altura | E124: =VLOOKUP($B124,'Planilha Orçamentária'!$A$11:$I$494,5,) -> M | H124: =SUM(H125,H126,H127,H136) -> 87.58 | I124: S
B125: =B124 -> 5.2.1 | D125: MATERIAL | I125: ss
B126: =B124 -> 5.2.1 | D126: EQUIPAMENTOS | I126: ss
B127: =B124 -> 5.2.1 | D127: SERVIÇOS | H127: =SUM(H128:H135) -> 87.58 | I127: ss
B128: SINAPI | C128: 94267 | D128: =IFERROR(VLOOKUP($C128,'Comp SINAPI PE 03-2024 Onerado'!$G:$K,2,FALSE),VLOOKUP(CPU!$C128,'Ins SINAPI PE 03-2024 Onerado'!$A:$E,2,FALSE)) -> GUIA (MEIO-FIO) E SARJETA CONJUGADOS DE CONCRETO, MOLDADA IN LOCO EM TRECHO RETO COM EXTRUSORA, 45 CM BASE (15 CM BASE DA GUIA + 30 CM BASE DA SARJETA) X 22 CM ALTURA. AF_01/2024 | E128: =IF(I128="i",VLOOKUP(C128,'Ins SINAPI PE 03-2024 Onerado'!$A$8:$E$5189,3,0),VLOOKUP(C128,'Comp SINAPI PE 03-2024 Onerado'!$G$7:$K$7500,3,0)) -> M | F128: 1 | G128: =IFERROR(VLOOKUP($C128,'Comp SINAPI PE 03-2024 Onerado'!$G:$K,5,FALSE),VLOOKUP(CPU!$C128,'Ins SINAPI PE 03-2024 Onerado'!$A:$E,5,FALSE)) -> 52.03 | H128: =ROUND(F128*G128,2) -> 52.03 | I128: ca
B129: SINAPI | C129: 100946 | D129: =IFERROR(VLOOKUP($C129,'Comp SINAPI PE 03-2024 Onerado'!$G:$K,2,FALSE),VLOOKUP(CPU!$C129,'Ins SINAPI PE 03-2024 Onerado'!$A:$E,2,FALSE)) -> TRANSPORTE COM CAMINHÃO CARROCERIA 9T, EM VIA URBANA EM REVESTIMENTO PRIMÁRIO (UNIDADE: TXKM). AF_07/2020 | E129: =IF(I129="i",VLOOKUP(C129,'Ins SINAPI PE 03-2024 Onerado'!$A$8:$E$5189,3,0),VLOOKUP(C129,'Comp SINAPI PE 03-2024 Onerado'!$G$7:$K$7500,3,0)) -> TXKM | F129: =30*8/700 -> 0.3428571429 | G129: =IFERROR(VLOOKUP($C129,'Comp SINAPI PE 03-2024 Onerado'!$G:$K,5,FALSE),VLOOKUP(CPU!$C129,'Ins SINAPI PE 03-2024 Onerado'!$A:$E,5,FALSE)) -> 2.42 | H129: 0.83 | I129: ca
B130: SINAPI | C130: 100947 | D130: =IFERROR(VLOOKUP($C130,'Comp SINAPI PE 03-2024 Onerado'!$G:$K,2,FALSE),VLOOKUP(CPU!$C130,'Ins SINAPI PE 03-2024 Onerado'!$A:$E,2,FALSE)) -> TRANSPORTE COM CAMINHÃO CARROCERIA 9T, EM VIA URBANA PAVIMENTADA, DMT ATÉ 30KM (UNIDADE: TXKM). AF_07/2020 | E130: =IF(I130="i",VLOOKUP(C130,'Ins SINAPI PE 03-2024 Onerado'!$A$8:$E$5189,3,0),VLOOKUP(C130,'Comp SINAPI PE 03-2024 Onerado'!$G$7:$K$7500,3,0)) -> TXKM | F130: =12.5*85/700 -> 1.517857143 | G130: =IFERROR(VLOOKUP($C130,'Comp SINAPI PE 03-2024 Onerado'!$G:$K,5,FALSE),VLOOKUP(CPU!$C130,'Ins SINAPI PE 03-2024 Onerado'!$A:$E,5,FALSE)) -> 2.23 | H130: =ROUND(F130*G130,2) -> 3.38 | I130: ca
B131: SINAPI | C131: 88830 | D131: =IFERROR(VLOOKUP($C131,'Comp SINAPI PE 03-2024 Onerado'!$G:$K,2,FALSE),VLOOKUP(CPU!$C131,'Ins SINAPI PE 03-2024 Onerado'!$A:$E,2,FALSE)) -> BETONEIRA CAPACIDADE NOMINAL DE 400 L, CAPACIDADE DE MISTURA 280 L, MOTOR ELÉTRICO TRIFÁSICO POTÊNCIA DE 2 CV, SEM CARREGADOR - CHP DIURNO. AF_05/2023 | E131: =IF(I131="i",VLOOKUP(C131,'Ins SINAPI PE 03-2024 Onerado'!$A$8:$E$5189,3,0),VLOOKUP(C131,'Comp SINAPI PE 03-2024 Onerado'!$G$7:$K$7500,3,0)) -> CHP | F131: 0.018 | G131: =IFERROR(VLOOKUP($C131,'Comp SINAPI PE 03-2024 Onerado'!$G:$K,5,FALSE),VLOOKUP(CPU!$C131,'Ins SINAPI PE 03-2024 Onerado'!$A:$E,5,FALSE)) -> 2.04 | H131: 0.04 | I131: ca | K131: mesma produtividade da máquina extrusora
B132: SINAPI | C132: 88831 | D132: =IFERROR(VLOOKUP($C132,'Comp SINAPI PE 03-2024 Onerado'!$G:$K,2,FALSE),VLOOKUP(CPU!$C132,'Ins SINAPI PE 03-2024 Onerado'!$A:$E,2,FALSE)) -> BETONEIRA CAPACIDADE NOMINAL DE 400 L, CAPACIDADE DE MISTURA 280 L, MOTOR ELÉTRICO TRIFÁSICO POTÊNCIA DE 2 CV, SEM CARREGADOR - CHI DIURNO. AF_05/2023 | E132: =IF(I132="i",VLOOKUP(C132,'Ins SINAPI PE 03-2024 Onerado'!$A$8:$E$5189,3,0),VLOOKUP(C132,'Comp SINAPI PE 03-2024 Onerado'!$G$7:$K$7500,3,0)) -> CHI | F132: 0.091 | G132: =IFERROR(VLOOKUP($C132,'Comp SINAPI PE 03-2024 Onerado'!$G:$K,5,FALSE),VLOOKUP(CPU!$C132,'Ins SINAPI PE 03-2024 Onerado'!$A:$E,5,FALSE)) -> 0.42 | H132: 0.04 | I132: ca | K132: mesma produtividade da máquina extrusora
B133: COTAÇÃO | C133: CT.01 | D133: Hospedagem | E133: un | F133: ='Memorial de cálculo'!D84*'Memorial de cálculo'!H84+'Memorial de cálculo'!D85*'Memorial de cálculo'!H85+'Memorial de cálculo'!D86*'Memorial de cálculo'!H86 -> 0.105 | G133: =Cotações!O11 -> 90 | H133: 9.45 | I133: ca
B134: SICRO | C134: E9134 | D134: Miniônibus com capacidade para 30 passageiros - 111 Kw | E134: chp | F134: =F133*0.67*0.3 -> 0.021105 | G134: 221.2038 | H134: 4.67 | I134: ca
B135: SICRO | C135: E9134 | D135: Miniônibus com capacidade para 30 passageiros - 111 Kw | E135: chi | F135: =F133*7.33*0.3 -> 0.230895 | G135: 74.2404 | H135: 17.14 | I135: ca
B136: =B124 -> 5.2.1 | D136: MÃO DE OBRA | I136: ss
B138: ='Planilha Orçamentária'!A38 -> 5.3.1 | C138: =VLOOKUP($B138,'Planilha Orçamentária'!$A$11:$I$494,3,) -> CPU.11 | D138: =VLOOKUP($B138,'Planilha Orçamentária'!$A$11:$I$494,4,) -> Execução e compactação para pavimentação de Brita Graduada Simples Trada com cimento | E138: =VLOOKUP($B138,'Planilha Orçamentária'!$A$11:$I$494,5,) -> M3 | H138: =SUM(H139,H140,H141,H149) -> 305.45 | I138: S
B139: =B138 -> 5.3.1 | D139: MATERIAL | I139: ss
B140: =B138 -> 5.3.1 | D140: EQUIPAMENTOS | I140: ss
B141: =B138 -> 5.3.1 | D141: SERVIÇOS | H141: =SUM(H142:H148) -> 305.45 | I141: ss
B142: SINAPI | C142: 96397 | D142: =IFERROR(VLOOKUP($C142,'Comp SINAPI PE 03-2024 Onerado'!$G:$K,2,FALSE),VLOOKUP(CPU!$C142,'Ins SINAPI PE 03-2024 Onerado'!$A:$E,2,FALSE)) -> EXECUÇÃO E COMPACTAÇÃO DE BASE E OU SUB BASE PARA PAVIMENTAÇÃO DE BRITA GRADUADA SIMPLES TRATADA COM CIMENTO - EXCLUSIVE CARGA E TRANSPORTE. AF_11/2019 | E142: =IF(I142="i",VLOOKUP(C142,'Ins SINAPI PE 03-2024 Onerado'!$A$8:$E$5189,3,0),VLOOKUP(C142,'Comp SINAPI PE 03-2024 Onerado'!$G$7:$K$7500,3,0)) -> M3 | F142: 1 | G142: =IFERROR(VLOOKUP($C142,'Comp SINAPI PE 03-2024 Onerado'!$G:$K,5,FALSE),VLOOKUP(CPU!$C142,'Ins SINAPI PE 03-2024 Onerado'!$A:$E,5,FALSE)) -> 240.32 | H142: =ROUND(F142*G142,2) -> 240.32 | I142: ca
B143: SINAPI | C143: 100976 | D143: =IFERROR(VLOOKUP($C143,'Comp SINAPI PE 03-2024 Onerado'!$G:$K,2,FALSE),VLOOKUP(CPU!$C143,'Ins SINAPI PE 03-2024 Onerado'!$A:$E,2,FALSE)) -> CARGA, MANOBRA E DESCARGA DE SOLOS E MATERIAIS GRANULARES EM CAMINHÃO BASCULANTE 18 M³ - CARGA COM PÁ CARREGADEIRA (CAÇAMBA DE 1,7 A 2,8 M³ / 128 HP) E DESCARGA LIVRE (UNIDADE: M3). AF_07/2020 | E143: =IF(I143="i",VLOOKUP(C143,'Ins SINAPI PE 03-2024 Onerado'!$A$8:$E$5189,3,0),VLOOKUP(C143,'Comp SINAPI PE 03-2024 Onerado'!$G$7:$K$7500,3,0)) -> M3 | F143: 1 | G143: =IFERROR(VLOOKUP($C143,'Comp SINAPI PE 03-2024 Onerado'!$G:$K,5,FALSE),VLOOKUP(CPU!$C143,'Ins SINAPI PE 03-2024 Onerado'!$A:$E,5,FALSE)) -> 8.28 | H143: =ROUND(F143*G143,2) -> 8.28 | I143: ca
B144: SINAPI | C144: 95426 | D144: =IFERROR(VLOOKUP($C144,'Comp SINAPI PE 03-2024 Onerado'!$G:$K,2,FALSE),VLOOKUP(CPU!$C144,'Ins SINAPI PE 03-2024 Onerado'!$A:$E,2,FALSE)) -> TRANSPORTE COM CAMINHÃO BASCULANTE DE 18 M³, EM VIA URBANA EM REVESTIMENTO PRIMÁRIO (UNIDADE: M3XKM). AF_07/2020 | E144: =IF(I144="i",VLOOKUP(C144,'Ins SINAPI PE 03-2024 Onerado'!$A$8:$E$5189,3,0),VLOOKUP(C144,'Comp SINAPI PE 03-2024 Onerado'!$G$7:$K$7500,3,0)) -> M3XKM | F144: =145*12.5/145 -> 12.5 | G144: =IFERROR(VLOOKUP($C144,'Comp SINAPI PE 03-2024 Onerado'!$G:$K,5,FALSE),VLOOKUP(CPU!$C144,'Ins SINAPI PE 03-2024 Onerado'!$A:$E,5,FALSE)) -> 1.94 | H144: =ROUND(F144*G144,2) -> 24.25 | I144: ca
B145: SINAPI | C145: 95425 | D145: =IFERROR(VLOOKUP($C145,'Comp SINAPI PE 03-2024 Onerado'!$G:$K,2,FALSE),VLOOKUP(CPU!$C145,'Ins SINAPI PE 03-2024 Onerado'!$A:$E,2,FALSE)) -> TRANSPORTE COM CAMINHÃO BASCULANTE DE 18 M³, EM VIA URBANA EM LEITO NATURAL (UNIDADE: M3XKM). AF_07/2020 | E145: =IF(I145="i",VLOOKUP(C145,'Ins SINAPI PE 03-2024 Onerado'!$A$8:$E$5189,3,0),VLOOKUP(C145,'Comp SINAPI PE 03-2024 Onerado'!$G$7:$K$7500,3,0)) -> M3XKM | F145: =145*12.5/145 -> 12.5 | G145: =IFERROR(VLOOKUP($C145,'Comp SINAPI PE 03-2024 Onerado'!$G:$K,5,FALSE),VLOOKUP(CPU!$C145,'Ins SINAPI PE 03-2024 Onerado'!$A:$E,5,FALSE)) -> 2.24 | H145: =ROUND(F145*G145,2) -> 28 | I145: ca
B146: COTAÇÃO | C146: CT.01 | D146: Hospedagem | E146: un | F146: ='Memorial de cálculo'!D90*'Memorial de cálculo'!H90+'Memorial de cálculo'!D91*'Memorial de cálculo'!H91 -> 0.005875 | G146: =Cotações!O11 -> 90 | H146: =ROUND(F146*G146,2) -> 0.53
B147: SICRO | C147: E9134 | D147: Miniônibus com capacidade para 30 passageiros - 111 Kw | E147: chp | F147: =F146*0.67 -> 0.00393625 | G147: 221.2038 | H147: 0.87
B148: SICRO | C148: E9134 | D148: Miniônibus com capacidade para 30 passageiros - 111 Kw | E148: chi | F148: =F146*7.33 -> 0.04306375 | G148: 74.2404 | H148: 3.2
B149: =B138 -> 5.3.1 | D149: MÃO DE OBRA | I149: mdo
B151: ='Planilha Orçamentária'!A42 -> 6.1.1 | C151: =VLOOKUP($B151,'Planilha Orçamentária'!$A$11:$I$494,3,) -> CPU.12 | D151: =VLOOKUP($B151,'Planilha Orçamentária'!$A$11:$I$494,4,) -> Enrocamento c/ pedra de mão c/ fornecimento e assentamento | E151: =VLOOKUP($B151,'Planilha Orçamentária'!$A$11:$I$494,5,) -> M3 | F151: 1 | H151: =SUM(H152,H154,H155,H162) -> 461.85 | I151: S
B152: =B151 -> 6.1.1 | D152: MATERIAL | H152: =SUM(H153:H153) -> 117.84 | I152: ss
B153: SINAPI | C153: 4730 | D153: =IFERROR(VLOOKUP($C153,'Comp SINAPI PE 03-2024 Onerado'!$G:$K,2,FALSE),VLOOKUP(CPU!$C153,'Ins SINAPI PE 03-2024 Onerado'!$A:$E,2,FALSE)) -> PEDRA DE MAO OU PEDRA RACHAO PARA ARRIMO/FUNDACAO (POSTO PEDREIRA/FORNECEDOR, SEM FRETE) | E153: =IF(I153="i",VLOOKUP(C153,'Ins SINAPI PE 03-2024 Onerado'!$A$8:$E$5189,3,0),VLOOKUP(C153,'Comp SINAPI PE 03-2024 Onerado'!$G$7:$K$7500,3,0)) -> M3 | F153: 1.2 | G153: =IFERROR(VLOOKUP($C153,'Comp SINAPI PE 03-2024 Onerado'!$G:$K,5,FALSE),VLOOKUP(CPU!$C153,'Ins SINAPI PE 03-2024 Onerado'!$A:$E,5,FALSE)) -> 98.2 | H153: =ROUND(F153*G153,2) -> 117.84 | I153: i | J153: INDICES COM BASE NA COMPOSIÇÃO DA SICRO
B154: =B151 -> 6.1.1 | D154: EQUIPAMENTOS | I154: ss
B155: =B151 -> 6.1.1 | D155: SERVIÇOS | H155: =SUM(H156:H161) -> 229.88 | I155: ss
B156: SINAPI | C156: 93589 | D156: =IFERROR(VLOOKUP($C156,'Comp SINAPI PE 03-2024 Onerado'!$G:$K,2,FALSE),VLOOKUP(CPU!$C156,'Ins SINAPI PE 03-2024 Onerado'!$A:$E,2,FALSE)) -> TRANSPORTE COM CAMINHÃO BASCULANTE DE 10 M³, EM VIA URBANA EM REVESTIMENTO PRIMÁRIO (UNIDADE: M3XKM). AF_07/2020 | E156: =IF(I156="i",VLOOKUP(C156,'Ins SINAPI PE 03-2024 Onerado'!$A$8:$E$5189,3,0),VLOOKUP(C156,'Comp SINAPI PE 03-2024 Onerado'!$G$7:$K$7500,3,0)) -> M3XKM | F156: =12.5*1 -> 12.5 | G156: =IFERROR(VLOOKUP($C156,'Comp SINAPI PE 03-2024 Onerado'!$G:$K,5,FALSE),VLOOKUP(CPU!$C156,'Ins SINAPI PE 03-2024 Onerado'!$A:$E,5,FALSE)) -> 2.69 | H156: =ROUND(F156*G156,2) -> 33.63 | I156: ca
B157: SINAPI | C157: 95875 | D157: =IFERROR(VLOOKUP($C157,'Comp SINAPI PE 03-2024 Onerado'!$G:$K,2,FALSE),VLOOKUP(CPU!$C157,'Ins SINAPI PE 03-2024 Onerado'!$A:$E,2,FALSE)) -> TRANSPORTE COM CAMINHÃO BASCULANTE DE 10 M³, EM VIA URBANA PAVIMENTADA, DMT ATÉ 30 KM (UNIDADE: M3XKM). AF_07/2020 | E157: =IF(I157="i",VLOOKUP(C157,'Ins SINAPI PE 03-2024 Onerado'!$A$8:$E$5189,3,0),VLOOKUP(C157,'Comp SINAPI PE 03-2024 Onerado'!$G$7:$K$7500,3,0)) -> M3XKM | F157: =12.5*1 -> 12.5 | G157: =IFERROR(VLOOKUP($C157,'Comp SINAPI PE 03-2024 Onerado'!$G:$K,5,FALSE),VLOOKUP(CPU!$C157,'Ins SINAPI PE 03-2024 Onerado'!$A:$E,5,FALSE)) -> 2.47 | H157: =ROUND(F157*G157,2) -> 30.88
B158: SINAPI | C158: 100976 | D158: =IFERROR(VLOOKUP($C158,'Comp SINAPI PE 03-2024 Onerado'!$G:$K,2,FALSE),VLOOKUP(CPU!$C158,'Ins SINAPI PE 03-2024 Onerado'!$A:$E,2,FALSE)) -> CARGA, MANOBRA E DESCARGA DE SOLOS E MATERIAIS GRANULARES EM CAMINHÃO BASCULANTE 18 M³ - CARGA COM PÁ CARREGADEIRA (CAÇAMBA DE 1,7 A 2,8 M³ / 128 HP) E DESCARGA LIVRE (UNIDADE: M3). AF_07/2020 | E158: =IF(I158="i",VLOOKUP(C158,'Ins SINAPI PE 03-2024 Onerado'!$A$8:$E$5189,3,0),VLOOKUP(C158,'Comp SINAPI PE 03-2024 Onerado'!$G$7:$K$7500,3,0)) -> M3 | F158: 1 | G158: =IFERROR(VLOOKUP($C158,'Comp SINAPI PE 03-2024 Onerado'!$G:$K,5,FALSE),VLOOKUP(CPU!$C158,'Ins SINAPI PE 03-2024 Onerado'!$A:$E,5,FALSE)) -> 8.28 | H158: =ROUND(F158*G158,2) -> 8.28 | I158: ca
B159: COTAÇÃO | C159: CT.01 | D159: Hospedagem | E159: un | F159: ='Memorial de cálculo'!D96*'Memorial de cálculo'!H96+'Memorial de cálculo'!D97*'Memorial de cálculo'!H97 -> 0.6875 | G159: =Cotações!O11 -> 90 | H159: =ROUND(F159*G159,2) -> 61.88 | I159: ca
B160: SICRO | C160: E9134 | D160: Miniônibus com capacidade para 30 passageiros - 111 Kw | E160: chp | F160: =F159*0.67*0.2 -> 0.092125 | G160: 221.2038 | H160: 20.38 | I160: ca
B161: SICRO | C161: E9134 | D161: Miniônibus com capacidade para 30 passageiros - 111 Kw | E161: chi | F161: =F159*7.33*0.2 -> 1.007875 | G161: 74.2404 | H161: 74.83 | I161: ca
B162: =B151 -> 6.1.1 | D162: MÃO DE OBRA | H162: =SUM(H163:H164) -> 114.13 | I162: mdo
B163: SINAPI | C163: 88309 | D163: =IFERROR(VLOOKUP($C163,'Comp SINAPI PE 03-2024 Onerado'!$G:$K,2,FALSE),VLOOKUP(CPU!$C163,'Ins SINAPI PE 03-2024 Onerado'!$A:$E,2,FALSE)) -> PEDREIRO COM ENCARGOS COMPLEMENTARES | E163: =IF(I163="i",VLOOKUP(C163,'Ins SINAPI PE 03-2024 Onerado'!$A$8:$E$5189,3,0),VLOOKUP(C163,'Comp SINAPI PE 03-2024 Onerado'!$G$7:$K$7500,3,0)) -> H | F163: 0.5 | G163: =IFERROR(VLOOKUP($C163,'Comp SINAPI PE 03-2024 Onerado'!$G:$K,5,FALSE),VLOOKUP(CPU!$C163,'Ins SINAPI PE 03-2024 Onerado'!$A:$E,5,FALSE)) -> 25.46 | H163: =ROUND(F163*G163,2) -> 12.73 | I163: ca
B164: SINAPI | C164: 88316 | D164: =IFERROR(VLOOKUP($C164,'Comp SINAPI PE 03-2024 Onerado'!$G:$K,2,FALSE),VLOOKUP(CPU!$C164,'Ins SINAPI PE 03-2024 Onerado'!$A:$E,2,FALSE)) -> SERVENTE COM ENCARGOS COMPLEMENTARES | E164: =IF(I164="i",VLOOKUP(C164,'Ins SINAPI PE 03-2024 Onerado'!$A$8:$E$5189,3,0),VLOOKUP(C164,'Comp SINAPI PE 03-2024 Onerado'!$G$7:$K$7500,3,0)) -> H | F164: 5 | G164: =IFERROR(VLOOKUP($C164,'Comp SINAPI PE 03-2024 Onerado'!$G:$K,5,FALSE),VLOOKUP(CPU!$C164,'Ins SINAPI PE 03-2024 Onerado'!$A:$E,5,FALSE)) -> 20.28 | H164: =ROUND(F164*G164,2) -> 101.4 | I164: ca
B166: ='Planilha Orçamentária'!A46 -> 7.1.1 | C166: =VLOOKUP($B166,'Planilha Orçamentária'!$A$11:$I$494,3,) -> CPU.13 | D166: Solo Melhorado com cimento | E166: =VLOOKUP($B166,'Planilha Orçamentária'!$A$11:$I$494,5,) -> M3 | F166: 1 | H166: =SUM(H167,H169,H172,H179) -> 401.12 | I166: S
B167: =B166 -> 7.1.1 | D167: MATERIAL | H167: =SUM(H168:H168) -> 43.32 | I167: ss
B168: SINAPI | C168: 1379 | D168: =IFERROR(VLOOKUP($C168,'Comp SINAPI PE 03-2024 Onerado'!$G:$K,2,FALSE),VLOOKUP(CPU!$C168,'Ins SINAPI PE 03-2024 Onerado'!$A:$E,2,FALSE)) -> CIMENTO PORTLAND COMPOSTO CP II-32 | E168: =IF(I168="i",VLOOKUP(C168,'Ins SINAPI PE 03-2024 Onerado'!$A$8:$E$5189,3,0),VLOOKUP(C168,'Comp SINAPI PE 03-2024 Onerado'!$G$7:$K$7500,3,0)) -> KG | F168: 61.89 | G168: =IFERROR(VLOOKUP($C168,'Comp SINAPI PE 03-2024 Onerado'!$G:$K,5,FALSE),VLOOKUP(CPU!$C168,'Ins SINAPI PE 03-2024 Onerado'!$A:$E,5,FALSE)) -> 0.7 | H168: =ROUND(F168*G168,2) -> 43.32 | I168: i | J168: índices com base na composição 87286 da SINAPI e 4011287 SICRO3
B169: =B166 -> 7.1.1 | D169: EQUIPAMENTOS | H169: =SUM(H170:H171) -> 4.11 | I169: ss
B170: SINAPI | C170: 88830 | D170: =IFERROR(VLOOKUP($C170,'Comp SINAPI PE 03-2024 Onerado'!$G:$K,2,FALSE),VLOOKUP(CPU!$C170,'Ins SINAPI PE 03-2024 Onerado'!$A:$E,2,FALSE)) -> BETONEIRA CAPACIDADE NOMINAL DE 400 L, CAPACIDADE DE MISTURA 280 L, MOTOR ELÉTRICO TRIFÁSICO POTÊNCIA DE 2 CV, SEM CARREGADOR - CHP DIURNO. AF_05/2023 | E170: =IF(I170="i",VLOOKUP(C170,'Ins SINAPI PE 03-2024 Onerado'!$A$8:$E$5189,3,0),VLOOKUP(C170,'Comp SINAPI PE 03-2024 Onerado'!$G$7:$K$7500,3,0)) -> CHP | F170: 1.2 | G170: =IFERROR(VLOOKUP($C170,'Comp SINAPI PE 03-2024 Onerado'!$G:$K,5,FALSE),VLOOKUP(CPU!$C170,'Ins SINAPI PE 03-2024 Onerado'!$A:$E,5,FALSE)) -> 2.04 | H170: =ROUND(F170*G170,2) -> 2.45 | I170: ca
B171: SINAPI | C171: 88831 | D171: =IFERROR(VLOOKUP($C171,'Comp SINAPI PE 03-2024 Onerado'!$G:$K,2,FALSE),VLOOKUP(CPU!$C171,'Ins SINAPI PE 03-2024 Onerado'!$A:$E,2,FALSE)) -> BETONEIRA CAPACIDADE NOMINAL DE 400 L, CAPACIDADE DE MISTURA 280 L, MOTOR ELÉTRICO TRIFÁSICO POTÊNCIA DE 2 CV, SEM CARREGADOR - CHI DIURNO. AF_05/2023 | E171: =IF(I171="i",VLOOKUP(C171,'Ins SINAPI PE 03-2024 Onerado'!$A$8:$E$5189,3,0),VLOOKUP(C171,'Comp SINAPI PE 03-2024 Onerado'!$G$7:$K$7500,3,0)) -> CHI | F171: 3.96 | G171: =IFERROR(VLOOKUP($C171,'Comp SINAPI PE 03-2024 Onerado'!$G:$K,5,FALSE),VLOOKUP(CPU!$C171,'Ins SINAPI PE 03-2024 Onerado'!$A:$E,5,FALSE)) -> 0.42 | H171: =ROUND(F171*G171,2) -> 1.66 | I171: ca
B172: =B166 -> 7.1.1 | D172: SERVIÇOS | H172: =SUM(H173:H178) -> 209.16 | I172: ss
B173: SINAPI | C173: 100946 | D173: =IFERROR(VLOOKUP($C173,'Comp SINAPI PE 03-2024 Onerado'!$G:$K,2,FALSE),VLOOKUP(CPU!$C173,'Ins SINAPI PE 03-2024 Onerado'!$A:$E,2,FALSE)) -> TRANSPORTE COM CAMINHÃO CARROCERIA 9T, EM VIA URBANA EM REVESTIMENTO PRIMÁRIO (UNIDADE: TXKM). AF_07/2020 | E173: =IF(I173="i",VLOOKUP(C173,'Ins SINAPI PE 03-2024 Onerado'!$A$8:$E$5189,3,0),VLOOKUP(C173,'Comp SINAPI PE 03-2024 Onerado'!$G$7:$K$7500,3,0)) -> TXKM | F173: =1.5*12.5 -> 18.75 | G173: =IFERROR(VLOOKUP($C173,'Comp SINAPI PE 03-2024 Onerado'!$G:$K,5,FALSE),VLOOKUP(CPU!$C173,'Ins SINAPI PE 03-2024 Onerado'!$A:$E,5,FALSE)) -> 2.42 | H173: =ROUND(F173*G173,2) -> 45.38 | I173: ca
B174: SINAPI | C174: 100947 | D174: =IFERROR(VLOOKUP($C174,'Comp SINAPI PE 03-2024 Onerado'!$G:$K,2,FALSE),VLOOKUP(CPU!$C174,'Ins SINAPI PE 03-2024 Onerado'!$A:$E,2,FALSE)) -> TRANSPORTE COM CAMINHÃO CARROCERIA 9T, EM VIA URBANA PAVIMENTADA, DMT ATÉ 30KM (UNIDADE: TXKM). AF_07/2020 | E174: =IF(I174="i",VLOOKUP(C174,'Ins SINAPI PE 03-2024 Onerado'!$A$8:$E$5189,3,0),VLOOKUP(C174,'Comp SINAPI PE 03-2024 Onerado'!$G$7:$K$7500,3,0)) -> TXKM | F174: =1.5*12.5 -> 18.75 | G174: =IFERROR(VLOOKUP($C174,'Comp SINAPI PE 03-2024 Onerado'!$G:$K,5,FALSE),VLOOKUP(CPU!$C174,'Ins SINAPI PE 03-2024 Onerado'!$A:$E,5,FALSE)) -> 2.23 | H174: 41.81 | I174: ca | J174: considerando 25 km pela distância do centro da cidade
B175: SINAPI | C175: 94304 | D175: =IFERROR(VLOOKUP($C175,'Comp SINAPI PE 03-2024 Onerado'!$G:$K,2,FALSE),VLOOKUP(CPU!$C175,'Ins SINAPI PE 03-2024 Onerado'!$A:$E,2,FALSE)) -> ATERRO MECANIZADO DE VALA COM ESCAVADEIRA HIDRÁULICA (CAPACIDADE DA CAÇAMBA: 0,8 M³ / POTÊNCIA: 111 HP), LARGURA ATÉ 2,5 M, PROFUNDIDADE ATÉ 1,5 M, COM SOLO ARGILO-ARENOSO. AF_08/2023 | E175: =IF(I175="i",VLOOKUP(C175,'Ins SINAPI PE 03-2024 Onerado'!$A$8:$E$5189,3,0),VLOOKUP(C175,'Comp SINAPI PE 03-2024 Onerado'!$G$7:$K$7500,3,0)) -> M3 | F175: 1.56 | G175: =IFERROR(VLOOKUP($C175,'Comp SINAPI PE 03-2024 Onerado'!$G:$K,5,FALSE),VLOOKUP(CPU!$C175,'Ins SINAPI PE 03-2024 Onerado'!$A:$E,5,FALSE)) -> 74.85 | H175: 116.77 | I175: ca
B176: COTAÇÃO | C176: CT.01 | D176: Hospedagem | E176: un | F176: ='Memorial de cálculo'!D104*'Memorial de cálculo'!H104+'Memorial de cálculo'!D105*'Memorial de cálculo'!H105 -> 0.02275 | G176: =Cotações!O11 -> 90 | H176: 2.05 | I176: ca
B177: SICRO | C177: E9134 | D177: Miniônibus com capacidade para 30 passageiros - 111 Kw | E177: chp | F177: =F176*0.67*0.2 -> 0.0030485 | G177: 221.2038 | H177: 0.67 | I177: ca
B178: SICRO | C178: E9134 | D178: Miniônibus com capacidade para 30 passageiros - 111 Kw | E178: chi | F178: =F176*7.33*0.2 -> 0.0333515 | G178: 74.2404 | H178: 2.48 | I178: ca
B179: =B166 -> 7.1.1 | D179: MÃO DE OBRA | H179: =H180 -> 144.53 | I179: ss
B180: SINAPI | C180: 88377 | D180: =IFERROR(VLOOKUP($C180,'Comp SINAPI PE 03-2024 Onerado'!$G:$K,2,FALSE),VLOOKUP(CPU!$C180,'Ins SINAPI PE 03-2024 Onerado'!$A:$E,2,FALSE)) -> OPERADOR DE BETONEIRA ESTACIONÁRIA/MISTURADOR COM ENCARGOS COMPLEMENTARES | E180: =IF(I180="i",VLOOKUP(C180,'Ins SINAPI PE 03-2024 Onerado'!$A$8:$E$5189,3,0),VLOOKUP(C180,'Comp SINAPI PE 03-2024 Onerado'!$G$7:$K$7500,3,0)) -> H | F180: 5.16 | G180: =IF(I180="i",VLOOKUP(C180,'Ins SINAPI PE 03-2024 Onerado'!$A$8:$E$5189,5,0),VLOOKUP(C180,'Comp SINAPI PE 03-2024 Onerado'!$G$7:$K$7500,5,0)) -> 28.01 | H180: =ROUND(F180*G180,2) -> 144.53 | I180: ca
B182: ='Planilha Orçamentária'!A50 -> 8.1.1 | C182: =VLOOKUP($B182,'Planilha Orçamentária'!$A$11:$I$494,3,) -> CPU.14 | D182: =VLOOKUP($B182,'Planilha Orçamentária'!$A$11:$I$494,4,) -> Canaleta meia cana de concreto (D=30cm) - Fornecimento e instalação | E182: =VLOOKUP($B182,'Planilha Orçamentária'!$A$11:$I$494,5,) -> M | H182: =H183+H184+H185+H195 -> 75.77 | I182: S
B183: =B182 -> 8.1.1 | D183: MATERIAL | I183: ss
B184: =B182 -> 8.1.1 | D184: EQUIPAMENTOS | I184: ss
B185: =B182 -> 8.1.1 | D185: SERVIÇOS | H185: =SUM(H186:H194) -> 75.77 | I185: ss
B186: SINAPI | C186: 93358 | D186: =IFERROR(VLOOKUP($C186,'Comp SINAPI PE 03-2024 Onerado'!$G:$K,2,FALSE),VLOOKUP(CPU!$C186,'Ins SINAPI PE 03-2024 Onerado'!$A:$E,2,FALSE)) -> ESCAVAÇÃO MANUAL DE VALA COM PROFUNDIDADE MENOR OU IGUAL A 1,30 M. AF_02/2021 | E186: =IF(I186="i",VLOOKUP(C186,'Ins SINAPI PE 03-2024 Onerado'!$A$8:$E$5189,3,0),VLOOKUP(C186,'Comp SINAPI PE 03-2024 Onerado'!$G$7:$K$7500,3,0)) -> M3 | F186: =(PI()*0.3^2/4)/2 -> 0.03534291735 | G186: =IFERROR(VLOOKUP($C186,'Comp SINAPI PE 03-2024 Onerado'!$G:$K,5,FALSE),VLOOKUP(CPU!$C186,'Ins SINAPI PE 03-2024 Onerado'!$A:$E,5,FALSE)) -> 80.22 | H186: =ROUND(F186*G186,2) -> 2.84 | I186: ca
B187: SINAPI | C187: 100974 | D187: =IFERROR(VLOOKUP($C187,'Comp SINAPI PE 03-2024 Onerado'!$G:$K,2,FALSE),VLOOKUP(CPU!$C187,'Ins SINAPI PE 03-2024 Onerado'!$A:$E,2,FALSE)) -> CARGA, MANOBRA E DESCARGA DE SOLOS E MATERIAIS GRANULARES EM CAMINHÃO BASCULANTE 10 M³ - CARGA COM PÁ CARREGADEIRA (CAÇAMBA DE 1,7 A 2,8 M³ / 128 HP) E DESCARGA LIVRE (UNIDADE: M3). AF_07/2020 | E187: =IF(I187="i",VLOOKUP(C187,'Ins SINAPI PE 03-2024 Onerado'!$A$8:$E$5189,3,0),VLOOKUP(C187,'Comp SINAPI PE 03-2024 Onerado'!$G$7:$K$7500,3,0)) -> M3 | F187: =(PI()*0.3^2/4)/2 -> 0.03534291735 | G187: =IFERROR(VLOOKUP($C187,'Comp SINAPI PE 03-2024 Onerado'!$G:$K,5,FALSE),VLOOKUP(CPU!$C187,'Ins SINAPI PE 03-2024 Onerado'!$A:$E,5,FALSE)) -> 8.63 | H187: 0.31 | I187: ca
B188: SINAPI | C188: 97916 | D188: =IFERROR(VLOOKUP($C188,'Comp SINAPI PE 03-2024 Onerado'!$G:$K,2,FALSE),VLOOKUP(CPU!$C188,'Ins SINAPI PE 03-2024 Onerado'!$A:$E,2,FALSE)) -> TRANSPORTE COM CAMINHÃO BASCULANTE DE 6 M³, EM VIA URBANA EM LEITO NATURAL (UNIDADE: TXKM). AF_07/2020 | E188: =IF(I188="i",VLOOKUP(C188,'Ins SINAPI PE 03-2024 Onerado'!$A$8:$E$5189,3,0),VLOOKUP(C188,'Comp SINAPI PE 03-2024 Onerado'!$G$7:$K$7500,3,0)) -> TXKM | F188: =(((PI()*0.3^2/4)/2)*1.5)*5 -> 0.2650718801 | G188: =IFERROR(VLOOKUP($C188,'Comp SINAPI PE 03-2024 Onerado'!$G:$K,5,FALSE),VLOOKUP(CPU!$C188,'Ins SINAPI PE 03-2024 Onerado'!$A:$E,5,FALSE)) -> 2.47 | H188: 0.65 | I188: ca
B189: SINAPI | C189: 102990 | D189: =IFERROR(VLOOKUP($C189,'Comp SINAPI PE 03-2024 Onerado'!$G:$K,2,FALSE),VLOOKUP(CPU!$C189,'Ins SINAPI PE 03-2024 Onerado'!$A:$E,2,FALSE)) -> CANALETA MEIA CANA PRÉ-MOLDADA DE CONCRETO (D = 30 CM) - FORNECIMENTO E INSTALAÇÃO. AF_08/2021 | E189: =IF(I189="i",VLOOKUP(C189,'Ins SINAPI PE 03-2024 Onerado'!$A$8:$E$5189,3,0),VLOOKUP(C189,'Comp SINAPI PE 03-2024 Onerado'!$G$7:$K$7500,3,0)) -> M | F189: 1 | G189: =IFERROR(VLOOKUP($C189,'Comp SINAPI PE 03-2024 Onerado'!$G:$K,5,FALSE),VLOOKUP(CPU!$C189,'Ins SINAPI PE 03-2024 Onerado'!$A:$E,5,FALSE)) -> 45.75 | H189: =ROUND(F189*G189,2) -> 45.75 | I189: ca
B190: SINAPI | C190: 100946 | D190: =IFERROR(VLOOKUP($C190,'Comp SINAPI PE 03-2024 Onerado'!$G:$K,2,FALSE),VLOOKUP(CPU!$C190,'Ins SINAPI PE 03-2024 Onerado'!$A:$E,2,FALSE)) -> TRANSPORTE COM CAMINHÃO CARROCERIA 9T, EM VIA URBANA EM REVESTIMENTO PRIMÁRIO (UNIDADE: TXKM). AF_07/2020 | E190: =IF(I190="i",VLOOKUP(C190,'Ins SINAPI PE 03-2024 Onerado'!$A$8:$E$5189,3,0),VLOOKUP(C190,'Comp SINAPI PE 03-2024 Onerado'!$G$7:$K$7500,3,0)) -> TXKM | F190: =0.08*12.5 -> 1 | G190: =IFERROR(VLOOKUP($C190,'Comp SINAPI PE 03-2024 Onerado'!$G:$K,5,FALSE),VLOOKUP(CPU!$C190,'Ins SINAPI PE 03-2024 Onerado'!$A:$E,5,FALSE)) -> 2.42 | H190: =ROUND(F190*G190,2) -> 2.42 | I190: ca
B191: SINAPI | C191: 100947 | D191: =IFERROR(VLOOKUP($C191,'Comp SINAPI PE 03-2024 Onerado'!$G:$K,2,FALSE),VLOOKUP(CPU!$C191,'Ins SINAPI PE 03-2024 Onerado'!$A:$E,2,FALSE)) -> TRANSPORTE COM CAMINHÃO CARROCERIA 9T, EM VIA URBANA PAVIMENTADA, DMT ATÉ 30KM (UNIDADE: TXKM). AF_07/2020 | E191: =IF(I191="i",VLOOKUP(C191,'Ins SINAPI PE 03-2024 Onerado'!$A$8:$E$5189,3,0),VLOOKUP(C191,'Comp SINAPI PE 03-2024 Onerado'!$G$7:$K$7500,3,0)) -> TXKM | F191: =0.08*12.5 -> 1 | G191: =IFERROR(VLOOKUP($C191,'Comp SINAPI PE 03-2024 Onerado'!$G:$K,5,FALSE),VLOOKUP(CPU!$C191,'Ins SINAPI PE 03-2024 Onerado'!$A:$E,5,FALSE)) -> 2.23 | H191: 2.23 | I191: ca
B192: COTAÇÃO | C192: CT.01 | D192: Hospedagem | E192: un | F192: ='Memorial de cálculo'!D111*'Memorial de cálculo'!H111+'Memorial de cálculo'!D112*'Memorial de cálculo'!H112+'Memorial de cálculo'!D113*'Memorial de cálculo'!H113 -> 0.0724425 | G192: =Cotações!O11 -> 90 | H192: 6.52
B193: SICRO | C193: E9134 | D193: Miniônibus com capacidade para 30 passageiros - 111 Kw | E193: chp | F193: =F192*0.67*0.3 -> 0.0145609425 | G193: 221.2038 | H193: 3.22
B194: SICRO | C194: E9134 | D194: Miniônibus com capacidade para 30 passageiros - 111 Kw | E194: chi | F194: =F192*7.33*0.3 -> 0.1593010575 | G194: 74.2404 | H194: 11.83
B195: =B182 -> 8.1.1 | D195: MÃO DE OBRA | H195: 0
B197: ='Planilha Orçamentária'!A52 -> 8.2.1 | C197: =VLOOKUP($B197,'Planilha Orçamentária'!$A$11:$I$494,3,) -> CPU.15 | D197: =VLOOKUP($B197,'Planilha Orçamentária'!$A$11:$I$494,4,) -> Entrada para descida d'água | E197: =VLOOKUP($B197,'Planilha Orçamentária'!$A$11:$I$494,5,) -> UN | H197: =H198+H199+H200+H206 -> 74.35 | I197: s
B198: =B197 -> 8.2.1 | D198: MATERIAL | I198: ss
B199: =B197 -> 8.2.1 | D199: EQUIPAMENTOS | I199: ss
B200: =B197 -> 8.2.1 | D200: SERVIÇOS | H200: =SUM(H201:H205) -> 74.35 | I200: ss
B201: SINAPI | C201: 94964 | D201: =IFERROR(VLOOKUP($C201,'Comp SINAPI PE 03-2024 Onerado'!$G:$K,2,FALSE),VLOOKUP(CPU!$C201,'Ins SINAPI PE 03-2024 Onerado'!$A:$E,2,FALSE)) -> CONCRETO FCK = 20MPA, TRAÇO 1:2,7:3 (EM MASSA SECA DE CIMENTO/ AREIA MÉDIA/ BRITA 1) - PREPARO MECÂNICO COM BETONEIRA 400 L. AF_05/2021 | E201: =IF(I201="i",VLOOKUP(C201,'Ins SINAPI PE 03-2024 Onerado'!$A$8:$E$5189,3,0),VLOOKUP(C201,'Comp SINAPI PE 03-2024 Onerado'!$G$7:$K$7500,3,0)) -> M3 | F201: 0.11 | G201: =IFERROR(VLOOKUP($C201,'Comp SINAPI PE 03-2024 Onerado'!$G:$K,5,FALSE),VLOOKUP(CPU!$C201,'Ins SINAPI PE 03-2024 Onerado'!$A:$E,5,FALSE)) -> 476.05 | H201: =ROUND(F201*G201,2) -> 52.37 | I201: ca | J201: índices baseados em SICRO 2003385 Entrada para descida d'água - EDA 01 - areia e brita comerciais
B202: SINAPI | C202: 92268 | D202: =IFERROR(VLOOKUP($C202,'Comp SINAPI PE 03-2024 Onerado'!$G:$K,2,FALSE),VLOOKUP(CPU!$C202,'Ins SINAPI PE 03-2024 Onerado'!$A:$E,2,FALSE)) -> FABRICAÇÃO DE FÔRMA PARA LAJES, EM CHAPA DE MADEIRA COMPENSADA PLASTIFICADA, E = 18 MM. AF_09/2020 | E202: =IF(I202="i",VLOOKUP(C202,'Ins SINAPI PE 03-2024 Onerado'!$A$8:$E$5189,3,0),VLOOKUP(C202,'Comp SINAPI PE 03-2024 Onerado'!$G$7:$K$7500,3,0)) -> M2 | F202: 0.1 | G202: =IFERROR(VLOOKUP($C202,'Comp SINAPI PE 03-2024 Onerado'!$G:$K,5,FALSE),VLOOKUP(CPU!$C202,'Ins SINAPI PE 03-2024 Onerado'!$A:$E,5,FALSE)) -> 88.55 | H202: 8.86 | I202: ca
B203: COTAÇÃO | C203: CT.01 | D203: Hospedagem | E203: un | F203: ='Memorial de cálculo'!D117*'Memorial de cálculo'!H117+'Memorial de cálculo'!D118*'Memorial de cálculo'!H118+'Memorial de cálculo'!D119*'Memorial de cálculo'!H119+'Memorial de cálculo'!D120*'Memorial de cálculo'!H120 -> 0.0574625 | G203: =Cotações!O11 -> 90 | H203: =ROUND(F203*G203,2) -> 5.17
B204: SICRO | C204: E9134 | D204: Miniônibus com capacidade para 30 passageiros - 111 Kw | E204: chp | F204: =F203*0.67*0.2 -> 0.007699975 | G204: 221.2038 | H204: 1.7
B205: SICRO | C205: E9134 | D205: Miniônibus com capacidade para 30 passageiros - 111 Kw | E205: chi | F205: =F203*7.33*0.2 -> 0.084240025 | G205: 74.2404 | H205: 6.25
B206: =B197 -> 8.2.1 | D206: MÃO DE OBRA | H206: 0 | I206: mdo
B208: ='Planilha Orçamentária'!A56 -> 9.1.1 | C208: =VLOOKUP($B208,'Planilha Orçamentária'!$A$11:$I$494,3,) -> CPU.16 | D208: =VLOOKUP($B208,'Planilha Orçamentária'!$A$11:$I$494,4,) -> Plantio de grama para proteção, inclusive adubação | E208: =VLOOKUP($B208,'Planilha Orçamentária'!$A$11:$I$494,5,) -> M2 | H208: =H209+H210+H211+H219 -> 29.24 | I208: s
B209: =B208 -> 9.1.1 | D209: MATERIAL | I209: ss
B210: =B208 -> 9.1.1 | D210: EQUIPAMENTOS | I210: ss
B211: =B208 -> 9.1.1 | D211: SERVIÇOS | H211: =SUM(H212:H218) -> 29.24 | I211: ss
B212: SINAPI | C212: 98520 | D212: =IFERROR(VLOOKUP($C212,'Comp SINAPI PE 03-2024 Onerado'!$G:$K,2,FALSE),VLOOKUP(CPU!$C212,'Ins SINAPI PE 03-2024 Onerado'!$A:$E,2,FALSE)) -> APLICAÇÃO DE ADUBO EM SOLO. AF_05/2018 | E212: =IF(I212="i",VLOOKUP(C212,'Ins SINAPI PE 03-2024 Onerado'!$A$8:$E$5189,3,0),VLOOKUP(C212,'Comp SINAPI PE 03-2024 Onerado'!$G$7:$K$7500,3,0)) -> M2 | F212: 1 | G212: =IFERROR(VLOOKUP($C212,'Comp SINAPI PE 03-2024 Onerado'!$G:$K,5,FALSE),VLOOKUP(CPU!$C212,'Ins SINAPI PE 03-2024 Onerado'!$A:$E,5,FALSE)) -> 4.51 | H212: =ROUND(F212*G212,2) -> 4.51 | I212: ca
B213: SINAPI | C213: 98504 | D213: =IFERROR(VLOOKUP($C213,'Comp SINAPI PE 03-2024 Onerado'!$G:$K,2,FALSE),VLOOKUP(CPU!$C213,'Ins SINAPI PE 03-2024 Onerado'!$A:$E,2,FALSE)) -> PLANTIO DE GRAMA BATATAIS EM PLACAS. AF_05/2018 | E213: =IF(I213="i",VLOOKUP(C213,'Ins SINAPI PE 03-2024 Onerado'!$A$8:$E$5189,3,0),VLOOKUP(C213,'Comp SINAPI PE 03-2024 Onerado'!$G$7:$K$7500,3,0)) -> M2 | F213: 1 | G213: =IFERROR(VLOOKUP($C213,'Comp SINAPI PE 03-2024 Onerado'!$G:$K,5,FALSE),VLOOKUP(CPU!$C213,'Ins SINAPI PE 03-2024 Onerado'!$A:$E,5,FALSE)) -> 20.06 | H213: 20.06 | I213: ca
B214: SINAPI | C214: 100946 | D214: =IFERROR(VLOOKUP($C214,'Comp SINAPI PE 03-2024 Onerado'!$G:$K,2,FALSE),VLOOKUP(CPU!$C214,'Ins SINAPI PE 03-2024 Onerado'!$A:$E,2,FALSE)) -> TRANSPORTE COM CAMINHÃO CARROCERIA 9T, EM VIA URBANA EM REVESTIMENTO PRIMÁRIO (UNIDADE: TXKM). AF_07/2020 | E214: =IF(I214="i",VLOOKUP(C214,'Ins SINAPI PE 03-2024 Onerado'!$A$8:$E$5189,3,0),VLOOKUP(C214,'Comp SINAPI PE 03-2024 Onerado'!$G$7:$K$7500,3,0)) -> TXKM | F214: =0.02*12.5 -> 0.25 | G214: =IFERROR(VLOOKUP($C214,'Comp SINAPI PE 03-2024 Onerado'!$G:$K,5,FALSE),VLOOKUP(CPU!$C214,'Ins SINAPI PE 03-2024 Onerado'!$A:$E,5,FALSE)) -> 2.42 | H214: =ROUND(F214*G214,2) -> 0.61 | I214: ca | K214: 1m² de tapete pesa 20 kg
B215: SINAPI | C215: 100947 | D215: =IFERROR(VLOOKUP($C215,'Comp SINAPI PE 03-2024 Onerado'!$G:$K,2,FALSE),VLOOKUP(CPU!$C215,'Ins SINAPI PE 03-2024 Onerado'!$A:$E,2,FALSE)) -> TRANSPORTE COM CAMINHÃO CARROCERIA 9T, EM VIA URBANA PAVIMENTADA, DMT ATÉ 30KM (UNIDADE: TXKM). AF_07/2020 | E215: =IF(I215="i",VLOOKUP(C215,'Ins SINAPI PE 03-2024 Onerado'!$A$8:$E$5189,3,0),VLOOKUP(C215,'Comp SINAPI PE 03-2024 Onerado'!$G$7:$K$7500,3,0)) -> TXKM | F215: =0.02*12.5 -> 0.25 | G215: =IFERROR(VLOOKUP($C215,'Comp SINAPI PE 03-2024 Onerado'!$G:$K,5,FALSE),VLOOKUP(CPU!$C215,'Ins SINAPI PE 03-2024 Onerado'!$A:$E,5,FALSE)) -> 2.23 | H215: 0.56 | I215: ca
B216: COTAÇÃO | C216: CT.01 | D216: Hospedagem | E216: un | F216: ='Memorial de cálculo'!D126*'Memorial de cálculo'!H126+'Memorial de cálculo'!D127*'Memorial de cálculo'!H127+'Memorial de cálculo'!D128*'Memorial de cálculo'!H128 -> 0.01175 | G216: =Cotações!O11 -> 90 | H216: 1.06 | I216: ca
B217: SICRO | C217: E9134 | D217: Miniônibus com capacidade para 30 passageiros - 111 Kw | E217: chp | F217: =F216*0.67*0.3 -> 0.00236175 | G217: 221.2038 | H217: 0.52 | I217: ca
... 39 more rows

Sheet CPU DES (hidden)
B1: Ministério da Integração e do Desenvolvimento Regional
B2: Companhia de Desenvolvimento dos Vales do São Francisco e do Parnaíba
B4: COMPOSIÇÕES DE PREÇOS UNITÁRIOS - ORÇAMENTO DESONERADO
B5: OBRA: | C5: SERVIÇOS DE MANUTENÇÃO E OBRAS CIVIS NA ESTRUTURA DA BARRAGEM E EQUIPAMENTO HIDROMECÂNICO | F5: BDI (serv.): | G5: ='BDI serv Desonerado'!D22 -> 0.3351
B6: LOCAL: | C6: BARRAGEM POÇO DO MAGRO, GUANAMBI/BA | F6: BDI (forn.): | G6: ='BDI forn Desonerado'!D22 -> 0.212
B7: DATA BASE: | C7: 2023-05-01
B8: PRAZO: | C8: 120 DIAS
B10: REFERÊNCIA | C10: CÓDIGO | D10: DESCRIÇÃO | E10: UNIDADE | F10: ÍNDICE | G10: CUSTO UNITÁRIO | H10: PREÇO TOTAL
B11: ='Planilha Orçamentária Desoner'!A12 -> 1.1 | C11: =VLOOKUP($B11,'Planilha Orçamentária Desoner'!$A$11:$I$504,3,) -> CPU.01 | D11: =VLOOKUP($B11,'Planilha Orçamentária Desoner'!$A$11:$I$504,4,) -> ADMINISTRAÇÃO LOCAL | E11: un | H11: =SUM(H15,H14,H13,H12) -> 7834.22 | I11: S
B12: =B11 -> 1.1 | D12: MATERIAL | I12: ss
B13: =B11 -> 1.1 | D13: EQUIPAMENTOS | H13: 0 | I13: ss
B14: =B11 -> 1.1 | D14: SERVIÇOS | I14: ss
B15: =B11 -> 1.1 | D15: MÃO DE OBRA | H15: =SUM(H16:H17) -> 7834.22 | I15: mdo
B16: SINAPI | C16: 90778 | D16: =PROPER(IF(I16="i",VLOOKUP(C16,'Ins SINAPI BA 05-2023 Desoner'!$A$8:$E$5189,2,0),VLOOKUP(C16,'Comp SINAPI BA 05-2023 Desoner'!$G$7:$K$7500,2,0))) -> Engenheiro Civil De Obra Pleno Com Encargos Complementares | E16: =LOWER(IF(I16="i",VLOOKUP(C16,'Ins SINAPI BA 05-2023 Desoner'!$A$8:$E$5189,3,0),VLOOKUP(C16,'Comp SINAPI BA 05-2023 Desoner'!$G$7:$K$7500,3,0))) -> h | F16: =CPU!F16 -> 30 | G16: =IF(I16="i",VLOOKUP(C16,'Ins SINAPI BA 05-2023 Desoner'!$A$8:$E$5189,5,0),VLOOKUP(C16,'Comp SINAPI BA 05-2023 Desoner'!$G$7:$K$7500,5,0)) -> 111.26 | H16: =ROUND(F16*G16,2) -> 3337.8 | I16: ca
B17: SINAPI | C17: 93572 | D17: =PROPER(IF(I17="i",VLOOKUP(C17,'Ins SINAPI BA 05-2023 Desoner'!$A$8:$E$5189,2,0),VLOOKUP(C17,'Comp SINAPI BA 05-2023 Desoner'!$G$7:$K$7500,2,0))) -> Encarregado Geral De Obras Com Encargos Complementares | E17: =LOWER(IF(I17="i",VLOOKUP(C17,'Ins SINAPI BA 05-2023 Desoner'!$A$8:$E$5189,3,0),VLOOKUP(C17,'Comp SINAPI BA 05-2023 Desoner'!$G$7:$K$7500,3,0))) -> mes | F17: =CPU!F17 -> 0.8 | G17: =IF(I17="i",VLOOKUP(C17,'Ins SINAPI BA 05-2023 Desoner'!$A$8:$E$5189,5,0),VLOOKUP(C17,'Comp SINAPI BA 05-2023 Desoner'!$G$7:$K$7500,5,0)) -> 5620.52 | H17: =ROUND(F17*G17,2) -> 4496.42 | I17: ca
I18: x
B19: ='Planilha Orçamentária Desoner'!A22 -> 2.2.1 | C19: =VLOOKUP($B19,'Planilha Orçamentária Desoner'!$A$11:$I$504,3,) -> CPU.02 | D19: =VLOOKUP($B19,'Planilha Orçamentária Desoner'!$A$11:$I$504,4,) -> PLACA DE OBRA EM CHAPA DE ACO GALVANIZADO | E19: m² | H19: =SUM(H20,H28,H26,H27) -> 440.1 | I19: S
B20: =B19 -> 2.2.1 | D20: MATERIAL | H20: =SUM(H21:H25) -> 373.64 | I20: SS
B21: SINAPI | C21: 4417 | D21: =PROPER(IF(I21="i",VLOOKUP(C21,'Ins SINAPI BA 05-2023 Desoner'!$A$8:$E$5189,2,0),VLOOKUP(C21,'Comp SINAPI BA 05-2023 Desoner'!$G$7:$K$7500,2,0))) -> Sarrafo Nao Aparelhado *2,5 X 7* Cm, Em Macaranduba, Angelim Ou Equivalente Da Regiao - Bruta | E21: =LOWER(IF(I21="i",VLOOKUP(C21,'Ins SINAPI BA 05-2023 Desoner'!$A$8:$E$5189,3,0),VLOOKUP(C21,'Comp SINAPI BA 05-2023 Desoner'!$G$7:$K$7500,3,0))) -> m | F21: =CPU!F47 -> 2 | G21: =IF(I21="i",VLOOKUP(C21,'Ins SINAPI BA 05-2023 Desoner'!$A$8:$E$5189,5,0),VLOOKUP(C21,'Comp SINAPI BA 05-2023 Desoner'!$G$7:$K$7500,5,0)) -> 7.18 | H21: =ROUND(F21*G21,2) -> 14.36 | I21: i
B22: SINAPI | C22: 4430 | D22: =PROPER(IF(I22="i",VLOOKUP(C22,'Ins SINAPI BA 05-2023 Desoner'!$A$8:$E$5189,2,0),VLOOKUP(C22,'Comp SINAPI BA 05-2023 Desoner'!$G$7:$K$7500,2,0))) -> Caibro Nao Aparelhado *5 X 6* Cm, Em Macaranduba, Angelim Ou Equivalente Da Regiao - Bruta | E22: =LOWER(IF(I22="i",VLOOKUP(C22,'Ins SINAPI BA 05-2023 Desoner'!$A$8:$E$5189,3,0),VLOOKUP(C22,'Comp SINAPI BA 05-2023 Desoner'!$G$7:$K$7500,3,0))) -> m | F22: =CPU!F48 -> 4 | G22: =IF(I22="i",VLOOKUP(C22,'Ins SINAPI BA 05-2023 Desoner'!$A$8:$E$5189,5,0),VLOOKUP(C22,'Comp SINAPI BA 05-2023 Desoner'!$G$7:$K$7500,5,0)) -> 13.2 | H22: =ROUND(F22*G22,2) -> 52.8 | I22: I
B23: SINAPI | C23: 4813 | D23: =PROPER(IF(I23="i",VLOOKUP(C23,'Ins SINAPI BA 05-2023 Desoner'!$A$8:$E$5189,2,0),VLOOKUP(C23,'Comp SINAPI BA 05-2023 Desoner'!$G$7:$K$7500,2,0))) -> Placa De Obra (Para Construcao Civil) Em Chapa Galvanizada *N. 22*, Adesivada, De *2,4 X 1,2* M (Sem Postes Para Fixacao) | E23: =LOWER(IF(I23="i",VLOOKUP(C23,'Ins SINAPI BA 05-2023 Desoner'!$A$8:$E$5189,3,0),VLOOKUP(C23,'Comp SINAPI BA 05-2023 Desoner'!$G$7:$K$7500,3,0))) -> m2 | F23: =CPU!F49 -> 1 | G23: =IF(I23="i",VLOOKUP(C23,'Ins SINAPI BA 05-2023 Desoner'!$A$8:$E$5189,5,0),VLOOKUP(C23,'Comp SINAPI BA 05-2023 Desoner'!$G$7:$K$7500,5,0)) -> 300 | H23: =ROUND(F23*G23,2) -> 300 | I23: I
B24: SINAPI | C24: 5075 | D24: =PROPER(IF(I24="i",VLOOKUP(C24,'Ins SINAPI BA 05-2023 Desoner'!$A$8:$E$5189,2,0),VLOOKUP(C24,'Comp SINAPI BA 05-2023 Desoner'!$G$7:$K$7500,2,0))) -> Prego De Aco Polido Com Cabeca 18 X 30 (2 3/4 X 10) | E24: =LOWER(IF(I24="i",VLOOKUP(C24,'Ins SINAPI BA 05-2023 Desoner'!$A$8:$E$5189,3,0),VLOOKUP(C24,'Comp SINAPI BA 05-2023 Desoner'!$G$7:$K$7500,3,0))) -> kg | F24: =CPU!F50 -> 0.11 | G24: =IF(I24="i",VLOOKUP(C24,'Ins SINAPI BA 05-2023 Desoner'!$A$8:$E$5189,5,0),VLOOKUP(C24,'Comp SINAPI BA 05-2023 Desoner'!$G$7:$K$7500,5,0)) -> 20.6 | H24: =ROUND(F24*G24,2) -> 2.27 | I24: I
B25: SINAPI | C25: 94962 | D25: =PROPER(IF(I25="i",VLOOKUP(C25,'Ins SINAPI BA 05-2023 Desoner'!$A$8:$E$5189,2,0),VLOOKUP(C25,'Comp SINAPI BA 05-2023 Desoner'!$G$7:$K$7500,2,0))) -> Concreto Magro Para Lastro, Traço 1:4,5:4,5 (Em Massa Seca De Cimento/ Areia Média/ Brita 1) - Preparo Mecânico Com Betoneira 400 L. Af_05/2021 | E25: =LOWER(IF(I25="i",VLOOKUP(C25,'Ins SINAPI BA 05-2023 Desoner'!$A$8:$E$5189,3,0),VLOOKUP(C25,'Comp SINAPI BA 05-2023 Desoner'!$G$7:$K$7500,3,0))) -> m3 | F25: =CPU!F51 -> 0.01 | G25: =IF(I25="i",VLOOKUP(C25,'Ins SINAPI BA 05-2023 Desoner'!$A$8:$E$5189,5,0),VLOOKUP(C25,'Comp SINAPI BA 05-2023 Desoner'!$G$7:$K$7500,5,0)) -> 421.32 | H25: =ROUND(F25*G25,2) -> 4.21 | I25: ca
B26: =B19 -> 2.2.1 | D26: EQUIPAMENTOS | H26: 0 | I26: SS
B27: =B19 -> 2.2.1 | D27: SERVIÇOS | H27: 0 | I27: SS
B28: =B19 -> 2.2.1 | D28: MÃO DE OBRA | H28: =SUM(H29:H30) -> 66.46 | I28: ss
B29: SINAPI | C29: 88262 | D29: =PROPER(IF(I29="i",VLOOKUP(C29,'Ins SINAPI BA 05-2023 Desoner'!$A$8:$E$5189,2,0),VLOOKUP(C29,'Comp SINAPI BA 05-2023 Desoner'!$G$7:$K$7500,2,0))) -> Carpinteiro De Formas Com Encargos Complementares | E29: =LOWER(IF(I29="i",VLOOKUP(C29,'Ins SINAPI BA 05-2023 Desoner'!$A$8:$E$5189,3,0),VLOOKUP(C29,'Comp SINAPI BA 05-2023 Desoner'!$G$7:$K$7500,3,0))) -> h | F29: =CPU!F60 -> 1 | G29: =IF(I29="i",VLOOKUP(C29,'Ins SINAPI BA 05-2023 Desoner'!$A$8:$E$5189,5,0),VLOOKUP(C29,'Comp SINAPI BA 05-2023 Desoner'!$G$7:$K$7500,5,0)) -> 27.16 | H29: =ROUND(F29*G29,2) -> 27.16 | I29: ca
B30: SINAPI | C30: 88316 | D30: =PROPER(IF(I30="i",VLOOKUP(C30,'Ins SINAPI BA 05-2023 Desoner'!$A$8:$E$5189,2,0),VLOOKUP(C30,'Comp SINAPI BA 05-2023 Desoner'!$G$7:$K$7500,2,0))) -> Servente Com Encargos Complementares | E30: =LOWER(IF(I30="i",VLOOKUP(C30,'Ins SINAPI BA 05-2023 Desoner'!$A$8:$E$5189,3,0),VLOOKUP(C30,'Comp SINAPI BA 05-2023 Desoner'!$G$7:$K$7500,3,0))) -> h | F30: =CPU!F61 -> 2 | G30: =IF(I30="i",VLOOKUP(C30,'Ins SINAPI BA 05-2023 Desoner'!$A$8:$E$5189,5,0),VLOOKUP(C30,'Comp SINAPI BA 05-2023 Desoner'!$G$7:$K$7500,5,0)) -> 19.65 | H30: =ROUND(F30*G30,2) -> 39.3 | I30: ca
B32: ='Planilha Orçamentária Desoner'!A33 -> 4.1.1 | C32: =VLOOKUP($B32,'Planilha Orçamentária Desoner'!$A$11:$I$504,3,) -> CPU.03 | D32: =VLOOKUP($B32,'Planilha Orçamentária Desoner'!$A$11:$I$504,4,) -> Mobilização da Equipe, Camara Hiperbarica e todos os equipamentos de mergulho envolvidos na operação | E32: un | F32: 1 | H32: =SUM(H33,H35,H37) ->  | I32: S
B33: =B32 -> 4.1.1 | D33: MATERIAL | H33: 0 | I33: ss
B34: =B32 -> 4.1.1 | D34: EQUIPAMENTOS | H34: 0 | I34: ss
B35: =B32 -> 4.1.1 | D35: SERVIÇOS | H35: =H36 ->  | I35: ss
B36: COTAÇÃO | C36: 2023-05-01 | D36: Mobilização e desmobilização da Equipe, Camara Hiperbarica e todos os equipamentos de mergulho envolvidos na operação | E36: un | F36: =CPU!#REF! ->  | G36: =2*(21000+22000+19400)/3 -> 41600 | H36: =ROUND(F36*G36,2) ->  | I36: ca
B37: =B32 -> 4.1.1 | D37: MÃO DE OBRA | H37: 0 | I37: ss
I38: x
B39: ='Planilha Orçamentária Desoner'!A36 -> 4.2.1 | C39: =VLOOKUP($B39,'Planilha Orçamentária Desoner'!$A$11:$I$504,3,) -> CPU.04 | D39: =VLOOKUP($B39,'Planilha Orçamentária Desoner'!$A$11:$I$504,4,) -> Vedação da entrada da tomada d’água com chapas metálicas | E39: un | F39: 1 | H39: =SUM(H40,H51,H53,H56) ->  | I39: S
B40: =B39 -> 4.2.1 | D40: MATERIAL | H40: =SUM(H41:H50) ->  | I40: ss
B41: CODEVASF | C41: DP | D41: DIÁRIA | E41: dia | F41: =CPU!F153 -> 1.2 | G41: 305.1 | H41: =ROUND(F41*G41,2) -> 366.12
B42: SICRO | C42: E9043 | D42: Embarcação de alumínio com comprimento de 6 m e motor de popa - 18,60 kW | E42: h | F42: =CPU!#REF! ->  | G42: 66.1577 | H42: =ROUND(F42*G42,2) -> 
B43: SICRO | C43: 2408149 | D43: Estrutura em chapa de aço ASTM A36 corte, solda e montagem - fornecimento e instalação | E43: kg | F43: =CPU!#REF! ->  | G43: 14.84 | H43: =ROUND(F43*G43,2) -> 
B44: SICRO | C44: E9243 | D44: Câmara hiperbárica com filtro, serpentina e reservatório de ar para mergulho raso - D= 1,80 m e H = 2,22 m. | E44: h | F44: =CPU!#REF! ->  | G44: 58.3517 | H44: =ROUND(F44*G44,2) -> 
B45: SICRO | C45: E9245 | D45: Estação transmissora de superfície para comunicação com fio | E45: h | F45: =CPU!#REF! ->  | G45: 0.7428
B46: SICRO | C46: E9242 | D46: Estação transmissora de superfície para televisionamento | E46: h | F46: =CPU!#REF! ->  | G46: 1.3333
B47: SICRO | C47: E9066 | D47: Grupo gerador - 14 kVA | E47: h | F47: =CPU!#REF! ->  | G47: 19.3801
B48: SICRO | C48: E9246 | D48: Painel de controle de ar com manômetros e pneufatômetros | E48: h | F48: =CPU!#REF! ->  | G48: 1.4255
B49: SICRO | C49: E9248 | D49: Sistema de ar comprimido para mergulho até 30 m com pressão de trabalho de 1,4 MPa - 7,46 kW | E49: h | F49: =CPU!#REF! ->  | G49: 15.0543
B50: SICRO | C50: E9058 | D50: Plataforma flutuante de 12 x 24 x 1,8 m com capacidade de 150 t | E50: h | F50: =CPU!#REF! ->  | G50: 40.3012 | H50: =ROUND(F50*G50,2) -> 
B51: =B39 -> 4.2.1 | D51: EQUIPAMENTOS | H51: =SUM(H52) ->  | I51: ss
B52: CODEVASF | D52: CAMINHONETE | E52: mes | F52: =CPU!#REF! ->  | G52: 5885.33 | H52: =ROUND(F52*G52,2) ->  | I52: I
B53: =B39 -> 4.2.1 | D53: SERVIÇOS | H53: =SUM(H54:H55) -> 168.77 | I53: ss
B54: SICRO | C54: 3807863 | D54: Chumbador para concreto D = 12,5 mm tipo tecbolt - fornecimento e instalação | E54: un | F54: =CPU!F156 -> 12.5 | G54: 13.2 | H54: =ROUND(F54*G54,2) -> 165
B55: SICRO | C55: 4915639 | D55: Limpeza em superfície de concreto com escova de aço | E55: m² | F55: =CPU!F158 -> 1 | G55: 3.77 | H55: =ROUND(F55*G55,2) -> 3.77
B56: =B39 -> 4.2.1 | D56: MÃO DE OBRA | H56: =SUM(H57:H59) ->  | I56: ss
B57: SICRO | C57: P9926 | D57: Mergulhador raso auxiliar de superfície | E57: h | F57: =CPU!F163 -> 0.5 | G57: 28.2203 | H57: =ROUND(F57*G57,2) -> 14.11
B58: EMBASA | C58: B010000113 | D58: MERGULHADOR PROFISSIONAL | E58: h | F58: =CPU!F164 -> 5 | G58: 76.19 | H58: =ROUND(F58*G58,2) -> 380.95
B59: SICRO | C59: P9922 | D59: Mergulhador raso dependente de emergência | E59: h | F59: =CPU!#REF! ->  | G59: 31.5522
B61: ='Planilha Orçamentária Desoner'!A37 -> 4.2.2 | C61: =VLOOKUP($B61,'Planilha Orçamentária Desoner'!$A$11:$I$504,3,) -> CPU.05 | D61: =VLOOKUP($B61,'Planilha Orçamentária Desoner'!$A$11:$I$504,4,) -> Remoção da vedação da entrada da tomada d’água com chapas metálicas | E61: un | F61: 1 | H61: =SUM(H62,H72,H74,H75) ->  | I61: S
B62: =B61 -> 4.2.2 | D62: MATERIAL | H62: =SUM(H63:H71) ->  | I62: ss
B63: CODEVASF | C63: DP | D63: DIÁRIA | E63: dia | F63: =CPU!#REF! ->  | G63: 305.1 | H63: =ROUND(F63*G63,2) -> 
B64: SICRO | C64: E9043 | D64: Embarcação de alumínio com comprimento de 6 m e motor de popa - 18,60 kW | E64: h | F64: =CPU!F168 -> 61.89 | G64: 66.1577 | H64: =ROUND(F64*G64,2) -> 4094.5
B65: SICRO | C65: E9243 | D65: Câmara hiperbárica com filtro, serpentina e reservatório de ar para mergulho raso - D= 1,80 m e H = 2,22 m. | E65: h | F65: =CPU!#REF! ->  | G65: 58.3517 | H65: =ROUND(F65*G65,2) -> 
B66: SICRO | C66: E9245 | D66: Estação transmissora de superfície para comunicação com fio | E66: h | F66: =CPU!#REF! ->  | G66: 0.7428
B67: SICRO | C67: E9242 | D67: Estação transmissora de superfície para televisionamento | E67: h | F67: =CPU!#REF! ->  | G67: 1.3333
B68: SICRO | C68: E9066 | D68: Grupo gerador - 14 kVA | E68: h | F68: =CPU!#REF! ->  | G68: 19.3801
B69: SICRO | C69: E9246 | D69: Painel de controle de ar com manômetros e pneufatômetros | E69: h | F69: =CPU!#REF! ->  | G69: 1.4255
B70: SICRO | C70: E9248 | D70: Sistema de ar comprimido para mergulho até 30 m com pressão de trabalho de 1,4 MPa - 7,46 kW | E70: h | F70: =CPU!#REF! ->  | G70: 15.0543
B71: SICRO | C71: E9058 | D71: Plataforma flutuante de 12 x 24 x 1,8 m com capacidade de 150 t | E71: h | F71: =CPU!#REF! ->  | G71: 40.3012 | H71: =ROUND(F71*G71,2) -> 
B72: =B61 -> 4.2.2 | D72: EQUIPAMENTOS | H72: =SUM(H73) -> 7062.4 | I72: ss
B73: CODEVASF | D73: CAMINHONETE | E73: mes | F73: =CPU!F170 -> 1.2 | G73: 5885.33 | H73: =ROUND(F73*G73,2) -> 7062.4 | I73: I
B74: =B61 -> 4.2.2 | D74: SERVIÇOS | H74: 0 | I74: ss
B75: =B61 -> 4.2.2 | D75: MÃO DE OBRA | H75: =SUM(H76:H78) ->  | I75: ss
B76: SICRO | C76: P9926 | D76: Mergulhador raso auxiliar de superfície | E76: h | F76: =CPU!#REF! ->  | G76: 28.2203 | H76: =ROUND(F76*G76,2) -> 
B77: EMBASA | C77: B010000113 | D77: MERGULHADOR PROFISSIONAL | E77: h | F77: =CPU!#REF! ->  | G77: 76.19
B78: SICRO | C78: P9922 | D78: Mergulhador raso dependente de emergência | E78: h | F78: =CPU!#REF! ->  | G78: 31.5522
B80: ='Planilha Orçamentária Desoner'!A59 -> 6.1.6 | C80: =VLOOKUP($B80,'Planilha Orçamentária Desoner'!$A$11:$I$504,3,) -> CPU.06 | D80: =VLOOKUP($B80,'Planilha Orçamentária Desoner'!$A$11:$I$504,4,) -> ARGAMASSA TRACO 1:3 (CIMENTO E AREIA), PREPARO MANUAL, INCLUSO ADITIVO IMPERMEABILIZANTE | E80: m3 | H80: =H81+H84+H86+H87 ->  | I80: s
B81: =B80 -> 6.1.6 | D81: MATERIAL | H81: =SUM(H82:H83) ->  | I81: ss
B82: SINAPI | C82: 88629 | D82: =PROPER(IF(I82="i",VLOOKUP(C82,'Ins SINAPI BA 05-2023 Desoner'!$A$8:$E$5189,2,0),VLOOKUP(C82,'Comp SINAPI BA 05-2023 Desoner'!$G$7:$K$7500,2,0))) -> Argamassa Traço 1:3 (Em Volume De Cimento E Areia Média Úmida), Preparo Manual. Af_08/2019 | E82: =LOWER(IF(I82="i",VLOOKUP(C82,'Ins SINAPI BA 05-2023 Desoner'!$A$8:$E$5189,3,0),VLOOKUP(C82,'Comp SINAPI BA 05-2023 Desoner'!$G$7:$K$7500,3,0))) -> m3 | F82: =CPU!#REF! ->  | G82: =IF(I82="i",VLOOKUP(C82,'Ins SINAPI BA 05-2023 Desoner'!$A$8:$E$5189,5,0),VLOOKUP(C82,'Comp SINAPI BA 05-2023 Desoner'!$G$7:$K$7500,5,0)) -> 693.49 | H82: =ROUND(F82*G82,2) ->  | I82: ca
B83: SINAPI | C83: 123 | D83: =PROPER(IF(I83="i",VLOOKUP(C83,'Ins SINAPI BA 05-2023 Desoner'!$A$8:$E$5189,2,0),VLOOKUP(C83,'Comp SINAPI BA 05-2023 Desoner'!$G$7:$K$7500,2,0))) -> Aditivo Impermeabilizante De Pega Normal Para Argamassas E Concretos Sem Armacao, Liquido E Isento De Cloretos | E83: =LOWER(IF(I83="i",VLOOKUP(C83,'Ins SINAPI BA 05-2023 Desoner'!$A$8:$E$5189,3,0),VLOOKUP(C83,'Comp SINAPI BA 05-2023 Desoner'!$G$7:$K$7500,3,0))) -> l | F83: =CPU!#REF! ->  | G83: =IF(I83="i",VLOOKUP(C83,'Ins SINAPI BA 05-2023 Desoner'!$A$8:$E$5189,5,0),VLOOKUP(C83,'Comp SINAPI BA 05-2023 Desoner'!$G$7:$K$7500,5,0)) -> 6.85 | H83: =ROUND(F83*G83,2) ->  | I83: i
B84: =B80 -> 6.1.6 | D84: EQUIPAMENTOS | H84: =H85 ->  | I84: ss
B85: SICRO | C85: E9121 | D85: Plataforma elevatória articulada elétrica com alcance de 6 m com capacidade de 500 kg - 1,5 kW | E85: h | F85: =CPU!#REF! ->  | G85: 36.3564 | H85: =ROUND(F85*G85,2) ->  | I85: ca
B86: =B80 -> 6.1.6 | D86: SERVIÇOS | H86: 0 | I86: ss
B87: =B80 -> 6.1.6 | D87: MÃO DE OBRA | H87: 0 | I87: mdo
B89: ='Planilha Orçamentária Desoner'!A61 -> 6.1.8 | C89: =VLOOKUP($B89,'Planilha Orçamentária Desoner'!$A$11:$I$504,3,) -> CPU.07 | D89: =VLOOKUP($B89,'Planilha Orçamentária Desoner'!$A$11:$I$504,4,) -> CURA QUÍMICA | E89: m2 | H89: =H90+H92+H94+H95 ->  | I89: s
B90: =B89 -> 6.1.8 | D90: MATERIAL | H90: =SUM(H91) ->  | I90: ss
B91: SICRO | C91: M2152 | D91: Aditivo de cura para concreto | E91: kg | F91: =CPU!#REF! ->  | G91: 7.7205 | H91: =ROUND(F91*G91,2) ->  | I91: ca
B92: =B89 -> 6.1.8 | D92: EQUIPAMENTOS | H92: =SUM(H93) ->  | I92: ss
B93: SICRO | C93: E9589 | D93: Máquina texturizadora e aplicadora de cura química em pavimento de concreto - 44,80 kW | E93: H | F93: =CPU!#REF! ->  | G93: 206.4583 | H93: =ROUND(F93*G93,2) ->  | I93: ca
B94: =B89 -> 6.1.8 | D94: SERVIÇOS | H94: 0 | I94: ss
B95: =B89 -> 6.1.8 | D95: MÃO DE OBRA | H95: =SUM(H96) -> 15.72 | I95: mdo
B96: SINAPI | C96: 88316 | D96: =PROPER(IF(I96="i",VLOOKUP(C96,'Ins SINAPI BA 05-2023 Desoner'!$A$8:$E$5189,2,0),VLOOKUP(C96,'Comp SINAPI BA 05-2023 Desoner'!$G$7:$K$7500,2,0))) -> Servente Com Encargos Complementares | E96: =LOWER(IF(I96="i",VLOOKUP(C96,'Ins SINAPI BA 05-2023 Desoner'!$A$8:$E$5189,3,0),VLOOKUP(C96,'Comp SINAPI BA 05-2023 Desoner'!$G$7:$K$7500,3,0))) -> h | F96: =CPU!F246 -> 0.8 | G96: =IF(I96="i",VLOOKUP(C96,'Ins SINAPI BA 05-2023 Desoner'!$A$8:$E$5189,5,0),VLOOKUP(C96,'Comp SINAPI BA 05-2023 Desoner'!$G$7:$K$7500,5,0)) -> 19.65 | H96: =ROUND(F96*G96,2) -> 15.72 | I96: ca

Sheet Equipe de Mergulho (hidden)
B2: Definições de acordo com a TABELA REFERÊNCIA | H2: TABELA REFERÊNCIA
B3: 20 | C3: m | D3: Profundidade
B4: 48 | C4: min | D4: Tempo de mergulho
B5: =B4/60 -> 0.8 | C5: h
B6: 8 | C6: un | D6: Qd de mergulhadores
B8: EQUIPE ADOTADA DE ACORDO COM A NR 15 - ATIVIDADES E OPERAÇÕES INSALUBRES (POR DIA)
B9: H | C9: QTD
B10: =$B$5 -> 0.8 | C10: 1 | D10: Mergulhador Profissional
B11: =$B$5 -> 0.8 | C11: 1 | D11: Mergulhador Profissional
B12: 0.8 | C12: 1 | D12: Mergulhador Profissional
B13: 0.8 | C13: 1 | D13: Mergulhador Profissional
B14: 0.8 | C14: 1 | D14: Mergulhador Profissional
B15: 0.8 | C15: 1 | D15: Mergulhador Profissional
B16: 0.8 | C16: 1 | D16: Mergulhador Profissional
B17: 0.8 | C17: 1 | D17: Mergulhador Profissional
B18: =B5*B6 -> 6.4 | C18: 1 | D18: Mergulhador raso auxiliar de superfície
B19: =B5*B6 -> 6.4 | C19: 1 | D19: Mergulhador raso auxiliar de superfície
B20: =B5*B6 -> 6.4 | C20: 1 | D20: Mergulhador raso dependente de emergência
B21: =MAX(B10:B20) -> 6.4 | C21: =SUM(C10:C20) -> 11 | D21: TOTAL
B23: Identificação | D23: Serviço | E23: Duração (dias) | F23: Total (h)
B24: =CPU!B151 -> 6.1.1 | C24: =CPU!C151 -> CPU.12 | D24: =CPU!D151 -> Enrocamento c/ pedra de mão c/ fornecimento e assentamento | E24: 2 | F24: =$B$21*E24 -> 12.8
B25: =CPU!B166 -> 7.1.1 | C25: =CPU!C166 -> CPU.13 | D25: =CPU!D166 -> Solo Melhorado com cimento | E25: 2 | F25: =$B$21*E25 -> 12.8
D27: De acordo com a duração do serviço será atualizada a quantidade de diárias
D28: Duração | E28: 2
D29: Diária | E29: =E28-1 -> 1

Sheet Memorial de cálculo
A1: Ministério da Integração e do Desenvolvimento Regional
A2: Companhia de desenvolvimento dos Vales do São Francisco e do Parnaíba
A4: MEMORIAL DE CÁLCULO
A5: OBRA: | B5: ='Planilha Orçamentária'!B5 -> SERVIÇOS DE MANUTENÇÃO E OBRAS CIVIS NA BARRAGEM CAMARÁ | D5: DESLOCAMENTO REV. PAVIMENTADO - Petrolina para Barragem (km): | H5: 215
A6: LOCAL: | B6: ='Planilha Orçamentária'!B6 -> BARRAGEM CAMARÁ, BODOCÓ/PE | D6: DESLOCAMENTO REV. PRIMARIO - Petrolina para Barragem (km): | H6: 20
A7: DATA BASE: | B7: ='Planilha Orçamentária'!B7 -> 2024-05-01 | D7: VIA URBANA PAVIMENTADA - Barragem para Bodocó (km) | H7: 14.4
A8: PRAZO: | B8: ='Planilha Orçamentária'!B8 -> 120 DIAS | D8: REVESTIMENTO PRIMÁRIO - Barragem para Bodocó (km) | H8: 10
A9: ITEM | B9: DESCRIÇÃO | C9: UNID. | D9: PARÂMETRO 1 | E9: PARÂMETRO 2 | F9: PARÂMETRO 3 | G9: PARÂMETRO 4 | H9: TOTAL
A10: 1 | B10: =VLOOKUP(A10,'Planilha Orçamentária'!$A$8:$E$5183,4,0) -> ADMINISTRAÇÃO DA OBRA
A11: 1.1 | B11: =VLOOKUP(A11,'Planilha Orçamentária'!$A$8:$E$5183,4,0) -> Administração Local | C11: =VLOOKUP(A11,'Planilha Orçamentária'!$A$8:$E$5183,5,0) -> MÊS | D11: QUANT.PESSOAS | E11: HORAS DIÁRIA | F11: DIAS TRABALHADOS NO MÊS | G11: MESES | H11: 4
B12: =CPU!D16 -> ENGENHEIRO CIVIL DE OBRA PLENO COM ENCARGOS COMPLEMENTARES | C12: =CPU!E16 -> h | D12: 1 | E12: 1.5 | F12: =4*5 -> 20 | H12: =D12*E12*F12 -> 30
B13: =CPU!D17 -> ENCARREGADO GERAL DE OBRAS COM ENCARGOS COMPLEMENTARES | C13: =CPU!E17 -> mes | D13: 1 | G13: 0.8 | H13: =D13*G13 -> 0.8
B14: =CPU!D18 -> VIGIA NOTURNO COM ENCARGOS COMPLEMENTARES | C14: =CPU!E18 -> h | D14: 4 | E14: 12 | F14: 15 | H14: =D14*E14*F14 -> 720
A16: 2 | B16: =VLOOKUP(A16,'Planilha Orçamentária'!$A$8:$E$5183,4,0) -> SERVIÇOS PRELIMINARES
A18: 2.1.1 | B18: =VLOOKUP(A18,'Planilha Orçamentária'!$A$8:$E$5183,4,0) -> Mobilização e desmobilização de instalação do canteiro | H18: 1
A19: E9134 | B19: Miniônibus com capacidade para 30 passageiros - 111 Kw | C19: chp | H19: =H21 -> 6.266666667
C20: Distancia (km) | D20: Velocidade média (Km/h) | E20: Tempo (h) | F20: N. viagens | H20: Total
C21: =H5+H6 -> 235 | D21: 75 | E21: =C21/D21 -> 3.133333333 | F21: 2 | H21: =F21*E21 -> 6.266666667
A22: E9134 | B22: Miniônibus com capacidade para 30 passageiros - 111 Kw | C22: chi | H22: =H24 -> 9.733333333
C23: Diaria (h) | D23: Hora prod. | E23: Tempo (h) | F23: N. viagens | H23: Total
C24: 8 | D24: =E21 -> 3.133333333 | E24: =C24-D24 -> 4.866666667 | F24: 2 | H24: =F24*E24 -> 9.733333333
A25: 100946 | B25: =PROPER(IF(I25="i",VLOOKUP(A25,'Ins SINAPI PE 03-2024 Onerado'!$A$8:$E$5189,2,0),VLOOKUP(A25,'Comp SINAPI PE 03-2024 Onerado'!$G$7:$K$7500,2,0))) -> Transporte Com Caminhão Carroceria 9T, Em Via Urbana Em Revestimento Primário (Unidade: Txkm). Af_07/2020 | C25: =IF(G25="i",VLOOKUP(A25,'Ins SINAPI PE 03-2024 Onerado'!$A$8:$E$5189,3,0),VLOOKUP(A25,'Comp SINAPI PE 03-2024 Onerado'!$G$7:$K$7500,3,0)) -> TXKM | H25: =$C$27*$D$27*$E$27 -> 200
C26: T | D26: km | E26: N. viagens
C27: 5 | D27: =H6 -> 20 | E27: 2
A28: 100947 | B28: =PROPER(IF(I28="i",VLOOKUP(A28,'Ins SINAPI PE 03-2024 Onerado'!$A$8:$E$5189,2,0),VLOOKUP(A28,'Comp SINAPI PE 03-2024 Onerado'!$G$7:$K$7500,2,0))) -> Transporte Com Caminhão Carroceria 9T, Em Via Urbana Pavimentada, Dmt Até 30Km (Unidade: Txkm). Af_07/2020 | C28: =IF(G28="i",VLOOKUP(A28,'Ins SINAPI PE 03-2024 Onerado'!$A$8:$E$5189,3,0),VLOOKUP(A28,'Comp SINAPI PE 03-2024 Onerado'!$G$7:$K$7500,3,0)) -> TXKM | D28: Aplicação de concreto | H28: =$C$30*$D$30*$E$30 -> 300
C29: T | D29: Aplicação de concreto c/ fornecimento, lançamento, adensamento e acabamento. | E29: N. viagens
C30: 5 | D30: 30 | E30: 2
A31: 100948 | B31: =PROPER(IF(I31="i",VLOOKUP(A31,'Ins SINAPI PE 03-2024 Onerado'!$A$8:$E$5189,2,0),VLOOKUP(A31,'Comp SINAPI PE 03-2024 Onerado'!$G$7:$K$7500,2,0))) -> Transporte Com Caminhão Carroceria 9T, Em Via Urbana Pavimentada, Adicional Para Dmt Excedente A 30 Km (Unidade: Txkm). Af_07/2020 | C31: =IF(G31="i",VLOOKUP(A31,'Ins SINAPI PE 03-2024 Onerado'!$A$8:$E$5189,3,0),VLOOKUP(A31,'Comp SINAPI PE 03-2024 Onerado'!$G$7:$K$7500,3,0)) -> TXKM | H31: =$C$33*$D$33*$E$33 -> 1850
C32: T | D32: km | E32: N. viagens
C33: 5 | D33: =H5-30 -> 185 | E33: 2
A34: CT.01 | B34: Hospedagem | C34: un | H34: 8
A37: 2.2.1 | B37: =VLOOKUP(A37,'Planilha Orçamentária'!$A$8:$E$5183,4,0) -> Execução de canteiro de obras, inclusive, limpeza, refeitório, sanitários e central de formas | C37: =VLOOKUP(A37,'Planilha Orçamentária'!$A$8:$E$5183,5,0) -> M2 | H37: =SUM(H38:H40) -> 28.5
B38: Área do Refeitório Em Canteiro De Obra | C38: m2 | D38: 1 | E38: 3 | F38: 2.5 | H38: =D38*E38*F38 -> 7.5
B39: Área do Sanitário Em Canteiro De Obra | C39: m2 | D39: 1 | E39: 4.5 | F39: 2 | H39: =D39*E39*F39 -> 9
B40: Área da Central de Fôrmas Em Canteiro De Obra | C40: m2 | D40: 1 | E40: 4 | F40: 3 | H40: =D40*E40*F40 -> 12
A42: 2.3.1 | B42: =VLOOKUP(A42,'Planilha Orçamentária'!$A$8:$E$5183,4,0) -> PLACA DE OBRA EM CHAPA DE ACO GALVANIZADO | C42: =VLOOKUP(A42,'Planilha Orçamentária'!$A$8:$E$5183,5,0) -> M2
B43: Mão de obra | D43: QUANT.PESSOAS | E43: RENDIMENTO (H/M2) | F43: m2 | G43: HORAS | H43: DIAS
B44: Carpinteiro | C44: h | D44: 1 | E44: =1/D44 -> 1 | F44: 1 | G44: =F44*(E44) -> 1 | H44: =G44/8 -> 0.125
B45: Servente | C45: h | D45: 1 | E45: =2/D45 -> 2 | F45: 1 | G45: =F45*(E45) -> 2 | H45: =G45/8 -> 0.25
A47: 3 | B47: =VLOOKUP(A47,'Planilha Orçamentária'!$A$8:$E$5183,4,0) -> CORTE DA VEGETAÇÃO E REMOÇÃO DAS RAIZES
A49: 3.1.1 | B49: =VLOOKUP(A49,'Planilha Orçamentária'!$A$8:$E$5183,4,0) -> Limpeza de vegetação | C49: =VLOOKUP(A49,'Planilha Orçamentária'!$A$8:$E$5183,5,0) -> M2 | H49: 33000
B50: Area do local | C50: m2 | H50: 30000
B51: Mão de obra | D51: QUANT.PESSOAS | E51: RENDIMENTO (H/M2) | F51: m2 | G51: HORAS | H51: DIAS
B52: Servente | C52: h | D52: 9 | E52: =0.0718/D52 -> 0.007977777778 | F52: 1 | G52: =F52*(E52) -> 0.007977777778 | H52: =G52/8 -> 0.0009972222222 | J52: =H52*H50 -> 29.91666667
B53: Jardineiro | C53: h | D53: 9 | E53: =0.0718/D53 -> 0.007977777778 | F53: 1 | G53: =F53*(E53) -> 0.007977777778 | H53: =G53/8 -> 0.0009972222222 | J53: =H53*H50 -> 29.91666667
A55: 3.1.2 | B55: =VLOOKUP(A55,'Planilha Orçamentária'!$A$8:$E$5183,4,0) -> Corte de arvore e remoção de raiz | C55: un | H55: 15
B56: Mão de obra | D56: QUANT.PESSOAS | E56: RENDIMENTO (H/un) | F56: un | G56: HORAS | H56: DIAS
B57: Servente | C57: h | D57: 1 | E57: =1.5444/D57 -> 1.5444 | F57: 1 | G57: =F57*(E57) -> 1.5444 | H57: =G57/8 -> 0.19305 | J57: =H57*H55 -> 2.89575
B58: Jardineiro | C58: h | D58: 1 | E58: =1.54443/D58 -> 1.54443 | F58: 1 | G58: =F58*(E58) -> 1.54443 | H58: =G58/8 -> 0.19305375 | J58: =H58*H55 -> 2.89580625
A60: 4 | B60: =VLOOKUP(A60,'Planilha Orçamentária'!$A$8:$E$5183,4,0) -> APLICAÇÃO DE CONCRETO
A62: 4.1.1 | B62: =VLOOKUP(A62,'Planilha Orçamentária'!$A$8:$E$5183,4,0) -> Aplicação de concreto c/ fornecimento, lançamento, adensamento e acabamento. | C62: =VLOOKUP(A62,'Planilha Orçamentária'!$A$8:$E$5183,5,0) -> M3 | H62: 2
B63: Volume estimado pela inspeção | C63: m³ | D63: 1 | E63: 1 | F63: 2 | H63: =D63*E63*F63 -> 2
B64: Mão de obra | D64: QUANT.PESSOAS | E64: RENDIMENTO (H/un) | F64: un | G64: HORAS | H64: DIAS
B65: Pedreiro | C65: h | D65: 1 | E65: =0.171/D65 -> 0.171 | F65: 1 | G65: =F65*(E65) -> 0.171 | H65: =G65/8 -> 0.021375
B66: Carpinteiro | C66: h | D66: 1 | E66: =1.026/D66 -> 1.026 | F66: 1 | G66: =F66*(E66) -> 1.026 | H66: =G66/8 -> 0.12825
B67: Servente | C67: h | D67: 1 | E67: =1.21/D67 -> 1.21 | F67: 1 | G67: =F67*(E67) -> 1.21 | H67: =G67/8 -> 0.15125
A69: 5 | B69: =VLOOKUP(A69,'Planilha Orçamentária'!$A$8:$E$5183,4,0) -> REGULARIZAÇÃO E PAVIMENTAÇÃO DA CRISTA | H69: =H70 -> 2
B70: Volume estimado pela inspeção | C70: m³ | D70: 1 | E70: 1 | F70: 2 | H70: =D70*E70*F70 -> 2
A72: 5.1.1 | B72: =VLOOKUP(A72,'Planilha Orçamentária'!$A$8:$E$5183,4,0) -> Demolição de guias e sarjetas | C72: =VLOOKUP(A72,'Planilha Orçamentária'!$A$8:$E$5183,5,0) -> M | H72: 432
B73: Mão de obra | D73: QUANT.PESSOAS | E73: RENDIMENTO (H/un) | F73: un | G73: HORAS | H73: DIAS
B74: Pedreiro | C74: h | D74: 1 | E74: =0.1759/D74 -> 0.1759 | F74: 1 | G74: =F74*(E74) -> 0.1759 | H74: =G74/8 -> 0.0219875
B75: Servente | C75: h | D75: 1 | E75: =0.0772/D75 -> 0.0772 | F75: 1 | G75: =F75*(E75) -> 0.0772 | H75: =G75/8 -> 0.00965
A77: 5.1.2 | B77: =VLOOKUP(A77,'Planilha Orçamentária'!$A$8:$E$5183,4,0) -> Regularização e compactação da crista | C77: =VLOOKUP(A77,'Planilha Orçamentária'!$A$8:$E$5183,5,0) -> M2 | H77: 1450
B78: Mão de obra | D78: QUANT.PESSOAS | E78: RENDIMENTO (H/un) | F78: un | G78: HORAS | H78: DIAS
B79: Operador de máquina | C79: h | D79: 1 | E79: =(0.0001+0.002)/D79 -> 0.0021 | F79: 1 | G79: =F79*(E79) -> 0.0021 | H79: =G79/8 -> 0.0002625
B80: Servente | C80: h | D80: 1 | E80: =0.008/D80 -> 0.008 | F80: 1 | G80: =F80*(E80) -> 0.008 | H80: =G80/8 -> 0.001
A82: 5.2.1 | B82: =VLOOKUP(A82,'Planilha Orçamentária'!$A$8:$E$5183,4,0) -> Guia e meio fio conjudados de concreto, moldada In Loco, 45cm base (15 cm Base da Guia +30 cm Base da Sarjeta) x 22 cm Altura | C82: =VLOOKUP(A82,'Planilha Orçamentária'!$A$8:$E$5183,5,0) -> M | H82: 700
B83: Mão de obra | D83: QUANT.PESSOAS | E83: RENDIMENTO (H/m) | F83: m | G83: HORAS | H83: DIAS
B84: Ajudante | D84: 1 | E84: =0.109/D84 -> 0.109 | F84: 1 | G84: =F84*(E84) -> 0.109 | H84: =G84/8 -> 0.013625
B85: Pedreiro | D85: 1 | E85: =0.244/D85 -> 0.244 | F85: 1 | G85: =F85*(E85) -> 0.244 | H85: =G85/8 -> 0.0305
B86: Servente | D86: 1 | E86: =0.487/D86 -> 0.487 | F86: 1 | G86: =F86*(E86) -> 0.487 | H86: =G86/8 -> 0.060875
A88: 5.3.1 | B88: =VLOOKUP(A88,'Planilha Orçamentária'!$A$8:$E$5183,4,0) -> Execução e compactação para pavimentação de Brita Graduada Simples Trada com cimento | C88: =VLOOKUP(A88,'Planilha Orçamentária'!$A$8:$E$5183,5,0) -> M3 | H88: 145
B89: Mao de obra | D89: QUANT.PESSOAS | E89: RENDIMENTO (H/m) | F89: m³ | G89: HORAS | H89: DIAS
B90: Servente | D90: 1 | E90: =0.03/D90 -> 0.03 | F90: 1 | G90: =F90*(E90) -> 0.03 | H90: =G90/8 -> 0.00375
B91: Operador de máquina | D91: 1 | E91: =(0.009+0.008)/D91 -> 0.017 | F91: 1 | G91: =F91*(E91) -> 0.017 | H91: =G91/8 -> 0.002125
A93: 6 | B93: =VLOOKUP(A93,'Planilha Orçamentária'!$A$8:$E$5183,4,0) -> MANUTENÇÃO NO TALUDE DE MONTANTE
A94: 6.1.1 | B94: =VLOOKUP(A94,'Planilha Orçamentária'!$A$8:$E$5183,4,0) -> Enrocamento c/ pedra de mão c/ fornecimento e assentamento | C94: =VLOOKUP(A94,'Planilha Orçamentária'!$A$8:$E$5183,5,0) -> M3 | H94: 400
B95: Mao de obra | D95: QUANT.PESSOAS | E95: RENDIMENTO (H/m3) | F95: m³ | G95: HORAS | H95: DIAS
B96: Pedreiro | D96: 1 | E96: =0.5/D96 -> 0.5 | F96: 1 | G96: =F96*(E96) -> 0.5 | H96: =G96/8 -> 0.0625
B97: Servente | D97: 1 | E97: =5/D97 -> 5 | F97: 1 | G97: =F97*(E97) -> 5 | H97: =G97/8 -> 0.625
A99: 7 | B99: =VLOOKUP(A99,'Planilha Orçamentária'!$A$8:$E$5183,4,0) -> RECOMPOSIÇÃO DOS LOCAIS EM PROCESSO DE EROSÃO
A101: 7.1.1 | B101: =VLOOKUP(A101,'Planilha Orçamentária'!$A$8:$E$5183,4,0) -> Solo Melhorado com cimento | C101: =VLOOKUP(A101,'Planilha Orçamentária'!$A$8:$E$5183,5,0) -> M3 | H101: =H102 -> 12
C102: 12 | D102: 1 | H102: =C102*D102 -> 12
B103: Mao de obra | D103: QUANT.PESSOAS | E103: RENDIMENTO (H/m3) | F103: m³ | G103: HORAS | H103: DIAS
B104: Servente | D104: 1 | E104: =0.049/D104 -> 0.049 | F104: 1 | G104: =F104*(E104) -> 0.049 | H104: =G104/8 -> 0.006125
B105: Operador compactador de solos e escavadeira | D105: 1 | E105: =(0.094+0.039)/D105 -> 0.133 | F105: 1 | G105: =F105*(E105) -> 0.133 | H105: =G105/8 -> 0.016625
A107: 8 | B107: =VLOOKUP(A107,'Planilha Orçamentária'!$A$8:$E$5183,4,0) -> DRENAGEM SUPERFICIAL DO TALUDE JUSANTE
A109: 8.1.1 | B109: =VLOOKUP(A109,'Planilha Orçamentária'!$A$8:$E$5183,4,0) -> Canaleta meia cana de concreto (D=30cm) - Fornecimento e instalação | C109: =VLOOKUP(A109,'Planilha Orçamentária'!$A$8:$E$5183,5,0) -> M | H109: 300
B110: Mao de obra | D110: QUANT.PESSOAS | E110: RENDIMENTO (H/m) | F110: m | G110: HORAS | H110: DIAS
B111: Pedreiro | D111: 1 | E111: =0.2812/D111 -> 0.2812 | F111: 1 | G111: =F111*(E111) -> 0.2812 | H111: =G111/8 -> 0.03515
B112: Servente | D112: 1 | E112: =0.2812/D112 -> 0.2812 | F112: 1 | G112: =F112*(E112) -> 0.2812 | H112: 0.03515
B113: Servente (Da composição da argamassa) | D113: 1 | E113: =(8.57*0.002)/D113 -> 0.01714 | F113: 1 | G113: =F113*(E113) -> 0.01714 | H113: 0.0021425
A115: 8.2.1 | B115: =VLOOKUP(A115,'Planilha Orçamentária'!$A$8:$E$5183,4,0) -> Entrada para descida d'água | C115: =VLOOKUP(A115,'Planilha Orçamentária'!$A$8:$E$5183,5,0) -> UN | H115: 11
B116: Mao de obra | D116: QUANT.PESSOAS | E116: RENDIMENTO (H/un) | F116: un | G116: HORAS | H116: DIAS
B117: Pedreiro | D117: 1 | E117: =2.53*0.11/D117 -> 0.2783 | F117: 1 | G117: =F117*(E117) -> 0.2783 | H117: =G117/8 -> 0.0347875
B118: Operador de betoneira | D118: 1 | E118: =1.64*0.11/D118 -> 0.1804 | F118: 1 | G118: =F118*(E118) -> 0.1804 | H118: 0.02255
B119: Ajudante de carpinteiro | D119: 1 | E119: =0.005*0.1/D119 -> 0.0005 | F119: 1 | G119: =F119*(E119) -> 0.0005 | H119: 6.25e-05
B120: Carpinteiro | D120: 1 | E120: =0.005*0.1/D120 -> 0.0005 | F120: 1 | G120: 0.0005 | H120: 6.25e-05
A122: 9 | B122: =VLOOKUP(A122,'Planilha Orçamentária'!$A$8:$E$5183,4,0) -> PROTEÇÃO SUPERFICIAL DO TALUDE DE JUSANTE | C122: =VLOOKUP(A122,'Planilha Orçamentária'!$A$8:$E$5183,5,0) -> 0 | H122: =H123 -> 0
A124: 9.1.1 | B124: =VLOOKUP(A124,'Planilha Orçamentária'!$A$8:$E$5183,4,0) -> Plantio de grama para proteção, inclusive adubação | C124: =VLOOKUP(A124,'Planilha Orçamentária'!$A$8:$E$5183,5,0) -> M2 | H124: =H129 -> 0
B125: Mao de obra | D125: QUANT.PESSOAS | E125: RENDIMENTO (H/m2) | F125: m2 | G125: HORAS | H125: DIAS
B126: Jardineiro | D126: 1 | E126: =0.004/D126 -> 0.004 | F126: 1 | G126: =F126*(E126) -> 0.004 | H126: =G126/8 -> 0.0005
B127: Servente | D127: 1 | E127: =0.015*2/D127 -> 0.03 | F127: 1 | G127: =F127*(E127) -> 0.03 | H127: 0.00375
B128: Pedreiro | D128: 1 | E128: =(0.06)/D128 -> 0.06 | F128: 1 | G128: =F128*(E128) -> 0.06 | H128: 0.0075
A130: 10 | B130: =VLOOKUP(A130,'Planilha Orçamentária'!$A$8:$E$5183,4,0) -> MURO DE PEDRA ARGAMASSADA
A131: 10.1.1 | B131: =VLOOKUP(A131,'Planilha Orçamentária'!$A$8:$E$5183,4,0) -> Execução de Muro com Pedra argamassada com cimento e areia 1:3, Largura=0,4m e Altura=1,5m | C131: =VLOOKUP(A131,'Planilha Orçamentária'!$A$8:$E$5183,5,0) -> M | H131: =H132 -> DIAS
B132: Mao de obra | D132: QUANT.PESSOAS | E132: RENDIMENTO (H/m3) | F132: m3 | G132: HORAS | H132: DIAS
B133: Pedreiro | D133: 1 | E133: =2.215/D133 -> 2.215 | F133: 1 | G133: =F133*(E133) -> 2.215 | H133: =G133/8 -> 0.276875
B134: Servente | D134: 1 | E134: =3.1/D134 -> 3.1 | F134: 1 | G134: =F134*(E134) -> 3.1 | H134: =G134/8 -> 0.3875
A136: 11 | B136: =VLOOKUP(A136,'Planilha Orçamentária'!$A$8:$E$5183,4,0) -> SERVIÇOS COMPLEMENTARES | C136: =VLOOKUP(A136,'Planilha Orçamentária'!$A$8:$E$5183,5,0) -> 0 | H136: =H137 -> 0.5
C137: 1 | E137: 0.5 | H137: =C137*E137 -> 0.5
A138: 11.1.1 | B138: =VLOOKUP(A138,'Planilha Orçamentária'!$A$8:$E$5183,4,0) -> PLACA DE OBRA EM CHAPA DE ACO GALVANIZADO | C138: =VLOOKUP(A138,'Planilha Orçamentária'!$A$8:$E$5183,5,0) -> M2 | H138: 4
A140: 11.2.1 | B140: =VLOOKUP(A140,'Planilha Orçamentária'!$A$8:$E$5183,4,0) -> Instalação de mourões para medida de cota d’água | C140: =VLOOKUP(A140,'Planilha Orçamentária'!$A$8:$E$5183,5,0) -> UN
B141: Mao de obra | D141: QUANT.PESSOAS | E141: RENDIMENTO (H/m3) | F141: m3 | G141: HORAS | H141: DIAS
B142: TOPOGRAFO COM ENCARGOS COMPLEMENTARES | C142: H | D142: 2 | E142: =0.8/D142 -> 0.4 | F142: 1 | G142: =F142*(E142) -> 0.4 | H142: =G142/8 -> 0.05
B143: SERVENTE COM ENCARGOS COMPLEMENTARES | C143: H | D143: 2 | E143: =1.6/D143 -> 0.8 | F143: 1 | G143: =F143*(E143) -> 0.8 | H143: =G143/8 -> 0.1
A145: 11.3.1 | B145: =VLOOKUP(A145,'Planilha Orçamentária'!$A$8:$E$5183,4,0) -> Instalação de cercas com mourões de concreto H=3, espaçamento 2,5m e cravado 0,5m, com 4 fios de arame farpado Nº14 classe 250 | C145: =VLOOKUP(A145,'Planilha Orçamentária'!$A$8:$E$5183,5,0) -> M
B146: Mao de obra | D146: QUANT.PESSOAS | E146: RENDIMENTO (H/m3) | F146: m3 | G146: HORAS | H146: DIAS
B147: Pedreiro | D147: 1 | E147: =0.528/D147 -> 0.528 | F147: 1 | G147: =F147*(E147) -> 0.528 | H147: =G147/8 -> 0.066
B148: Servente | D148: 1 | E148: =0.528/D148 -> 0.528 | F148: 1 | G148: =F148*(E148) -> 0.528 | H148: =G148/8 -> 0.066
A150: 11.4.1 | B150: =VLOOKUP(A150,'Planilha Orçamentária'!$A$8:$E$5183,4,0) -> Limpeza Manual De Vegetação Em Terreno Com Enxada. Af_03/2024 | C150: =VLOOKUP(A150,'Planilha Orçamentária'!$A$8:$E$5183,5,0) -> M2
B151: Mao de obra | D151: QUANT.PESSOAS | E151: RENDIMENTO (H/m3) | F151: m3 | G151: HORAS | H151: DIAS

Sheet Cronograma
A1: Ministério da Integração e do Desenvolvimento Regional
A2: Companhia de Desenvolvimento dos Vales do São Francisco e do Parnaíba
A4: CRONOGRAMA FÍSICO-FINANCEIRO ONERADO
A5: OBRA: | B5: =CPU!C5 -> SERVIÇOS DE MANUTENÇÃO E OBRAS CIVIS NA BARRAGEM CAMARÁ | F5: BDI (serv.): | G5: ='BDI serv'!D22 -> 0.2378
A6: LOCAL: | B6: =CPU!C6 -> BARRAGEM CAMARÁ, BODOCÓ/PE | F6: BDI (forn.): | G6: ='BDI forn'!E6 -> 0.136
A7: DATA BASE: | B7: =CPU!C7 -> 2024-05-01
A8: PRAZO: | B8: =CPU!C8 -> 120 DIAS
A9: ITEM | B9: DESCRIÇÃO | C9: TOTAL POR ETAPA | D9: MESES | H9: TOTAL
D10: 1 | E10: 2 | F10: 3 | G10: 4
A11: 1 | B11: =VLOOKUP(A11,'Planilha Orçamentária'!$A$11:$D$71,4) -> ADMINISTRAÇÃO DA OBRA | C11: =SUMIF('Planilha Orçamentária'!$A$11:$A$71,A11,'Planilha Orçamentária'!$I$11:$I$71) -> 143091.3634 | D11: =$C11*D12 -> 49725.84078 | E11: 53217.82569 | F11: 32062.9799 | G11: 8084.717046 | H11: =SUM(D11:G11) -> 143091.3634 | I11: R$
C12: =C11/C11 -> 1 | D12: =D35 -> 0.3475111257 | E12: =D36-D35+E35 -> 0.3719150088 | F12: =E36-E35+F35 -> 0.224073481 | G12: =1-SUM(D12:F12) -> 0.05650038447 | H12: =SUM(D12:G12) -> 1 | I12: %
A13: 2 | B13: =VLOOKUP(A13,'Planilha Orçamentária'!$A$11:$D$71,4) -> SERVIÇOS PRELIMINARES | C13: =SUMIF('Planilha Orçamentária'!$A$11:$A$71,A13,'Planilha Orçamentária'!$I$11:$I$71) -> 38314.5723 | D13: =$C13*D14 -> 38314.5723 | H13: =SUM(D13:G13) -> 38314.5723 | I13: R$
C14: =C13/C13 -> 1 | D14: 1 | H14: 1 | I14: %
A15: 3 | B15: =VLOOKUP(A15,'Planilha Orçamentária'!$A$11:$D$71,4) -> CORTE DA VEGETAÇÃO E REMOÇÃO DAS RAIZES | C15: =SUMIF('Planilha Orçamentária'!$A$11:$A$71,A15,'Planilha Orçamentária'!$I$11:$I$71) -> 310060.1735 | D15: =$C15*D16 -> 310060.1735 | H15: 310060.1735 | I15: R$
C16: =C15/C15 -> 1 | D16: 1 | H16: 1 | I16: %
A17: 4 | B17: =VLOOKUP(A17,'Planilha Orçamentária'!$A$11:$D$71,4) -> APLICAÇÃO DE CONCRETO | C17: =SUMIF('Planilha Orçamentária'!$A$11:$A$71,A17,'Planilha Orçamentária'!$I$11:$I$71) -> 1943.742096 | D17: =$C17*D18 -> 1943.742096 | H17: 1943.742096 | I17: R$
C18: =C17/C17 -> 1 | D18: 1 | H18: 1 | I18: %
A19: 5 | B19: =VLOOKUP(A19,'Planilha Orçamentária'!$A$11:$D$71,4) -> REGULARIZAÇÃO E PAVIMENTAÇÃO DA CRISTA | C19: =SUMIF('Planilha Orçamentária'!$A$11:$A$71,A19,'Planilha Orçamentária'!$I$11:$I$71) -> 155068.3038 | D19: =$C19*D20 -> 77534.15191 | E19: =$C19*E20 -> 77534.15191 | H19: 155068.3038 | I19: R$
C20: =C19/C19 -> 1 | D20: 0.5 | E20: 0.5 | H20: 1 | I20: %
A21: 6 | B21: =VLOOKUP(A21,'Planilha Orçamentária'!$A$11:$D$71,4) -> MANUTENÇÃO NO TALUDE DE MONTANTE | C21: =SUMIF('Planilha Orçamentária'!$A$11:$A$71,A21,'Planilha Orçamentária'!$I$11:$I$71) -> 228671.172 | E21: =$C21*E22 -> 228671.172 | H21: =SUM(E21:G21) -> 228671.172 | I21: R$
C22: =C21/C21 -> 1 | E22: 1 | H22: =SUM(E22:G22) -> 1 | I22: %
A23: 7 | B23: =VLOOKUP(A23,'Planilha Orçamentária'!$A$11:$D$71,4) -> RECOMPOSIÇÃO DOS LOCAIS EM PROCESSO DE EROSÃO | C23: =SUMIF('Planilha Orçamentária'!$A$11:$A$71,A23,'Planilha Orçamentária'!$I$11:$I$71) -> 5958.076032 | E23: =$C23*E24 -> 5958.076032 | H23: 5958.076032 | I23: R$
C24: =C23/C23 -> 1 | E24: 1 | H24: 1 | I24: %
A25: 8 | B25: =VLOOKUP(A25,'Planilha Orçamentária'!$A$11:$D$71,4) -> DRENAGEM SUPERFICIAL DO TALUDE JUSANTE | C25: =SUMIF('Planilha Orçamentária'!$A$11:$A$71,A25,'Planilha Orçamentária'!$I$11:$I$71) -> 29148.76653 | E25: =$C25*E26 -> 14574.38326 | F25: =$C25*F26 -> 14574.38326 | H25: =SUM(D25:G25) -> 29148.76653 | I25: R$
C26: =C25/C25 -> 1 | E26: 0.5 | F26: 0.5 | H26: 1 | I26: %
A27: 9 | B27: =VLOOKUP(A27,'Planilha Orçamentária'!$A$11:$D$71,4) -> PROTEÇÃO SUPERFICIAL DO TALUDE DE JUSANTE | C27: =SUMIF('Planilha Orçamentária'!$A$11:$A$71,A27,'Planilha Orçamentária'!$I$11:$I$71) -> 162869.724 | E27: =$C27*E28 -> 81434.862 | F27: =$C27*F28 -> 81434.862 | H27: =SUM(D27:G27) -> 162869.724 | I27: R$
C28: =C27/C27 -> 1 | E28: 0.5 | F28: 0.5 | H28: 1 | I28: %
A29: 10 | B29: =VLOOKUP(A29,'Planilha Orçamentária'!$A$11:$D$71,4) -> MURO DE PEDRA ARGAMASSADA | C29: =SUMIF('Planilha Orçamentária'!$A$11:$A$71,A29,'Planilha Orçamentária'!$I$11:$I$71) -> 58830.1584 | F29: =$C29*F30 -> 29415.0792 | G29: =$C29*G30 -> 29415.0792 | H29: 58830.1584 | I29: R$
C30: =C29/C29 -> 1 | F30: 0.5 | G30: 0.5 | H30: 1 | I30: %
A31: 11 | B31: =VLOOKUP(A31,'Planilha Orçamentária'!$A$11:$D$71,4) -> SERVIÇOS COMPLEMENTARES | C31: =SUMIF('Planilha Orçamentária'!$A$11:$A$71,A31,'Planilha Orçamentária'!$I$11:$I$71) -> 97235.14778 | F31: =$C31*F32 -> 97235.14778 | H31: =SUM(D31:G31) -> 97235.14778 | I31: R$
C32: =C31/C31 -> 1 | F32: 1 | H32: 1 | I32: %
B33: VALOR TOTAL: | C33: =SUMIF($I$11:$I$32,"R$",C$11:C$32) -> 1231191.2 | D33: 477578.4806 | E33: 461390.4709 | F33: 254722.4521 | G33: 37499.79625 | H33: 1231191.2
B34: VALOR ACUMULADO: | D34: =D33 -> 477578.4806 | E34: =E33+D34 -> 938968.9515 | F34: =F33+E34 -> 1193691.404 | G34: =G33+F34 -> 1231191.2 | H34: =H33 -> 1231191.2
B35: FÍSICO PARCIAL: | D35: =SUMIF($I$13:$I$32,"R$",D$13:D$32)/$C$33 -> 0.3475111257 | E35: =SUMIF($I$13:$I$32,"R$",E$13:E$32)/$C$33 -> 0.3315266104 | F35: =SUMIF($I$13:$I$32,"R$",F$13:F$32)/$C$33 -> 0.1808488172 | G35: =SUMIF($I$13:$I$32,"R$",G$13:G$32)/$C$33 -> 0.02389156063 | H35: =H33/$C$33 -> 1
B36: AVANÇO FÍSICO: | D36: =D33/$C$33 -> 0.3878995242 | E36: =E33/$C$33 -> 0.3747512742 | F36: =F33/$C$33 -> 0.2068910598 | G36: 0.03045814188

Sheet Cronograma Desoner (hidden)
A1: Ministério da Integração e do Desenvolvimento Regional
A2: Companhia de Desenvolvimento dos Vales do São Francisco e do Parnaíba
A4: CRONOGRAMA FÍSICO-FINANCEIRO DESONERADO
A5: OBRA: | B5: =UPPER("SERVIÇOS DE MANUTENÇÃO E OBRAS CIVIS NA ESTRUTURA DA BARRAGEM E EQUIPAMENTO HIDROMECÂNICO") -> SERVIÇOS DE MANUTENÇÃO E OBRAS CIVIS NA ESTRUTURA DA BARRAGEM E EQUIPAMENTO HIDROMECÂNICO | F5: BDI (serv.): | G5: ='BDI serv Desonerado'!D22 -> 0.3351
A6: LOCAL: | B6: BARRAGEM POÇO DO MAGRO, GUANAMBI/BA | F6: BDI (forn.): | G6: ='BDI forn Desonerado'!D22 -> 0.212
A7: DATA BASE: | B7: 2023-05-01
A8: PRAZO: | B8: 120 DIAS
A9: ITEM | B9: DESCRIÇÃO | C9: TOTAL POR ETAPA | D9: MESES | H9: TOTAL
D10: 1 | E10: 2 | F10: 3 | G10: 4
A11: 1 | B11: =VLOOKUP(A11,'Planilha Orçamentária Desoner'!$A$11:$D$92,4) -> ADMINISTRAÇÃO LOCAL | C11: =SUMIF('Planilha Orçamentária Desoner'!$A$11:$A$92,A11,'Planilha Orçamentária Desoner'!$I$11:$I$92) -> 41837.86849 | D11: =$C11*D12 ->  | H11: =SUM(D11:G11) ->  | I11: R$
C12: =C11/C11 -> 1 | D12: =D37 ->  | E12: =D38-D37+E37 ->  | F12: =E38-E37+F37 ->  | G12: =1-SUM(D12:F12) ->  | I12: %
A13: 2 | B13: =VLOOKUP(A13,'Planilha Orçamentária Desoner'!$A$11:$D$92,4) -> SERVIÇOS PRELIMINARES | C13: =SUMIF('Planilha Orçamentária Desoner'!$A$11:$A$92,A13,'Planilha Orçamentária Desoner'!$I$11:$I$92) ->  | D13: =$C13*D14 ->  | I13: R$
C14: =C13/C13 ->  | D14: 1 | H14: 1 | I14: %
A15: 3 | B15: =VLOOKUP(A15,'Planilha Orçamentária Desoner'!$A$11:$D$92,4) -> LIMPEZA DA REGIÃO A JUSANTE | C15: =SUMIF('Planilha Orçamentária Desoner'!$A$11:$A$92,A15,'Planilha Orçamentária Desoner'!$I$11:$I$92) ->  | D15: =$C15*D16 ->  | I15: R$
C16: =C15/C15 ->  | D16: 1 | H16: 1 | I16: %
A17: 4.1 | B17: =VLOOKUP(A17,'Planilha Orçamentária Desoner'!$A$11:$D$92,4) -> Inspeção e Laudo da região subaquática | C17: =SUMIF('Planilha Orçamentária Desoner'!$A$11:$A$92,A17,'Planilha Orçamentária Desoner'!$I$11:$I$92) ->  | D17: =$C17*D18 ->  | I17: R$
C18: =C17/C17 ->  | D18: 1 | H18: 1 | I18: %
A19: 4.2 | B19: =VLOOKUP(A19,'Planilha Orçamentária Desoner'!$A$11:$D$92,4) -> Vedação/Abertura da tomada d'água | C19: =SUMIF('Planilha Orçamentária Desoner'!$A$11:$A$92,A19,'Planilha Orçamentária Desoner'!$I$11:$I$92) ->  | D19: =$C19*D20 ->  | E19: =$C19*E20 ->  | I19: R$
C20: =C19/C19 ->  | D20: 0.5 | E20: 0.5 | H20: 1 | I20: %
A21: 5 | B21: =VLOOKUP(A21,'Planilha Orçamentária Desoner'!$A$11:$D$92,4) -> MANUTENÇÃO NOS DISPOSITIVOS DE CONTROLE | C21: =SUMIF('Planilha Orçamentária Desoner'!$A$11:$A$92,A21,'Planilha Orçamentária Desoner'!$I$11:$I$92) ->  | E21: =$C21*E22 ->  | H21: =SUM(E21:G21) ->  | I21: R$
C22: =C21/C21 ->  | E22: 1 | H22: =SUM(E22:G22) -> 1 | I22: %
A23: 6.1 | B23: =VLOOKUP(A23,'Planilha Orçamentária Desoner'!$A$11:$D$92,4) -> Paramento a jusante | C23: =SUMIF('Planilha Orçamentária Desoner'!$A$11:$A$92,A23,'Planilha Orçamentária Desoner'!$I$11:$I$92) ->  | E23: =$C23*E24 ->  | F23: =$C23*F24 ->  | H23: =SUM(E23:G23) ->  | I23: R$
C24: =C23/C23 ->  | E24: 0.5 | F24: 0.5 | H24: 1 | I24: %
A25: 6.2 | B25: =VLOOKUP(A25,'Planilha Orçamentária Desoner'!$A$11:$D$92,4) -> Crista | C25: =SUMIF('Planilha Orçamentária Desoner'!$A$11:$A$92,A25,'Planilha Orçamentária Desoner'!$I$11:$I$92) ->  | F25: =$C25*F26 ->  | I25: R$
C26: =C25/C25 ->  | F26: 1 | H26: 1 | I26: %
A27: 6.3 | B27: =VLOOKUP(A27,'Planilha Orçamentária Desoner'!$A$11:$D$92,4) -> Vertedouro | C27: =SUMIF('Planilha Orçamentária Desoner'!$A$11:$A$92,A27,'Planilha Orçamentária Desoner'!$I$11:$I$92) ->  | F27: =$C27*F28 ->  | I27: R$
C28: =C27/C27 ->  | F28: 1 | H28: 1 | I28: %
A29: 7.1 | B29: =VLOOKUP(A29,'Planilha Orçamentária Desoner'!$A$11:$D$92,4) -> Investigação do maciço | C29: =SUMIF('Planilha Orçamentária Desoner'!$A$11:$A$92,A29,'Planilha Orçamentária Desoner'!$I$11:$I$92) ->  | F29: =$C29*F30 ->  | I29: R$
C30: =C29/C29 ->  | F30: 1 | H30: 1 | I30: %
A31: 7.2 | B31: =VLOOKUP(A31,'Planilha Orçamentária Desoner'!$A$11:$D$92,4) -> Recuperação do maciço | C31: =SUMIF('Planilha Orçamentária Desoner'!$A$11:$A$92,A31,'Planilha Orçamentária Desoner'!$I$11:$I$92) ->  | F31: =$C31*F32 ->  | I31: R$
C32: =C31/C31 ->  | F32: 1 | H32: 1 | I32: %
A33: 8 | B33: =VLOOKUP(A33,'Planilha Orçamentária Desoner'!$A$11:$D$92,4) -> SERVIÇOS AUXILIARES | C33: =SUMIF('Planilha Orçamentária Desoner'!$A$11:$A$92,A33,'Planilha Orçamentária Desoner'!$I$11:$I$92) ->  | G33: =$C33*G34 ->  | I33: R$
C34: =C33/C33 ->  | G34: 1 | H34: 1 | I34: %
B35: VALOR TOTAL: | C35: =SUMIF($I$11:$I$34,"R$",C$11:C$34) -> 
B36: VALOR ACUMULADO: | D36: =D35 ->  | E36: =E35+D36 ->  | H36: =H35 -> 
B37: FÍSICO PARCIAL: | D37: =SUMIF($I$13:$I$34,"R$",D$13:D$34)/$C$35 ->  | E37: =SUMIF($I$13:$I$34,"R$",E$13:E$34)/$C$35 ->  | F37: =SUMIF($I$13:$I$34,"R$",F$13:F$34)/$C$35 ->  | G37: =SUMIF($I$13:$I$34,"R$",G$13:G$34)/$C$35 ->  | H37: =H35/$C$35 -> 
B38: AVANÇO FÍSICO: | D38: =D35/$C$35 ->  | E38: =E35/$C$35 ->  | F38: =F35/$C$35 -> 

Sheet Cotações
A1: Ministério do Desenvolvimento Regional
A2: Companhia de Desenvolvimento dos Vales do São Francisco e do Parnaíba
A3: ='Planilha Orçamentária'!A3:I3 -> 0
A4: COTAÇÕES
A5: OBRA: | B5: ='Planilha Orçamentária'!B5:D5 -> SERVIÇOS DE MANUTENÇÃO E OBRAS CIVIS NA BARRAGEM CAMARÁ | K5: BDI (serv.): | L5: ='BDI serv'!D22 -> 0.2378
A6: LOCAL: | B6: ='Planilha Orçamentária'!B6 -> BARRAGEM CAMARÁ, BODOCÓ/PE | K6: BDI (forn.): | L6: ='BDI forn'!E6 -> 0.136
A7: DATA BASE: | B7: ='Planilha Orçamentária'!B7:C7 -> 2024-05-01
A8: PRAZO: | B8: ='Planilha Orçamentária'!B8:C8 -> 120 DIAS
A9: ITEM | B9: EMPRESA | G9: ORÇADO POR | H9: DESCRIÇÃO / OBSERVAÇÃO | I9: UNID | J9: QUANT | K9: LINK OU LOCAL DO ARQUIVO | L9: VALOR
B10: DATA | C10: EMPRESA / CNPJ | D10: RESPONSÁVEL | E10: ENDEREÇO | F10: CONTATO | L10: MAT | M10: MDO | N10: TRANSPORTE | O10: TOTAL
A11: =CPU!#REF! ->  | B11: =CPU!#REF! ->  | O11: =AVERAGE(O12:O13) -> 90
A12: 1 | B12: 2024-01-22 | G12: Murilo - RHA | H12: Diária hotel | I12: un | J12: 1 | L12: 100 | O12: =SUM(L12:N12) -> 100
A13: 2 | B13: 2024-01-22 | G13: Murilo - RHA | H13: Diaria hotel | I13: un | J13: 1 | L13: 80 | O13: =SUM(L13:N13) -> 80
A14: =CPU!C235 -> CPU.18 | B14: Régua linimétrica | O14: =AVERAGE(O15:O17) -> 183
A15: 1 | B15: 2024-01-22 | C15: POLIMEDIÇÃO COMERCIAL | D15: Preço na loja online | E15: R. Arlete, 151 - Jardim Penha - São Paulo - SP | F15: Tel: (11) 4328-3003 WhatsApp: (11) 98575-6343 polimedicao@gmail.com | G15: Murilo - RHA | H15: Régua linimétrica em alumínio 2 X 70 X 1000MM | I15: un | J15: 1 | K15: https://www.polimedicao.com.br/product-page/r%C3%A9gua-linim%C3%A9trica-em-chapa-de-aluminio-2-x-70-x-1000mm | L15: 169 | O15: =SUM(L15:N15) -> 169
A16: 2 | B16: 2024-01-22 | C16: Gravametal | D16: Preço na loja online | E16: Rua Uniflor, 1012 - Emiliano Perneta Pinhais - Paraná - CEP: 83324-227 | F16: ☎ (41) 3403-0144 ✆ (41) 99672-9692 ✉ gravametal@gmail.com | G16: Murilo - RHA | H16: Régua linimétrica em alumínio 2 X 70 X 1000MM | I16: un | J16: 1 | K16: https://www.gravametal.com.br/product-page/r%C3%A9gua-linim%C3%A9trica-fluviom%C3%A9trica-1000x70x2mm | L16: 240 | O16: =SUM(L16:N16) -> 240
A17: 3 | B17: 2024-01-22 | C17: Hidromec | D17: Consulta via Whatsapp | E17: Rua Sacadura Cabral, 351 Saúde - Rio de Janeiro - RJ CEP: 20221-160 | F17: (21) 3622-8000 contato@hidromechc.com.br | G17: Murilo - RHA | H17: Régua linimétrica em alumínio 2 X 70 X 1000MM | I17: un | J17: 1 | K17: https://www.hidromechc.com.br/regua | L17: 140 | O17: 140
A18: 4 | B18: 2024-01-22 | C18: Agrosensores | G18: Murilo - RHA | H18: Régua linimétrica em alumínio 2 X 70 X 1000MM | I18: un | J18: 1 | K18: https://www.agrosensores.com.br/sensores/limnimetro/regua-limnimetrica-dualbase | N18: 89.53 | O18: 89.53
D28: Aplicação de concreto
D29: Aplicação de concreto c/ fornecimento, lançamento, adensamento e acabamento.

Sheet BDI serv
A1: Ministério da Integração e do Desenvolvimento Regional
A2: Companhia de Desenvolvimento dos Vales do São Francisco e do Parnaíba
A3: ='Planilha Orçamentária'!A3:I3 -> 0
A4: COMPOSIÇÃO DE BDI - SERVIÇOS - ONERADO
A5: OBRA: | B5: ='Planilha Orçamentária'!B5:D5 -> SERVIÇOS DE MANUTENÇÃO E OBRAS CIVIS NA BARRAGEM CAMARÁ | F5: BDI (serv.): | G5: =D22 -> 0.2378
A6: LOCAL: | B6: ='Planilha Orçamentária'!B6 -> BARRAGEM CAMARÁ, BODOCÓ/PE | F6: BDI (forn.): | G6: ='BDI forn'!D22 -> 0.136
A7: DATA BASE: | B7: ='Planilha Orçamentária'!B7:C7 -> 2024-05-01
A8: PRAZO: | B8: ='Planilha Orçamentária'!B8:C8 -> 120 DIAS
A9: ITEM | B9: DESCRIÇÃO | C9: SIGLA | D9: % APLICADO | E9: REFERÊNCIA TCU (ACÓRDÃO Nº 2622/2013)
E10: 1º QUARTIL | F10: 2º QUARTIL | G10: 3º QUARTIL
A11: 1 | B11: ADMINISTRAÇÃO CENTRAL | C11: AC | D11: =E11 -> 0.04 | E11: 0.04 | F11: 0.0552 | G11: 0.0785
A12: 2 | B12: IMPOSTOS | C12: T | D12: =SUM(D13:D16) -> 0.0715
A13: 2.1 | B13: ISS (*) | D13: 0.035 | E13: - | F13: - | G13: -
A14: 2.2 | B14: PIS | D14: 0.0065 | E14: - | F14: - | G14: -
A15: 2.3 | B15: Cofins | D15: 0.03 | E15: - | F15: - | G15: -
A16: 2.4 | B16: Contribuição previdênciária sobre a receita bruta (CPRB) | E16: - | F16: - | G16: -
A17: 3 | B17: SEGURO, GARANTIA E RISCO | D17: =SUM(D18:D19) -> 0.0227
A18: 3.1 | B18: Seguro + Garantia | C18: S + G | D18: =E18 -> 0.0081 | E18: 0.0081 | F18: 0.0122 | G18: 0.0199
A19: 3.2 | B19: Risco | C19: R | D19: =E19 -> 0.0146 | E19: 0.0146 | F19: 0.0232 | G19: 0.0316
A20: 4 | B20: DESPESAS FINANCEIRAS | C20: DF | D20: 0.0094 | E20: 0.0094 | F20: 0.0102 | G20: 0.01363
A21: 5 | B21: LUCRO | C21: L | D21: =E21 -> 0.0714 | E21: 0.0714 | F21: 0.084 | G21: 0.1043
B22: BDI ADOTADO: | D22: =ROUND(((((1+D11+D17)*(1+D20)*(1+D21))/(1-D12))-1),4) -> 0.2378
A23: Considerações: O BDI foi calculado através da seguinte fórmula, regulamentada pelo Acórdão Nº 2622/2013 – TCU. * O percentual de ISSQN aqui utilizado refere-se ao município de Porteirinha/MG, conforme Lei Complementar 1899/2007 - Art. 1º (Item 7.02C). Conforme Art. 112, § 14, na base de cálculo do ISSQN considerou-se dedução do percentual abaixo discriminado.
D28: Aplicação de concreto
D29: Aplicação de concreto c/ fornecimento, lançamento, adensamento e acabamento.

Sheet BDI serv Desonerado (hidden)
A1: Ministério do Desenvolvimento Regional
A2: Companhia de Desenvolvimento dos Vales do São Francisco e do Parnaíba
A3: ='Planilha Orçamentária'!A3:I3 -> 0
A4: COMPOSIÇÃO DE BDI - SERVIÇOS - DESONERADO
A5: OBRA: | B5: =UPPER("SERVIÇOS DE MANUTENÇÃO E OBRAS CIVIS NA ESTRUTURA DA BARRAGEM E EQUIPAMENTO HIDROMECÂNICO") -> SERVIÇOS DE MANUTENÇÃO E OBRAS CIVIS NA ESTRUTURA DA BARRAGEM E EQUIPAMENTO HIDROMECÂNICO | D5: BDI (serv.): | E5: =D22 -> 0.3351
A6: LOCAL: | B6: BARRAGEM POÇO DO MAGRO, GUANAMBI/BA | D6: BDI (forn.): | E6: ='BDI forn Desonerado'!E6 -> 0.212
A7: DATA BASE: | B7: 2023-05-01
A8: PRAZO: | B8: 120 DIAS
A9: ITEM | B9: DESCRIÇÃO | C9: SIGLA | D9: % APLICADO | E9: REFERÊNCIA TCU (ACÓRDÃO Nº 2622/2013)
E10: 1º QUARTIL | F10: 2º QUARTIL | G10: 3º QUARTIL
A11: 1 | B11: ADMINISTRAÇÃO CENTRAL | C11: AC | D11: =E11 -> 0.04 | E11: 0.04 | F11: 0.0552 | G11: 0.0785
A12: 2 | B12: IMPOSTOS | C12: T | D12: =SUM(D13:D16) -> 0.1315
A13: 2.1 | B13: ISS (*) | D13: 0.05 | E13: - | F13: - | G13: -
A14: 2.2 | B14: PIS | D14: 0.0065 | E14: - | F14: - | G14: -
A15: 2.3 | B15: Cofins | D15: 0.03 | E15: - | F15: - | G15: -
A16: 2.4 | B16: Contribuição previdênciária sobre a receita bruta (CPRB) | D16: 0.045 | E16: - | F16: - | G16: -
A17: 3 | B17: SEGURO, GARANTIA E RISCO | D17: =SUM(D18:D19) -> 0.0313
A18: 3.1 | B18: Seguro + Garantia | C18: S + G | D18: =E18 -> 0.0081 | E18: 0.0081 | F18: 0.0122 | G18: 0.0199
A19: 3.2 | B19: Risco | C19: R | D19: =F19 -> 0.0232 | E19: 0.0146 | F19: 0.0232 | G19: 0.0316
A20: 4 | B20: DESPESAS FINANCEIRAS | C20: DF | D20: =F20 -> 0.0102 | E20: 0.0094 | F20: 0.0102 | G20: 0.01363
A21: 5 | B21: LUCRO | C21: L | D21: =E21 -> 0.0714 | E21: 0.0714 | F21: 0.084 | G21: 0.1043
B22: BDI ADOTADO: | D22: =ROUND(((((1+D11+D17)*(1+D20)*(1+D21))/(1-D12))-1),4) -> 0.3351
A23: Considerações: O BDI foi calculado através da seguinte fórmula, regulamentada pelo Acórdão Nº 2622/2013 – TCU. * O percentual de ISSQN aqui utilizado refere-se ao município de Porteirinha/MG, conforme Lei Complementar 1899/2007 - Art. 1º (Item 7.02C). Conforme Art. 112, § 14, na base de cálculo do ISSQN considerou-se dedução do percentual abaixo discriminado.

Sheet BDI forn
A1: Ministério do Desenvolvimento Regional
A2: Companhia de Desenvolvimento dos Vales do São Francisco e do Parnaíba
A3: ='Planilha Orçamentária'!A3:I3 -> 0
A4: COMPOSIÇÃO DE BDI - FORNECIMENTO - ONERADO
A5: OBRA: | B5: ='Planilha Orçamentária'!B5:D5 -> SERVIÇOS DE MANUTENÇÃO E OBRAS CIVIS NA BARRAGEM CAMARÁ | D5: BDI (serv.): | E5: ='BDI serv'!D22 -> 0.2378
A6: LOCAL: | B6: ='Planilha Orçamentária'!B6 -> BARRAGEM CAMARÁ, BODOCÓ/PE | D6: BDI (forn.): | E6: =D22 -> 0.136
A7: DATA BASE: | B7: ='Planilha Orçamentária'!B7:C7 -> 2024-05-01
A8: PRAZO: | B8: ='Planilha Orçamentária'!B8:C8 -> 120 DIAS
A9: ITEM | B9: DESCRIÇÃO | C9: SIGLA | D9: % APLICADO | E9: REFERÊNCIA TCU (ACÓRDÃO Nº 2622/2013)
E10: 1º QUARTIL | F10: 2º QUARTIL | G10: 3º QUARTIL
A11: 1 | B11: ADMINISTRAÇÃO CENTRAL | C11: AC | D11: 0.04 | E11: 0.015 | F11: 0.0345 | G11: 0.0449
A12: 2 | B12: IMPOSTOS | C12: T | D12: =SUM(D13:D16) -> 0.0365
A13: 2.1 | B13: ISS (*) | E13: - | F13: - | G13: -
A14: 2.2 | B14: PIS | D14: 0.0065 | E14: - | F14: - | G14: -
A15: 2.3 | B15: Cofins | D15: 0.03 | E15: - | F15: - | G15: -
A16: 2.4 | B16: Contribuição previdênciária sobre a receita bruta (CPRB) | E16: - | F16: - | G16: -
A17: 3 | B17: SEGURO, GARANTIA E RISCO | D17: =SUM(D18:D19) -> 0.0086
A18: 3.1 | B18: Seguro + Garantia | C18: S + G | D18: =E18 -> 0.003 | E18: 0.003 | F18: 0.0048 | G18: 0.0082
A19: 3.3 | B19: Risco | C19: R | D19: =E19 -> 0.0056 | E19: 0.0056 | F19: 0.0085 | G19: 0.0089
A20: 4 | B20: DESPESAS FINANCEIRAS | C20: DF | D20: =E20 -> 0.0085 | E20: 0.0085 | F20: 0.0085 | G20: 0.0111
A21: 5 | B21: LUCRO | C21: L | D21: 0.035 | E21: 0.035 | F21: 0.0511 | G21: 0.0622
B22: BDI ADOTADO: | D22: =ROUND(((((1+D11+D17)*(1+D20)*(1+D21))/(1-D12))-1),4) -> 0.136
A23: Considerações: O BDI foi calculado através da seguinte fórmula, regulamentada pelo Acórdão Nº 2622/2013 – TCU.
D28: Aplicação de concreto
D29: Aplicação de concreto c/ fornecimento, lançamento, adensamento e acabamento.

Sheet BDI forn Desonerado (hidden)
A1: Ministério do Desenvolvimento Regional
A2: Companhia de Desenvolvimento dos Vales do São Francisco e do Parnaíba
A3: ='Planilha Orçamentária'!A3:I3 -> 0
A4: COMPOSIÇÃO DE BDI - FORNECIMENTO - DESONERADO
A5: OBRA: | B5: =UPPER("SERVIÇOS DE MANUTENÇÃO E OBRAS CIVIS NA ESTRUTURA DA BARRAGEM E EQUIPAMENTO HIDROMECÂNICO") -> SERVIÇOS DE MANUTENÇÃO E OBRAS CIVIS NA ESTRUTURA DA BARRAGEM E EQUIPAMENTO HIDROMECÂNICO | D5: BDI (serv.): | E5: ='BDI serv Desonerado'!E5 -> 0.3351
A6: LOCAL: | B6: BARRAGEM POÇO DO MAGRO, GUANAMBI/BA | D6: BDI (forn.): | E6: =D22 -> 0.212
A7: DATA BASE: | B7: 2023-05-01
A8: PRAZO: | B8: 120 DIAS
A9: ITEM | B9: DESCRIÇÃO | C9: SIGLA | D9: % APLICADO | E9: REFERÊNCIA TCU (ACÓRDÃO Nº 2622/2013)
E10: 1º QUARTIL | F10: 2º QUARTIL | G10: 3º QUARTIL
A11: 1 | B11: ADMINISTRAÇÃO CENTRAL | C11: AC | D11: 0.04 | E11: 0.015 | F11: 0.0345 | G11: 0.0449
A12: 2 | B12: IMPOSTOS | C12: T | D12: =SUM(D13:D16) -> 0.0815
A13: 2.1 | B13: ISS (*) | E13: - | F13: - | G13: -
A14: 2.2 | B14: PIS | D14: 0.0065 | E14: - | F14: - | G14: -
A15: 2.3 | B15: Cofins | D15: 0.03 | E15: - | F15: - | G15: -
A16: 2.4 | B16: Contribuição previdênciária sobre a receita bruta (CPRB) | D16: 0.045 | E16: - | F16: - | G16: -
A17: 3 | B17: SEGURO, GARANTIA E RISCO | D17: =SUM(D18:D19) -> 0.0086
A18: 3.1 | B18: Seguro +Garantia | C18: S+G | D18: =E18 -> 0.003 | E18: 0.003 | F18: 0.0048 | G18: 0.0082
A19: 3.2 | B19: Risco | C19: R | D19: =E19 -> 0.0056 | E19: 0.0056 | F19: 0.0085 | G19: 0.0089
A20: 4 | B20: DESPESAS FINANCEIRAS | C20: DF | D20: 0.01 | E20: 0.0085 | F20: 0.0085 | G20: 0.0111
A21: 5 | B21: LUCRO | C21: L | D21: =F21 -> 0.0511 | E21: 0.035 | F21: 0.0511 | G21: 0.0622
B22: BDI ADOTADO: | D22: =ROUND(((((1+D11+D17)*(1+D20)*(1+D21))/(1-D12))-1),4) -> 0.212
A23: Considerações: O BDI foi calculado através da seguinte fórmula, regulamentada pelo Acórdão Nº 2622/2013 – TCU.

Sheet Encargos Sociais
A1: Ministério da Integração e do Desenvolvimento Regional
A2: Companhia de Desenvolvimento dos Vales do São Francisco e do Parnaíba
A3: ='Planilha Orçamentária'!A3:I3 -> 0
A4: COMPOSIÇÃO DE ENCARGOS SOCIAIS SOBRE A MÃO DE OBRA
A5: OBRA: | B5: ='Planilha Orçamentária'!B5:D5 -> SERVIÇOS DE MANUTENÇÃO E OBRAS CIVIS NA BARRAGEM CAMARÁ
A6: LOCAL: | B6: ='Planilha Orçamentária'!B6 -> BARRAGEM CAMARÁ, BODOCÓ/PE
A7: DATA BASE: | B7: ='Planilha Orçamentária'!B7:C7 -> 2024-05-01
A8: PRAZO: | B8: ='Planilha Orçamentária'!B8:C8 -> 120 DIAS
A9: Encargos Sociais – Bahia VIGÊNCIA A PARTIR DE 12/2023
A10: ENCARGOS SOCIAIS SOBRE A MÃO DE OBRA
A11: CÓDIGO | B11: DESCRIÇÃO | C11: COM DESONERAÇÃO | E11: SEM DESONERAÇÃO
C12: HORISTA % | D12: MENSALISTA % | E12: HORISTA % | F12: MENSALISTA %
A13: GRUPO A
A14: A1 | B14: INSS | C14: 0 | D14: 0 | E14: 0.2 | F14: 0.2
A15: A2 | B15: SESI | C15: 0.015 | D15: 0.015 | E15: 0.015 | F15: 0.015
A16: A3 | B16: SENAI | C16: 0.01 | D16: 0.01 | E16: 0.01 | F16: 0.01
A17: A4 | B17: INCRA | C17: 0.002 | D17: 0.002 | E17: 0.002 | F17: 0.002
A18: A5 | B18: SEBRAE | C18: 0.006 | D18: 0.006 | E18: 0.006 | F18: 0.006
A19: A6 | B19: Salário Educação | C19: 0.025 | D19: 0.025 | E19: 0.025 | F19: 0.025
A20: A7 | B20: Seguro Contra Acidentes de Trabalho | C20: 0.03 | D20: 0.03 | E20: 0.03 | F20: 0.03
A21: A8 | B21: FGTS | C21: 0.08 | D21: 0.08 | E21: 0.08 | F21: 0.08
A22: A9 | B22: SECONCI | C22: 0 | D22: 0 | E22: 0 | F22: 0
A23: A | B23: Total | C23: 0.168 | D23: 0.168 | E23: 0.368 | F23: 0.368
A24: GRUPO B
A25: B1 | B25: Repouso Semanal Remunerado | C25: 0.1801 | D25: Não incide | E25: 0.1801 | F25: Não incide
A26: B2 | B26: Feriados | C26: 0.0432 | D26: Não incide | E26: 0.0432 | F26: Não incide
A27: B3 | B27: Auxílio - Enfermidade | C27: 0.0085 | D27: 0.0064 | E27: 0.0085 | F27: 0.0064
A28: B4 | B28: 13º Salário | C28: 0.1103 | D28: Aplicação de concreto | E28: 0.1103 | F28: 0.0833
A29: B5 | B29: Licença Paternidade | C29: 0.0006 | D29: Aplicação de concreto c/ fornecimento, lançamento, adensamento e acabamento. | E29: 0.0006 | F29: 0.0004
A30: B6 | B30: Faltas Justificadas | C30: 0.0074 | D30: 0.0056 | E30: 0.0074 | F30: 0.0056
A31: B7 | B31: Dias de Chuvas | C31: 0.0198 | D31: Não incide | E31: 0.0198 | F31: Não incide
A32: B8 | B32: Auxílio Acidente de Trabalho | C32: 0.001 | D32: 0.0008 | E32: 0.001 | F32: 0.0008
A33: B9 | B33: Férias Gozadas | C33: 0.109 | D33: 0.0824 | E33: 0.109 | F33: 0.0824
A34: B10 | B34: Salário Maternidade | C34: 0.0004 | D34: 0.0003 | E34: 0.0004 | F34: 0.0003
A35: B | B35: Total | C35: 0.4803 | D35: 0.1792 | E35: 0.4803 | F35: 0.1792
A36: GRUPO C
A37: C1 | B37: Aviso Prévio Indenizado | C37: 0.048 | D37: 0.0363 | E37: 0.048 | F37: 0.0363
A38: C2 | B38: Aviso Prévio Trabalhado | C38: 0.0011 | D38: 0.0009 | E38: 0.0011 | F38: 0.0009
A39: C3 | B39: Férias Indenizadas | C39: 0.0291 | D39: 0.022 | E39: 0.0291 | F39: 0.022
A40: C4 | B40: Depósito Rescisão Sem Justa Causa | C40: 0.0283 | D40: 0.0214 | E40: 0.0283 | F40: 0.0214
A41: C5 | B41: Indenização Adicional | C41: 0.004 | D41: 0.0031 | E41: 0.004 | F41: 0.0031
A42: C | B42: Total | C42: 0.1105 | D42: 0.0837 | E42: 0.1105 | F42: 0.0837
A43: GRUPO D
A44: D1 | B44: Reincidência de Grupo A sobre Grupo B | C44: 0.0807 | D44: 0.0301 | E44: 0.1768 | F44: 0.0659
A45: D2 | B45: Reincidência de Grupo A sobre Aviso Prévio Trabalhado e Reincidência do FGTS sobre Aviso Prévio Indenizado | C45: 0.004 | D45: 0.0031 | E45: 0.0042 | F45: 0.0032
A46: D | B46: Total | C46: 0.0847 | D46: 0.0332 | E46: 0.181 | F46: 0.0691
A47: TOTAL(A+B+C+D) | C47: 0.8435 | D47: 0.4641 | E47: 1.1398 | F47: 0.7
A48: Fonte: Informação Dias de Chuva – INMET

Sheet Comp SINAPI PE 03-2024 Onerado
A1: PCI.817.01 - CUSTO DE COMPOSIÇÕES - SINTÉTICO DATA DE EMISSÃO: 17/04/2024 23:50:35 DATA DE RT: 17/04/2024
A2: ENCARGOS SOCIAIS SOBRE PREÇOS DA MÃO-DE-OBRA: 113,98%(HORA) 70,00%(MÊS)
A3: ABRANGÊNCIA : NACIONAL LOCALIDADE : RECIFE DATA DE PREÇO : 03/2024 REFERÊNCIA COLETA : MEDIANO
A5: DESCRICAO DA CLASSE | B5: SIGLA DA CLASSE | C5: DESCRICAO DO TIPO 1 | D5: SIGLA DO TIPO 1 | E5: CODIGO DO AGRUPADOR | F5: DESCRICAO DO AGRUPADOR | G5: CODIGO DA COMPOSICAO | H5: DESCRICAO DA COMPOSICAO | I5: UNIDADE | J5: ORIGEM DE PREÇO | K5: CUSTO TOTAL | L5: VINCULO
A7: ASSENTAMENTO DE TUBOS E PECAS | B7: ASTU | C7: FORNEC E/OU ASSENT DE TUBO DE FERRO FUNDIDO JUNTA ELASTICA | D7: 0045 | G7: 97141 | H7: ASSENTAMENTO DE TUBO DE FERRO FUNDIDO PARA REDE DE ÁGUA, DN 80 MM, JUNTA ELÁSTICA, INSTALADO EM LOCAL COM NÍVEL ALTO DE INTERFERÊNCIAS (NÃO INCLUI FORNECIMENTO). AF_11/2017 | I7: M | J7: COEFICIENTE DE REPRESENTATIVIDADE | K7: 8.97 | L7: CAIXA REFERENCIAL
A8: ASSENTAMENTO DE TUBOS E PECAS | B8: ASTU | C8: FORNEC E/OU ASSENT DE TUBO DE FERRO FUNDIDO JUNTA ELASTICA | D8: 0045 | G8: 97142 | H8: ASSENTAMENTO DE TUBO DE FERRO FUNDIDO PARA REDE DE ÁGUA, DN 100 MM, JUNTA ELÁSTICA, INSTALADO EM LOCAL COM NÍVEL ALTO DE INTERFERÊNCIAS (NÃO INCLUI FORNECIMENTO). AF_11/2017 | I8: M | J8: COEFICIENTE DE REPRESENTATIVIDADE | K8: 9.93 | L8: CAIXA REFERENCIAL
A9: ASSENTAMENTO DE TUBOS E PECAS | B9: ASTU | C9: FORNEC E/OU ASSENT DE TUBO DE FERRO FUNDIDO JUNTA ELASTICA | D9: 0045 | G9: 97143 | H9: ASSENTAMENTO DE TUBO DE FERRO FUNDIDO PARA REDE DE ÁGUA, DN 150 MM, JUNTA ELÁSTICA, INSTALADO EM LOCAL COM NÍVEL ALTO DE INTERFERÊNCIAS (NÃO INCLUI FORNECIMENTO). AF_11/2017 | I9: M | J9: COEFICIENTE DE REPRESENTATIVIDADE | K9: 12.37 | L9: CAIXA REFERENCIAL
A10: ASSENTAMENTO DE TUBOS E PECAS | B10: ASTU | C10: FORNEC E/OU ASSENT DE TUBO DE FERRO FUNDIDO JUNTA ELASTICA | D10: 0045 | G10: 97144 | H10: ASSENTAMENTO DE TUBO DE FERRO FUNDIDO PARA REDE DE ÁGUA, DN 200 MM, JUNTA ELÁSTICA, INSTALADO EM LOCAL COM NÍVEL ALTO DE INTERFERÊNCIAS (NÃO INCLUI FORNECIMENTO). AF_11/2017 | I10: M | J10: COEFICIENTE DE REPRESENTATIVIDADE | K10: 14.79 | L10: CAIXA REFERENCIAL
A11: ASSENTAMENTO DE TUBOS E PECAS | B11: ASTU | C11: FORNEC E/OU ASSENT DE TUBO DE FERRO FUNDIDO JUNTA ELASTICA | D11: 0045 | G11: 97145 | H11: ASSENTAMENTO DE TUBO DE FERRO FUNDIDO PARA REDE DE ÁGUA, DN 250 MM, JUNTA ELÁSTICA, INSTALADO EM LOCAL COM NÍVEL ALTO DE INTERFERÊNCIAS (NÃO INCLUI FORNECIMENTO). AF_11/2017 | I11: M | J11: COEFICIENTE DE REPRESENTATIVIDADE | K11: 17.24 | L11: CAIXA REFERENCIAL
A12: ASSENTAMENTO DE TUBOS E PECAS | B12: ASTU | C12: FORNEC E/OU ASSENT DE TUBO DE FERRO FUNDIDO JUNTA ELASTICA | D12: 0045 | G12: 97146 | H12: ASSENTAMENTO DE TUBO DE FERRO FUNDIDO PARA REDE DE ÁGUA, DN 300 MM, JUNTA ELÁSTICA, INSTALADO EM LOCAL COM NÍVEL ALTO DE INTERFERÊNCIAS (NÃO INCLUI FORNECIMENTO). AF_11/2017 | I12: M | J12: COEFICIENTE DE REPRESENTATIVIDADE | K12: 19.68 | L12: CAIXA REFERENCIAL
A13: ASSENTAMENTO DE TUBOS E PECAS | B13: ASTU | C13: FORNEC E/OU ASSENT DE TUBO DE FERRO FUNDIDO JUNTA ELASTICA | D13: 0045 | G13: 97147 | H13: ASSENTAMENTO DE TUBO DE FERRO FUNDIDO PARA REDE DE ÁGUA, DN 350 MM, JUNTA ELÁSTICA, INSTALADO EM LOCAL COM NÍVEL ALTO DE INTERFERÊNCIAS (NÃO INCLUI FORNECIMENTO). AF_11/2017 | I13: M | J13: COEFICIENTE DE REPRESENTATIVIDADE | K13: 22.12 | L13: CAIXA REFERENCIAL
A14: ASSENTAMENTO DE TUBOS E PECAS | B14: ASTU | C14: FORNEC E/OU ASSENT DE TUBO DE FERRO FUNDIDO JUNTA ELASTICA | D14: 0045 | G14: 97148 | H14: ASSENTAMENTO DE TUBO DE FERRO FUNDIDO PARA REDE DE ÁGUA, DN 400 MM, JUNTA ELÁSTICA, INSTALADO EM LOCAL COM NÍVEL ALTO DE INTERFERÊNCIAS (NÃO INCLUI FORNECIMENTO). AF_11/2017 | I14: M | J14: COEFICIENTE DE REPRESENTATIVIDADE | K14: 24.56 | L14: CAIXA REFERENCIAL
A15: ASSENTAMENTO DE TUBOS E PECAS | B15: ASTU | C15: FORNEC E/OU ASSENT DE TUBO DE FERRO FUNDIDO JUNTA ELASTICA | D15: 0045 | G15: 97149 | H15: ASSENTAMENTO DE TUBO DE FERRO FUNDIDO PARA REDE DE ÁGUA, DN 450 MM, JUNTA ELÁSTICA, INSTALADO EM LOCAL COM NÍVEL ALTO DE INTERFERÊNCIAS (NÃO INCLUI FORNECIMENTO). AF_11/2017 | I15: M | J15: COEFICIENTE DE REPRESENTATIVIDADE | K15: 27.04 | L15: CAIXA REFERENCIAL
A16: ASSENTAMENTO DE TUBOS E PECAS | B16: ASTU | C16: FORNEC E/OU ASSENT DE TUBO DE FERRO FUNDIDO JUNTA ELASTICA | D16: 0045 | G16: 97150 | H16: ASSENTAMENTO DE TUBO DE FERRO FUNDIDO PARA REDE DE ÁGUA, DN 500 MM, JUNTA ELÁSTICA, INSTALADO EM LOCAL COM NÍVEL ALTO DE INTERFERÊNCIAS (NÃO INCLUI FORNECIMENTO). AF_11/2017 | I16: M | J16: COEFICIENTE DE REPRESENTATIVIDADE | K16: 33.71 | L16: CAIXA REFERENCIAL
A17: ASSENTAMENTO DE TUBOS E PECAS | B17: ASTU | C17: FORNEC E/OU ASSENT DE TUBO DE FERRO FUNDIDO JUNTA ELASTICA | D17: 0045 | G17: 97151 | H17: ASSENTAMENTO DE TUBO DE FERRO FUNDIDO PARA REDE DE ÁGUA, DN 600 MM, JUNTA ELÁSTICA, INSTALADO EM LOCAL COM NÍVEL ALTO DE INTERFERÊNCIAS (NÃO INCLUI FORNECIMENTO). AF_11/2017 | I17: M | J17: COEFICIENTE DE REPRESENTATIVIDADE | K17: 39.24 | L17: CAIXA REFERENCIAL
A18: ASSENTAMENTO DE TUBOS E PECAS | B18: ASTU | C18: FORNEC E/OU ASSENT DE TUBO DE FERRO FUNDIDO JUNTA ELASTICA | D18: 0045 | G18: 97152 | H18: ASSENTAMENTO DE TUBO DE FERRO FUNDIDO PARA REDE DE ÁGUA, DN 700 MM, JUNTA ELÁSTICA, INSTALADO EM LOCAL COM NÍVEL ALTO DE INTERFERÊNCIAS (NÃO INCLUI FORNECIMENTO). AF_11/2017 | I18: M | J18: COEFICIENTE DE REPRESENTATIVIDADE | K18: 44.53 | L18: CAIXA REFERENCIAL
A19: ASSENTAMENTO DE TUBOS E PECAS | B19: ASTU | C19: FORNEC E/OU ASSENT DE TUBO DE FERRO FUNDIDO JUNTA ELASTICA | D19: 0045 | G19: 97153 | H19: ASSENTAMENTO DE TUBO DE FERRO FUNDIDO PARA REDE DE ÁGUA, DN 800 MM, JUNTA ELÁSTICA, INSTALADO EM LOCAL COM NÍVEL ALTO DE INTERFERÊNCIAS (NÃO INCLUI FORNECIMENTO). AF_11/2017 | I19: M | J19: COEFICIENTE DE REPRESENTATIVIDADE | K19: 49.97 | L19: CAIXA REFERENCIAL
A20: ASSENTAMENTO DE TUBOS E PECAS | B20: ASTU | C20: FORNEC E/OU ASSENT DE TUBO DE FERRO FUNDIDO JUNTA ELASTICA | D20: 0045 | G20: 97154 | H20: ASSENTAMENTO DE TUBO DE FERRO FUNDIDO PARA REDE DE ÁGUA, DN 900 MM, JUNTA ELÁSTICA, INSTALADO EM LOCAL COM NÍVEL ALTO DE INTERFERÊNCIAS (NÃO INCLUI FORNECIMENTO). AF_11/2017 | I20: M | J20: COEFICIENTE DE REPRESENTATIVIDADE | K20: 55.46 | L20: CAIXA REFERENCIAL
A21: ASSENTAMENTO DE TUBOS E PECAS | B21: ASTU | C21: FORNEC E/OU ASSENT DE TUBO DE FERRO FUNDIDO JUNTA ELASTICA | D21: 0045 | G21: 97155 | H21: ASSENTAMENTO DE TUBO DE FERRO FUNDIDO PARA REDE DE ÁGUA, DN 1000 MM, JUNTA ELÁSTICA, INSTALADO EM LOCAL COM NÍVEL ALTO DE INTERFERÊNCIAS (NÃO INCLUI FORNECIMENTO). AF_11/2017 | I21: M | J21: COEFICIENTE DE REPRESENTATIVIDADE | K21: 60.92 | L21: CAIXA REFERENCIAL
A22: ASSENTAMENTO DE TUBOS E PECAS | B22: ASTU | C22: FORNEC E/OU ASSENT DE TUBO DE FERRO FUNDIDO JUNTA ELASTICA | D22: 0045 | G22: 97156 | H22: ASSENTAMENTO DE TUBO DE FERRO FUNDIDO PARA REDE DE ÁGUA, DN 1200 MM, JUNTA ELÁSTICA, INSTALADO EM LOCAL COM NÍVEL ALTO DE INTERFERÊNCIAS (NÃO INCLUI FORNECIMENTO). AF_11/2017 | I22: M | J22: COEFICIENTE DE REPRESENTATIVIDADE | K22: 72.23 | L22: CAIXA REFERENCIAL
A23: ASSENTAMENTO DE TUBOS E PECAS | B23: ASTU | C23: FORNEC E/OU ASSENT DE TUBO DE FERRO FUNDIDO JUNTA ELASTICA | D23: 0045 | G23: 97157 | H23: ASSENTAMENTO DE TUBO DE FERRO FUNDIDO PARA REDE DE ÁGUA, DN 80 MM, JUNTA ELÁSTICA, INSTALADO EM LOCAL COM NÍVEL BAIXO DE INTERFERÊNCIAS (NÃO INCLUI FORNECIMENTO). AF_11/2017 | I23: M | J23: COEFICIENTE DE REPRESENTATIVIDADE | K23: 5.37 | L23: CAIXA REFERENCIAL
A24: ASSENTAMENTO DE TUBOS E PECAS | B24: ASTU | C24: FORNEC E/OU ASSENT DE TUBO DE FERRO FUNDIDO JUNTA ELASTICA | D24: 0045 | G24: 97158 | H24: ASSENTAMENTO DE TUBO DE FERRO FUNDIDO PARA REDE DE ÁGUA, DN 100 MM, JUNTA ELÁSTICA, INSTALADO EM LOCAL COM NÍVEL BAIXO DE INTERFERÊNCIAS (NÃO INCLUI FORNECIMENTO). AF_11/2017 | I24: M | J24: COEFICIENTE DE REPRESENTATIVIDADE | K24: 5.96 | L24: CAIXA REFERENCIAL
A25: ASSENTAMENTO DE TUBOS E PECAS | B25: ASTU | C25: FORNEC E/OU ASSENT DE TUBO DE FERRO FUNDIDO JUNTA ELASTICA | D25: 0045 | G25: 97159 | H25: ASSENTAMENTO DE TUBO DE FERRO FUNDIDO PARA REDE DE ÁGUA, DN 150 MM, JUNTA ELÁSTICA, INSTALADO EM LOCAL COM NÍVEL BAIXO DE INTERFERÊNCIAS (NÃO INCLUI FORNECIMENTO). AF_11/2017 | I25: M | J25: COEFICIENTE DE REPRESENTATIVIDADE | K25: 7.43 | L25: CAIXA REFERENCIAL
A26: ASSENTAMENTO DE TUBOS E PECAS | B26: ASTU | C26: FORNEC E/OU ASSENT DE TUBO DE FERRO FUNDIDO JUNTA ELASTICA | D26: 0045 | G26: 97160 | H26: ASSENTAMENTO DE TUBO DE FERRO FUNDIDO PARA REDE DE ÁGUA, DN 200 MM, JUNTA ELÁSTICA, INSTALADO EM LOCAL COM NÍVEL BAIXO DE INTERFERÊNCIAS (NÃO INCLUI FORNECIMENTO). AF_11/2017 | I26: M | J26: COEFICIENTE DE REPRESENTATIVIDADE | K26: 8.89 | L26: CAIXA REFERENCIAL
A27: ASSENTAMENTO DE TUBOS E PECAS | B27: ASTU | C27: FORNEC E/OU ASSENT DE TUBO DE FERRO FUNDIDO JUNTA ELASTICA | D27: 0045 | G27: 97161 | H27: ASSENTAMENTO DE TUBO DE FERRO FUNDIDO PARA REDE DE ÁGUA, DN 250 MM, JUNTA ELÁSTICA, INSTALADO EM LOCAL COM NÍVEL BAIXO DE INTERFERÊNCIAS (NÃO INCLUI FORNECIMENTO). AF_11/2017 | I27: M | J27: COEFICIENTE DE REPRESENTATIVIDADE | K27: 10.38 | L27: CAIXA REFERENCIAL
A28: ASSENTAMENTO DE TUBOS E PECAS | B28: ASTU | C28: FORNEC E/OU ASSENT DE TUBO DE FERRO FUNDIDO JUNTA ELASTICA | D28: 0045 | G28: 97162 | H28: ASSENTAMENTO DE TUBO DE FERRO FUNDIDO PARA REDE DE ÁGUA, DN 300 MM, JUNTA ELÁSTICA, INSTALADO EM LOCAL COM NÍVEL BAIXO DE INTERFERÊNCIAS (NÃO INCLUI FORNECIMENTO). AF_11/2017 | I28: M | J28: COEFICIENTE DE REPRESENTATIVIDADE | K28: 11.86 | L28: CAIXA REFERENCIAL
A29: ASSENTAMENTO DE TUBOS E PECAS | B29: ASTU | C29: FORNEC E/OU ASSENT DE TUBO DE FERRO FUNDIDO JUNTA ELASTICA | D29: 0045 | G29: 97163 | H29: ASSENTAMENTO DE TUBO DE FERRO FUNDIDO PARA REDE DE ÁGUA, DN 350 MM, JUNTA ELÁSTICA, INSTALADO EM LOCAL COM NÍVEL BAIXO DE INTERFERÊNCIAS (NÃO INCLUI FORNECIMENTO). AF_11/2017 | I29: M | J29: COEFICIENTE DE REPRESENTATIVIDADE | K29: 13.36 | L29: CAIXA REFERENCIAL
A30: ASSENTAMENTO DE TUBOS E PECAS | B30: ASTU | C30: FORNEC E/OU ASSENT DE TUBO DE FERRO FUNDIDO JUNTA ELASTICA | D30: 0045 | G30: 97164 | H30: ASSENTAMENTO DE TUBO DE FERRO FUNDIDO PARA REDE DE ÁGUA, DN 400 MM, JUNTA ELÁSTICA, INSTALADO EM LOCAL COM NÍVEL BAIXO DE INTERFERÊNCIAS (NÃO INCLUI FORNECIMENTO). AF_11/2017 | I30: M | J30: COEFICIENTE DE REPRESENTATIVIDADE | K30: 14.84 | L30: CAIXA REFERENCIAL
A31: ASSENTAMENTO DE TUBOS E PECAS | B31: ASTU | C31: FORNEC E/OU ASSENT DE TUBO DE FERRO FUNDIDO JUNTA ELASTICA | D31: 0045 | G31: 97165 | H31: ASSENTAMENTO DE TUBO DE FERRO FUNDIDO PARA REDE DE ÁGUA, DN 450 MM, JUNTA ELÁSTICA, INSTALADO EM LOCAL COM NÍVEL BAIXO DE INTERFERÊNCIAS (NÃO INCLUI FORNECIMENTO). AF_11/2017 | I31: M | J31: COEFICIENTE DE REPRESENTATIVIDADE | K31: 16.35 | L31: CAIXA REFERENCIAL
A32: ASSENTAMENTO DE TUBOS E PECAS | B32: ASTU | C32: FORNEC E/OU ASSENT DE TUBO DE FERRO FUNDIDO JUNTA ELASTICA | D32: 0045 | G32: 97166 | H32: ASSENTAMENTO DE TUBO DE FERRO FUNDIDO PARA REDE DE ÁGUA, DN 500 MM, JUNTA ELÁSTICA, INSTALADO EM LOCAL COM NÍVEL BAIXO DE INTERFERÊNCIAS (NÃO INCLUI FORNECIMENTO). AF_11/2017 | I32: M | J32: COEFICIENTE DE REPRESENTATIVIDADE | K32: 20.4 | L32: CAIXA REFERENCIAL
A33: ASSENTAMENTO DE TUBOS E PECAS | B33: ASTU | C33: FORNEC E/OU ASSENT DE TUBO DE FERRO FUNDIDO JUNTA ELASTICA | D33: 0045 | G33: 97167 | H33: ASSENTAMENTO DE TUBO DE FERRO FUNDIDO PARA REDE DE ÁGUA, DN 600 MM, JUNTA ELÁSTICA, INSTALADO EM LOCAL COM NÍVEL BAIXO DE INTERFERÊNCIAS (NÃO INCLUI FORNECIMENTO). AF_11/2017 | I33: M | J33: COEFICIENTE DE REPRESENTATIVIDADE | K33: 23.78 | L33: CAIXA REFERENCIAL
A34: ASSENTAMENTO DE TUBOS E PECAS | B34: ASTU | C34: FORNEC E/OU ASSENT DE TUBO DE FERRO FUNDIDO JUNTA ELASTICA | D34: 0045 | G34: 97168 | H34: ASSENTAMENTO DE TUBO DE FERRO FUNDIDO PARA REDE DE ÁGUA, DN 700 MM, JUNTA ELÁSTICA, INSTALADO EM LOCAL COM NÍVEL BAIXO DE INTERFERÊNCIAS (NÃO INCLUI FORNECIMENTO). AF_11/2017 | I34: M | J34: COEFICIENTE DE REPRESENTATIVIDADE | K34: 26.93 | L34: CAIXA REFERENCIAL
A35: ASSENTAMENTO DE TUBOS E PECAS | B35: ASTU | C35: FORNEC E/OU ASSENT DE TUBO DE FERRO FUNDIDO JUNTA ELASTICA | D35: 0045 | G35: 97169 | H35: ASSENTAMENTO DE TUBO DE FERRO FUNDIDO PARA REDE DE ÁGUA, DN 800 MM, JUNTA ELÁSTICA, INSTALADO EM LOCAL COM NÍVEL BAIXO DE INTERFERÊNCIAS (NÃO INCLUI FORNECIMENTO). AF_11/2017 | I35: M | J35: COEFICIENTE DE REPRESENTATIVIDADE | K35: 30.23 | L35: CAIXA REFERENCIAL
A36: ASSENTAMENTO DE TUBOS E PECAS | B36: ASTU | C36: FORNEC E/OU ASSENT DE TUBO DE FERRO FUNDIDO JUNTA ELASTICA | D36: 0045 | G36: 97170 | H36: ASSENTAMENTO DE TUBO DE FERRO FUNDIDO PARA REDE DE ÁGUA, DN 900 MM, JUNTA ELÁSTICA, INSTALADO EM LOCAL COM NÍVEL BAIXO DE INTERFERÊNCIAS (NÃO INCLUI FORNECIMENTO). AF_11/2017 | I36: M | J36: COEFICIENTE DE REPRESENTATIVIDADE | K36: 33.55 | L36: CAIXA REFERENCIAL
A37: ASSENTAMENTO DE TUBOS E PECAS | B37: ASTU | C37: FORNEC E/OU ASSENT DE TUBO DE FERRO FUNDIDO JUNTA ELASTICA | D37: 0045 | G37: 97171 | H37: ASSENTAMENTO DE TUBO DE FERRO FUNDIDO PARA REDE DE ÁGUA, DN 1000 MM, JUNTA ELÁSTICA, INSTALADO EM LOCAL COM NÍVEL BAIXO DE INTERFERÊNCIAS (NÃO INCLUI FORNECIMENTO). AF_11/2017 | I37: M | J37: COEFICIENTE DE REPRESENTATIVIDADE | K37: 36.88 | L37: CAIXA REFERENCIAL
A38: ASSENTAMENTO DE TUBOS E PECAS | B38: ASTU | C38: FORNEC E/OU ASSENT DE TUBO DE FERRO FUNDIDO JUNTA ELASTICA | D38: 0045 | G38: 97172 | H38: ASSENTAMENTO DE TUBO DE FERRO FUNDIDO PARA REDE DE ÁGUA, DN 1200 MM, JUNTA ELÁSTICA, INSTALADO EM LOCAL COM NÍVEL BAIXO DE INTERFERÊNCIAS (NÃO INCLUI FORNECIMENTO). AF_11/2017 | I38: M | J38: COEFICIENTE DE REPRESENTATIVIDADE | K38: 43.89 | L38: CAIXA REFERENCIAL
A39: ASSENTAMENTO DE TUBOS E PECAS | B39: ASTU | C39: FORNEC E/OU ASSENT DE TUBO DE ACO COM JUNTA SOLDADA | D39: 0046 | G39: 97173 | H39: ASSENTAMENTO DE TUBO DE AÇO CARBONO PARA REDE DE ÁGUA, DN 600 MM (24"), JUNTA SOLDADA, INSTALADO EM LOCAL COM NÍVEL ALTO DE INTERFERÊNCIAS (NÃO INCLUI FORNECIMENTO). AF_11/2017 | I39: M | J39: COEFICIENTE DE REPRESENTATIVIDADE | K39: 36.23 | L39: CAIXA REFERENCIAL
A40: ASSENTAMENTO DE TUBOS E PECAS | B40: ASTU | C40: FORNEC E/OU ASSENT DE TUBO DE ACO COM JUNTA SOLDADA | D40: 0046 | G40: 97174 | H40: ASSENTAMENTO DE TUBO DE AÇO CARBONO PARA REDE DE ÁGUA, DN 700 MM (28"), JUNTA SOLDADA, INSTALADO EM LOCAL COM NÍVEL ALTO DE INTERFERÊNCIAS (NÃO INCLUI FORNECIMENTO). AF_11/2017 | I40: M | J40: COEFICIENTE DE REPRESENTATIVIDADE | K40: 41.95 | L40: CAIXA REFERENCIAL
A41: ASSENTAMENTO DE TUBOS E PECAS | B41: ASTU | C41: FORNEC E/OU ASSENT DE TUBO DE ACO COM JUNTA SOLDADA | D41: 0046 | G41: 97175 | H41: ASSENTAMENTO DE TUBO DE AÇO CARBONO PARA REDE DE ÁGUA, DN 800 MM (32"), JUNTA SOLDADA, INSTALADO EM LOCAL COM NÍVEL ALTO DE INTERFERÊNCIAS (NÃO INCLUI FORNECIMENTO). AF_11/2017 | I41: M | J41: COEFICIENTE DE REPRESENTATIVIDADE | K41: 47.66 | L41: CAIXA REFERENCIAL
A42: ASSENTAMENTO DE TUBOS E PECAS | B42: ASTU | C42: FORNEC E/OU ASSENT DE TUBO DE ACO COM JUNTA SOLDADA | D42: 0046 | G42: 97176 | H42: ASSENTAMENTO DE TUBO DE AÇO CARBONO PARA REDE DE ÁGUA, DN 900 MM (36"), JUNTA SOLDADA, INSTALADO EM LOCAL COM NÍVEL ALTO DE INTERFERÊNCIAS (NÃO INCLUI FORNECIMENTO). AF_11/2017 | I42: M | J42: COEFICIENTE DE REPRESENTATIVIDADE | K42: 53.37 | L42: CAIXA REFERENCIAL
A43: ASSENTAMENTO DE TUBOS E PECAS | B43: ASTU | C43: FORNEC E/OU ASSENT DE TUBO DE ACO COM JUNTA SOLDADA | D43: 0046 | G43: 97177 | H43: ASSENTAMENTO DE TUBO DE AÇO CARBONO PARA REDE DE ÁGUA, DN 1000 MM (40") OU DN 1100 MM (44"), JUNTA SOLDADA, INSTALADO EM LOCAL COM NÍVEL ALTO DE INTERFERÊNCIAS (NÃO INCLUI FORNECIMENTO). AF_11/2017 | I43: M | J43: COEFICIENTE DE REPRESENTATIVIDADE | K43: 64.81 | L43: CAIXA REFERENCIAL
A44: ASSENTAMENTO DE TUBOS E PECAS | B44: ASTU | C44: FORNEC E/OU ASSENT DE TUBO DE ACO COM JUNTA SOLDADA | D44: 0046 | G44: 97178 | H44: ASSENTAMENTO DE TUBO DE AÇO CARBONO PARA REDE DE ÁGUA, DN 1200 MM (48") OU DN 1300 MM (52"), JUNTA SOLDADA, INSTALADO EM LOCAL COM NÍVEL ALTO DE INTERFERÊNCIAS (NÃO INCLUI FORNECIMENTO). AF_11/2017 | I44: M | J44: COEFICIENTE DE REPRESENTATIVIDADE | K44: 76.25 | L44: CAIXA REFERENCIAL
A45: ASSENTAMENTO DE TUBOS E PECAS | B45: ASTU | C45: FORNEC E/OU ASSENT DE TUBO DE ACO COM JUNTA SOLDADA | D45: 0046 | G45: 97179 | H45: ASSENTAMENTO DE TUBO DE AÇO CARBONO PARA REDE DE ÁGUA, DN 1400 MM (56'') OU DN 1500 MM (60"), JUNTA SOLDADA, INSTALADO EM LOCAL COM NÍVEL ALTO DE INTERFERÊNCIAS (NÃO INCLUI FORNECIMENTO). AF_11/2017 | I45: M | J45: COEFICIENTE DE REPRESENTATIVIDADE | K45: 87.65 | L45: CAIXA REFERENCIAL
A46: ASSENTAMENTO DE TUBOS E PECAS | B46: ASTU | C46: FORNEC E/OU ASSENT DE TUBO DE ACO COM JUNTA SOLDADA | D46: 0046 | G46: 97180 | H46: ASSENTAMENTO DE TUBO DE AÇO CARBONO PARA REDE DE ÁGUA, DN 1600 MM (64") OU DN 1700 MM (68"), JUNTA SOLDADA, INSTALADO EM LOCAL COM NÍVEL ALTO DE INTERFERÊNCIAS (NÃO INCLUI FORNECIMENTO). AF_11/2017 | I46: M | J46: COEFICIENTE DE REPRESENTATIVIDADE | K46: 99.1 | L46: CAIXA REFERENCIAL
A47: ASSENTAMENTO DE TUBOS E PECAS | B47: ASTU | C47: FORNEC E/OU ASSENT DE TUBO DE ACO COM JUNTA SOLDADA | D47: 0046 | G47: 97181 | H47: ASSENTAMENTO DE TUBO DE AÇO CARBONO PARA REDE DE ÁGUA, DN 1800 MM (72") OU DN 1900 MM (76"), JUNTA SOLDADA, INSTALADO EM LOCAL COM NÍVEL ALTO DE INTERFERÊNCIAS (NÃO INCLUI FORNECIMENTO). AF_11/2017 | I47: M | J47: COEFICIENTE DE REPRESENTATIVIDADE | K47: 115.2 | L47: CAIXA REFERENCIAL
A48: ASSENTAMENTO DE TUBOS E PECAS | B48: ASTU | C48: FORNEC E/OU ASSENT DE TUBO DE ACO COM JUNTA SOLDADA | D48: 0046 | G48: 97182 | H48: ASSENTAMENTO DE TUBO DE AÇO CARBONO PARA REDE DE ÁGUA, DN 2000 MM (80") OU DN 2100 MM (84"), JUNTA SOLDADA, INSTALADO EM LOCAL COM NÍVEL ALTO DE INTERFERÊNCIAS (NÃO INCLUI FORNECIMENTO). AF_11/2017 | I48: M | J48: COEFICIENTE DE REPRESENTATIVIDADE | K48: 127.14 | L48: CAIXA REFERENCIAL
A49: ASSENTAMENTO DE TUBOS E PECAS | B49: ASTU | C49: FORNEC E/OU ASSENT DE TUBO DE ACO COM JUNTA SOLDADA | D49: 0046 | G49: 97183 | H49: ASSENTAMENTO DE TUBO DE AÇO CARBONO PARA REDE DE ÁGUA, DN 600 MM (24"), JUNTA SOLDADA, INSTALADO EM LOCAL COM NÍVEL BAIXO DE INTERFERÊNCIAS (NÃO INCLUI FORNECIMENTO). AF_11/2017 | I49: M | J49: COEFICIENTE DE REPRESENTATIVIDADE | K49: 28.59 | L49: CAIXA REFERENCIAL
A50: ASSENTAMENTO DE TUBOS E PECAS | B50: ASTU | C50: FORNEC E/OU ASSENT DE TUBO DE ACO COM JUNTA SOLDADA | D50: 0046 | G50: 97184 | H50: ASSENTAMENTO DE TUBO DE AÇO CARBONO PARA REDE DE ÁGUA, DN 700 MM (28"), JUNTA SOLDADA, INSTALADO EM LOCAL COM NÍVEL BAIXO DE INTERFERÊNCIAS (NÃO INCLUI FORNECIMENTO). AF_11/2017 | I50: M | J50: COEFICIENTE DE REPRESENTATIVIDADE | K50: 33.15 | L50: CAIXA REFERENCIAL
A51: ASSENTAMENTO DE TUBOS E PECAS | B51: ASTU | C51: FORNEC E/OU ASSENT DE TUBO DE ACO COM JUNTA SOLDADA | D51: 0046 | G51: 97185 | H51: ASSENTAMENTO DE TUBO DE AÇO CARBONO PARA REDE DE ÁGUA, DN 800 MM (32"), JUNTA SOLDADA, INSTALADO EM LOCAL COM NÍVEL BAIXO DE INTERFERÊNCIAS (NÃO INCLUI FORNECIMENTO). AF_11/2017 | I51: M | J51: COEFICIENTE DE REPRESENTATIVIDADE | K51: 37.72 | L51: CAIXA REFERENCIAL
A52: ASSENTAMENTO DE TUBOS E PECAS | B52: ASTU | C52: FORNEC E/OU ASSENT DE TUBO DE ACO COM JUNTA SOLDADA | D52: 0046 | G52: 97186 | H52: ASSENTAMENTO DE TUBO DE AÇO CARBONO PARA REDE DE ÁGUA, DN 900 MM (36"), JUNTA SOLDADA, INSTALADO EM LOCAL COM NÍVEL BAIXO DE INTERFERÊNCIAS (NÃO INCLUI FORNECIMENTO). AF_11/2017 | I52: M | J52: COEFICIENTE DE REPRESENTATIVIDADE | K52: 42.3 | L52: CAIXA REFERENCIAL
A53: ASSENTAMENTO DE TUBOS E PECAS | B53: ASTU | C53: FORNEC E/OU ASSENT DE TUBO DE ACO COM JUNTA SOLDADA | D53: 0046 | G53: 97187 | H53: ASSENTAMENTO DE TUBO DE AÇO CARBONO PARA REDE DE ÁGUA, DN 1000 MM (40 ) OU DN 1100 MM (44 ), JUNTA SOLDADA, INSTALADO EM LOCAL COM NÍVEL BAIXO DE INTERFERÊNCIAS (NÃO INCLUI FORNECIMENTO). AF_11/2017 | I53: M | J53: COEFICIENTE DE REPRESENTATIVIDADE | K53: 51.44 | L53: CAIXA REFERENCIAL
A54: ASSENTAMENTO DE TUBOS E PECAS | B54: ASTU | C54: FORNEC E/OU ASSENT DE TUBO DE ACO COM JUNTA SOLDADA | D54: 0046 | G54: 97188 | H54: ASSENTAMENTO DE TUBO DE AÇO CARBONO PARA REDE DE ÁGUA, DN 1200 MM (48") OU DN 1300 MM (52"), JUNTA SOLDADA, INSTALADO EM LOCAL COM NÍVEL BAIXO DE INTERFERÊNCIAS (NÃO INCLUI FORNECIMENTO). AF_11/2017 | I54: M | J54: COEFICIENTE DE REPRESENTATIVIDADE | K54: 60.58 | L54: CAIXA REFERENCIAL
A55: ASSENTAMENTO DE TUBOS E PECAS | B55: ASTU | C55: FORNEC E/OU ASSENT DE TUBO DE ACO COM JUNTA SOLDADA | D55: 0046 | G55: 97189 | H55: ASSENTAMENTO DE TUBO DE AÇO CARBONO PARA REDE DE ÁGUA, DN 1400 MM (56'') OU DN 1500 MM (60"), JUNTA SOLDADA, INSTALADO EM LOCAL COM NÍVEL BAIXO DE INTERFERÊNCIAS (NÃO INCLUI FORNECIMENTO). AF_11/2017 | I55: M | J55: COEFICIENTE DE REPRESENTATIVIDADE | K55: 69.71 | L55: CAIXA REFERENCIAL
A56: ASSENTAMENTO DE TUBOS E PECAS | B56: ASTU | C56: FORNEC E/OU ASSENT DE TUBO DE ACO COM JUNTA SOLDADA | D56: 0046 | G56: 97190 | H56: ASSENTAMENTO DE TUBO DE AÇO CARBONO PARA REDE DE ÁGUA, DN 1600 MM (64") OU DN 1700 MM (68"), JUNTA SOLDADA, INSTALADO EM LOCAL COM NÍVEL BAIXO DE INTERFERÊNCIAS (NÃO INCLUI FORNECIMENTO). AF_11/2017 | I56: M | J56: COEFICIENTE DE REPRESENTATIVIDADE | K56: 78.86 | L56: CAIXA REFERENCIAL
A57: ASSENTAMENTO DE TUBOS E PECAS | B57: ASTU | C57: FORNEC E/OU ASSENT DE TUBO DE ACO COM JUNTA SOLDADA | D57: 0046 | G57: 97191 | H57: ASSENTAMENTO DE TUBO DE AÇO CARBONO PARA REDE DE ÁGUA, DN 1800 MM (72") OU DN 1900 MM (76"), JUNTA SOLDADA, INSTALADO EM LOCAL COM NÍVEL BAIXO DE INTERFERÊNCIAS (NÃO INCLUI FORNECIMENTO). AF_11/2017 | I57: M | J57: COEFICIENTE DE REPRESENTATIVIDADE | K57: 91.4 | L57: CAIXA REFERENCIAL
A58: ASSENTAMENTO DE TUBOS E PECAS | B58: ASTU | C58: FORNEC E/OU ASSENT DE TUBO DE ACO COM JUNTA SOLDADA | D58: 0046 | G58: 97192 | H58: ASSENTAMENTO DE TUBO DE AÇO CARBONO PARA REDE DE ÁGUA, DN 2000 MM (80") OU DN 2100 MM (84"), JUNTA SOLDADA, INSTALADO EM LOCAL COM NÍVEL BAIXO DE INTERFERÊNCIAS (NÃO INCLUI FORNECIMENTO). AF_11/2017 | I58: M | J58: COEFICIENTE DE REPRESENTATIVIDADE | K58: 100.91 | L58: CAIXA REFERENCIAL
A59: ASSENTAMENTO DE TUBOS E PECAS | B59: ASTU | C59: FORNEC E/OU ASSENT DE TUBO DE PVC COM JUNTA ELASTICA | D59: 0048 | G59: 90694 | H59: TUBO DE PVC PARA REDE COLETORA DE ESGOTO DE PAREDE MACIÇA, DN 100 MM, JUNTA ELÁSTICA - FORNECIMENTO E ASSENTAMENTO. AF_01/2021 | I59: M | J59: COEFICIENTE DE REPRESENTATIVIDADE | K59: 37.72 | L59: CAIXA REFERENCIAL
A60: ASSENTAMENTO DE TUBOS E PECAS | B60: ASTU | C60: FORNEC E/OU ASSENT DE TUBO DE PVC COM JUNTA ELASTICA | D60: 0048 | G60: 90695 | H60: TUBO DE PVC PARA REDE COLETORA DE ESGOTO DE PAREDE MACIÇA, DN 150 MM, JUNTA ELÁSTICA - FORNECIMENTO E ASSENTAMENTO. AF_01/2021 | I60: M | J60: COEFICIENTE DE REPRESENTATIVIDADE | K60: 71.36 | L60: CAIXA REFERENCIAL
A61: ASSENTAMENTO DE TUBOS E PECAS | B61: ASTU | C61: FORNEC E/OU ASSENT DE TUBO DE PVC COM JUNTA ELASTICA | D61: 0048 | G61: 90696 | H61: TUBO DE PVC PARA REDE COLETORA DE ESGOTO DE PAREDE MACIÇA, DN 200 MM, JUNTA ELÁSTICA - FORNECIMENTO E ASSENTAMENTO. AF_01/2021 | I61: M | J61: COEFICIENTE DE REPRESENTATIVIDADE | K61: 118.93 | L61: CAIXA REFERENCIAL
A62: ASSENTAMENTO DE TUBOS E PECAS | B62: ASTU | C62: FORNEC E/OU ASSENT DE TUBO DE PVC COM JUNTA ELASTICA | D62: 0048 | G62: 90697 | H62: TUBO DE PVC PARA REDE COLETORA DE ESGOTO DE PAREDE MACIÇA, DN 250 MM, JUNTA ELÁSTICA - FORNECIMENTO E ASSENTAMENTO. AF_01/2021 | I62: M | J62: COEFICIENTE DE REPRESENTATIVIDADE | K62: 184.27 | L62: CAIXA REFERENCIAL
A63: ASSENTAMENTO DE TUBOS E PECAS | B63: ASTU | C63: FORNEC E/OU ASSENT DE TUBO DE PVC COM JUNTA ELASTICA | D63: 0048 | G63: 90698 | H63: TUBO DE PVC PARA REDE COLETORA DE ESGOTO DE PAREDE MACIÇA, DN 300 MM, JUNTA ELÁSTICA, FORNECIMENTO E ASSENTAMENTO. AF_01/2021 | I63: M | J63: COEFICIENTE DE REPRESENTATIVIDADE | K63: 281.36 | L63: CAIXA REFERENCIAL
A64: ASSENTAMENTO DE TUBOS E PECAS | B64: ASTU | C64: FORNEC E/OU ASSENT DE TUBO DE PVC COM JUNTA ELASTICA | D64: 0048 | G64: 90699 | H64: TUBO DE PVC PARA REDE COLETORA DE ESGOTO DE PAREDE MACIÇA, DN 350 MM, JUNTA ELÁSTICA - FORNECIMENTO E ASSENTAMENTO. AF_01/2021 | I64: M | J64: COEFICIENTE DE REPRESENTATIVIDADE | K64: 395.77 | L64: CAIXA REFERENCIAL
A65: ASSENTAMENTO DE TUBOS E PECAS | B65: ASTU | C65: FORNEC E/OU ASSENT DE TUBO DE PVC COM JUNTA ELASTICA | D65: 0048 | G65: 90700 | H65: TUBO DE PVC PARA REDE COLETORA DE ESGOTO DE PAREDE MACIÇA, DN 400 MM, JUNTA ELÁSTICA FORNECIMENTO E ASSENTAMENTO. AF_01/2021 | I65: M | J65: COEFICIENTE DE REPRESENTATIVIDADE | K65: 463.2 | L65: CAIXA REFERENCIAL
A66: ASSENTAMENTO DE TUBOS E PECAS | B66: ASTU | C66: FORNEC E/OU ASSENT DE TUBO DE PVC COM JUNTA ELASTICA | D66: 0048 | G66: 90701 | H66: TUBO DE PVC CORRUGADO DE DUPLA PAREDE PARA REDE COLETORA DE ESGOTO, DN 150 MM, JUNTA ELÁSTICA - FORNECIMENTO E ASSENTAMENTO. AF_01/2021 | I66: M | J66: COEFICIENTE DE REPRESENTATIVIDADE | K66: 57.18 | L66: CAIXA REFERENCIAL
A67: ASSENTAMENTO DE TUBOS E PECAS | B67: ASTU | C67: FORNEC E/OU ASSENT DE TUBO DE PVC COM JUNTA ELASTICA | D67: 0048 | G67: 90702 | H67: TUBO DE PVC CORRUGADO DE DUPLA PAREDE PARA REDE COLETORA DE ESGOTO, DN 200 MM, JUNTA ELÁSTICA - FORNECIMENTO E ASSENTAMENTO. AF_01/2021 | I67: M | J67: COEFICIENTE DE REPRESENTATIVIDADE | K67: 94.22 | L67: CAIXA REFERENCIAL
A68: ASSENTAMENTO DE TUBOS E PECAS | B68: ASTU | C68: FORNEC E/OU ASSENT DE TUBO DE PVC COM JUNTA ELASTICA | D68: 0048 | G68: 90703 | H68: TUBO DE PVC CORRUGADO DE DUPLA PAREDE PARA REDE COLETORA DE ESGOTO, DN 250 MM, JUNTA ELÁSTICA - FORNECIMENTO E ASSENTAMENTO. AF_01/2021 | I68: M | J68: COEFICIENTE DE REPRESENTATIVIDADE | K68: 148.65 | L68: CAIXA REFERENCIAL
A69: ASSENTAMENTO DE TUBOS E PECAS | B69: ASTU | C69: FORNEC E/OU ASSENT DE TUBO DE PVC COM JUNTA ELASTICA | D69: 0048 | G69: 90704 | H69: TUBO DE PVC CORRUGADO DE DUPLA PAREDE PARA REDE COLETORA DE ESGOTO, DN 300 MM, JUNTA ELÁSTICA - FORNECIMENTO E ASSENTAMENTO. AF_01/2021 | I69: M | J69: COEFICIENTE DE REPRESENTATIVIDADE | K69: 223.36 | L69: CAIXA REFERENCIAL
A70: ASSENTAMENTO DE TUBOS E PECAS | B70: ASTU | C70: FORNEC E/OU ASSENT DE TUBO DE PVC COM JUNTA ELASTICA | D70: 0048 | G70: 90705 | H70: TUBO DE PVC CORRUGADO DE DUPLA PAREDE PARA REDE COLETORA DE ESGOTO, DN 350 MM, JUNTA ELÁSTICA - FORNECIMENTO E ASSENTAMENTO. AF_01/2021 | I70: M | J70: COEFICIENTE DE REPRESENTATIVIDADE | K70: 287.1 | L70: CAIXA REFERENCIAL
A71: ASSENTAMENTO DE TUBOS E PECAS | B71: ASTU | C71: FORNEC E/OU ASSENT DE TUBO DE PVC COM JUNTA ELASTICA | D71: 0048 | G71: 90706 | H71: TUBO DE PVC CORRUGADO DE DUPLA PAREDE PARA REDE COLETORA DE ESGOTO, DN 400 MM, JUNTA ELÁSTICA - FORNECIMENTO E ASSENTAMENTO. AF_01/2021 | I71: M | J71: COEFICIENTE DE REPRESENTATIVIDADE | K71: 381.88 | L71: CAIXA REFERENCIAL
A72: ASSENTAMENTO DE TUBOS E PECAS | B72: ASTU | C72: FORNEC E/OU ASSENT DE TUBO DE PVC COM JUNTA ELASTICA | D72: 0048 | G72: 90708 | H72: TUBO DE PEAD CORRUGADO DE DUPLA PAREDE PARA REDE COLETORA DE ESGOTO, DN 600 MM, JUNTA ELÁSTICA INTEGRADA - FORNECIMENTO E ASSENTAMENTO. AF_01/2021 | I72: M | J72: COEFICIENTE DE REPRESENTATIVIDADE | K72: 1783.84 | L72: CAIXA REFERENCIAL
A73: ASSENTAMENTO DE TUBOS E PECAS | B73: ASTU | C73: FORNEC E/OU ASSENT DE TUBO DE PVC COM JUNTA ELASTICA | D73: 0048 | G73: 90724 | H73: JUNTA ARGAMASSADA ENTRE TUBO DN 100 MM E O POÇO DE VISITA/ CAIXA DE CONCRETO OU ALVENARIA EM REDES DE ESGOTO. AF_01/2021 | I73: UN | J73: COEFICIENTE DE REPRESENTATIVIDADE | K73: 22.88 | L73: CAIXA REFERENCIAL
A74: ASSENTAMENTO DE TUBOS E PECAS | B74: ASTU | C74: FORNEC E/OU ASSENT DE TUBO DE PVC COM JUNTA ELASTICA | D74: 0048 | G74: 90725 | H74: JUNTA ARGAMASSADA ENTRE TUBO DN 150 MM E O POÇO DE VISITA/ CAIXA DE CONCRETO OU ALVENARIA EM REDES DE ESGOTO. AF_01/2021 | I74: UN | J74: COEFICIENTE DE REPRESENTATIVIDADE | K74: 28.15 | L74: CAIXA REFERENCIAL
A75: ASSENTAMENTO DE TUBOS E PECAS | B75: ASTU | C75: FORNEC E/OU ASSENT DE TUBO DE PVC COM JUNTA ELASTICA | D75: 0048 | G75: 90726 | H75: JUNTA ARGAMASSADA ENTRE TUBO DN 200 MM E O POÇO/ CAIXA DE CONCRETO OU ALVENARIA EM REDES DE ESGOTO. AF_01/2021 | I75: UN | J75: COEFICIENTE DE REPRESENTATIVIDADE | K75: 33.52 | L75: CAIXA REFERENCIAL
A76: ASSENTAMENTO DE TUBOS E PECAS | B76: ASTU | C76: FORNEC E/OU ASSENT DE TUBO DE PVC COM JUNTA ELASTICA | D76: 0048 | G76: 90727 | H76: JUNTA ARGAMASSADA ENTRE TUBO DN 250 MM E O POÇO DE VISITA/ CAIXA DE CONCRETO OU ALVENARIA EM REDES DE ESGOTO. AF_01/2021 | I76: UN | J76: COEFICIENTE DE REPRESENTATIVIDADE | K76: 38.79 | L76: CAIXA REFERENCIAL
A77: ASSENTAMENTO DE TUBOS E PECAS | B77: ASTU | C77: FORNEC E/OU ASSENT DE TUBO DE PVC COM JUNTA ELASTICA | D77: 0048 | G77: 90728 | H77: JUNTA ARGAMASSADA ENTRE TUBO DN 300 MM E O POÇO DE VISITA/ CAIXA DE CONCRETO OU ALVENARIA EM REDES DE ESGOTO. AF_01/2021 | I77: UN | J77: COEFICIENTE DE REPRESENTATIVIDADE | K77: 44.07 | L77: CAIXA REFERENCIAL
A78: ASSENTAMENTO DE TUBOS E PECAS | B78: ASTU | C78: FORNEC E/OU ASSENT DE TUBO DE PVC COM JUNTA ELASTICA | D78: 0048 | G78: 90729 | H78: JUNTA ARGAMASSADA ENTRE TUBO DN 350 MM E O POÇO DE VISITA/ CAIXA DE CONCRETO OU ALVENARIA EM REDES DE ESGOTO. AF_01/2021 | I78: UN | J78: COEFICIENTE DE REPRESENTATIVIDADE | K78: 49.36 | L78: CAIXA REFERENCIAL
A79: ASSENTAMENTO DE TUBOS E PECAS | B79: ASTU | C79: FORNEC E/OU ASSENT DE TUBO DE PVC COM JUNTA ELASTICA | D79: 0048 | G79: 90730 | H79: JUNTA ARGAMASSADA ENTRE TUBO DN 400 MM E O POÇO DE VISITA/ CAIXA DE CONCRETO OU ALVENARIA EM REDES DE ESGOTO. AF_01/2021 | I79: UN | J79: COEFICIENTE DE REPRESENTATIVIDADE | K79: 54.64 | L79: CAIXA REFERENCIAL
A80: ASSENTAMENTO DE TUBOS E PECAS | B80: ASTU | C80: FORNEC E/OU ASSENT DE TUBO DE PVC COM JUNTA ELASTICA | D80: 0048 | G80: 90731 | H80: JUNTA ARGAMASSADA ENTRE TUBO DN 450 MM E O POÇO DE VISITA/ CAIXA DE CONCRETO OU ALVENARIA EM REDES DE ESGOTO. AF_01/2021 | I80: UN | J80: COEFICIENTE DE REPRESENTATIVIDADE | K80: 59.93 | L80: CAIXA REFERENCIAL
A81: ASSENTAMENTO DE TUBOS E PECAS | B81: ASTU | C81: FORNEC E/OU ASSENT DE TUBO DE PVC COM JUNTA ELASTICA | D81: 0048 | G81: 90732 | H81: JUNTA ARGAMASSADA ENTRE TUBO DN 600 MM E O POÇO DE VISITA/ CAIXA DE CONCRETO OU ALVENARIA EM REDES DE ESGOTO. AF_01/2021 | I81: UN | J81: COEFICIENTE DE REPRESENTATIVIDADE | K81: 75.78 | L81: CAIXA REFERENCIAL
A82: ASSENTAMENTO DE TUBOS E PECAS | B82: ASTU | C82: FORNEC E/OU ASSENT DE TUBO DE PVC COM JUNTA ELASTICA | D82: 0048 | G82: 90733 | H82: ASSENTAMENTO DE TUBO DE PVC PARA REDE COLETORA DE ESGOTO DE PAREDE MACIÇA, DN 100 MM, JUNTA ELÁSTICA (NÃO INCLUI FORNECIMENTO). AF_01/2021 | I82: M | J82: COEFICIENTE DE REPRESENTATIVIDADE | K82: 3.21 | L82: CAIXA REFERENCIAL
A83: ASSENTAMENTO DE TUBOS E PECAS | B83: ASTU | C83: FORNEC E/OU ASSENT DE TUBO DE PVC COM JUNTA ELASTICA | D83: 0048 | G83: 90734 | H83: ASSENTAMENTO DE TUBO DE PVC PARA REDE COLETORA DE ESGOTO DE PAREDE MACIÇA, DN 150 MM, JUNTA ELÁSTICA, (NÃO INCLUI FORNECIMENTO). AF_01/2021 | I83: M | J83: COEFICIENTE DE REPRESENTATIVIDADE | K83: 3.8 | L83: CAIXA REFERENCIAL
A84: ASSENTAMENTO DE TUBOS E PECAS | B84: ASTU | C84: FORNEC E/OU ASSENT DE TUBO DE PVC COM JUNTA ELASTICA | D84: 0048 | G84: 90735 | H84: ASSENTAMENTO DE TUBO DE PVC PARA REDE COLETORA DE ESGOTO DE PAREDE MACIÇA, DN 200 MM, JUNTA ELÁSTICA (NÃO INCLUI FORNECIMENTO). AF_01/2021 | I84: M | J84: COEFICIENTE DE REPRESENTATIVIDADE | K84: 4.39 | L84: CAIXA REFERENCIAL
A85: ASSENTAMENTO DE TUBOS E PECAS | B85: ASTU | C85: FORNEC E/OU ASSENT DE TUBO DE PVC COM JUNTA ELASTICA | D85: 0048 | G85: 90736 | H85: ASSENTAMENTO DE TUBO DE PVC PARA REDE COLETORA DE ESGOTO DE PAREDE MACIÇA, DN 250 MM, JUNTA ELÁSTICA (NÃO INCLUI FORNECIMENTO). AF_01/2021 | I85: M | J85: COEFICIENTE DE REPRESENTATIVIDADE | K85: 4.99 | L85: CAIXA REFERENCIAL
A86: ASSENTAMENTO DE TUBOS E PECAS | B86: ASTU | C86: FORNEC E/OU ASSENT DE TUBO DE PVC COM JUNTA ELASTICA | D86: 0048 | G86: 90737 | H86: ASSENTAMENTO DE TUBO DE PVC PARA REDE COLETORA DE ESGOTO DE PAREDE MACIÇA, DN 300 MM, JUNTA ELÁSTICA (NÃO INCLUI FORNECIMENTO). AF_01/2021 | I86: M | J86: COEFICIENTE DE REPRESENTATIVIDADE | K86: 5.58 | L86: CAIXA REFERENCIAL
A87: ASSENTAMENTO DE TUBOS E PECAS | B87: ASTU | C87: FORNEC E/OU ASSENT DE TUBO DE PVC COM JUNTA ELASTICA | D87: 0048 | G87: 90738 | H87: ASSENTAMENTO DE TUBO DE PVC PARA REDE COLETORA DE ESGOTO DE PAREDE MACIÇA, DN 350 MM, JUNTA ELÁSTICA (NÃO INCLUI FORNECIMENTO). AF_01/2021 | I87: M | J87: COEFICIENTE DE REPRESENTATIVIDADE | K87: 6.18 | L87: CAIXA REFERENCIAL
A88: ASSENTAMENTO DE TUBOS E PECAS | B88: ASTU | C88: FORNEC E/OU ASSENT DE TUBO DE PVC COM JUNTA ELASTICA | D88: 0048 | G88: 90739 | H88: ASSENTAMENTO DE TUBO DE PVC PARA REDE COLETORA DE ESGOTO DE PAREDE MACIÇA, DN 400 MM, JUNTA ELÁSTICA (NÃO INCLUI FORNECIMENTO). AF_01/2021 | I88: M | J88: COEFICIENTE DE REPRESENTATIVIDADE | K88: 9.48 | L88: CAIXA REFERENCIAL
A89: ASSENTAMENTO DE TUBOS E PECAS | B89: ASTU | C89: FORNEC E/OU ASSENT DE TUBO DE PVC COM JUNTA ELASTICA | D89: 0048 | G89: 90740 | H89: ASSENTAMENTO DE TUBO DE PVC CORRUGADO DE DUPLA PAREDE PARA REDE COLETORA DE ESGOTO, DN 150 MM, JUNTA ELÁSTICA (NÃO INCLUI FORNECIMENTO). AF_01/2021 | I89: M | J89: COEFICIENTE DE REPRESENTATIVIDADE | K89: 4.24 | L89: CAIXA REFERENCIAL
A90: ASSENTAMENTO DE TUBOS E PECAS | B90: ASTU | C90: FORNEC E/OU ASSENT DE TUBO DE PVC COM JUNTA ELASTICA | D90: 0048 | G90: 90741 | H90: ASSENTAMENTO DE TUBO DE PVC CORRUGADO DE DUPLA PAREDE PARA REDE COLETORA DE ESGOTO, DN 200 MM, JUNTA ELÁSTICA (NÃO INCLUI FORNECIMENTO). AF_01/2021 | I90: M | J90: COEFICIENTE DE REPRESENTATIVIDADE | K90: 4.83 | L90: CAIXA REFERENCIAL
A91: ASSENTAMENTO DE TUBOS E PECAS | B91: ASTU | C91: FORNEC E/OU ASSENT DE TUBO DE PVC COM JUNTA ELASTICA | D91: 0048 | G91: 90742 | H91: ASSENTAMENTO DE TUBO DE PVC CORRUGADO DE DUPLA PAREDE PARA REDE COLETORA DE ESGOTO, DN 250 MM, JUNTA ELÁSTICA (NÃO INCLUI FORNECIMENTO). AF_01/2021 | I91: M | J91: COEFICIENTE DE REPRESENTATIVIDADE | K91: 5.42 | L91: CAIXA REFERENCIAL
A92: ASSENTAMENTO DE TUBOS E PECAS | B92: ASTU | C92: FORNEC E/OU ASSENT DE TUBO DE PVC COM JUNTA ELASTICA | D92: 0048 | G92: 90743 | H92: ASSENTAMENTO DE TUBO DE PVC CORRUGADO DE DUPLA PAREDE PARA REDE COLETORA DE ESGOTO, DN 300 MM, JUNTA ELÁSTICA (NÃO INCLUI FORNECIMENTO). AF_01/2021 | I92: M | J92: COEFICIENTE DE REPRESENTATIVIDADE | K92: 6.01 | L92: CAIXA REFERENCIAL
A93: ASSENTAMENTO DE TUBOS E PECAS | B93: ASTU | C93: FORNEC E/OU ASSENT DE TUBO DE PVC COM JUNTA ELASTICA | D93: 0048 | G93: 90744 | H93: ASSENTAMENTO DE TUBO DE PVC CORRUGADO DE DUPLA PAREDE PARA REDE COLETORA DE ESGOTO, DN 350 MM, JUNTA ELÁSTICA (NÃO INCLUI FORNECIMENTO). AF_01/2021 | I93: M | J93: COEFICIENTE DE REPRESENTATIVIDADE | K93: 6.62 | L93: CAIXA REFERENCIAL
A94: ASSENTAMENTO DE TUBOS E PECAS | B94: ASTU | C94: FORNEC E/OU ASSENT DE TUBO DE PVC COM JUNTA ELASTICA | D94: 0048 | G94: 90745 | H94: ASSENTAMENTO DE TUBO DE PVC CORRUGADO DE DUPLA PAREDE PARA REDE COLETORA DE ESGOTO, DN 400 MM, JUNTA ELÁSTICA (NÃO INCLUI FORNECIMENTO). AF_01/2021 | I94: M | J94: COEFICIENTE DE REPRESENTATIVIDADE | K94: 10.57 | L94: CAIXA REFERENCIAL
A95: ASSENTAMENTO DE TUBOS E PECAS | B95: ASTU | C95: FORNEC E/OU ASSENT DE TUBO DE PVC COM JUNTA ELASTICA | D95: 0048 | G95: 90746 | H95: ASSENTAMENTO DE TUBO DE PEAD CORRUGADO DE DUPLA PAREDE PARA REDE COLETORA DE ESGOTO, DN 450 MM, JUNTA ELÁSTICA INTEGRADA (NÃO INCLUI FORNECIMENTO). AF_01/2021 | I95: M | J95: COEFICIENTE DE REPRESENTATIVIDADE | K95: 3.47 | L95: CAIXA REFERENCIAL
A96: ASSENTAMENTO DE TUBOS E PECAS | B96: ASTU | C96: FORNEC E/OU ASSENT DE TUBO DE PVC COM JUNTA ELASTICA | D96: 0048 | G96: 90747 | H96: ASSENTAMENTO DE TUBO DE PEAD CORRUGADO DE DUPLA PAREDE PARA REDE COLETORA DE ESGOTO, DN 600 MM, JUNTA ELÁSTICA INTEGRADA (NÃO INCLUI FORNECIMENTO). AF_01/2021 | I96: M | J96: COEFICIENTE DE REPRESENTATIVIDADE | K96: 17.25 | L96: CAIXA REFERENCIAL
A97: ASSENTAMENTO DE TUBOS E PECAS | B97: ASTU | C97: FORNEC E/OU ASSENT DE TUBO DE PVC COM JUNTA ELASTICA | D97: 0048 | G97: 94869 | H97: TUBO DE PEAD CORRUGADO DE DUPLA PAREDE PARA REDE COLETORA DE ESGOTO, DN 250 MM, JUNTA ELÁSTICA INTEGRADA - FORNECIMENTO E ASSENTAMENTO. AF_01/2021 | I97: M | J97: COEFICIENTE DE REPRESENTATIVIDADE | K97: 316.22 | L97: CAIXA REFERENCIAL
A98: ASSENTAMENTO DE TUBOS E PECAS | B98: ASTU | C98: FORNEC E/OU ASSENT DE TUBO DE PVC COM JUNTA ELASTICA | D98: 0048 | G98: 94870 | H98: ASSENTAMENTO DE TUBO DE PEAD CORRUGADO DE DUPLA PAREDE PARA REDE COLETORA DE ESGOTO, DN 250 MM, JUNTA ELÁSTICA INTEGRADA (NÃO INCLUI FORNECIMENTO). AF_01/2021 | I98: M | J98: COEFICIENTE DE REPRESENTATIVIDADE | K98: 1.74 | L98: CAIXA REFERENCIAL
A99: ASSENTAMENTO DE TUBOS E PECAS | B99: ASTU | C99: FORNEC E/OU ASSENT DE TUBO DE PVC COM JUNTA ELASTICA | D99: 0048 | G99: 94871 | H99: TUBO DE PEAD CORRUGADO DE DUPLA PAREDE PARA REDE COLETORA DE ESGOTO, DN 300 MM, JUNTA ELÁSTICA INTEGRADA - FORNECIMENTO E ASSENTAMENTO. AF_01/2021 | I99: M | J99: COEFICIENTE DE REPRESENTATIVIDADE | K99: 495.17 | L99: CAIXA REFERENCIAL
A100: ASSENTAMENTO DE TUBOS E PECAS | B100: ASTU | C100: FORNEC E/OU ASSENT DE TUBO DE PVC COM JUNTA ELASTICA | D100: 0048 | G100: 94872 | H100: ASSENTAMENTO DE TUBO DE PEAD CORRUGADO DE DUPLA PAREDE PARA REDE COLETORA DE ESGOTO, DN 300 MM, JUNTA ELÁSTICA INTEGRADA (NÃO INCLUI FORNECIMENTO). AF_01/2021 | I100: M | J100: COEFICIENTE DE REPRESENTATIVIDADE | K100: 2.47 | L100: CAIXA REFERENCIAL
A101: ASSENTAMENTO DE TUBOS E PECAS | B101: ASTU | C101: FORNEC E/OU ASSENT DE TUBO DE PVC COM JUNTA ELASTICA | D101: 0048 | G101: 94875 | H101: TUBO DE PEAD CORRUGADO DE DUPLA PAREDE PARA REDE COLETORA DE ESGOTO, DN 800 MM, JUNTA ELÁSTICA INTEGRADA - FORNECIMENTO E ASSENTAMENTO. AF_01/2021 | I101: M | J101: COEFICIENTE DE REPRESENTATIVIDADE | K101: 2899.33 | L101: CAIXA REFERENCIAL
A102: ASSENTAMENTO DE TUBOS E PECAS | B102: ASTU | C102: FORNEC E/OU ASSENT DE TUBO DE PVC COM JUNTA ELASTICA | D102: 0048 | G102: 94876 | H102: ASSENTAMENTO DE TUBO DE PEAD CORRUGADO DE DUPLA PAREDE PARA REDE COLETORA DE ESGOTO, DN 800 MM, JUNTA ELÁSTICA INTEGRADA (NÃO INCLUI FORNECIMENTO). AF_01/2021 | I102: M | J102: COEFICIENTE DE REPRESENTATIVIDADE | K102: 28.59 | L102: CAIXA REFERENCIAL
A103: ASSENTAMENTO DE TUBOS E PECAS | B103: ASTU | C103: FORNEC E/OU ASSENT DE TUBO DE PVC COM JUNTA ELASTICA | D103: 0048 | G103: 94878 | H103: ASSENTAMENTO DE TUBO DE PEAD CORRUGADO DE DUPLA PAREDE PARA REDE COLETORA DE ESGOTO, DN 900 MM, JUNTA ELÁSTICA INTEGRADA (NÃO INCLUI FORNECIMENTO). AF_01/2021 | I103: M | J103: COEFICIENTE DE REPRESENTATIVIDADE | K103: 33.14 | L103: CAIXA REFERENCIAL
A104: ASSENTAMENTO DE TUBOS E PECAS | B104: ASTU | C104: FORNEC E/OU ASSENT DE TUBO DE PVC COM JUNTA ELASTICA | D104: 0048 | G104: 94879 | H104: TUBO DE PEAD CORRUGADO DE DUPLA PAREDE PARA REDE COLETORA DE ESGOTO, DN 1000 MM, JUNTA ELÁSTICA INTEGRADA - FORNECIMENTO E ASSENTAMENTO. AF_01/2021 | I104: M | J104: COEFICIENTE DE REPRESENTATIVIDADE | K104: 4464.79 | L104: CAIXA REFERENCIAL
A105: ASSENTAMENTO DE TUBOS E PECAS | B105: ASTU | C105: FORNEC E/OU ASSENT DE TUBO DE PVC COM JUNTA ELASTICA | D105: 0048 | G105: 94880 | H105: ASSENTAMENTO DE TUBO DE PEAD CORRUGADO DE DUPLA PAREDE PARA REDE COLETORA DE ESGOTO, DN 1000 MM, JUNTA ELÁSTICA INTEGRADA (NÃO INCLUI FORNECIMENTO). AF_01/2021 | I105: M | J105: COEFICIENTE DE REPRESENTATIVIDADE | K105: 42.48 | L105: CAIXA REFERENCIAL
A106: ASSENTAMENTO DE TUBOS E PECAS | B106: ASTU | C106: FORNEC E/OU ASSENT DE TUBO DE PVC COM JUNTA ELASTICA | D106: 0048 | G106: 94881 | H106: TUBO DE PEAD CORRUGADO DE DUPLA PAREDE PARA REDE COLETORA DE ESGOTO, DN 1200 MM, JUNTA ELÁSTICA INTEGRADA - FORNECIMENTO E ASSENTAMENTO. AF_01/2021 | I106: M | J106: COEFICIENTE DE REPRESENTATIVIDADE | K106: 6161.38 | L106: CAIXA REFERENCIAL
A107: ASSENTAMENTO DE TUBOS E PECAS | B107: ASTU | C107: FORNEC E/OU ASSENT DE TUBO DE PVC COM JUNTA ELASTICA | D107: 0048 | G107: 94882 | H107: ASSENTAMENTO DE TUBO DE PEAD CORRUGADO DE DUPLA PAREDE PARA REDE COLETORA DE ESGOTO, DN 1200 MM, JUNTA ELÁSTICA INTEGRADA (NÃO INCLUI FORNECIMENTO). AF_01/2021 | I107: M | J107: COEFICIENTE DE REPRESENTATIVIDADE | K107: 49.47 | L107: CAIXA REFERENCIAL
A108: ASSENTAMENTO DE TUBOS E PECAS | B108: ASTU | C108: FORNEC E/OU ASSENT DE TUBO DE PVC COM JUNTA ELASTICA | D108: 0048 | G108: 94884 | H108: ASSENTAMENTO DE TUBO DE PEAD CORRUGADO DE DUPLA PAREDE PARA REDE COLETORA DE ESGOTO, DN 1500 MM, JUNTA ELÁSTICA INTEGRADA (NÃO INCLUI FORNECIMENTO). AF_01/2021 | I108: M | J108: COEFICIENTE DE REPRESENTATIVIDADE | K108: 63.66 | L108: CAIXA REFERENCIAL
A109: ASSENTAMENTO DE TUBOS E PECAS | B109: ASTU | C109: FORNEC E/OU ASSENT DE TUBO DE PVC COM JUNTA ELASTICA | D109: 0048 | G109: 97121 | H109: ASSENTAMENTO DE TUBO DE PVC PBA PARA REDE DE ÁGUA, DN 50 MM, JUNTA ELÁSTICA INTEGRADA, INSTALADO EM LOCAL COM NÍVEL ALTO DE INTERFERÊNCIAS (NÃO INCLUI FORNECIMENTO). AF_11/2017 | I109: M | J109: COEFICIENTE DE REPRESENTATIVIDADE | K109: 1.91 | L109: CAIXA REFERENCIAL
A110: ASSENTAMENTO DE TUBOS E PECAS | B110: ASTU | C110: FORNEC E/OU ASSENT DE TUBO DE PVC COM JUNTA ELASTICA | D110: 0048 | G110: 97122 | H110: ASSENTAMENTO DE TUBO DE PVC PBA PARA REDE DE ÁGUA, DN 75 MM, JUNTA ELÁSTICA INTEGRADA, INSTALADO EM LOCAL COM NÍVEL ALTO DE INTERFERÊNCIAS (NÃO INCLUI FORNECIMENTO). AF_11/2017 | I110: M | J110: COEFICIENTE DE REPRESENTATIVIDADE | K110: 2.65 | L110: CAIXA REFERENCIAL
A111: ASSENTAMENTO DE TUBOS E PECAS | B111: ASTU | C111: FORNEC E/OU ASSENT DE TUBO DE PVC COM JUNTA ELASTICA | D111: 0048 | G111: 97123 | H111: ASSENTAMENTO DE TUBO DE PVC PBA PARA REDE DE ÁGUA, DN 100 MM, JUNTA ELÁSTICA INTEGRADA, INSTALADO EM LOCAL COM NÍVEL ALTO DE INTERFERÊNCIAS (NÃO INCLUI FORNECIMENTO). AF_11/2017 | I111: M | J111: COEFICIENTE DE REPRESENTATIVIDADE | K111: 3.36 | L111: CAIXA REFERENCIAL
A112: ASSENTAMENTO DE TUBOS E PECAS | B112: ASTU | C112: FORNEC E/OU ASSENT DE TUBO DE PVC COM JUNTA ELASTICA | D112: 0048 | G112: 97124 | H112: ASSENTAMENTO DE TUBO DE PVC PBA PARA REDE DE ÁGUA, DN 50 MM, JUNTA ELÁSTICA INTEGRADA, INSTALADO EM LOCAL COM NÍVEL BAIXO DE INTERFERÊNCIAS (NÃO INCLUI FORNECIMENTO). AF_11/2017 | I112: M | J112: COEFICIENTE DE REPRESENTATIVIDADE | K112: 0.84 | L112: CAIXA REFERENCIAL
A113: ASSENTAMENTO DE TUBOS E PECAS | B113: ASTU | C113: FORNEC E/OU ASSENT DE TUBO DE PVC COM JUNTA ELASTICA | D113: 0048 | G113: 97125 | H113: ASSENTAMENTO DE TUBO DE PVC PBA PARA REDE DE ÁGUA, DN 75 MM, JUNTA ELÁSTICA INTEGRADA, INSTALADO EM LOCAL COM NÍVEL BAIXO DE INTERFERÊNCIAS (NÃO INCLUI FORNECIMENTO). AF_11/2017 | I113: M | J113: COEFICIENTE DE REPRESENTATIVIDADE | K113: 1.19 | L113: CAIXA REFERENCIAL
A114: ASSENTAMENTO DE TUBOS E PECAS | B114: ASTU | C114: FORNEC E/OU ASSENT DE TUBO DE PVC COM JUNTA ELASTICA | D114: 0048 | G114: 97126 | H114: ASSENTAMENTO DE TUBO DE PVC PBA PARA REDE DE ÁGUA, DN 100 MM, JUNTA ELÁSTICA INTEGRADA, INSTALADO EM LOCAL COM NÍVEL BAIXO DE INTERFERÊNCIAS (NÃO INCLUI FORNECIMENTO). AF_11/2017 | I114: M | J114: COEFICIENTE DE REPRESENTATIVIDADE | K114: 1.51 | L114: CAIXA REFERENCIAL
A115: ASSENTAMENTO DE TUBOS E PECAS | B115: ASTU | C115: FORNEC E/OU ASSENT DE TUBO DE PVC COM JUNTA ELASTICA | D115: 0048 | G115: 102264 | H115: TUBO DE PVC BRANCO PARA REDE COLETORA DE ESGOTO CONDOMINIAL DE PAREDE MACIÇA, DN 100 MM, JUNTA ELÁSTICA - FORNECIMENTO E ASSENTAMENTO. AF_01/2021 | I115: M | J115: COEFICIENTE DE REPRESENTATIVIDADE | K115: 16.9 | L115: CAIXA REFERENCIAL
A116: ASSENTAMENTO DE TUBOS E PECAS | B116: ASTU | C116: FORNEC E/OU ASSENT DE TUBO DE PVC COM JUNTA ELASTICA | D116: 0048 | G116: 102265 | H116: JUNTA ARGAMASSADA ENTRE TUBO DN 800 MM E O POÇO DE VISITA/ CAIXA DE CONCRETO OU ALVENARIA EM REDES DE ESGOTO. AF_01/2021 | I116: UN | J116: COEFICIENTE DE REPRESENTATIVIDADE | K116: 96.9 | L116: CAIXA REFERENCIAL
A117: ASSENTAMENTO DE TUBOS E PECAS | B117: ASTU | C117: FORNEC E/OU ASSENT DE TUBO DE PVC COM JUNTA ELASTICA | D117: 0048 | G117: 102266 | H117: JUNTA ARGAMASSADA ENTRE TUBO DN 900 MM E O POÇO DE VISITA/ CAIXA DE CONCRETO OU ALVENARIA EM REDES DE ESGOTO. AF_01/2021 | I117: UN | J117: COEFICIENTE DE REPRESENTATIVIDADE | K117: 107.47 | L117: CAIXA REFERENCIAL
A118: ASSENTAMENTO DE TUBOS E PECAS | B118: ASTU | C118: FORNEC E/OU ASSENT DE TUBO DE PVC COM JUNTA ELASTICA | D118: 0048 | G118: 102267 | H118: JUNTA ARGAMASSADA ENTRE TUBO DN 1000 MM E O POÇO DE VISITA/ CAIXA DE CONCRETO OU ALVENARIA EM REDES DE ESGOTO. AF_01/2021 | I118: UN | J118: COEFICIENTE DE REPRESENTATIVIDADE | K118: 123.38 | L118: CAIXA REFERENCIAL
A119: ASSENTAMENTO DE TUBOS E PECAS | B119: ASTU | C119: FORNEC E/OU ASSENT DE TUBO DE PVC COM JUNTA ELASTICA | D119: 0048 | G119: 102268 | H119: JUNTA ARGAMASSADA ENTRE TUBO DN 1200 MM E O POÇO DE VISITA/ CAIXA DE CONCRETO OU ALVENARIA EM REDES DE ESGOTO. AF_01/2021 | I119: UN | J119: COEFICIENTE DE REPRESENTATIVIDADE | K119: 139.23 | L119: CAIXA REFERENCIAL
A120: ASSENTAMENTO DE TUBOS E PECAS | B120: ASTU | C120: FORNEC E/OU ASSENT DE TUBO DE PVC COM JUNTA ELASTICA | D120: 0048 | G120: 102269 | H120: JUNTA ARGAMASSADA ENTRE TUBO DN 1500 MM E O POÇO DE VISITA/ CAIXA DE CONCRETO OU ALVENARIA EM REDES DE ESGOTO. AF_01/2021 | I120: UN | J120: COEFICIENTE DE REPRESENTATIVIDADE | K120: 170.92 | L120: CAIXA REFERENCIAL
A121: ASSENTAMENTO DE TUBOS E PECAS | B121: ASTU | C121: FORNEC E/OU ASSENT DE TUBO DE CONCRETO COM JUNTA ELASTICA | D121: 0051 | G121: 92833 | H121: TUBO DE CONCRETO PARA REDES COLETORAS DE ESGOTO SANITÁRIO, DIÂMETRO DE 300 MM, JUNTA ELÁSTICA, INSTALADO EM LOCAL COM BAIXO NÍVEL DE INTERFERÊNCIAS - FORNECIMENTO E ASSENTAMENTO. AF_03/2024 | I121: M | J121: COEFICIENTE DE REPRESENTATIVIDADE | K121: 174.61 | L121: CAIXA REFERENCIAL
A122: ASSENTAMENTO DE TUBOS E PECAS | B122: ASTU | C122: FORNEC E/OU ASSENT DE TUBO DE CONCRETO COM JUNTA ELASTICA | D122: 0051 | G122: 92834 | H122: ASSENTAMENTO DE TUBO DE CONCRETO PARA REDES COLETORAS DE ESGOTO SANITÁRIO, DIÂMETRO DE 300 MM, JUNTA ELÁSTICA, INSTALADO EM LOCAL COM BAIXO NÍVEL DE INTERFERÊNCIAS (NÃO INCLUI FORNECIMENTO). AF_03/2024 | I122: M | J122: COEFICIENTE DE REPRESENTATIVIDADE | K122: 22.72 | L122: CAIXA REFERENCIAL
A123: ASSENTAMENTO DE TUBOS E PECAS | B123: ASTU | C123: FORNEC E/OU ASSENT DE TUBO DE CONCRETO COM JUNTA ELASTICA | D123: 0051 | G123: 92835 | H123: TUBO DE CONCRETO PARA REDES COLETORAS DE ESGOTO SANITÁRIO, DIÂMETRO DE 400 MM, JUNTA ELÁSTICA, INSTALADO EM LOCAL COM BAIXO NÍVEL DE INTERFERÊNCIAS - FORNECIMENTO E ASSENTAMENTO. AF_03/2024 | I123: M | J123: COEFICIENTE DE REPRESENTATIVIDADE | K123: 185.45 | L123: CAIXA REFERENCIAL
A124: ASSENTAMENTO DE TUBOS E PECAS | B124: ASTU | C124: FORNEC E/OU ASSENT DE TUBO DE CONCRETO COM JUNTA ELASTICA | D124: 0051 | G124: 92836 | H124: ASSENTAMENTO DE TUBO DE CONCRETO PARA REDES COLETORAS DE ESGOTO SANITÁRIO, DIÂMETRO DE 400 MM, JUNTA ELÁSTICA, INSTALADO EM LOCAL COM BAIXO NÍVEL DE INTERFERÊNCIAS (NÃO INCLUI FORNECIMENTO). AF_03/2024 | I124: M | J124: COEFICIENTE DE REPRESENTATIVIDADE | K124: 29.66 | L124: CAIXA REFERENCIAL
A125: ASSENTAMENTO DE TUBOS E PECAS | B125: ASTU | C125: FORNEC E/OU ASSENT DE TUBO DE CONCRETO COM JUNTA ELASTICA | D125: 0051 | G125: 92837 | H125: TUBO DE CONCRETO PARA REDES COLETORAS DE ESGOTO SANITÁRIO, DIÂMETRO DE 500 MM, JUNTA ELÁSTICA, INSTALADO EM LOCAL COM BAIXO NÍVEL DE INTERFERÊNCIAS - FORNECIMENTO E ASSENTAMENTO. AF_03/2024 | I125: M | J125: COEFICIENTE DE REPRESENTATIVIDADE | K125: 325.29 | L125: CAIXA REFERENCIAL
A126: ASSENTAMENTO DE TUBOS E PECAS | B126: ASTU | C126: FORNEC E/OU ASSENT DE TUBO DE CONCRETO COM JUNTA ELASTICA | D126: 0051 | G126: 92838 | H126: ASSENTAMENTO DE TUBO DE CONCRETO PARA REDES COLETORAS DE ESGOTO SANITÁRIO, DIÂMETRO DE 500 MM, JUNTA ELÁSTICA, INSTALADO EM LOCAL COM BAIXO NÍVEL DE INTERFERÊNCIAS (NÃO INCLUI FORNECIMENTO). AF_03/2024 | I126: M | J126: COEFICIENTE DE REPRESENTATIVIDADE | K126: 37.07 | L126: CAIXA REFERENCIAL
A127: ASSENTAMENTO DE TUBOS E PECAS | B127: ASTU | C127: FORNEC E/OU ASSENT DE TUBO DE CONCRETO COM JUNTA ELASTICA | D127: 0051 | G127: 92839 | H127: TUBO DE CONCRETO PARA REDES COLETORAS DE ESGOTO SANITÁRIO, DIÂMETRO DE 600 MM, JUNTA ELÁSTICA, INSTALADO EM LOCAL COM BAIXO NÍVEL DE INTERFERÊNCIAS - FORNECIMENTO E ASSENTAMENTO. AF_03/2024 | I127: M | J127: COEFICIENTE DE REPRESENTATIVIDADE | K127: 398.53 | L127: CAIXA REFERENCIAL
A128: ASSENTAMENTO DE TUBOS E PECAS | B128: ASTU | C128: FORNEC E/OU ASSENT DE TUBO DE CONCRETO COM JUNTA ELASTICA | D128: 0051 | G128: 92840 | H128: ASSENTAMENTO DE TUBO DE CONCRETO PARA REDES COLETORAS DE ESGOTO SANITÁRIO, DIÂMETRO DE 600 MM, JUNTA ELÁSTICA, INSTALADO EM LOCAL COM BAIXO NÍVEL DE INTERFERÊNCIAS (NÃO INCLUI FORNECIMENTO). AF_03/2024 | I128: M | J128: COEFICIENTE DE REPRESENTATIVIDADE | K128: 44.87 | L128: CAIXA REFERENCIAL
A129: ASSENTAMENTO DE TUBOS E PECAS | B129: ASTU | C129: FORNEC E/OU ASSENT DE TUBO DE CONCRETO COM JUNTA ELASTICA | D129: 0051 | G129: 92841 | H129: TUBO DE CONCRETO PARA REDES COLETORAS DE ESGOTO SANITÁRIO, DIÂMETRO DE 700 MM, JUNTA ELÁSTICA, INSTALADO EM LOCAL COM BAIXO NÍVEL DE INTERFERÊNCIAS - FORNECIMENTO E ASSENTAMENTO. AF_03/2024 | I129: M | J129: COEFICIENTE DE REPRESENTATIVIDADE | K129: 518.69 | L129: CAIXA REFERENCIAL
A130: ASSENTAMENTO DE TUBOS E PECAS | B130: ASTU | C130: FORNEC E/OU ASSENT DE TUBO DE CONCRETO COM JUNTA ELASTICA | D130: 0051 | G130: 92842 | H130: ASSENTAMENTO DE TUBO DE CONCRETO PARA REDES COLETORAS DE ESGOTO SANITÁRIO, DIÂMETRO DE 700 MM, JUNTA ELÁSTICA, INSTALADO EM LOCAL COM BAIXO NÍVEL DE INTERFERÊNCIAS (NÃO INCLUI FORNECIMENTO). AF_03/2024 | I130: M | J130: COEFICIENTE DE REPRESENTATIVIDADE | K130: 56.76 | L130: CAIXA REFERENCIAL
A131: ASSENTAMENTO DE TUBOS E PECAS | B131: ASTU | C131: FORNEC E/OU ASSENT DE TUBO DE CONCRETO COM JUNTA ELASTICA | D131: 0051 | G131: 92843 | H131: TUBO DE CONCRETO PARA REDES COLETORAS DE ESGOTO SANITÁRIO, DIÂMETRO DE 800 MM, JUNTA ELÁSTICA, INSTALADO EM LOCAL COM BAIXO NÍVEL DE INTERFERÊNCIAS - FORNECIMENTO E ASSENTAMENTO. AF_03/2024 | I131: M | J131: COEFICIENTE DE REPRESENTATIVIDADE | K131: 539.87 | L131: CAIXA REFERENCIAL
A132: ASSENTAMENTO DE TUBOS E PECAS | B132: ASTU | C132: FORNEC E/OU ASSENT DE TUBO DE CONCRETO COM JUNTA ELASTICA | D132: 0051 | G132: 92844 | H132: ASSENTAMENTO DE TUBO DE CONCRETO PARA REDES COLETORAS DE ESGOTO SANITÁRIO, DIÂMETRO DE 800 MM, JUNTA ELÁSTICA, INSTALADO EM LOCAL COM BAIXO NÍVEL DE INTERFERÊNCIAS (NÃO INCLUI FORNECIMENTO). AF_03/2024 | I132: M | J132: COEFICIENTE DE REPRESENTATIVIDADE | K132: 67.73 | L132: CAIXA REFERENCIAL
A133: ASSENTAMENTO DE TUBOS E PECAS | B133: ASTU | C133: FORNEC E/OU ASSENT DE TUBO DE CONCRETO COM JUNTA ELASTICA | D133: 0051 | G133: 92845 | H133: TUBO DE CONCRETO PARA REDES COLETORAS DE ESGOTO SANITÁRIO, DIÂMETRO DE 900 MM, JUNTA ELÁSTICA, INSTALADO EM LOCAL COM BAIXO NÍVEL DE INTERFERÊNCIAS - FORNECIMENTO E ASSENTAMENTO. AF_03/2024 | I133: M | J133: COEFICIENTE DE REPRESENTATIVIDADE | K133: 793.66 | L133: CAIXA REFERENCIAL
A134: ASSENTAMENTO DE TUBOS E PECAS | B134: ASTU | C134: FORNEC E/OU ASSENT DE TUBO DE CONCRETO COM JUNTA ELASTICA | D134: 0051 | G134: 92846 | H134: ASSENTAMENTO DE TUBO DE CONCRETO PARA REDES COLETORAS DE ESGOTO SANITÁRIO, DIÂMETRO DE 900 MM, JUNTA ELÁSTICA, INSTALADO EM LOCAL COM BAIXO NÍVEL DE INTERFERÊNCIAS (NÃO INCLUI FORNECIMENTO). AF_03/2024 | I134: M | J134: COEFICIENTE DE REPRESENTATIVIDADE | K134: 77.77 | L134: CAIXA REFERENCIAL
A135: ASSENTAMENTO DE TUBOS E PECAS | B135: ASTU | C135: FORNEC E/OU ASSENT DE TUBO DE CONCRETO COM JUNTA ELASTICA | D135: 0051 | G135: 92847 | H135: TUBO DE CONCRETO PARA REDES COLETORAS DE ESGOTO SANITÁRIO, DIÂMETRO DE 1000 MM, JUNTA ELÁSTICA, INSTALADO EM LOCAL COM BAIXO NÍVEL DE INTERFERÊNCIAS - FORNECIMENTO E ASSENTAMENTO. AF_03/2024 | I135: M | J135: COEFICIENTE DE REPRESENTATIVIDADE | K135: 818.36 | L135: CAIXA REFERENCIAL
A136: ASSENTAMENTO DE TUBOS E PECAS | B136: ASTU | C136: FORNEC E/OU ASSENT DE TUBO DE CONCRETO COM JUNTA ELASTICA | D136: 0051 | G136: 92848 | H136: ASSENTAMENTO DE TUBO DE CONCRETO PARA REDES COLETORAS DE ESGOTO SANITÁRIO, DIÂMETRO DE 1000 MM, JUNTA ELÁSTICA, INSTALADO EM LOCAL COM BAIXO NÍVEL DE INTERFERÊNCIAS (NÃO INCLUI FORNECIMENTO). AF_03/2024 | I136: M | J136: COEFICIENTE DE REPRESENTATIVIDADE | K136: 92.35 | L136: CAIXA REFERENCIAL
A137: ASSENTAMENTO DE TUBOS E PECAS | B137: ASTU | C137: FORNEC E/OU ASSENT DE TUBO DE CONCRETO COM JUNTA ELASTICA | D137: 0051 | G137: 92849 | H137: TUBO DE CONCRETO PARA REDES COLETORAS DE ESGOTO SANITÁRIO, DIÂMETRO DE 300 MM, JUNTA ELÁSTICA, INSTALADO EM LOCAL COM ALTO NÍVEL DE INTERFERÊNCIAS - FORNECIMENTO E ASSENTAMENTO. AF_03/2024 | I137: M | J137: COEFICIENTE DE REPRESENTATIVIDADE | K137: 177.05 | L137: CAIXA REFERENCIAL
A138: ASSENTAMENTO DE TUBOS E PECAS | B138: ASTU | C138: FORNEC E/OU ASSENT DE TUBO DE CONCRETO COM JUNTA ELASTICA | D138: 0051 | G138: 92850 | H138: ASSENTAMENTO DE TUBO DE CONCRETO PARA REDES COLETORAS DE ESGOTO SANITÁRIO, DIÂMETRO DE 300 MM, JUNTA ELÁSTICA, INSTALADO EM LOCAL COM ALTO NÍVEL DE INTERFERÊNCIAS (NÃO INCLUI FORNECIMENTO). AF_03/2024 | I138: M | J138: COEFICIENTE DE REPRESENTATIVIDADE | K138: 25.16 | L138: CAIXA REFERENCIAL
A139: ASSENTAMENTO DE TUBOS E PECAS | B139: ASTU | C139: FORNEC E/OU ASSENT DE TUBO DE CONCRETO COM JUNTA ELASTICA | D139: 0051 | G139: 92851 | H139: TUBO DE CONCRETO PARA REDES COLETORAS DE ESGOTO SANITÁRIO, DIÂMETRO DE 400 MM, JUNTA ELÁSTICA, INSTALADO EM LOCAL COM ALTO NÍVEL DE INTERFERÊNCIAS - FORNECIMENTO E ASSENTAMENTO. AF_03/2024 | I139: M | J139: COEFICIENTE DE REPRESENTATIVIDADE | K139: 188.95 | L139: CAIXA REFERENCIAL
A140: ASSENTAMENTO DE TUBOS E PECAS | B140: ASTU | C140: FORNEC E/OU ASSENT DE TUBO DE CONCRETO COM JUNTA ELASTICA | D140: 0051 | G140: 92852 | H140: ASSENTAMENTO DE TUBO DE CONCRETO PARA REDES COLETORAS DE ESGOTO SANITÁRIO, DIÂMETRO DE 400 MM, JUNTA ELÁSTICA, INSTALADO EM LOCAL COM ALTO NÍVEL DE INTERFERÊNCIAS (NÃO INCLUI FORNECIMENTO). AF_03/2024 | I140: M | J140: COEFICIENTE DE REPRESENTATIVIDADE | K140: 33.16 | L140: CAIXA REFERENCIAL
A141: ASSENTAMENTO DE TUBOS E PECAS | B141: ASTU | C141: FORNEC E/OU ASSENT DE TUBO DE CONCRETO COM JUNTA ELASTICA | D141: 0051 | G141: 92853 | H141: TUBO DE CONCRETO PARA REDES COLETORAS DE ESGOTO SANITÁRIO, DIÂMETRO DE 500 MM, JUNTA ELÁSTICA, INSTALADO EM LOCAL COM ALTO NÍVEL DE INTERFERÊNCIAS - FORNECIMENTO E ASSENTAMENTO. AF_03/2024 | I141: M | J141: COEFICIENTE DE REPRESENTATIVIDADE | K141: 329.82 | L141: CAIXA REFERENCIAL
A142: ASSENTAMENTO DE TUBOS E PECAS | B142: ASTU | C142: FORNEC E/OU ASSENT DE TUBO DE CONCRETO COM JUNTA ELASTICA | D142: 0051 | G142: 92854 | H142: ASSENTAMENTO DE TUBO DE CONCRETO PARA REDES COLETORAS DE ESGOTO SANITÁRIO, DIÂMETRO DE 500 MM, JUNTA ELÁSTICA, INSTALADO EM LOCAL COM ALTO NÍVEL DE INTERFERÊNCIAS (NÃO INCLUI FORNECIMENTO). AF_03/2024 | I142: M | J142: COEFICIENTE DE REPRESENTATIVIDADE | K142: 41.6 | L142: CAIXA REFERENCIAL
A143: ASSENTAMENTO DE TUBOS E PECAS | B143: ASTU | C143: FORNEC E/OU ASSENT DE TUBO DE CONCRETO COM JUNTA ELASTICA | D143: 0051 | G143: 92855 | H143: TUBO DE CONCRETO PARA REDES COLETORAS DE ESGOTO SANITÁRIO, DIÂMETRO DE 600 MM, JUNTA ELÁSTICA, INSTALADO EM LOCAL COM ALTO NÍVEL DE INTERFERÊNCIAS - FORNECIMENTO E ASSENTAMENTO. AF_03/2024 | I143: M | J143: COEFICIENTE DE REPRESENTATIVIDADE | K143: 404.11 | L143: CAIXA REFERENCIAL
A144: ASSENTAMENTO DE TUBOS E PECAS | B144: ASTU | C144: FORNEC E/OU ASSENT DE TUBO DE CONCRETO COM JUNTA ELASTICA | D144: 0051 | G144: 92856 | H144: ASSENTAMENTO DE TUBO DE CONCRETO PARA REDES COLETORAS DE ESGOTO SANITÁRIO, DIÂMETRO DE 600 MM, JUNTA ELÁSTICA, INSTALADO EM LOCAL COM ALTO NÍVEL DE INTERFERÊNCIAS (NÃO INCLUI FORNECIMENTO). AF_03/2024 | I144: M | J144: COEFICIENTE DE REPRESENTATIVIDADE | K144: 50.45 | L144: CAIXA REFERENCIAL
A145: ASSENTAMENTO DE TUBOS E PECAS | B145: ASTU | C145: FORNEC E/OU ASSENT DE TUBO DE CONCRETO COM JUNTA ELASTICA | D145: 0051 | G145: 92857 | H145: TUBO DE CONCRETO PARA REDES COLETORAS DE ESGOTO SANITÁRIO, DIÂMETRO DE 700 MM, JUNTA ELÁSTICA, INSTALADO EM LOCAL COM ALTO NÍVEL DE INTERFERÊNCIAS - FORNECIMENTO E ASSENTAMENTO. AF_03/2024 | I145: M | J145: COEFICIENTE DE REPRESENTATIVIDADE | K145: 525.33 | L145: CAIXA REFERENCIAL
A146: ASSENTAMENTO DE TUBOS E PECAS | B146: ASTU | C146: FORNEC E/OU ASSENT DE TUBO DE CONCRETO COM JUNTA ELASTICA | D146: 0051 | G146: 92858 | H146: ASSENTAMENTO DE TUBO DE CONCRETO PARA REDES COLETORAS DE ESGOTO SANITÁRIO, DIÂMETRO DE 700 MM, JUNTA ELÁSTICA, INSTALADO EM LOCAL COM ALTO NÍVEL DE INTERFERÊNCIAS (NÃO INCLUI FORNECIMENTO). AF_03/2024 | I146: M | J146: COEFICIENTE DE REPRESENTATIVIDADE | K146: 63.4 | L146: CAIXA REFERENCIAL
A147: ASSENTAMENTO DE TUBOS E PECAS | B147: ASTU | C147: FORNEC E/OU ASSENT DE TUBO DE CONCRETO COM JUNTA ELASTICA | D147: 0051 | G147: 92859 | H147: TUBO DE CONCRETO PARA REDES COLETORAS DE ESGOTO SANITÁRIO, DIÂMETRO DE 800 MM, JUNTA ELÁSTICA, INSTALADO EM LOCAL COM ALTO NÍVEL DE INTERFERÊNCIAS - FORNECIMENTO E ASSENTAMENTO. AF_03/2024 | I147: M | J147: COEFICIENTE DE REPRESENTATIVIDADE | K147: 547.54 | L147: CAIXA REFERENCIAL
A148: ASSENTAMENTO DE TUBOS E PECAS | B148: ASTU | C148: FORNEC E/OU ASSENT DE TUBO DE CONCRETO COM JUNTA ELASTICA | D148: 0051 | G148: 92860 | H148: ASSENTAMENTO DE TUBO DE CONCRETO PARA REDES COLETORAS DE ESGOTO SANITÁRIO, DIÂMETRO DE 800 MM, JUNTA ELÁSTICA, INSTALADO EM LOCAL COM ALTO NÍVEL DE INTERFERÊNCIAS (NÃO INCLUI FORNECIMENTO). AF_03/2024 | I148: M | J148: COEFICIENTE DE REPRESENTATIVIDADE | K148: 75.4 | L148: CAIXA REFERENCIAL
A149: ASSENTAMENTO DE TUBOS E PECAS | B149: ASTU | C149: FORNEC E/OU ASSENT DE TUBO DE CONCRETO COM JUNTA ELASTICA | D149: 0051 | G149: 92861 | H149: TUBO DE CONCRETO PARA REDES COLETORAS DE ESGOTO SANITÁRIO, DIÂMETRO DE 900 MM, JUNTA ELÁSTICA, INSTALADO EM LOCAL COM ALTO NÍVEL DE INTERFERÊNCIAS - FORNECIMENTO E ASSENTAMENTO. AF_03/2024 | I149: M | J149: COEFICIENTE DE REPRESENTATIVIDADE | K149: 802.37 | L149: CAIXA REFERENCIAL
A150: ASSENTAMENTO DE TUBOS E PECAS | B150: ASTU | C150: FORNEC E/OU ASSENT DE TUBO DE CONCRETO COM JUNTA ELASTICA | D150: 0051 | G150: 92862 | H150: ASSENTAMENTO DE TUBO DE CONCRETO PARA REDES COLETORAS DE ESGOTO SANITÁRIO, DIÂMETRO DE 900 MM, JUNTA ELÁSTICA, INSTALADO EM LOCAL COM ALTO NÍVEL DE INTERFERÊNCIAS (NÃO INCLUI FORNECIMENTO). AF_03/2024 | I150: M | J150: COEFICIENTE DE REPRESENTATIVIDADE | K150: 86.48 | L150: CAIXA REFERENCIAL
A151: ASSENTAMENTO DE TUBOS E PECAS | B151: ASTU | C151: FORNEC E/OU ASSENT DE TUBO DE CONCRETO COM JUNTA ELASTICA | D151: 0051 | G151: 92863 | H151: TUBO DE CONCRETO PARA REDES COLETORAS DE ESGOTO SANITÁRIO, DIÂMETRO DE 1000 MM, JUNTA ELÁSTICA, INSTALADO EM LOCAL COM ALTO NÍVEL DE INTERFERÊNCIAS - FORNECIMENTO E ASSENTAMENTO. AF_03/2024 | I151: M | J151: COEFICIENTE DE REPRESENTATIVIDADE | K151: 828.12 | L151: CAIXA REFERENCIAL
A152: ASSENTAMENTO DE TUBOS E PECAS | B152: ASTU | C152: FORNEC E/OU ASSENT DE TUBO DE CONCRETO COM JUNTA ELASTICA | D152: 0051 | G152: 92864 | H152: ASSENTAMENTO DE TUBO DE CONCRETO PARA REDES COLETORAS DE ESGOTO SANITÁRIO, DIÂMETRO DE 1000 MM, JUNTA ELÁSTICA, INSTALADO EM LOCAL COM ALTO NÍVEL DE INTERFERÊNCIAS (NÃO INCLUI FORNECIMENTO). AF_03/2024 | I152: M | J152: COEFICIENTE DE REPRESENTATIVIDADE | K152: 102.11 | L152: CAIXA REFERENCIAL
A153: ASSENTAMENTO DE TUBOS E PECAS | B153: ASTU | C153: FORNEC E/OU ASSENT DE TUBO DE CONCRETO COM JUNTA ARGAMASSADA | D153: 0052 | G153: 92210 | H153: TUBO DE CONCRETO PARA REDES COLETORAS DE ÁGUAS PLUVIAIS, DIÂMETRO DE 400 MM, JUNTA RÍGIDA, INSTALADO EM LOCAL COM BAIXO NÍVEL DE INTERFERÊNCIAS - FORNECIMENTO E ASSENTAMENTO. AF_03/2024 | I153: M | J153: COEFICIENTE DE REPRESENTATIVIDADE | K153: 129.8 | L153: CAIXA REFERENCIAL
A154: ASSENTAMENTO DE TUBOS E PECAS | B154: ASTU | C154: FORNEC E/OU ASSENT DE TUBO DE CONCRETO COM JUNTA ARGAMASSADA | D154: 0052 | G154: 92211 | H154: TUBO DE CONCRETO PARA REDES COLETORAS DE ÁGUAS PLUVIAIS, DIÂMETRO DE 500 MM, JUNTA RÍGIDA, INSTALADO EM LOCAL COM BAIXO NÍVEL DE INTERFERÊNCIAS - FORNECIMENTO E ASSENTAMENTO. AF_03/2024 | I154: M | J154: COEFICIENTE DE REPRESENTATIVIDADE | K154: 158.35 | L154: CAIXA REFERENCIAL
A155: ASSENTAMENTO DE TUBOS E PECAS | B155: ASTU | C155: FORNEC E/OU ASSENT DE TUBO DE CONCRETO COM JUNTA ARGAMASSADA | D155: 0052 | G155: 92212 | H155: TUBO DE CONCRETO PARA REDES COLETORAS DE ÁGUAS PLUVIAIS, DIÂMETRO DE 600 MM, JUNTA RÍGIDA, INSTALADO EM LOCAL COM BAIXO NÍVEL DE INTERFERÊNCIAS - FORNECIMENTO E ASSENTAMENTO. AF_03/2024 | I155: M | J155: COEFICIENTE DE REPRESENTATIVIDADE | K155: 239.32 | L155: CAIXA REFERENCIAL
A156: ASSENTAMENTO DE TUBOS E PECAS | B156: ASTU | C156: FORNEC E/OU ASSENT DE TUBO DE CONCRETO COM JUNTA ARGAMASSADA | D156: 0052 | G156: 92213 | H156: TUBO DE CONCRETO PARA REDES COLETORAS DE ÁGUAS PLUVIAIS, DIÂMETRO DE 700 MM, JUNTA RÍGIDA, INSTALADO EM LOCAL COM BAIXO NÍVEL DE INTERFERÊNCIAS - FORNECIMENTO E ASSENTAMENTO. AF_03/2024 | I156: M | J156: COEFICIENTE DE REPRESENTATIVIDADE | K156: 316.94 | L156: CAIXA REFERENCIAL
A157: ASSENTAMENTO DE TUBOS E PECAS | B157: ASTU | C157: FORNEC E/OU ASSENT DE TUBO DE CONCRETO COM JUNTA ARGAMASSADA | D157: 0052 | G157: 92214 | H157: TUBO DE CONCRETO PARA REDES COLETORAS DE ÁGUAS PLUVIAIS, DIÂMETRO DE 800 MM, JUNTA RÍGIDA, INSTALADO EM LOCAL COM BAIXO NÍVEL DE INTERFERÊNCIAS - FORNECIMENTO E ASSENTAMENTO. AF_03/2024 | I157: M | J157: COEFICIENTE DE REPRESENTATIVIDADE | K157: 383.27 | L157: CAIXA REFERENCIAL
A158: ASSENTAMENTO DE TUBOS E PECAS | B158: ASTU | C158: FORNEC E/OU ASSENT DE TUBO DE CONCRETO COM JUNTA ARGAMASSADA | D158: 0052 | G158: 92215 | H158: TUBO DE CONCRETO PARA REDES COLETORAS DE ÁGUAS PLUVIAIS, DIÂMETRO DE 900 MM, JUNTA RÍGIDA, INSTALADO EM LOCAL COM BAIXO NÍVEL DE INTERFERÊNCIAS - FORNECIMENTO E ASSENTAMENTO. AF_03/2024 | I158: M | J158: COEFICIENTE DE REPRESENTATIVIDADE | K158: 440.06 | L158: CAIXA REFERENCIAL
A159: ASSENTAMENTO DE TUBOS E PECAS | B159: ASTU | C159: FORNEC E/OU ASSENT DE TUBO DE CONCRETO COM JUNTA ARGAMASSADA | D159: 0052 | G159: 92216 | H159: TUBO DE CONCRETO PARA REDES COLETORAS DE ÁGUAS PLUVIAIS, DIÂMETRO DE 1000 MM, JUNTA RÍGIDA, INSTALADO EM LOCAL COM BAIXO NÍVEL DE INTERFERÊNCIAS - FORNECIMENTO E ASSENTAMENTO. AF_03/2024 | I159: M | J159: COEFICIENTE DE REPRESENTATIVIDADE | K159: 458.09 | L159: CAIXA REFERENCIAL
A160: ASSENTAMENTO DE TUBOS E PECAS | B160: ASTU | C160: FORNEC E/OU ASSENT DE TUBO DE CONCRETO COM JUNTA ARGAMASSADA | D160: 0052 | G160: 92219 | H160: TUBO DE CONCRETO PARA REDES COLETORAS DE ÁGUAS PLUVIAIS, DIÂMETRO DE 400 MM, JUNTA RÍGIDA, INSTALADO EM LOCAL COM ALTO NÍVEL DE INTERFERÊNCIAS - FORNECIMENTO E ASSENTAMENTO. AF_03/2024 | I160: M | J160: COEFICIENTE DE REPRESENTATIVIDADE | K160: 133.29 | L160: CAIXA REFERENCIAL
A161: ASSENTAMENTO DE TUBOS E PECAS | B161: ASTU | C161: FORNEC E/OU ASSENT DE TUBO DE CONCRETO COM JUNTA ARGAMASSADA | D161: 0052 | G161: 92220 | H161: TUBO DE CONCRETO PARA REDES COLETORAS DE ÁGUAS PLUVIAIS, DIÂMETRO DE 500 MM, JUNTA RÍGIDA, INSTALADO EM LOCAL COM ALTO NÍVEL DE INTERFERÊNCIAS - FORNECIMENTO E ASSENTAMENTO. AF_03/2024 | I161: M | J161: COEFICIENTE DE REPRESENTATIVIDADE | K161: 162.9 | L161: CAIXA REFERENCIAL
A162: ASSENTAMENTO DE TUBOS E PECAS | B162: ASTU | C162: FORNEC E/OU ASSENT DE TUBO DE CONCRETO COM JUNTA ARGAMASSADA | D162: 0052 | G162: 92221 | H162: TUBO DE CONCRETO PARA REDES COLETORAS DE ÁGUAS PLUVIAIS, DIÂMETRO DE 600 MM, JUNTA RÍGIDA, INSTALADO EM LOCAL COM ALTO NÍVEL DE INTERFERÊNCIAS - FORNECIMENTO E ASSENTAMENTO. AF_03/2024 | I162: M | J162: COEFICIENTE DE REPRESENTATIVIDADE | K162: 244.89 | L162: CAIXA REFERENCIAL
A163: ASSENTAMENTO DE TUBOS E PECAS | B163: ASTU | C163: FORNEC E/OU ASSENT DE TUBO DE CONCRETO COM JUNTA ARGAMASSADA | D163: 0052 | G163: 92222 | H163: TUBO DE CONCRETO PARA REDES COLETORAS DE ÁGUAS PLUVIAIS, DIÂMETRO DE 700 MM, JUNTA RÍGIDA, INSTALADO EM LOCAL COM ALTO NÍVEL DE INTERFERÊNCIAS - FORNECIMENTO E ASSENTAMENTO. AF_03/2024 | I163: M | J163: COEFICIENTE DE REPRESENTATIVIDADE | K163: 323.56 | L163: CAIXA REFERENCIAL
A164: ASSENTAMENTO DE TUBOS E PECAS | B164: ASTU | C164: FORNEC E/OU ASSENT DE TUBO DE CONCRETO COM JUNTA ARGAMASSADA | D164: 0052 | G164: 92223 | H164: TUBO DE CONCRETO PARA REDES COLETORAS DE ÁGUAS PLUVIAIS, DIÂMETRO DE 800 MM, JUNTA RÍGIDA, INSTALADO EM LOCAL COM ALTO NÍVEL DE INTERFERÊNCIAS - FORNECIMENTO E ASSENTAMENTO. AF_03/2024 | I164: M | J164: COEFICIENTE DE REPRESENTATIVIDADE | K164: 390.92 | L164: CAIXA REFERENCIAL
A165: ASSENTAMENTO DE TUBOS E PECAS | B165: ASTU | C165: FORNEC E/OU ASSENT DE TUBO DE CONCRETO COM JUNTA ARGAMASSADA | D165: 0052 | G165: 92224 | H165: TUBO DE CONCRETO PARA REDES COLETORAS DE ÁGUAS PLUVIAIS, DIÂMETRO DE 900 MM, JUNTA RÍGIDA, INSTALADO EM LOCAL COM ALTO NÍVEL DE INTERFERÊNCIAS - FORNECIMENTO E ASSENTAMENTO. AF_03/2024 | I165: M | J165: COEFICIENTE DE REPRESENTATIVIDADE | K165: 448.78 | L165: CAIXA REFERENCIAL
A166: ASSENTAMENTO DE TUBOS E PECAS | B166: ASTU | C166: FORNEC E/OU ASSENT DE TUBO DE CONCRETO COM JUNTA ARGAMASSADA | D166: 0052 | G166: 92226 | H166: TUBO DE CONCRETO PARA REDES COLETORAS DE ÁGUAS PLUVIAIS, DIÂMETRO DE 1000 MM, JUNTA RÍGIDA, INSTALADO EM LOCAL COM ALTO NÍVEL DE INTERFERÊNCIAS - FORNECIMENTO E ASSENTAMENTO. AF_03/2024 | I166: M | J166: COEFICIENTE DE REPRESENTATIVIDADE | K166: 467.86 | L166: CAIXA REFERENCIAL
A167: ASSENTAMENTO DE TUBOS E PECAS | B167: ASTU | C167: FORNEC E/OU ASSENT DE TUBO DE CONCRETO COM JUNTA ARGAMASSADA | D167: 0052 | G167: 92808 | H167: ASSENTAMENTO DE TUBO DE CONCRETO PARA REDES COLETORAS DE ÁGUAS PLUVIAIS, DIÂMETRO DE 300 MM, JUNTA RÍGIDA, INSTALADO EM LOCAL COM BAIXO NÍVEL DE INTERFERÊNCIAS (NÃO INCLUI FORNECIMENTO). AF_03/2024 | I167: M | J167: COEFICIENTE DE REPRESENTATIVIDADE | K167: 24.43 | L167: CAIXA REFERENCIAL
A168: ASSENTAMENTO DE TUBOS E PECAS | B168: ASTU | C168: FORNEC E/OU ASSENT DE TUBO DE CONCRETO COM JUNTA ARGAMASSADA | D168: 0052 | G168: 92809 | H168: ASSENTAMENTO DE TUBO DE CONCRETO PARA REDES COLETORAS DE ÁGUAS PLUVIAIS, DIÂMETRO DE 400 MM, JUNTA RÍGIDA, INSTALADO EM LOCAL COM BAIXO NÍVEL DE INTERFERÊNCIAS (NÃO INCLUI FORNECIMENTO). AF_03/2024 | I168: M | J168: COEFICIENTE DE REPRESENTATIVIDADE | K168: 33.99 | L168: CAIXA REFERENCIAL
A169: ASSENTAMENTO DE TUBOS E PECAS | B169: ASTU | C169: FORNEC E/OU ASSENT DE TUBO DE CONCRETO COM JUNTA ARGAMASSADA | D169: 0052 | G169: 92810 | H169: ASSENTAMENTO DE TUBO DE CONCRETO PARA REDES COLETORAS DE ÁGUAS PLUVIAIS, DIÂMETRO DE 500 MM, JUNTA RÍGIDA, INSTALADO EM LOCAL COM BAIXO NÍVEL DE INTERFERÊNCIAS (NÃO INCLUI FORNECIMENTO). AF_03/2024 | I169: M | J169: COEFICIENTE DE REPRESENTATIVIDADE | K169: 43.85 | L169: CAIXA REFERENCIAL
A170: ASSENTAMENTO DE TUBOS E PECAS | B170: ASTU | C170: FORNEC E/OU ASSENT DE TUBO DE CONCRETO COM JUNTA ARGAMASSADA | D170: 0052 | G170: 92811 | H170: ASSENTAMENTO DE TUBO DE CONCRETO PARA REDES COLETORAS DE ÁGUAS PLUVIAIS, DIÂMETRO DE 600 MM, JUNTA RÍGIDA, INSTALADO EM LOCAL COM BAIXO NÍVEL DE INTERFERÊNCIAS (NÃO INCLUI FORNECIMENTO). AF_03/2024 | I170: M | J170: COEFICIENTE DE REPRESENTATIVIDADE | K170: 53.92 | L170: CAIXA REFERENCIAL
A171: ASSENTAMENTO DE TUBOS E PECAS | B171: ASTU | C171: FORNEC E/OU ASSENT DE TUBO DE CONCRETO COM JUNTA ARGAMASSADA | D171: 0052 | G171: 92812 | H171: ASSENTAMENTO DE TUBO DE CONCRETO PARA REDES COLETORAS DE ÁGUAS PLUVIAIS, DIÂMETRO DE 700 MM, JUNTA RÍGIDA, INSTALADO EM LOCAL COM BAIXO NÍVEL DE INTERFERÊNCIAS (NÃO INCLUI FORNECIMENTO). AF_03/2024 | I171: M | J171: COEFICIENTE DE REPRESENTATIVIDADE | K171: 64.24 | L171: CAIXA REFERENCIAL
A172: ASSENTAMENTO DE TUBOS E PECAS | B172: ASTU | C172: FORNEC E/OU ASSENT DE TUBO DE CONCRETO COM JUNTA ARGAMASSADA | D172: 0052 | G172: 92813 | H172: ASSENTAMENTO DE TUBO DE CONCRETO PARA REDES COLETORAS DE ÁGUAS PLUVIAIS, DIÂMETRO DE 800 MM, JUNTA RÍGIDA, INSTALADO EM LOCAL COM BAIXO NÍVEL DE INTERFERÊNCIAS (NÃO INCLUI FORNECIMENTO). AF_03/2024 | I172: M | J172: COEFICIENTE DE REPRESENTATIVIDADE | K172: 74.8 | L172: CAIXA REFERENCIAL
A173: ASSENTAMENTO DE TUBOS E PECAS | B173: ASTU | C173: FORNEC E/OU ASSENT DE TUBO DE CONCRETO COM JUNTA ARGAMASSADA | D173: 0052 | G173: 92814 | H173: ASSENTAMENTO DE TUBO DE CONCRETO PARA REDES COLETORAS DE ÁGUAS PLUVIAIS, DIÂMETRO DE 900 MM, JUNTA RÍGIDA, INSTALADO EM LOCAL COM BAIXO NÍVEL DE INTERFERÊNCIAS (NÃO INCLUI FORNECIMENTO). AF_03/2024 | I173: M | J173: COEFICIENTE DE REPRESENTATIVIDADE | K173: 85.63 | L173: CAIXA REFERENCIAL
A174: ASSENTAMENTO DE TUBOS E PECAS | B174: ASTU | C174: FORNEC E/OU ASSENT DE TUBO DE CONCRETO COM JUNTA ARGAMASSADA | D174: 0052 | G174: 92815 | H174: ASSENTAMENTO DE TUBO DE CONCRETO PARA REDES COLETORAS DE ÁGUAS PLUVIAIS, DIÂMETRO DE 1000 MM, JUNTA RÍGIDA, INSTALADO EM LOCAL COM BAIXO NÍVEL DE INTERFERÊNCIAS (NÃO INCLUI FORNECIMENTO). AF_03/2024 | I174: M | J174: COEFICIENTE DE REPRESENTATIVIDADE | K174: 96.65 | L174: CAIXA REFERENCIAL
A175: ASSENTAMENTO DE TUBOS E PECAS | B175: ASTU | C175: FORNEC E/OU ASSENT DE TUBO DE CONCRETO COM JUNTA ARGAMASSADA | D175: 0052 | G175: 92816 | H175: TUBO DE CONCRETO PARA REDES COLETORAS DE ÁGUAS PLUVIAIS, DIÂMETRO DE 1200 MM, JUNTA RÍGIDA, INSTALADO EM LOCAL COM BAIXO NÍVEL DE INTERFERÊNCIAS - FORNECIMENTO E ASSENTAMENTO. AF_03/2024 | I175: M | J175: COEFICIENTE DE REPRESENTATIVIDADE | K175: 659.28 | L175: CAIXA REFERENCIAL
A176: ASSENTAMENTO DE TUBOS E PECAS | B176: ASTU | C176: FORNEC E/OU ASSENT DE TUBO DE CONCRETO COM JUNTA ARGAMASSADA | D176: 0052 | G176: 92817 | H176: ASSENTAMENTO DE TUBO DE CONCRETO PARA REDES COLETORAS DE ÁGUAS PLUVIAIS, DIÂMETRO DE 1200 MM, JUNTA RÍGIDA, INSTALADO EM LOCAL COM BAIXO NÍVEL DE INTERFERÊNCIAS (NÃO INCLUI FORNECIMENTO). AF_03/2024 | I176: M | J176: COEFICIENTE DE REPRESENTATIVIDADE | K176: 119.45 | L176: CAIXA REFERENCIAL
A177: ASSENTAMENTO DE TUBOS E PECAS | B177: ASTU | C177: FORNEC E/OU ASSENT DE TUBO DE CONCRETO COM JUNTA ARGAMASSADA | D177: 0052 | G177: 92818 | H177: TUBO DE CONCRETO PARA REDES COLETORAS DE ÁGUAS PLUVIAIS, DIÂMETRO DE 1500 MM, JUNTA RÍGIDA, INSTALADO EM LOCAL COM BAIXO NÍVEL DE INTERFERÊNCIAS - FORNECIMENTO E ASSENTAMENTO. AF_03/2024 | I177: M | J177: COEFICIENTE DE REPRESENTATIVIDADE | K177: 937.52 | L177: CAIXA REFERENCIAL
A178: ASSENTAMENTO DE TUBOS E PECAS | B178: ASTU | C178: FORNEC E/OU ASSENT DE TUBO DE CONCRETO COM JUNTA ARGAMASSADA | D178: 0052 | G178: 92819 | H178: ASSENTAMENTO DE TUBO DE CONCRETO PARA REDES COLETORAS DE ÁGUAS PLUVIAIS, DIÂMETRO DE 1500 MM, JUNTA RÍGIDA, INSTALADO EM LOCAL COM BAIXO NÍVEL DE INTERFERÊNCIAS (NÃO INCLUI FORNECIMENTO). AF_03/2024 | I178: M | J178: COEFICIENTE DE REPRESENTATIVIDADE | K178: 155.43 | L178: CAIXA REFERENCIAL
A179: ASSENTAMENTO DE TUBOS E PECAS | B179: ASTU | C179: FORNEC E/OU ASSENT DE TUBO DE CONCRETO COM JUNTA ARGAMASSADA | D179: 0052 | G179: 92820 | H179: ASSENTAMENTO DE TUBO DE CONCRETO PARA REDES COLETORAS DE ÁGUAS PLUVIAIS, DIÂMETRO DE 300 MM, JUNTA RÍGIDA, INSTALADO EM LOCAL COM ALTO NÍVEL DE INTERFERÊNCIAS (NÃO INCLUI FORNECIMENTO). AF_03/2024 | I179: M | J179: COEFICIENTE DE REPRESENTATIVIDADE | K179: 26.9 | L179: CAIXA REFERENCIAL
A180: ASSENTAMENTO DE TUBOS E PECAS | B180: ASTU | C180: FORNEC E/OU ASSENT DE TUBO DE CONCRETO COM JUNTA ARGAMASSADA | D180: 0052 | G180: 92821 | H180: ASSENTAMENTO DE TUBO DE CONCRETO PARA REDES COLETORAS DE ÁGUAS PLUVIAIS, DIÂMETRO DE 400 MM, JUNTA RÍGIDA, INSTALADO EM LOCAL COM ALTO NÍVEL DE INTERFERÊNCIAS (NÃO INCLUI FORNECIMENTO). AF_03/2024 | I180: M | J180: COEFICIENTE DE REPRESENTATIVIDADE | K180: 37.48 | L180: CAIXA REFERENCIAL
A181: ASSENTAMENTO DE TUBOS E PECAS | B181: ASTU | C181: FORNEC E/OU ASSENT DE TUBO DE CONCRETO COM JUNTA ARGAMASSADA | D181: 0052 | G181: 92822 | H181: ASSENTAMENTO DE TUBO DE CONCRETO PARA REDES COLETORAS DE ÁGUAS PLUVIAIS, DIÂMETRO DE 500 MM, JUNTA RÍGIDA, INSTALADO EM LOCAL COM ALTO NÍVEL DE INTERFERÊNCIAS (NÃO INCLUI FORNECIMENTO). AF_03/2024 | I181: M | J181: COEFICIENTE DE REPRESENTATIVIDADE | K181: 48.4 | L181: CAIXA REFERENCIAL
A182: ASSENTAMENTO DE TUBOS E PECAS | B182: ASTU | C182: FORNEC E/OU ASSENT DE TUBO DE CONCRETO COM JUNTA ARGAMASSADA | D182: 0052 | G182: 92824 | H182: ASSENTAMENTO DE TUBO DE CONCRETO PARA REDES COLETORAS DE ÁGUAS PLUVIAIS, DIÂMETRO DE 600 MM, JUNTA RÍGIDA, INSTALADO EM LOCAL COM ALTO NÍVEL DE INTERFERÊNCIAS (NÃO INCLUI FORNECIMENTO). AF_03/2024 | I182: M | J182: COEFICIENTE DE REPRESENTATIVIDADE | K182: 59.49 | L182: CAIXA REFERENCIAL
A183: ASSENTAMENTO DE TUBOS E PECAS | B183: ASTU | C183: FORNEC E/OU ASSENT DE TUBO DE CONCRETO COM JUNTA ARGAMASSADA | D183: 0052 | G183: 92825 | H183: ASSENTAMENTO DE TUBO DE CONCRETO PARA REDES COLETORAS DE ÁGUAS PLUVIAIS, DIÂMETRO DE 700 MM, JUNTA RÍGIDA, INSTALADO EM LOCAL COM ALTO NÍVEL DE INTERFERÊNCIAS (NÃO INCLUI FORNECIMENTO). AF_03/2024 | I183: M | J183: COEFICIENTE DE REPRESENTATIVIDADE | K183: 70.86 | L183: CAIXA REFERENCIAL
A184: ASSENTAMENTO DE TUBOS E PECAS | B184: ASTU | C184: FORNEC E/OU ASSENT DE TUBO DE CONCRETO COM JUNTA ARGAMASSADA | D184: 0052 | G184: 92826 | H184: ASSENTAMENTO DE TUBO DE CONCRETO PARA REDES COLETORAS DE ÁGUAS PLUVIAIS, DIÂMETRO DE 800 MM, JUNTA RÍGIDA, INSTALADO EM LOCAL COM ALTO NÍVEL DE INTERFERÊNCIAS (NÃO INCLUI FORNECIMENTO). AF_03/2024 | I184: M | J184: COEFICIENTE DE REPRESENTATIVIDADE | K184: 82.45 | L184: CAIXA REFERENCIAL
A185: ASSENTAMENTO DE TUBOS E PECAS | B185: ASTU | C185: FORNEC E/OU ASSENT DE TUBO DE CONCRETO COM JUNTA ARGAMASSADA | D185: 0052 | G185: 92827 | H185: ASSENTAMENTO DE TUBO DE CONCRETO PARA REDES COLETORAS DE ÁGUAS PLUVIAIS, DIÂMETRO DE 900 MM, JUNTA RÍGIDA, INSTALADO EM LOCAL COM ALTO NÍVEL DE INTERFERÊNCIAS (NÃO INCLUI FORNECIMENTO). AF_03/2024 | I185: M | J185: COEFICIENTE DE REPRESENTATIVIDADE | K185: 94.35 | L185: CAIXA REFERENCIAL
A186: ASSENTAMENTO DE TUBOS E PECAS | B186: ASTU | C186: FORNEC E/OU ASSENT DE TUBO DE CONCRETO COM JUNTA ARGAMASSADA | D186: 0052 | G186: 92828 | H186: ASSENTAMENTO DE TUBO DE CONCRETO PARA REDES COLETORAS DE ÁGUAS PLUVIAIS, DIÂMETRO DE 1000 MM, JUNTA RÍGIDA, INSTALADO EM LOCAL COM ALTO NÍVEL DE INTERFERÊNCIAS (NÃO INCLUI FORNECIMENTO). AF_03/2024 | I186: M | J186: COEFICIENTE DE REPRESENTATIVIDADE | K186: 106.42 | L186: CAIXA REFERENCIAL
A187: ASSENTAMENTO DE TUBOS E PECAS | B187: ASTU | C187: FORNEC E/OU ASSENT DE TUBO DE CONCRETO COM JUNTA ARGAMASSADA | D187: 0052 | G187: 92829 | H187: TUBO DE CONCRETO PARA REDES COLETORAS DE ÁGUAS PLUVIAIS, DIÂMETRO DE 1200 MM, JUNTA RÍGIDA, INSTALADO EM LOCAL COM ALTO NÍVEL DE INTERFERÊNCIAS - FORNECIMENTO E ASSENTAMENTO. AF_03/2024 | I187: M | J187: COEFICIENTE DE REPRESENTATIVIDADE | K187: 671.13 | L187: CAIXA REFERENCIAL
A188: ASSENTAMENTO DE TUBOS E PECAS | B188: ASTU | C188: FORNEC E/OU ASSENT DE TUBO DE CONCRETO COM JUNTA ARGAMASSADA | D188: 0052 | G188: 92830 | H188: ASSENTAMENTO DE TUBO DE CONCRETO PARA REDES COLETORAS DE ÁGUAS PLUVIAIS, DIÂMETRO DE 1200 MM, JUNTA RÍGIDA, INSTALADO EM LOCAL COM ALTO NÍVEL DE INTERFERÊNCIAS (NÃO INCLUI FORNECIMENTO). AF_03/2024 | I188: M | J188: COEFICIENTE DE REPRESENTATIVIDADE | K188: 131.3 | L188: CAIXA REFERENCIAL
A189: ASSENTAMENTO DE TUBOS E PECAS | B189: ASTU | C189: FORNEC E/OU ASSENT DE TUBO DE CONCRETO COM JUNTA ARGAMASSADA | D189: 0052 | G189: 92831 | H189: TUBO DE CONCRETO PARA REDES COLETORAS DE ÁGUAS PLUVIAIS, DIÂMETRO DE 1500 MM, JUNTA RÍGIDA, INSTALADO EM LOCAL COM ALTO NÍVEL DE INTERFERÊNCIAS - FORNECIMENTO E ASSENTAMENTO. AF_03/2024 | I189: M | J189: COEFICIENTE DE REPRESENTATIVIDADE | K189: 952.51 | L189: CAIXA REFERENCIAL
A190: ASSENTAMENTO DE TUBOS E PECAS | B190: ASTU | C190: FORNEC E/OU ASSENT DE TUBO DE CONCRETO COM JUNTA ARGAMASSADA | D190: 0052 | G190: 92832 | H190: ASSENTAMENTO DE TUBO DE CONCRETO PARA REDES COLETORAS DE ÁGUAS PLUVIAIS, DIÂMETRO DE 1500 MM, JUNTA RÍGIDA, INSTALADO EM LOCAL COM ALTO NÍVEL DE INTERFERÊNCIAS (NÃO INCLUI FORNECIMENTO). AF_03/2024 | I190: M | J190: COEFICIENTE DE REPRESENTATIVIDADE | K190: 170.42 | L190: CAIXA REFERENCIAL
A191: ASSENTAMENTO DE TUBOS E PECAS | B191: ASTU | C191: FORNEC E/OU ASSENT DE TUBO DE CONCRETO COM JUNTA ARGAMASSADA | D191: 0052 | G191: 95565 | H191: TUBO DE CONCRETO PARA REDES COLETORAS DE ÁGUAS PLUVIAIS, DIÂMETRO DE 300MM, JUNTA RÍGIDA, INSTALADO EM LOCAL COM BAIXO NÍVEL DE INTERFERÊNCIAS - FORNECIMENTO E ASSENTAMENTO. AF_03/2024 | I191: M | J191: COEFICIENTE DE REPRESENTATIVIDADE | K191: 109.33 | L191: CAIXA REFERENCIAL
A192: ASSENTAMENTO DE TUBOS E PECAS | B192: ASTU | C192: FORNEC E/OU ASSENT DE TUBO DE CONCRETO COM JUNTA ARGAMASSADA | D192: 0052 | G192: 95566 | H192: TUBO DE CONCRETO PARA REDES COLETORAS DE ÁGUAS PLUVIAIS, DIÂMETRO DE 300MM, JUNTA RÍGIDA, INSTALADO EM LOCAL COM ALTO NÍVEL DE INTERFERÊNCIAS - FORNECIMENTO E ASSENTAMENTO. AF_03/2024 | I192: M | J192: COEFICIENTE DE REPRESENTATIVIDADE | K192: 111.8 | L192: CAIXA REFERENCIAL
A193: ASSENTAMENTO DE TUBOS E PECAS | B193: ASTU | C193: FORNEC E/OU ASSENT DE TUBO DE CONCRETO COM JUNTA ARGAMASSADA | D193: 0052 | G193: 95567 | H193: TUBO DE CONCRETO (SIMPLES) PARA REDES COLETORAS DE ÁGUAS PLUVIAIS, DIÂMETRO DE 300 MM, JUNTA RÍGIDA, INSTALADO EM LOCAL COM BAIXO NÍVEL DE INTERFERÊNCIAS - FORNECIMENTO E ASSENTAMENTO. AF_03/2024 | I193: M | J193: ATRIBUÍDO SÃO PAULO | K193: 88.29 | L193: CAIXA REFERENCIAL
A194: ASSENTAMENTO DE TUBOS E PECAS | B194: ASTU | C194: FORNEC E/OU ASSENT DE TUBO DE CONCRETO COM JUNTA ARGAMASSADA | D194: 0052 | G194: 95568 | H194: TUBO DE CONCRETO (SIMPLES) PARA REDES COLETORAS DE ÁGUAS PLUVIAIS, DIÂMETRO DE 400 MM, JUNTA RÍGIDA, INSTALADO EM LOCAL COM BAIXO NÍVEL DE INTERFERÊNCIAS - FORNECIMENTO E ASSENTAMENTO. AF_03/2024 | I194: M | J194: ATRIBUÍDO SÃO PAULO | K194: 109.44 | L194: CAIXA REFERENCIAL
A195: ASSENTAMENTO DE TUBOS E PECAS | B195: ASTU | C195: FORNEC E/OU ASSENT DE TUBO DE CONCRETO COM JUNTA ARGAMASSADA | D195: 0052 | G195: 95569 | H195: TUBO DE CONCRETO (SIMPLES) PARA REDES COLETORAS DE ÁGUAS PLUVIAIS, DIÂMETRO DE 500 MM, JUNTA RÍGIDA, INSTALADO EM LOCAL COM BAIXO NÍVEL DE INTERFERÊNCIAS - FORNECIMENTO E ASSENTAMENTO. AF_03/2024 | I195: M | J195: ATRIBUÍDO SÃO PAULO | K195: 156.16 | L195: CAIXA REFERENCIAL
A196: ASSENTAMENTO DE TUBOS E PECAS | B196: ASTU | C196: FORNEC E/OU ASSENT DE TUBO DE CONCRETO COM JUNTA ARGAMASSADA | D196: 0052 | G196: 95570 | H196: TUBO DE CONCRETO (SIMPLES) PARA REDES COLETORAS DE ÁGUAS PLUVIAIS, DIÂMETRO DE 300 MM, JUNTA RÍGIDA, INSTALADO EM LOCAL COM ALTO NÍVEL DE INTERFERÊNCIAS - FORNECIMENTO E ASSENTAMENTO. AF_03/2024 | I196: M | J196: ATRIBUÍDO SÃO PAULO | K196: 90.76 | L196: CAIXA REFERENCIAL
A197: ASSENTAMENTO DE TUBOS E PECAS | B197: ASTU | C197: FORNEC E/OU ASSENT DE TUBO DE CONCRETO COM JUNTA ARGAMASSADA | D197: 0052 | G197: 95571 | H197: TUBO DE CONCRETO (SIMPLES) PARA REDES COLETORAS DE ÁGUAS PLUVIAIS, DIÂMETRO DE 400 MM, JUNTA RÍGIDA, INSTALADO EM LOCAL COM ALTO NÍVEL DE INTERFERÊNCIAS - FORNECIMENTO E ASSENTAMENTO. AF_03/2024 | I197: M | J197: ATRIBUÍDO SÃO PAULO | K197: 112.93 | L197: CAIXA REFERENCIAL
A198: ASSENTAMENTO DE TUBOS E PECAS | B198: ASTU | C198: FORNEC E/OU ASSENT DE TUBO DE CONCRETO COM JUNTA ARGAMASSADA | D198: 0052 | G198: 95572 | H198: TUBO DE CONCRETO (SIMPLES) PARA REDES COLETORAS DE ÁGUAS PLUVIAIS, DIÂMETRO DE 500 MM, JUNTA RÍGIDA, INSTALADO EM LOCAL COM ALTO NÍVEL DE INTERFERÊNCIAS - FORNECIMENTO E ASSENTAMENTO. AF_03/2024 | I198: M | J198: ATRIBUÍDO SÃO PAULO | K198: 160.71 | L198: CAIXA REFERENCIAL
A199: ASSENTAMENTO DE TUBOS E PECAS | B199: ASTU | C199: FORNEC E/OU ASSENT DE TUBO PVC DEFOFO COM JUNTA ELASTICA | D199: 0230 | G199: 97127 | H199: ASSENTAMENTO DE TUBO DE PVC DEFOFO OU PRFV OU RPVC PARA REDE DE ÁGUA, DN 150 MM, JUNTA ELÁSTICA INTEGRADA, INSTALADO EM LOCAL COM NÍVEL ALTO DE INTERFERÊNCIAS (NÃO INCLUI FORNECIMENTO). AF_11/2017 | I199: M | J199: COEFICIENTE DE REPRESENTATIVIDADE | K199: 4.82 | L199: CAIXA REFERENCIAL
A200: ASSENTAMENTO DE TUBOS E PECAS | B200: ASTU | C200: FORNEC E/OU ASSENT DE TUBO PVC DEFOFO COM JUNTA ELASTICA | D200: 0230 | G200: 97128 | H200: ASSENTAMENTO DE TUBO DE PVC DEFOFO OU PRFV OU RPVC PARA REDE DE ÁGUA, DN 200 MM, JUNTA ELÁSTICA INTEGRADA, INSTALADO EM LOCAL COM NÍVEL ALTO DE INTERFERÊNCIAS (NÃO INCLUI FORNECIMENTO). AF_11/2017 | I200: M | J200: COEFICIENTE DE REPRESENTATIVIDADE | K200: 10.61 | L200: CAIXA REFERENCIAL
A201: ASSENTAMENTO DE TUBOS E PECAS | B201: ASTU | C201: FORNEC E/OU ASSENT DE TUBO PVC DEFOFO COM JUNTA ELASTICA | D201: 0230 | G201: 97129 | H201: ASSENTAMENTO DE TUBO DE PVC DEFOFO OU PRFV OU RPVC PARA REDE DE ÁGUA, DN 250 MM, JUNTA ELÁSTICA INTEGRADA, INSTALADO EM LOCAL COM NÍVEL ALTO DE INTERFERÊNCIAS (NÃO INCLUI FORNECIMENTO). AF_11/2017 | I201: M | J201: COEFICIENTE DE REPRESENTATIVIDADE | K201: 13.05 | L201: CAIXA REFERENCIAL
A202: ASSENTAMENTO DE TUBOS E PECAS | B202: ASTU | C202: FORNEC E/OU ASSENT DE TUBO PVC DEFOFO COM JUNTA ELASTICA | D202: 0230 | G202: 97130 | H202: ASSENTAMENTO DE TUBO DE PVC DEFOFO OU PRFV OU RPVC PARA REDE DE ÁGUA, DN 300 MM, JUNTA ELÁSTICA INTEGRADA, INSTALADO EM LOCAL COM NÍVEL ALTO DE INTERFERÊNCIAS (NÃO INCLUI FORNECIMENTO). AF_11/2017 | I202: M | J202: COEFICIENTE DE REPRESENTATIVIDADE | K202: 15.49 | L202: CAIXA REFERENCIAL
... 7352 more rows

Sheet Comp SINAPI BA 05-2023 Desoner (hidden)
A1: PCI.817.01 - CUSTO DE COMPOSIÇÕES - SINTÉTICO DATA DE EMISSÃO: 20/06/2023 16:33:11 DATA DE RT: 20/06/2023
A2: ENCARGOS SOCIAIS DESONERADOS: 85,51%(HORA) 47,56%(MÊS)
A3: ABRANGÊNCIA : NACIONAL LOCALIDADE : SALVADOR DATA DE PREÇO : 05/2023 REFERÊNCIA COLETA : MEDIANO
A5: DESCRICAO DA CLASSE | B5: SIGLA DA CLASSE | C5: DESCRICAO DO TIPO 1 | D5: SIGLA DO TIPO 1 | E5: CODIGO DO AGRUPADOR | F5: DESCRICAO DO AGRUPADOR | G5: CODIGO DA COMPOSICAO | H5: DESCRICAO DA COMPOSICAO | I5: UNIDADE | J5: ORIGEM DE PREÇO | K5: CUSTO TOTAL | L5: VINCULO
A7: ASSENTAMENTO DE TUBOS E PECAS | B7: ASTU | C7: FORNEC E/OU ASSENT DE TUBO DE FERRO FUNDIDO JUNTA ELASTICA | D7: 45 | G7: 97141 | H7: ASSENTAMENTO DE TUBO DE FERRO FUNDIDO PARA REDE DE ÁGUA, DN 80 MM, JUNTA ELÁSTICA, INSTALADO EM LOCAL COM NÍVEL ALTO DE INTERFERÊNCIAS (NÃO INCLUI FORNECIMENTO). AF_11/2017 | I7: M | J7: COEFICIENTE DE REPRESENTATIVIDADE | K7: 10.52 | L7: CAIXA REFERENCIAL
A8: ASSENTAMENTO DE TUBOS E PECAS | B8: ASTU | C8: FORNEC E/OU ASSENT DE TUBO DE FERRO FUNDIDO JUNTA ELASTICA | D8: 45 | G8: 97142 | H8: ASSENTAMENTO DE TUBO DE FERRO FUNDIDO PARA REDE DE ÁGUA, DN 100 MM, JUNTA ELÁSTICA, INSTALADO EM LOCAL COM NÍVEL ALTO DE INTERFERÊNCIAS (NÃO INCLUI FORNECIMENTO). AF_11/2017 | I8: M | J8: COEFICIENTE DE REPRESENTATIVIDADE | K8: 11.78 | L8: CAIXA REFERENCIAL
A9: ASSENTAMENTO DE TUBOS E PECAS | B9: ASTU | C9: FORNEC E/OU ASSENT DE TUBO DE FERRO FUNDIDO JUNTA ELASTICA | D9: 45 | G9: 97143 | H9: ASSENTAMENTO DE TUBO DE FERRO FUNDIDO PARA REDE DE ÁGUA, DN 150 MM, JUNTA ELÁSTICA, INSTALADO EM LOCAL COM NÍVEL ALTO DE INTERFERÊNCIAS (NÃO INCLUI FORNECIMENTO). AF_11/2017 | I9: M | J9: COEFICIENTE DE REPRESENTATIVIDADE | K9: 14.89 | L9: CAIXA REFERENCIAL
A10: ASSENTAMENTO DE TUBOS E PECAS | B10: ASTU | C10: FORNEC E/OU ASSENT DE TUBO DE FERRO FUNDIDO JUNTA ELASTICA | D10: 45 | G10: 97144 | H10: ASSENTAMENTO DE TUBO DE FERRO FUNDIDO PARA REDE DE ÁGUA, DN 200 MM, JUNTA ELÁSTICA, INSTALADO EM LOCAL COM NÍVEL ALTO DE INTERFERÊNCIAS (NÃO INCLUI FORNECIMENTO). AF_11/2017 | I10: M | J10: COEFICIENTE DE REPRESENTATIVIDADE | K10: 17.99 | L10: CAIXA REFERENCIAL
A11: ASSENTAMENTO DE TUBOS E PECAS | B11: ASTU | C11: FORNEC E/OU ASSENT DE TUBO DE FERRO FUNDIDO JUNTA ELASTICA | D11: 45 | G11: 97145 | H11: ASSENTAMENTO DE TUBO DE FERRO FUNDIDO PARA REDE DE ÁGUA, DN 250 MM, JUNTA ELÁSTICA, INSTALADO EM LOCAL COM NÍVEL ALTO DE INTERFERÊNCIAS (NÃO INCLUI FORNECIMENTO). AF_11/2017 | I11: M | J11: COEFICIENTE DE REPRESENTATIVIDADE | K11: 21.12 | L11: CAIXA REFERENCIAL
A12: ASSENTAMENTO DE TUBOS E PECAS | B12: ASTU | C12: FORNEC E/OU ASSENT DE TUBO DE FERRO FUNDIDO JUNTA ELASTICA | D12: 45 | G12: 97146 | H12: ASSENTAMENTO DE TUBO DE FERRO FUNDIDO PARA REDE DE ÁGUA, DN 300 MM, JUNTA ELÁSTICA, INSTALADO EM LOCAL COM NÍVEL ALTO DE INTERFERÊNCIAS (NÃO INCLUI FORNECIMENTO). AF_11/2017 | I12: M | J12: COEFICIENTE DE REPRESENTATIVIDADE | K12: 24.26 | L12: CAIXA REFERENCIAL
A13: ASSENTAMENTO DE TUBOS E PECAS | B13: ASTU | C13: FORNEC E/OU ASSENT DE TUBO DE FERRO FUNDIDO JUNTA ELASTICA | D13: 45 | G13: 97147 | H13: ASSENTAMENTO DE TUBO DE FERRO FUNDIDO PARA REDE DE ÁGUA, DN 350 MM, JUNTA ELÁSTICA, INSTALADO EM LOCAL COM NÍVEL ALTO DE INTERFERÊNCIAS (NÃO INCLUI FORNECIMENTO). AF_11/2017 | I13: M | J13: COEFICIENTE DE REPRESENTATIVIDADE | K13: 27.4 | L13: CAIXA REFERENCIAL
A14: ASSENTAMENTO DE TUBOS E PECAS | B14: ASTU | C14: FORNEC E/OU ASSENT DE TUBO DE FERRO FUNDIDO JUNTA ELASTICA | D14: 45 | G14: 97148 | H14: ASSENTAMENTO DE TUBO DE FERRO FUNDIDO PARA REDE DE ÁGUA, DN 400 MM, JUNTA ELÁSTICA, INSTALADO EM LOCAL COM NÍVEL ALTO DE INTERFERÊNCIAS (NÃO INCLUI FORNECIMENTO). AF_11/2017 | I14: M | J14: COEFICIENTE DE REPRESENTATIVIDADE | K14: 30.51 | L14: CAIXA REFERENCIAL
A15: ASSENTAMENTO DE TUBOS E PECAS | B15: ASTU | C15: FORNEC E/OU ASSENT DE TUBO DE FERRO FUNDIDO JUNTA ELASTICA | D15: 45 | G15: 97149 | H15: ASSENTAMENTO DE TUBO DE FERRO FUNDIDO PARA REDE DE ÁGUA, DN 450 MM, JUNTA ELÁSTICA, INSTALADO EM LOCAL COM NÍVEL ALTO DE INTERFERÊNCIAS (NÃO INCLUI FORNECIMENTO). AF_11/2017 | I15: M | J15: COEFICIENTE DE REPRESENTATIVIDADE | K15: 33.67 | L15: CAIXA REFERENCIAL
A16: ASSENTAMENTO DE TUBOS E PECAS | B16: ASTU | C16: FORNEC E/OU ASSENT DE TUBO DE FERRO FUNDIDO JUNTA ELASTICA | D16: 45 | G16: 97150 | H16: ASSENTAMENTO DE TUBO DE FERRO FUNDIDO PARA REDE DE ÁGUA, DN 500 MM, JUNTA ELÁSTICA, INSTALADO EM LOCAL COM NÍVEL ALTO DE INTERFERÊNCIAS (NÃO INCLUI FORNECIMENTO). AF_11/2017 | I16: M | J16: COEFICIENTE DE REPRESENTATIVIDADE | K16: 41.04 | L16: CAIXA REFERENCIAL
A17: ASSENTAMENTO DE TUBOS E PECAS | B17: ASTU | C17: FORNEC E/OU ASSENT DE TUBO DE FERRO FUNDIDO JUNTA ELASTICA | D17: 45 | G17: 97151 | H17: ASSENTAMENTO DE TUBO DE FERRO FUNDIDO PARA REDE DE ÁGUA, DN 600 MM, JUNTA ELÁSTICA, INSTALADO EM LOCAL COM NÍVEL ALTO DE INTERFERÊNCIAS (NÃO INCLUI FORNECIMENTO). AF_11/2017 | I17: M | J17: COEFICIENTE DE REPRESENTATIVIDADE | K17: 47.93 | L17: CAIXA REFERENCIAL
A18: ASSENTAMENTO DE TUBOS E PECAS | B18: ASTU | C18: FORNEC E/OU ASSENT DE TUBO DE FERRO FUNDIDO JUNTA ELASTICA | D18: 45 | G18: 97152 | H18: ASSENTAMENTO DE TUBO DE FERRO FUNDIDO PARA REDE DE ÁGUA, DN 700 MM, JUNTA ELÁSTICA, INSTALADO EM LOCAL COM NÍVEL ALTO DE INTERFERÊNCIAS (NÃO INCLUI FORNECIMENTO). AF_11/2017 | I18: M | J18: COEFICIENTE DE REPRESENTATIVIDADE | K18: 54.61 | L18: CAIXA REFERENCIAL
A19: ASSENTAMENTO DE TUBOS E PECAS | B19: ASTU | C19: FORNEC E/OU ASSENT DE TUBO DE FERRO FUNDIDO JUNTA ELASTICA | D19: 45 | G19: 97153 | H19: ASSENTAMENTO DE TUBO DE FERRO FUNDIDO PARA REDE DE ÁGUA, DN 800 MM, JUNTA ELÁSTICA, INSTALADO EM LOCAL COM NÍVEL ALTO DE INTERFERÊNCIAS (NÃO INCLUI FORNECIMENTO). AF_11/2017 | I19: M | J19: COEFICIENTE DE REPRESENTATIVIDADE | K19: 61.4 | L19: CAIXA REFERENCIAL
A20: ASSENTAMENTO DE TUBOS E PECAS | B20: ASTU | C20: FORNEC E/OU ASSENT DE TUBO DE FERRO FUNDIDO JUNTA ELASTICA | D20: 45 | G20: 97154 | H20: ASSENTAMENTO DE TUBO DE FERRO FUNDIDO PARA REDE DE ÁGUA, DN 900 MM, JUNTA ELÁSTICA, INSTALADO EM LOCAL COM NÍVEL ALTO DE INTERFERÊNCIAS (NÃO INCLUI FORNECIMENTO). AF_11/2017 | I20: M | J20: COEFICIENTE DE REPRESENTATIVIDADE | K20: 68.25 | L20: CAIXA REFERENCIAL
A21: ASSENTAMENTO DE TUBOS E PECAS | B21: ASTU | C21: FORNEC E/OU ASSENT DE TUBO DE FERRO FUNDIDO JUNTA ELASTICA | D21: 45 | G21: 97155 | H21: ASSENTAMENTO DE TUBO DE FERRO FUNDIDO PARA REDE DE ÁGUA, DN 1000 MM, JUNTA ELÁSTICA, INSTALADO EM LOCAL COM NÍVEL ALTO DE INTERFERÊNCIAS (NÃO INCLUI FORNECIMENTO). AF_11/2017 | I21: M | J21: COEFICIENTE DE REPRESENTATIVIDADE | K21: 75.09 | L21: CAIXA REFERENCIAL
A22: ASSENTAMENTO DE TUBOS E PECAS | B22: ASTU | C22: FORNEC E/OU ASSENT DE TUBO DE FERRO FUNDIDO JUNTA ELASTICA | D22: 45 | G22: 97156 | H22: ASSENTAMENTO DE TUBO DE FERRO FUNDIDO PARA REDE DE ÁGUA, DN 1200 MM, JUNTA ELÁSTICA, INSTALADO EM LOCAL COM NÍVEL ALTO DE INTERFERÊNCIAS (NÃO INCLUI FORNECIMENTO). AF_11/2017 | I22: M | J22: COEFICIENTE DE REPRESENTATIVIDADE | K22: 89.2 | L22: CAIXA REFERENCIAL
A23: ASSENTAMENTO DE TUBOS E PECAS | B23: ASTU | C23: FORNEC E/OU ASSENT DE TUBO DE FERRO FUNDIDO JUNTA ELASTICA | D23: 45 | G23: 97157 | H23: ASSENTAMENTO DE TUBO DE FERRO FUNDIDO PARA REDE DE ÁGUA, DN 80 MM, JUNTA ELÁSTICA, INSTALADO EM LOCAL COM NÍVEL BAIXO DE INTERFERÊNCIAS (NÃO INCLUI FORNECIMENTO). AF_11/2017 | I23: M | J23: COEFICIENTE DE REPRESENTATIVIDADE | K23: 6.3 | L23: CAIXA REFERENCIAL
A24: ASSENTAMENTO DE TUBOS E PECAS | B24: ASTU | C24: FORNEC E/OU ASSENT DE TUBO DE FERRO FUNDIDO JUNTA ELASTICA | D24: 45 | G24: 97158 | H24: ASSENTAMENTO DE TUBO DE FERRO FUNDIDO PARA REDE DE ÁGUA, DN 100 MM, JUNTA ELÁSTICA, INSTALADO EM LOCAL COM NÍVEL BAIXO DE INTERFERÊNCIAS (NÃO INCLUI FORNECIMENTO). AF_11/2017 | I24: M | J24: COEFICIENTE DE REPRESENTATIVIDADE | K24: 7.08 | L24: CAIXA REFERENCIAL
A25: ASSENTAMENTO DE TUBOS E PECAS | B25: ASTU | C25: FORNEC E/OU ASSENT DE TUBO DE FERRO FUNDIDO JUNTA ELASTICA | D25: 45 | G25: 97159 | H25: ASSENTAMENTO DE TUBO DE FERRO FUNDIDO PARA REDE DE ÁGUA, DN 150 MM, JUNTA ELÁSTICA, INSTALADO EM LOCAL COM NÍVEL BAIXO DE INTERFERÊNCIAS (NÃO INCLUI FORNECIMENTO). AF_11/2017 | I25: M | J25: COEFICIENTE DE REPRESENTATIVIDADE | K25: 8.97 | L25: CAIXA REFERENCIAL
A26: ASSENTAMENTO DE TUBOS E PECAS | B26: ASTU | C26: FORNEC E/OU ASSENT DE TUBO DE FERRO FUNDIDO JUNTA ELASTICA | D26: 45 | G26: 97160 | H26: ASSENTAMENTO DE TUBO DE FERRO FUNDIDO PARA REDE DE ÁGUA, DN 200 MM, JUNTA ELÁSTICA, INSTALADO EM LOCAL COM NÍVEL BAIXO DE INTERFERÊNCIAS (NÃO INCLUI FORNECIMENTO). AF_11/2017 | I26: M | J26: COEFICIENTE DE REPRESENTATIVIDADE | K26: 10.82 | L26: CAIXA REFERENCIAL
A27: ASSENTAMENTO DE TUBOS E PECAS | B27: ASTU | C27: FORNEC E/OU ASSENT DE TUBO DE FERRO FUNDIDO JUNTA ELASTICA | D27: 45 | G27: 97161 | H27: ASSENTAMENTO DE TUBO DE FERRO FUNDIDO PARA REDE DE ÁGUA, DN 250 MM, JUNTA ELÁSTICA, INSTALADO EM LOCAL COM NÍVEL BAIXO DE INTERFERÊNCIAS (NÃO INCLUI FORNECIMENTO). AF_11/2017 | I27: M | J27: COEFICIENTE DE REPRESENTATIVIDADE | K27: 12.75 | L27: CAIXA REFERENCIAL
A28: ASSENTAMENTO DE TUBOS E PECAS | B28: ASTU | C28: FORNEC E/OU ASSENT DE TUBO DE FERRO FUNDIDO JUNTA ELASTICA | D28: 45 | G28: 97162 | H28: ASSENTAMENTO DE TUBO DE FERRO FUNDIDO PARA REDE DE ÁGUA, DN 300 MM, JUNTA ELÁSTICA, INSTALADO EM LOCAL COM NÍVEL BAIXO DE INTERFERÊNCIAS (NÃO INCLUI FORNECIMENTO). AF_11/2017 | I28: M | J28: COEFICIENTE DE REPRESENTATIVIDADE | K28: 14.65 | L28: CAIXA REFERENCIAL
A29: ASSENTAMENTO DE TUBOS E PECAS | B29: ASTU | C29: FORNEC E/OU ASSENT DE TUBO DE FERRO FUNDIDO JUNTA ELASTICA | D29: 45 | G29: 97163 | H29: ASSENTAMENTO DE TUBO DE FERRO FUNDIDO PARA REDE DE ÁGUA, DN 350 MM, JUNTA ELÁSTICA, INSTALADO EM LOCAL COM NÍVEL BAIXO DE INTERFERÊNCIAS (NÃO INCLUI FORNECIMENTO). AF_11/2017 | I29: M | J29: COEFICIENTE DE REPRESENTATIVIDADE | K29: 16.56 | L29: CAIXA REFERENCIAL
A30: ASSENTAMENTO DE TUBOS E PECAS | B30: ASTU | C30: FORNEC E/OU ASSENT DE TUBO DE FERRO FUNDIDO JUNTA ELASTICA | D30: 45 | G30: 97164 | H30: ASSENTAMENTO DE TUBO DE FERRO FUNDIDO PARA REDE DE ÁGUA, DN 400 MM, JUNTA ELÁSTICA, INSTALADO EM LOCAL COM NÍVEL BAIXO DE INTERFERÊNCIAS (NÃO INCLUI FORNECIMENTO). AF_11/2017 | I30: M | J30: COEFICIENTE DE REPRESENTATIVIDADE | K30: 18.45 | L30: CAIXA REFERENCIAL
A31: ASSENTAMENTO DE TUBOS E PECAS | B31: ASTU | C31: FORNEC E/OU ASSENT DE TUBO DE FERRO FUNDIDO JUNTA ELASTICA | D31: 45 | G31: 97165 | H31: ASSENTAMENTO DE TUBO DE FERRO FUNDIDO PARA REDE DE ÁGUA, DN 450 MM, JUNTA ELÁSTICA, INSTALADO EM LOCAL COM NÍVEL BAIXO DE INTERFERÊNCIAS (NÃO INCLUI FORNECIMENTO). AF_11/2017 | I31: M | J31: COEFICIENTE DE REPRESENTATIVIDADE | K31: 20.39 | L31: CAIXA REFERENCIAL
A32: ASSENTAMENTO DE TUBOS E PECAS | B32: ASTU | C32: FORNEC E/OU ASSENT DE TUBO DE FERRO FUNDIDO JUNTA ELASTICA | D32: 45 | G32: 97166 | H32: ASSENTAMENTO DE TUBO DE FERRO FUNDIDO PARA REDE DE ÁGUA, DN 500 MM, JUNTA ELÁSTICA, INSTALADO EM LOCAL COM NÍVEL BAIXO DE INTERFERÊNCIAS (NÃO INCLUI FORNECIMENTO). AF_11/2017 | I32: M | J32: COEFICIENTE DE REPRESENTATIVIDADE | K32: 24.88 | L32: CAIXA REFERENCIAL
A33: ASSENTAMENTO DE TUBOS E PECAS | B33: ASTU | C33: FORNEC E/OU ASSENT DE TUBO DE FERRO FUNDIDO JUNTA ELASTICA | D33: 45 | G33: 97167 | H33: ASSENTAMENTO DE TUBO DE FERRO FUNDIDO PARA REDE DE ÁGUA, DN 600 MM, JUNTA ELÁSTICA, INSTALADO EM LOCAL COM NÍVEL BAIXO DE INTERFERÊNCIAS (NÃO INCLUI FORNECIMENTO). AF_11/2017 | I33: M | J33: COEFICIENTE DE REPRESENTATIVIDADE | K33: 29.08 | L33: CAIXA REFERENCIAL
A34: ASSENTAMENTO DE TUBOS E PECAS | B34: ASTU | C34: FORNEC E/OU ASSENT DE TUBO DE FERRO FUNDIDO JUNTA ELASTICA | D34: 45 | G34: 97168 | H34: ASSENTAMENTO DE TUBO DE FERRO FUNDIDO PARA REDE DE ÁGUA, DN 700 MM, JUNTA ELÁSTICA, INSTALADO EM LOCAL COM NÍVEL BAIXO DE INTERFERÊNCIAS (NÃO INCLUI FORNECIMENTO). AF_11/2017 | I34: M | J34: COEFICIENTE DE REPRESENTATIVIDADE | K34: 33.06 | L34: CAIXA REFERENCIAL
A35: ASSENTAMENTO DE TUBOS E PECAS | B35: ASTU | C35: FORNEC E/OU ASSENT DE TUBO DE FERRO FUNDIDO JUNTA ELASTICA | D35: 45 | G35: 97169 | H35: ASSENTAMENTO DE TUBO DE FERRO FUNDIDO PARA REDE DE ÁGUA, DN 800 MM, JUNTA ELÁSTICA, INSTALADO EM LOCAL COM NÍVEL BAIXO DE INTERFERÊNCIAS (NÃO INCLUI FORNECIMENTO). AF_11/2017 | I35: M | J35: COEFICIENTE DE REPRESENTATIVIDADE | K35: 37.17 | L35: CAIXA REFERENCIAL
A36: ASSENTAMENTO DE TUBOS E PECAS | B36: ASTU | C36: FORNEC E/OU ASSENT DE TUBO DE FERRO FUNDIDO JUNTA ELASTICA | D36: 45 | G36: 97170 | H36: ASSENTAMENTO DE TUBO DE FERRO FUNDIDO PARA REDE DE ÁGUA, DN 900 MM, JUNTA ELÁSTICA, INSTALADO EM LOCAL COM NÍVEL BAIXO DE INTERFERÊNCIAS (NÃO INCLUI FORNECIMENTO). AF_11/2017 | I36: M | J36: COEFICIENTE DE REPRESENTATIVIDADE | K36: 41.31 | L36: CAIXA REFERENCIAL
A37: ASSENTAMENTO DE TUBOS E PECAS | B37: ASTU | C37: FORNEC E/OU ASSENT DE TUBO DE FERRO FUNDIDO JUNTA ELASTICA | D37: 45 | G37: 97171 | H37: ASSENTAMENTO DE TUBO DE FERRO FUNDIDO PARA REDE DE ÁGUA, DN 1000 MM, JUNTA ELÁSTICA, INSTALADO EM LOCAL COM NÍVEL BAIXO DE INTERFERÊNCIAS (NÃO INCLUI FORNECIMENTO). AF_11/2017 | I37: M | J37: COEFICIENTE DE REPRESENTATIVIDADE | K37: 45.49 | L37: CAIXA REFERENCIAL
A38: ASSENTAMENTO DE TUBOS E PECAS | B38: ASTU | C38: FORNEC E/OU ASSENT DE TUBO DE FERRO FUNDIDO JUNTA ELASTICA | D38: 45 | G38: 97172 | H38: ASSENTAMENTO DE TUBO DE FERRO FUNDIDO PARA REDE DE ÁGUA, DN 1200 MM, JUNTA ELÁSTICA, INSTALADO EM LOCAL COM NÍVEL BAIXO DE INTERFERÊNCIAS (NÃO INCLUI FORNECIMENTO). AF_11/2017 | I38: M | J38: COEFICIENTE DE REPRESENTATIVIDADE | K38: 54.23 | L38: CAIXA REFERENCIAL
A39: ASSENTAMENTO DE TUBOS E PECAS | B39: ASTU | C39: FORNEC E/OU ASSENT DE TUBO DE ACO COM JUNTA SOLDADA | D39: 46 | G39: 97173 | H39: ASSENTAMENTO DE TUBO DE AÇO CARBONO PARA REDE DE ÁGUA, DN 600 MM (24), JUNTA SOLDADA, INSTALADO EM LOCAL COM NÍVEL ALTO DE INTERFERÊNCIAS (NÃO INCLUI FORNECIMENTO). AF_11/2017 | I39: M | J39: COEFICIENTE DE REPRESENTATIVIDADE | K39: 43.01 | L39: CAIXA REFERENCIAL
A40: ASSENTAMENTO DE TUBOS E PECAS | B40: ASTU | C40: FORNEC E/OU ASSENT DE TUBO DE ACO COM JUNTA SOLDADA | D40: 46 | G40: 97174 | H40: ASSENTAMENTO DE TUBO DE AÇO CARBONO PARA REDE DE ÁGUA, DN 700 MM (28), JUNTA SOLDADA, INSTALADO EM LOCAL COM NÍVEL ALTO DE INTERFERÊNCIAS (NÃO INCLUI FORNECIMENTO). AF_11/2017 | I40: M | J40: COEFICIENTE DE REPRESENTATIVIDADE | K40: 49.69 | L40: CAIXA REFERENCIAL
A41: ASSENTAMENTO DE TUBOS E PECAS | B41: ASTU | C41: FORNEC E/OU ASSENT DE TUBO DE ACO COM JUNTA SOLDADA | D41: 46 | G41: 97175 | H41: ASSENTAMENTO DE TUBO DE AÇO CARBONO PARA REDE DE ÁGUA, DN 800 MM (32), JUNTA SOLDADA, INSTALADO EM LOCAL COM NÍVEL ALTO DE INTERFERÊNCIAS (NÃO INCLUI FORNECIMENTO). AF_11/2017 | I41: M | J41: COEFICIENTE DE REPRESENTATIVIDADE | K41: 56.38 | L41: CAIXA REFERENCIAL
A42: ASSENTAMENTO DE TUBOS E PECAS | B42: ASTU | C42: FORNEC E/OU ASSENT DE TUBO DE ACO COM JUNTA SOLDADA | D42: 46 | G42: 97176 | H42: ASSENTAMENTO DE TUBO DE AÇO CARBONO PARA REDE DE ÁGUA, DN 900 MM (36), JUNTA SOLDADA, INSTALADO EM LOCAL COM NÍVEL ALTO DE INTERFERÊNCIAS (NÃO INCLUI FORNECIMENTO). AF_11/2017 | I42: M | J42: COEFICIENTE DE REPRESENTATIVIDADE | K42: 63.06 | L42: CAIXA REFERENCIAL
A43: ASSENTAMENTO DE TUBOS E PECAS | B43: ASTU | C43: FORNEC E/OU ASSENT DE TUBO DE ACO COM JUNTA SOLDADA | D43: 46 | G43: 97177 | H43: ASSENTAMENTO DE TUBO DE AÇO CARBONO PARA REDE DE ÁGUA, DN 1000 MM (40) OU DN 1100 MM (44), JUNTA SOLDADA, INSTALADO EM LOCAL COM NÍVEL ALTO DE INTERFERÊNCIAS (NÃO INCLUI FORNECIMENTO). AF_11/2017 | I43: M | J43: COEFICIENTE DE REPRESENTATIVIDADE | K43: 76.43 | L43: CAIXA REFERENCIAL
A44: ASSENTAMENTO DE TUBOS E PECAS | B44: ASTU | C44: FORNEC E/OU ASSENT DE TUBO DE ACO COM JUNTA SOLDADA | D44: 46 | G44: 97178 | H44: ASSENTAMENTO DE TUBO DE AÇO CARBONO PARA REDE DE ÁGUA, DN 1200 MM (48) OU DN 1300 MM (52), JUNTA SOLDADA, INSTALADO EM LOCAL COM NÍVEL ALTO DE INTERFERÊNCIAS (NÃO INCLUI FORNECIMENTO). AF_11/2017 | I44: M | J44: COEFICIENTE DE REPRESENTATIVIDADE | K44: 89.81 | L44: CAIXA REFERENCIAL
A45: ASSENTAMENTO DE TUBOS E PECAS | B45: ASTU | C45: FORNEC E/OU ASSENT DE TUBO DE ACO COM JUNTA SOLDADA | D45: 46 | G45: 97179 | H45: ASSENTAMENTO DE TUBO DE AÇO CARBONO PARA REDE DE ÁGUA, DN 1400 MM (56'') OU DN 1500 MM (60), JUNTA SOLDADA, INSTALADO EM LOCAL COM NÍVEL ALTO DE INTERFERÊNCIAS (NÃO INCLUI FORNECIMENTO). AF_11/2017 | I45: M | J45: COEFICIENTE DE REPRESENTATIVIDADE | K45: 103.18 | L45: CAIXA REFERENCIAL
A46: ASSENTAMENTO DE TUBOS E PECAS | B46: ASTU | C46: FORNEC E/OU ASSENT DE TUBO DE ACO COM JUNTA SOLDADA | D46: 46 | G46: 97180 | H46: ASSENTAMENTO DE TUBO DE AÇO CARBONO PARA REDE DE ÁGUA, DN 1600 MM (64) OU DN 1700 MM (68), JUNTA SOLDADA, INSTALADO EM LOCAL COM NÍVEL ALTO DE INTERFERÊNCIAS (NÃO INCLUI FORNECIMENTO). AF_11/2017 | I46: M | J46: COEFICIENTE DE REPRESENTATIVIDADE | K46: 116.55 | L46: CAIXA REFERENCIAL
A47: ASSENTAMENTO DE TUBOS E PECAS | B47: ASTU | C47: FORNEC E/OU ASSENT DE TUBO DE ACO COM JUNTA SOLDADA | D47: 46 | G47: 97181 | H47: ASSENTAMENTO DE TUBO DE AÇO CARBONO PARA REDE DE ÁGUA, DN 1800 MM (72) OU DN 1900 MM (76), JUNTA SOLDADA, INSTALADO EM LOCAL COM NÍVEL ALTO DE INTERFERÊNCIAS (NÃO INCLUI FORNECIMENTO). AF_11/2017 | I47: M | J47: COEFICIENTE DE REPRESENTATIVIDADE | K47: 134.18 | L47: CAIXA REFERENCIAL
A48: ASSENTAMENTO DE TUBOS E PECAS | B48: ASTU | C48: FORNEC E/OU ASSENT DE TUBO DE ACO COM JUNTA SOLDADA | D48: 46 | G48: 97182 | H48: ASSENTAMENTO DE TUBO DE AÇO CARBONO PARA REDE DE ÁGUA, DN 2000 MM (80) OU DN 2100 MM (84), JUNTA SOLDADA, INSTALADO EM LOCAL COM NÍVEL ALTO DE INTERFERÊNCIAS (NÃO INCLUI FORNECIMENTO). AF_11/2017 | I48: M | J48: COEFICIENTE DE REPRESENTATIVIDADE | K48: 147.99 | L48: CAIXA REFERENCIAL
A49: ASSENTAMENTO DE TUBOS E PECAS | B49: ASTU | C49: FORNEC E/OU ASSENT DE TUBO DE ACO COM JUNTA SOLDADA | D49: 46 | G49: 97183 | H49: ASSENTAMENTO DE TUBO DE AÇO CARBONO PARA REDE DE ÁGUA, DN 600 MM (24), JUNTA SOLDADA, INSTALADO EM LOCAL COM NÍVEL BAIXO DE INTERFERÊNCIAS (NÃO INCLUI FORNECIMENTO). AF_11/2017 | I49: M | J49: COEFICIENTE DE REPRESENTATIVIDADE | K49: 34.76 | L49: CAIXA REFERENCIAL
A50: ASSENTAMENTO DE TUBOS E PECAS | B50: ASTU | C50: FORNEC E/OU ASSENT DE TUBO DE ACO COM JUNTA SOLDADA | D50: 46 | G50: 97184 | H50: ASSENTAMENTO DE TUBO DE AÇO CARBONO PARA REDE DE ÁGUA, DN 700 MM (28), JUNTA SOLDADA, INSTALADO EM LOCAL COM NÍVEL BAIXO DE INTERFERÊNCIAS (NÃO INCLUI FORNECIMENTO). AF_11/2017 | I50: M | J50: COEFICIENTE DE REPRESENTATIVIDADE | K50: 40.27 | L50: CAIXA REFERENCIAL
A51: ASSENTAMENTO DE TUBOS E PECAS | B51: ASTU | C51: FORNEC E/OU ASSENT DE TUBO DE ACO COM JUNTA SOLDADA | D51: 46 | G51: 97185 | H51: ASSENTAMENTO DE TUBO DE AÇO CARBONO PARA REDE DE ÁGUA, DN 800 MM (32), JUNTA SOLDADA, INSTALADO EM LOCAL COM NÍVEL BAIXO DE INTERFERÊNCIAS (NÃO INCLUI FORNECIMENTO). AF_11/2017 | I51: M | J51: COEFICIENTE DE REPRESENTATIVIDADE | K51: 45.76 | L51: CAIXA REFERENCIAL
A52: ASSENTAMENTO DE TUBOS E PECAS | B52: ASTU | C52: FORNEC E/OU ASSENT DE TUBO DE ACO COM JUNTA SOLDADA | D52: 46 | G52: 97186 | H52: ASSENTAMENTO DE TUBO DE AÇO CARBONO PARA REDE DE ÁGUA, DN 900 MM (36), JUNTA SOLDADA, INSTALADO EM LOCAL COM NÍVEL BAIXO DE INTERFERÊNCIAS (NÃO INCLUI FORNECIMENTO). AF_11/2017 | I52: M | J52: COEFICIENTE DE REPRESENTATIVIDADE | K52: 51.27 | L52: CAIXA REFERENCIAL
A53: ASSENTAMENTO DE TUBOS E PECAS | B53: ASTU | C53: FORNEC E/OU ASSENT DE TUBO DE ACO COM JUNTA SOLDADA | D53: 46 | G53: 97187 | H53: ASSENTAMENTO DE TUBO DE AÇO CARBONO PARA REDE DE ÁGUA, DN 1000 MM (40 ) OU DN 1100 MM (44 ), JUNTA SOLDADA, INSTALADO EM LOCAL COM NÍVEL BAIXO DE INTERFERÊNCIAS (NÃO INCLUI FORNECIMENTO). AF_11/2017 | I53: M | J53: COEFICIENTE DE REPRESENTATIVIDADE | K53: 62.27 | L53: CAIXA REFERENCIAL
A54: ASSENTAMENTO DE TUBOS E PECAS | B54: ASTU | C54: FORNEC E/OU ASSENT DE TUBO DE ACO COM JUNTA SOLDADA | D54: 46 | G54: 97188 | H54: ASSENTAMENTO DE TUBO DE AÇO CARBONO PARA REDE DE ÁGUA, DN 1200 MM (48) OU DN 1300 MM (52), JUNTA SOLDADA, INSTALADO EM LOCAL COM NÍVEL BAIXO DE INTERFERÊNCIAS (NÃO INCLUI FORNECIMENTO). AF_11/2017 | I54: M | J54: COEFICIENTE DE REPRESENTATIVIDADE | K54: 73.28 | L54: CAIXA REFERENCIAL
A55: ASSENTAMENTO DE TUBOS E PECAS | B55: ASTU | C55: FORNEC E/OU ASSENT DE TUBO DE ACO COM JUNTA SOLDADA | D55: 46 | G55: 97189 | H55: ASSENTAMENTO DE TUBO DE AÇO CARBONO PARA REDE DE ÁGUA, DN 1400 MM (56'') OU DN 1500 MM (60), JUNTA SOLDADA, INSTALADO EM LOCAL COM NÍVEL BAIXO DE INTERFERÊNCIAS (NÃO INCLUI FORNECIMENTO). AF_11/2017 | I55: M | J55: COEFICIENTE DE REPRESENTATIVIDADE | K55: 84.29 | L55: CAIXA REFERENCIAL
A56: ASSENTAMENTO DE TUBOS E PECAS | B56: ASTU | C56: FORNEC E/OU ASSENT DE TUBO DE ACO COM JUNTA SOLDADA | D56: 46 | G56: 97190 | H56: ASSENTAMENTO DE TUBO DE AÇO CARBONO PARA REDE DE ÁGUA, DN 1600 MM (64) OU DN 1700 MM (68), JUNTA SOLDADA, INSTALADO EM LOCAL COM NÍVEL BAIXO DE INTERFERÊNCIAS (NÃO INCLUI FORNECIMENTO). AF_11/2017 | I56: M | J56: COEFICIENTE DE REPRESENTATIVIDADE | K56: 95.29 | L56: CAIXA REFERENCIAL
A57: ASSENTAMENTO DE TUBOS E PECAS | B57: ASTU | C57: FORNEC E/OU ASSENT DE TUBO DE ACO COM JUNTA SOLDADA | D57: 46 | G57: 97191 | H57: ASSENTAMENTO DE TUBO DE AÇO CARBONO PARA REDE DE ÁGUA, DN 1800 MM (72) OU DN 1900 MM (76), JUNTA SOLDADA, INSTALADO EM LOCAL COM NÍVEL BAIXO DE INTERFERÊNCIAS (NÃO INCLUI FORNECIMENTO). AF_11/2017 | I57: M | J57: COEFICIENTE DE REPRESENTATIVIDADE | K57: 109.36 | L57: CAIXA REFERENCIAL
A58: ASSENTAMENTO DE TUBOS E PECAS | B58: ASTU | C58: FORNEC E/OU ASSENT DE TUBO DE ACO COM JUNTA SOLDADA | D58: 46 | G58: 97192 | H58: ASSENTAMENTO DE TUBO DE AÇO CARBONO PARA REDE DE ÁGUA, DN 2000 MM (80) OU DN 2100 MM (84), JUNTA SOLDADA, INSTALADO EM LOCAL COM NÍVEL BAIXO DE INTERFERÊNCIAS (NÃO INCLUI FORNECIMENTO). AF_11/2017 | I58: M | J58: COEFICIENTE DE REPRESENTATIVIDADE | K58: 120.67 | L58: CAIXA REFERENCIAL
A59: ASSENTAMENTO DE TUBOS E PECAS | B59: ASTU | C59: FORNEC E/OU ASSENT DE TUBO DE PVC COM JUNTA ELASTICA | D59: 48 | G59: 90694 | H59: TUBO DE PVC PARA REDE COLETORA DE ESGOTO DE PAREDE MACIÇA, DN 100 MM, JUNTA ELÁSTICA - FORNECIMENTO E ASSENTAMENTO. AF_01/2021 | I59: M | J59: COEFICIENTE DE REPRESENTATIVIDADE | K59: 46.98 | L59: CAIXA REFERENCIAL
A60: ASSENTAMENTO DE TUBOS E PECAS | B60: ASTU | C60: FORNEC E/OU ASSENT DE TUBO DE PVC COM JUNTA ELASTICA | D60: 48 | G60: 90695 | H60: TUBO DE PVC PARA REDE COLETORA DE ESGOTO DE PAREDE MACIÇA, DN 150 MM, JUNTA ELÁSTICA - FORNECIMENTO E ASSENTAMENTO. AF_01/2021 | I60: M | J60: COEFICIENTE DE REPRESENTATIVIDADE | K60: 88.28 | L60: CAIXA REFERENCIAL
A61: ASSENTAMENTO DE TUBOS E PECAS | B61: ASTU | C61: FORNEC E/OU ASSENT DE TUBO DE PVC COM JUNTA ELASTICA | D61: 48 | G61: 90696 | H61: TUBO DE PVC PARA REDE COLETORA DE ESGOTO DE PAREDE MACIÇA, DN 200 MM, JUNTA ELÁSTICA - FORNECIMENTO E ASSENTAMENTO. AF_01/2021 | I61: M | J61: COEFICIENTE DE REPRESENTATIVIDADE | K61: 146.61 | L61: CAIXA REFERENCIAL
A62: ASSENTAMENTO DE TUBOS E PECAS | B62: ASTU | C62: FORNEC E/OU ASSENT DE TUBO DE PVC COM JUNTA ELASTICA | D62: 48 | G62: 90697 | H62: TUBO DE PVC PARA REDE COLETORA DE ESGOTO DE PAREDE MACIÇA, DN 250 MM, JUNTA ELÁSTICA - FORNECIMENTO E ASSENTAMENTO. AF_01/2021 | I62: M | J62: COEFICIENTE DE REPRESENTATIVIDADE | K62: 226.65 | L62: CAIXA REFERENCIAL
A63: ASSENTAMENTO DE TUBOS E PECAS | B63: ASTU | C63: FORNEC E/OU ASSENT DE TUBO DE PVC COM JUNTA ELASTICA | D63: 48 | G63: 90698 | H63: TUBO DE PVC PARA REDE COLETORA DE ESGOTO DE PAREDE MACIÇA, DN 300 MM, JUNTA ELÁSTICA, FORNECIMENTO E ASSENTAMENTO. AF_01/2021 | I63: M | J63: COEFICIENTE DE REPRESENTATIVIDADE | K63: 345.53 | L63: CAIXA REFERENCIAL
A64: ASSENTAMENTO DE TUBOS E PECAS | B64: ASTU | C64: FORNEC E/OU ASSENT DE TUBO DE PVC COM JUNTA ELASTICA | D64: 48 | G64: 90699 | H64: TUBO DE PVC PARA REDE COLETORA DE ESGOTO DE PAREDE MACIÇA, DN 350 MM, JUNTA ELÁSTICA - FORNECIMENTO E ASSENTAMENTO. AF_01/2021 | I64: M | J64: COEFICIENTE DE REPRESENTATIVIDADE | K64: 485.59 | L64: CAIXA REFERENCIAL
A65: ASSENTAMENTO DE TUBOS E PECAS | B65: ASTU | C65: FORNEC E/OU ASSENT DE TUBO DE PVC COM JUNTA ELASTICA | D65: 48 | G65: 90700 | H65: TUBO DE PVC PARA REDE COLETORA DE ESGOTO DE PAREDE MACIÇA, DN 400 MM, JUNTA ELÁSTICA FORNECIMENTO E ASSENTAMENTO. AF_01/2021 | I65: M | J65: COEFICIENTE DE REPRESENTATIVIDADE | K65: 565.57 | L65: CAIXA REFERENCIAL
A66: ASSENTAMENTO DE TUBOS E PECAS | B66: ASTU | C66: FORNEC E/OU ASSENT DE TUBO DE PVC COM JUNTA ELASTICA | D66: 48 | G66: 90701 | H66: TUBO DE PVC CORRUGADO DE DUPLA PAREDE PARA REDE COLETORA DE ESGOTO, DN 150 MM, JUNTA ELÁSTICA - FORNECIMENTO E ASSENTAMENTO. AF_01/2021 | I66: M | J66: COEFICIENTE DE REPRESENTATIVIDADE | K66: 70.3 | L66: CAIXA REFERENCIAL
A67: ASSENTAMENTO DE TUBOS E PECAS | B67: ASTU | C67: FORNEC E/OU ASSENT DE TUBO DE PVC COM JUNTA ELASTICA | D67: 48 | G67: 90702 | H67: TUBO DE PVC CORRUGADO DE DUPLA PAREDE PARA REDE COLETORA DE ESGOTO, DN 200 MM, JUNTA ELÁSTICA - FORNECIMENTO E ASSENTAMENTO. AF_01/2021 | I67: M | J67: COEFICIENTE DE REPRESENTATIVIDADE | K67: 115.35 | L67: CAIXA REFERENCIAL
A68: ASSENTAMENTO DE TUBOS E PECAS | B68: ASTU | C68: FORNEC E/OU ASSENT DE TUBO DE PVC COM JUNTA ELASTICA | D68: 48 | G68: 90703 | H68: TUBO DE PVC CORRUGADO DE DUPLA PAREDE PARA REDE COLETORA DE ESGOTO, DN 250 MM, JUNTA ELÁSTICA - FORNECIMENTO E ASSENTAMENTO. AF_01/2021 | I68: M | J68: COEFICIENTE DE REPRESENTATIVIDADE | K68: 180.34 | L68: CAIXA REFERENCIAL
A69: ASSENTAMENTO DE TUBOS E PECAS | B69: ASTU | C69: FORNEC E/OU ASSENT DE TUBO DE PVC COM JUNTA ELASTICA | D69: 48 | G69: 90704 | H69: TUBO DE PVC CORRUGADO DE DUPLA PAREDE PARA REDE COLETORA DE ESGOTO, DN 300 MM, JUNTA ELÁSTICA - FORNECIMENTO E ASSENTAMENTO. AF_01/2021 | I69: M | J69: COEFICIENTE DE REPRESENTATIVIDADE | K69: 268.28 | L69: CAIXA REFERENCIAL
A70: ASSENTAMENTO DE TUBOS E PECAS | B70: ASTU | C70: FORNEC E/OU ASSENT DE TUBO DE PVC COM JUNTA ELASTICA | D70: 48 | G70: 90705 | H70: TUBO DE PVC CORRUGADO DE DUPLA PAREDE PARA REDE COLETORA DE ESGOTO, DN 350 MM, JUNTA ELÁSTICA - FORNECIMENTO E ASSENTAMENTO. AF_01/2021 | I70: M | J70: COEFICIENTE DE REPRESENTATIVIDADE | K70: 348.08 | L70: CAIXA REFERENCIAL
A71: ASSENTAMENTO DE TUBOS E PECAS | B71: ASTU | C71: FORNEC E/OU ASSENT DE TUBO DE PVC COM JUNTA ELASTICA | D71: 48 | G71: 90706 | H71: TUBO DE PVC CORRUGADO DE DUPLA PAREDE PARA REDE COLETORA DE ESGOTO, DN 400 MM, JUNTA ELÁSTICA - FORNECIMENTO E ASSENTAMENTO. AF_01/2021 | I71: M | J71: COEFICIENTE DE REPRESENTATIVIDADE | K71: 459.5 | L71: CAIXA REFERENCIAL
A72: ASSENTAMENTO DE TUBOS E PECAS | B72: ASTU | C72: FORNEC E/OU ASSENT DE TUBO DE PVC COM JUNTA ELASTICA | D72: 48 | G72: 90708 | H72: TUBO DE PEAD CORRUGADO DE DUPLA PAREDE PARA REDE COLETORA DE ESGOTO, DN 600 MM, JUNTA ELÁSTICA INTEGRADA - FORNECIMENTO E ASSENTAMENTO. AF_01/2021 | I72: M | J72: COEFICIENTE DE REPRESENTATIVIDADE | K72: 824.6 | L72: CAIXA REFERENCIAL
A73: ASSENTAMENTO DE TUBOS E PECAS | B73: ASTU | C73: FORNEC E/OU ASSENT DE TUBO DE PVC COM JUNTA ELASTICA | D73: 48 | G73: 90724 | H73: JUNTA ARGAMASSADA ENTRE TUBO DN 100 MM E O POÇO DE VISITA/ CAIXA DE CONCRETO OU ALVENARIA EM REDES DE ESGOTO. AF_01/2021 | I73: UN | J73: COEFICIENTE DE REPRESENTATIVIDADE | K73: 33.78 | L73: CAIXA REFERENCIAL
A74: ASSENTAMENTO DE TUBOS E PECAS | B74: ASTU | C74: FORNEC E/OU ASSENT DE TUBO DE PVC COM JUNTA ELASTICA | D74: 48 | G74: 90725 | H74: JUNTA ARGAMASSADA ENTRE TUBO DN 150 MM E O POÇO DE VISITA/ CAIXA DE CONCRETO OU ALVENARIA EM REDES DE ESGOTO. AF_01/2021 | I74: UN | J74: COEFICIENTE DE REPRESENTATIVIDADE | K74: 41.5 | L74: CAIXA REFERENCIAL
A75: ASSENTAMENTO DE TUBOS E PECAS | B75: ASTU | C75: FORNEC E/OU ASSENT DE TUBO DE PVC COM JUNTA ELASTICA | D75: 48 | G75: 90726 | H75: JUNTA ARGAMASSADA ENTRE TUBO DN 200 MM E O POÇO/ CAIXA DE CONCRETO OU ALVENARIA EM REDES DE ESGOTO. AF_01/2021 | I75: UN | J75: COEFICIENTE DE REPRESENTATIVIDADE | K75: 49.29 | L75: CAIXA REFERENCIAL
A76: ASSENTAMENTO DE TUBOS E PECAS | B76: ASTU | C76: FORNEC E/OU ASSENT DE TUBO DE PVC COM JUNTA ELASTICA | D76: 48 | G76: 90727 | H76: JUNTA ARGAMASSADA ENTRE TUBO DN 250 MM E O POÇO DE VISITA/ CAIXA DE CONCRETO OU ALVENARIA EM REDES DE ESGOTO. AF_01/2021 | I76: UN | J76: COEFICIENTE DE REPRESENTATIVIDADE | K76: 57.02 | L76: CAIXA REFERENCIAL
A77: ASSENTAMENTO DE TUBOS E PECAS | B77: ASTU | C77: FORNEC E/OU ASSENT DE TUBO DE PVC COM JUNTA ELASTICA | D77: 48 | G77: 90728 | H77: JUNTA ARGAMASSADA ENTRE TUBO DN 300 MM E O POÇO DE VISITA/ CAIXA DE CONCRETO OU ALVENARIA EM REDES DE ESGOTO. AF_01/2021 | I77: UN | J77: COEFICIENTE DE REPRESENTATIVIDADE | K77: 64.74 | L77: CAIXA REFERENCIAL
A78: ASSENTAMENTO DE TUBOS E PECAS | B78: ASTU | C78: FORNEC E/OU ASSENT DE TUBO DE PVC COM JUNTA ELASTICA | D78: 48 | G78: 90729 | H78: JUNTA ARGAMASSADA ENTRE TUBO DN 350 MM E O POÇO DE VISITA/ CAIXA DE CONCRETO OU ALVENARIA EM REDES DE ESGOTO. AF_01/2021 | I78: UN | J78: COEFICIENTE DE REPRESENTATIVIDADE | K78: 72.46 | L78: CAIXA REFERENCIAL
A79: ASSENTAMENTO DE TUBOS E PECAS | B79: ASTU | C79: FORNEC E/OU ASSENT DE TUBO DE PVC COM JUNTA ELASTICA | D79: 48 | G79: 90730 | H79: JUNTA ARGAMASSADA ENTRE TUBO DN 400 MM E O POÇO DE VISITA/ CAIXA DE CONCRETO OU ALVENARIA EM REDES DE ESGOTO. AF_01/2021 | I79: UN | J79: COEFICIENTE DE REPRESENTATIVIDADE | K79: 80.19 | L79: CAIXA REFERENCIAL
A80: ASSENTAMENTO DE TUBOS E PECAS | B80: ASTU | C80: FORNEC E/OU ASSENT DE TUBO DE PVC COM JUNTA ELASTICA | D80: 48 | G80: 90731 | H80: JUNTA ARGAMASSADA ENTRE TUBO DN 450 MM E O POÇO DE VISITA/ CAIXA DE CONCRETO OU ALVENARIA EM REDES DE ESGOTO. AF_01/2021 | I80: UN | J80: COEFICIENTE DE REPRESENTATIVIDADE | K80: 87.91 | L80: CAIXA REFERENCIAL
A81: ASSENTAMENTO DE TUBOS E PECAS | B81: ASTU | C81: FORNEC E/OU ASSENT DE TUBO DE PVC COM JUNTA ELASTICA | D81: 48 | G81: 90732 | H81: JUNTA ARGAMASSADA ENTRE TUBO DN 600 MM E O POÇO DE VISITA/ CAIXA DE CONCRETO OU ALVENARIA EM REDES DE ESGOTO. AF_01/2021 | I81: UN | J81: COEFICIENTE DE REPRESENTATIVIDADE | K81: 111.07 | L81: CAIXA REFERENCIAL
A82: ASSENTAMENTO DE TUBOS E PECAS | B82: ASTU | C82: FORNEC E/OU ASSENT DE TUBO DE PVC COM JUNTA ELASTICA | D82: 48 | G82: 90733 | H82: ASSENTAMENTO DE TUBO DE PVC PARA REDE COLETORA DE ESGOTO DE PAREDE MACIÇA, DN 100 MM, JUNTA ELÁSTICA (NÃO INCLUI FORNECIMENTO). AF_01/2021 | I82: M | J82: COEFICIENTE DE REPRESENTATIVIDADE | K82: 4.8 | L82: CAIXA REFERENCIAL
A83: ASSENTAMENTO DE TUBOS E PECAS | B83: ASTU | C83: FORNEC E/OU ASSENT DE TUBO DE PVC COM JUNTA ELASTICA | D83: 48 | G83: 90734 | H83: ASSENTAMENTO DE TUBO DE PVC PARA REDE COLETORA DE ESGOTO DE PAREDE MACIÇA, DN 150 MM, JUNTA ELÁSTICA, (NÃO INCLUI FORNECIMENTO). AF_01/2021 | I83: M | J83: COEFICIENTE DE REPRESENTATIVIDADE | K83: 5.7 | L83: CAIXA REFERENCIAL
A84: ASSENTAMENTO DE TUBOS E PECAS | B84: ASTU | C84: FORNEC E/OU ASSENT DE TUBO DE PVC COM JUNTA ELASTICA | D84: 48 | G84: 90735 | H84: ASSENTAMENTO DE TUBO DE PVC PARA REDE COLETORA DE ESGOTO DE PAREDE MACIÇA, DN 200 MM, JUNTA ELÁSTICA (NÃO INCLUI FORNECIMENTO). AF_01/2021 | I84: M | J84: COEFICIENTE DE REPRESENTATIVIDADE | K84: 6.58 | L84: CAIXA REFERENCIAL
A85: ASSENTAMENTO DE TUBOS E PECAS | B85: ASTU | C85: FORNEC E/OU ASSENT DE TUBO DE PVC COM JUNTA ELASTICA | D85: 48 | G85: 90736 | H85: ASSENTAMENTO DE TUBO DE PVC PARA REDE COLETORA DE ESGOTO DE PAREDE MACIÇA, DN 250 MM, JUNTA ELÁSTICA (NÃO INCLUI FORNECIMENTO). AF_01/2021 | I85: M | J85: COEFICIENTE DE REPRESENTATIVIDADE | K85: 7.47 | L85: CAIXA REFERENCIAL
A86: ASSENTAMENTO DE TUBOS E PECAS | B86: ASTU | C86: FORNEC E/OU ASSENT DE TUBO DE PVC COM JUNTA ELASTICA | D86: 48 | G86: 90737 | H86: ASSENTAMENTO DE TUBO DE PVC PARA REDE COLETORA DE ESGOTO DE PAREDE MACIÇA, DN 300 MM, JUNTA ELÁSTICA (NÃO INCLUI FORNECIMENTO). AF_01/2021 | I86: M | J86: COEFICIENTE DE REPRESENTATIVIDADE | K86: 8.36 | L86: CAIXA REFERENCIAL
A87: ASSENTAMENTO DE TUBOS E PECAS | B87: ASTU | C87: FORNEC E/OU ASSENT DE TUBO DE PVC COM JUNTA ELASTICA | D87: 48 | G87: 90738 | H87: ASSENTAMENTO DE TUBO DE PVC PARA REDE COLETORA DE ESGOTO DE PAREDE MACIÇA, DN 350 MM, JUNTA ELÁSTICA (NÃO INCLUI FORNECIMENTO). AF_01/2021 | I87: M | J87: COEFICIENTE DE REPRESENTATIVIDADE | K87: 9.25 | L87: CAIXA REFERENCIAL
A88: ASSENTAMENTO DE TUBOS E PECAS | B88: ASTU | C88: FORNEC E/OU ASSENT DE TUBO DE PVC COM JUNTA ELASTICA | D88: 48 | G88: 90739 | H88: ASSENTAMENTO DE TUBO DE PVC PARA REDE COLETORA DE ESGOTO DE PAREDE MACIÇA, DN 400 MM, JUNTA ELÁSTICA (NÃO INCLUI FORNECIMENTO). AF_01/2021 | I88: M | J88: COEFICIENTE DE REPRESENTATIVIDADE | K88: 10.84 | L88: CAIXA REFERENCIAL
A89: ASSENTAMENTO DE TUBOS E PECAS | B89: ASTU | C89: FORNEC E/OU ASSENT DE TUBO DE PVC COM JUNTA ELASTICA | D89: 48 | G89: 90740 | H89: ASSENTAMENTO DE TUBO DE PVC CORRUGADO DE DUPLA PAREDE PARA REDE COLETORA DE ESGOTO, DN 150 MM, JUNTA ELÁSTICA (NÃO INCLUI FORNECIMENTO). AF_01/2021 | I89: M | J89: COEFICIENTE DE REPRESENTATIVIDADE | K89: 6.35 | L89: CAIXA REFERENCIAL
A90: ASSENTAMENTO DE TUBOS E PECAS | B90: ASTU | C90: FORNEC E/OU ASSENT DE TUBO DE PVC COM JUNTA ELASTICA | D90: 48 | G90: 90741 | H90: ASSENTAMENTO DE TUBO DE PVC CORRUGADO DE DUPLA PAREDE PARA REDE COLETORA DE ESGOTO, DN 200 MM, JUNTA ELÁSTICA (NÃO INCLUI FORNECIMENTO). AF_01/2021 | I90: M | J90: COEFICIENTE DE REPRESENTATIVIDADE | K90: 7.23 | L90: CAIXA REFERENCIAL
A91: ASSENTAMENTO DE TUBOS E PECAS | B91: ASTU | C91: FORNEC E/OU ASSENT DE TUBO DE PVC COM JUNTA ELASTICA | D91: 48 | G91: 90742 | H91: ASSENTAMENTO DE TUBO DE PVC CORRUGADO DE DUPLA PAREDE PARA REDE COLETORA DE ESGOTO, DN 250 MM, JUNTA ELÁSTICA (NÃO INCLUI FORNECIMENTO). AF_01/2021 | I91: M | J91: COEFICIENTE DE REPRESENTATIVIDADE | K91: 8.12 | L91: CAIXA REFERENCIAL
A92: ASSENTAMENTO DE TUBOS E PECAS | B92: ASTU | C92: FORNEC E/OU ASSENT DE TUBO DE PVC COM JUNTA ELASTICA | D92: 48 | G92: 90743 | H92: ASSENTAMENTO DE TUBO DE PVC CORRUGADO DE DUPLA PAREDE PARA REDE COLETORA DE ESGOTO, DN 300 MM, JUNTA ELÁSTICA (NÃO INCLUI FORNECIMENTO). AF_01/2021 | I92: M | J92: COEFICIENTE DE REPRESENTATIVIDADE | K92: 9.02 | L92: CAIXA REFERENCIAL
A93: ASSENTAMENTO DE TUBOS E PECAS | B93: ASTU | C93: FORNEC E/OU ASSENT DE TUBO DE PVC COM JUNTA ELASTICA | D93: 48 | G93: 90744 | H93: ASSENTAMENTO DE TUBO DE PVC CORRUGADO DE DUPLA PAREDE PARA REDE COLETORA DE ESGOTO, DN 350 MM, JUNTA ELÁSTICA (NÃO INCLUI FORNECIMENTO). AF_01/2021 | I93: M | J93: COEFICIENTE DE REPRESENTATIVIDADE | K93: 9.9 | L93: CAIXA REFERENCIAL
A94: ASSENTAMENTO DE TUBOS E PECAS | B94: ASTU | C94: FORNEC E/OU ASSENT DE TUBO DE PVC COM JUNTA ELASTICA | D94: 48 | G94: 90745 | H94: ASSENTAMENTO DE TUBO DE PVC CORRUGADO DE DUPLA PAREDE PARA REDE COLETORA DE ESGOTO, DN 400 MM, JUNTA ELÁSTICA (NÃO INCLUI FORNECIMENTO). AF_01/2021 | I94: M | J94: COEFICIENTE DE REPRESENTATIVIDADE | K94: 12.1 | L94: CAIXA REFERENCIAL
A95: ASSENTAMENTO DE TUBOS E PECAS | B95: ASTU | C95: FORNEC E/OU ASSENT DE TUBO DE PVC COM JUNTA ELASTICA | D95: 48 | G95: 90746 | H95: ASSENTAMENTO DE TUBO DE PEAD CORRUGADO DE DUPLA PAREDE PARA REDE COLETORA DE ESGOTO, DN 450 MM, JUNTA ELÁSTICA INTEGRADA (NÃO INCLUI FORNECIMENTO). AF_01/2021 | I95: M | J95: COEFICIENTE DE REPRESENTATIVIDADE | K95: 5.19 | L95: CAIXA REFERENCIAL
A96: ASSENTAMENTO DE TUBOS E PECAS | B96: ASTU | C96: FORNEC E/OU ASSENT DE TUBO DE PVC COM JUNTA ELASTICA | D96: 48 | G96: 90747 | H96: ASSENTAMENTO DE TUBO DE PEAD CORRUGADO DE DUPLA PAREDE PARA REDE COLETORA DE ESGOTO, DN 600 MM, JUNTA ELÁSTICA INTEGRADA (NÃO INCLUI FORNECIMENTO). AF_01/2021 | I96: M | J96: COEFICIENTE DE REPRESENTATIVIDADE | K96: 19.3 | L96: CAIXA REFERENCIAL
A97: ASSENTAMENTO DE TUBOS E PECAS | B97: ASTU | C97: FORNEC E/OU ASSENT DE TUBO DE PVC COM JUNTA ELASTICA | D97: 48 | G97: 94869 | H97: TUBO DE PEAD CORRUGADO DE DUPLA PAREDE PARA REDE COLETORA DE ESGOTO, DN 250 MM, JUNTA ELÁSTICA INTEGRADA - FORNECIMENTO E ASSENTAMENTO. AF_01/2021 | I97: M | J97: COEFICIENTE DE REPRESENTATIVIDADE | K97: 145.44 | L97: CAIXA REFERENCIAL
A98: ASSENTAMENTO DE TUBOS E PECAS | B98: ASTU | C98: FORNEC E/OU ASSENT DE TUBO DE PVC COM JUNTA ELASTICA | D98: 48 | G98: 94870 | H98: ASSENTAMENTO DE TUBO DE PEAD CORRUGADO DE DUPLA PAREDE PARA REDE COLETORA DE ESGOTO, DN 250 MM, JUNTA ELÁSTICA INTEGRADA (NÃO INCLUI FORNECIMENTO). AF_01/2021 | I98: M | J98: COEFICIENTE DE REPRESENTATIVIDADE | K98: 2.29 | L98: CAIXA REFERENCIAL
A99: ASSENTAMENTO DE TUBOS E PECAS | B99: ASTU | C99: FORNEC E/OU ASSENT DE TUBO DE PVC COM JUNTA ELASTICA | D99: 48 | G99: 94871 | H99: TUBO DE PEAD CORRUGADO DE DUPLA PAREDE PARA REDE COLETORA DE ESGOTO, DN 300 MM, JUNTA ELÁSTICA INTEGRADA - FORNECIMENTO E ASSENTAMENTO. AF_01/2021 | I99: M | J99: COEFICIENTE DE REPRESENTATIVIDADE | K99: 227.63 | L99: CAIXA REFERENCIAL
A100: ASSENTAMENTO DE TUBOS E PECAS | B100: ASTU | C100: FORNEC E/OU ASSENT DE TUBO DE PVC COM JUNTA ELASTICA | D100: 48 | G100: 94872 | H100: ASSENTAMENTO DE TUBO DE PEAD CORRUGADO DE DUPLA PAREDE PARA REDE COLETORA DE ESGOTO, DN 300 MM, JUNTA ELÁSTICA INTEGRADA (NÃO INCLUI FORNECIMENTO). AF_01/2021 | I100: M | J100: COEFICIENTE DE REPRESENTATIVIDADE | K100: 3.35 | L100: CAIXA REFERENCIAL
A101: ASSENTAMENTO DE TUBOS E PECAS | B101: ASTU | C101: FORNEC E/OU ASSENT DE TUBO DE PVC COM JUNTA ELASTICA | D101: 48 | G101: 94875 | H101: TUBO DE PEAD CORRUGADO DE DUPLA PAREDE PARA REDE COLETORA DE ESGOTO, DN 800 MM, JUNTA ELÁSTICA INTEGRADA - FORNECIMENTO E ASSENTAMENTO. AF_01/2021 | I101: M | J101: COEFICIENTE DE REPRESENTATIVIDADE | K101: 1338.84 | L101: CAIXA REFERENCIAL
A102: ASSENTAMENTO DE TUBOS E PECAS | B102: ASTU | C102: FORNEC E/OU ASSENT DE TUBO DE PVC COM JUNTA ELASTICA | D102: 48 | G102: 94876 | H102: ASSENTAMENTO DE TUBO DE PEAD CORRUGADO DE DUPLA PAREDE PARA REDE COLETORA DE ESGOTO, DN 800 MM, JUNTA ELÁSTICA INTEGRADA (NÃO INCLUI FORNECIMENTO). AF_01/2021 | I102: M | J102: COEFICIENTE DE REPRESENTATIVIDADE | K102: 32.05 | L102: CAIXA REFERENCIAL
A103: ASSENTAMENTO DE TUBOS E PECAS | B103: ASTU | C103: FORNEC E/OU ASSENT DE TUBO DE PVC COM JUNTA ELASTICA | D103: 48 | G103: 94878 | H103: ASSENTAMENTO DE TUBO DE PEAD CORRUGADO DE DUPLA PAREDE PARA REDE COLETORA DE ESGOTO, DN 900 MM, JUNTA ELÁSTICA INTEGRADA (NÃO INCLUI FORNECIMENTO). AF_01/2021 | I103: M | J103: COEFICIENTE DE REPRESENTATIVIDADE | K103: 37.13 | L103: CAIXA REFERENCIAL
A104: ASSENTAMENTO DE TUBOS E PECAS | B104: ASTU | C104: FORNEC E/OU ASSENT DE TUBO DE PVC COM JUNTA ELASTICA | D104: 48 | G104: 94879 | H104: TUBO DE PEAD CORRUGADO DE DUPLA PAREDE PARA REDE COLETORA DE ESGOTO, DN 1000 MM, JUNTA ELÁSTICA INTEGRADA - FORNECIMENTO E ASSENTAMENTO. AF_01/2021 | I104: M | J104: COEFICIENTE DE REPRESENTATIVIDADE | K104: 2060.76 | L104: CAIXA REFERENCIAL
A105: ASSENTAMENTO DE TUBOS E PECAS | B105: ASTU | C105: FORNEC E/OU ASSENT DE TUBO DE PVC COM JUNTA ELASTICA | D105: 48 | G105: 94880 | H105: ASSENTAMENTO DE TUBO DE PEAD CORRUGADO DE DUPLA PAREDE PARA REDE COLETORA DE ESGOTO, DN 1000 MM, JUNTA ELÁSTICA INTEGRADA (NÃO INCLUI FORNECIMENTO). AF_01/2021 | I105: M | J105: COEFICIENTE DE REPRESENTATIVIDADE | K105: 47.66 | L105: CAIXA REFERENCIAL
A106: ASSENTAMENTO DE TUBOS E PECAS | B106: ASTU | C106: FORNEC E/OU ASSENT DE TUBO DE PVC COM JUNTA ELASTICA | D106: 48 | G106: 94881 | H106: TUBO DE PEAD CORRUGADO DE DUPLA PAREDE PARA REDE COLETORA DE ESGOTO, DN 1200 MM, JUNTA ELÁSTICA INTEGRADA - FORNECIMENTO E ASSENTAMENTO. AF_01/2021 | I106: M | J106: COEFICIENTE DE REPRESENTATIVIDADE | K106: 2837.69 | L106: CAIXA REFERENCIAL
A107: ASSENTAMENTO DE TUBOS E PECAS | B107: ASTU | C107: FORNEC E/OU ASSENT DE TUBO DE PVC COM JUNTA ELASTICA | D107: 48 | G107: 94882 | H107: ASSENTAMENTO DE TUBO DE PEAD CORRUGADO DE DUPLA PAREDE PARA REDE COLETORA DE ESGOTO, DN 1200 MM, JUNTA ELÁSTICA INTEGRADA (NÃO INCLUI FORNECIMENTO). AF_01/2021 | I107: M | J107: COEFICIENTE DE REPRESENTATIVIDADE | K107: 55.47 | L107: CAIXA REFERENCIAL
A108: ASSENTAMENTO DE TUBOS E PECAS | B108: ASTU | C108: FORNEC E/OU ASSENT DE TUBO DE PVC COM JUNTA ELASTICA | D108: 48 | G108: 94884 | H108: ASSENTAMENTO DE TUBO DE PEAD CORRUGADO DE DUPLA PAREDE PARA REDE COLETORA DE ESGOTO, DN 1500 MM, JUNTA ELÁSTICA INTEGRADA (NÃO INCLUI FORNECIMENTO). AF_01/2021 | I108: M | J108: COEFICIENTE DE REPRESENTATIVIDADE | K108: 71.34 | L108: CAIXA REFERENCIAL
A109: ASSENTAMENTO DE TUBOS E PECAS | B109: ASTU | C109: FORNEC E/OU ASSENT DE TUBO DE PVC COM JUNTA ELASTICA | D109: 48 | G109: 97121 | H109: ASSENTAMENTO DE TUBO DE PVC PBA PARA REDE DE ÁGUA, DN 50 MM, JUNTA ELÁSTICA INTEGRADA, INSTALADO EM LOCAL COM NÍVEL ALTO DE INTERFERÊNCIAS (NÃO INCLUI FORNECIMENTO). AF_11/2017 | I109: M | J109: COEFICIENTE DE REPRESENTATIVIDADE | K109: 2.82 | L109: CAIXA REFERENCIAL
A110: ASSENTAMENTO DE TUBOS E PECAS | B110: ASTU | C110: FORNEC E/OU ASSENT DE TUBO DE PVC COM JUNTA ELASTICA | D110: 48 | G110: 97122 | H110: ASSENTAMENTO DE TUBO DE PVC PBA PARA REDE DE ÁGUA, DN 75 MM, JUNTA ELÁSTICA INTEGRADA, INSTALADO EM LOCAL COM NÍVEL ALTO DE INTERFERÊNCIAS (NÃO INCLUI FORNECIMENTO). AF_11/2017 | I110: M | J110: COEFICIENTE DE REPRESENTATIVIDADE | K110: 3.92 | L110: CAIXA REFERENCIAL
A111: ASSENTAMENTO DE TUBOS E PECAS | B111: ASTU | C111: FORNEC E/OU ASSENT DE TUBO DE PVC COM JUNTA ELASTICA | D111: 48 | G111: 97123 | H111: ASSENTAMENTO DE TUBO DE PVC PBA PARA REDE DE ÁGUA, DN 100 MM, JUNTA ELÁSTICA INTEGRADA, INSTALADO EM LOCAL COM NÍVEL ALTO DE INTERFERÊNCIAS (NÃO INCLUI FORNECIMENTO). AF_11/2017 | I111: M | J111: COEFICIENTE DE REPRESENTATIVIDADE | K111: 4.96 | L111: CAIXA REFERENCIAL
A112: ASSENTAMENTO DE TUBOS E PECAS | B112: ASTU | C112: FORNEC E/OU ASSENT DE TUBO DE PVC COM JUNTA ELASTICA | D112: 48 | G112: 97124 | H112: ASSENTAMENTO DE TUBO DE PVC PBA PARA REDE DE ÁGUA, DN 50 MM, JUNTA ELÁSTICA INTEGRADA, INSTALADO EM LOCAL COM NÍVEL BAIXO DE INTERFERÊNCIAS (NÃO INCLUI FORNECIMENTO). AF_11/2017 | I112: M | J112: COEFICIENTE DE REPRESENTATIVIDADE | K112: 1.23 | L112: CAIXA REFERENCIAL
A113: ASSENTAMENTO DE TUBOS E PECAS | B113: ASTU | C113: FORNEC E/OU ASSENT DE TUBO DE PVC COM JUNTA ELASTICA | D113: 48 | G113: 97125 | H113: ASSENTAMENTO DE TUBO DE PVC PBA PARA REDE DE ÁGUA, DN 75 MM, JUNTA ELÁSTICA INTEGRADA, INSTALADO EM LOCAL COM NÍVEL BAIXO DE INTERFERÊNCIAS (NÃO INCLUI FORNECIMENTO). AF_11/2017 | I113: M | J113: COEFICIENTE DE REPRESENTATIVIDADE | K113: 1.73 | L113: CAIXA REFERENCIAL
A114: ASSENTAMENTO DE TUBOS E PECAS | B114: ASTU | C114: FORNEC E/OU ASSENT DE TUBO DE PVC COM JUNTA ELASTICA | D114: 48 | G114: 97126 | H114: ASSENTAMENTO DE TUBO DE PVC PBA PARA REDE DE ÁGUA, DN 100 MM, JUNTA ELÁSTICA INTEGRADA, INSTALADO EM LOCAL COM NÍVEL BAIXO DE INTERFERÊNCIAS (NÃO INCLUI FORNECIMENTO). AF_11/2017 | I114: M | J114: COEFICIENTE DE REPRESENTATIVIDADE | K114: 2.2 | L114: CAIXA REFERENCIAL
A115: ASSENTAMENTO DE TUBOS E PECAS | B115: ASTU | C115: FORNEC E/OU ASSENT DE TUBO DE PVC COM JUNTA ELASTICA | D115: 48 | G115: 102264 | H115: TUBO DE PVC BRANCO PARA REDE COLETORA DE ESGOTO CONDOMINIAL DE PAREDE MACIÇA, DN 100 MM, JUNTA ELÁSTICA - FORNECIMENTO E ASSENTAMENTO. AF_01/2021 | I115: M | J115: COEFICIENTE DE REPRESENTATIVIDADE | K115: 21.3 | L115: CAIXA REFERENCIAL
A116: ASSENTAMENTO DE TUBOS E PECAS | B116: ASTU | C116: FORNEC E/OU ASSENT DE TUBO DE PVC COM JUNTA ELASTICA | D116: 48 | G116: 102265 | H116: JUNTA ARGAMASSADA ENTRE TUBO DN 800 MM E O POÇO DE VISITA/ CAIXA DE CONCRETO OU ALVENARIA EM REDES DE ESGOTO. AF_01/2021 | I116: UN | J116: COEFICIENTE DE REPRESENTATIVIDADE | K116: 141.96 | L116: CAIXA REFERENCIAL
